Workbook

Sheet HDM4 RESUMO L3
H2: Cliente: | I2: BNDES - Banco Nacional de Desenvolvimento
H3: Trecho: | I3: Minas Gerais - Lote 3
H4: Objeto: | I4: Contratação de serviços técnicos especializados necessários à desestatização do sistema rodoviário no Estado de Minas Gerais, de até 2.798,6 km de extensão
H6: SERVIÇOS INICIAIS | K6: RECUPERAÇÃO | N6: MANUTENÇÃO
B8: ITEM | C8: CÓDIGO | D8: DESCRIÇÃO | E8: M2D | F8: QTD | H8: ANO 1 | I8: ANO 2 | J8: ANO 3 | K8: ANO 4 | L8: ANO 5 | M8: ANO 6 | N8: ANO 7 | O8: ANO 8 | P8: ANO 9 | Q8: ANO 10 | R8: ANO 11 | S8: ANO 12 | T8: ANO 13 | U8: ANO 14 | V8: ANO 15 | W8: ANO 16 | X8: ANO 17 | Y8: ANO 18 | Z8: ANO 19 | AA8: ANO 20 | AB8: ANO 21 | AC8: ANO 22 | AD8: ANO 23 | AE8: ANO 24 | AF8: ANO 25 | AG8: ANO 26 | AH8: ANO 27 | AI8: ANO 28 | AJ8: ANO 29 | AK8: ANO 30
H9: 2022 | I9: 2023 | J9: 2024 | K9: 2025 | L9: 2026 | M9: 2027 | N9: 2028 | O9: 2029 | P9: 2030 | Q9: 2031 | R9: 2032 | S9: 2033 | T9: 2034 | U9: 2035 | V9: 2036 | W9: 2037 | X9: 2038 | Y9: 2039 | Z9: 2040 | AA9: 2041 | AB9: 2042 | AC9: 2043 | AD9: 2044 | AE9: 2045 | AF9: 2046 | AG9: 2047 | AH9: 2048 | AI9: 2049 | AJ9: 2050 | AK9: 2051
B11: 8.0 | D11: MANUTENÇÃO RODOVIARIA
B12: 8.1 | D12: PISTAS
B13: 8.1.1 | D13: Fresagem5+Recomposição5p | E13: M2 | F13: =SUM(F14:F39) -> 242,970.94 | H13: =SUM(H14:H39) -> 0 | I13: =SUM(I14:I39) -> 0 | J13: =SUM(J14:J39) -> 0 | K13: =SUM(K14:K39) -> 89,331.00 | L13: =SUM(L14:L39) -> 57,792.66 | M13: =SUM(M14:M39) -> 95,847.28 | N13: =SUM(N14:N39) -> 0 | O13: =SUM(O14:O39) -> 0 | P13: =SUM(P14:P39) -> 0 | Q13: =SUM(Q14:Q39) -> 0 | R13: =SUM(R14:R39) -> 0 | S13: =SUM(S14:S39) -> 0 | T13: =SUM(T14:T39) -> 0 | U13: =SUM(U14:U39) -> 0 | V13: =SUM(V14:V39) -> 0 | W13: =SUM(W14:W39) -> 0 | X13: =SUM(X14:X39) -> 0 | Y13: =SUM(Y14:Y39) -> 0 | Z13: =SUM(Z14:Z39) -> 0 | AA13: =SUM(AA14:AA39) -> 0 | AB13: =SUM(AB14:AB39) -> 0 | AC13: =SUM(AC14:AC39) -> 0 | AD13: =SUM(AD14:AD39) -> 0 | AE13: =SUM(AE14:AE39) -> 0 | AF13: =SUM(AF14:AF39) -> 0 | AG13: =SUM(AG14:AG39) -> 0 | AH13: =SUM(AH14:AH39) -> 0 | AI13: =SUM(AI14:AI39) -> 0 | AJ13: =SUM(AJ14:AJ39) -> 0 | AK13: =SUM(AK14:AK39) -> 0
B14: 8.1.1.1 | D14: 167EMG0200 | E14: M2 | F14: =SUM(H14:AK14) -> 0 | H14: =SUMIFS('Intervenção-Pista (2)'!D:D,'Intervenção-Pista (2)'!$A:$A,$D14,'Intervenção-Pista (2)'!$B:$B,$D$13) -> 0 | I14: =SUMIFS('Intervenção-Pista (2)'!E:E,'Intervenção-Pista (2)'!$A:$A,$D14,'Intervenção-Pista (2)'!$B:$B,$D$13) -> 0 | J14: =SUMIFS('Intervenção-Pista (2)'!F:F,'Intervenção-Pista (2)'!$A:$A,$D14,'Intervenção-Pista (2)'!$B:$B,$D$13) -> 0 | K14: =SUMIFS('Intervenção-Pista (2)'!G:G,'Intervenção-Pista (2)'!$A:$A,$D14,'Intervenção-Pista (2)'!$B:$B,$D$13) -> 0 | L14: =SUMIFS('Intervenção-Pista (2)'!H:H,'Intervenção-Pista (2)'!$A:$A,$D14,'Intervenção-Pista (2)'!$B:$B,$D$13) -> 0 | M14: =SUMIFS('Intervenção-Pista (2)'!I:I,'Intervenção-Pista (2)'!$A:$A,$D14,'Intervenção-Pista (2)'!$B:$B,$D$13) -> 0 | N14: =SUMIFS('Intervenção-Pista (2)'!J:J,'Intervenção-Pista (2)'!$A:$A,$D14,'Intervenção-Pista (2)'!$B:$B,$D$13) -> 0 | O14: =SUMIFS('Intervenção-Pista (2)'!K:K,'Intervenção-Pista (2)'!$A:$A,$D14,'Intervenção-Pista (2)'!$B:$B,$D$13) -> 0 | P14: =SUMIFS('Intervenção-Pista (2)'!L:L,'Intervenção-Pista (2)'!$A:$A,$D14,'Intervenção-Pista (2)'!$B:$B,$D$13) -> 0 | Q14: =SUMIFS('Intervenção-Pista (2)'!M:M,'Intervenção-Pista (2)'!$A:$A,$D14,'Intervenção-Pista (2)'!$B:$B,$D$13) -> 0 | R14: =SUMIFS('Intervenção-Pista (2)'!N:N,'Intervenção-Pista (2)'!$A:$A,$D14,'Intervenção-Pista (2)'!$B:$B,$D$13) -> 0 | S14: =SUMIFS('Intervenção-Pista (2)'!O:O,'Intervenção-Pista (2)'!$A:$A,$D14,'Intervenção-Pista (2)'!$B:$B,$D$13) -> 0 | T14: =SUMIFS('Intervenção-Pista (2)'!P:P,'Intervenção-Pista (2)'!$A:$A,$D14,'Intervenção-Pista (2)'!$B:$B,$D$13) -> 0 | U14: =SUMIFS('Intervenção-Pista (2)'!Q:Q,'Intervenção-Pista (2)'!$A:$A,$D14,'Intervenção-Pista (2)'!$B:$B,$D$13) -> 0 | V14: =SUMIFS('Intervenção-Pista (2)'!R:R,'Intervenção-Pista (2)'!$A:$A,$D14,'Intervenção-Pista (2)'!$B:$B,$D$13) -> 0 | W14: =SUMIFS('Intervenção-Pista (2)'!S:S,'Intervenção-Pista (2)'!$A:$A,$D14,'Intervenção-Pista (2)'!$B:$B,$D$13) -> 0 | X14: =SUMIFS('Intervenção-Pista (2)'!T:T,'Intervenção-Pista (2)'!$A:$A,$D14,'Intervenção-Pista (2)'!$B:$B,$D$13) -> 0 | Y14: =SUMIFS('Intervenção-Pista (2)'!U:U,'Intervenção-Pista (2)'!$A:$A,$D14,'Intervenção-Pista (2)'!$B:$B,$D$13) -> 0 | Z14: =SUMIFS('Intervenção-Pista (2)'!V:V,'Intervenção-Pista (2)'!$A:$A,$D14,'Intervenção-Pista (2)'!$B:$B,$D$13) -> 0 | AA14: =SUMIFS('Intervenção-Pista (2)'!W:W,'Intervenção-Pista (2)'!$A:$A,$D14,'Intervenção-Pista (2)'!$B:$B,$D$13) -> 0 | AB14: =SUMIFS('Intervenção-Pista (2)'!X:X,'Intervenção-Pista (2)'!$A:$A,$D14,'Intervenção-Pista (2)'!$B:$B,$D$13) -> 0 | AC14: =SUMIFS('Intervenção-Pista (2)'!Y:Y,'Intervenção-Pista (2)'!$A:$A,$D14,'Intervenção-Pista (2)'!$B:$B,$D$13) -> 0 | AD14: =SUMIFS('Intervenção-Pista (2)'!Z:Z,'Intervenção-Pista (2)'!$A:$A,$D14,'Intervenção-Pista (2)'!$B:$B,$D$13) -> 0 | AE14: =SUMIFS('Intervenção-Pista (2)'!AA:AA,'Intervenção-Pista (2)'!$A:$A,$D14,'Intervenção-Pista (2)'!$B:$B,$D$13) -> 0 | AF14: =SUMIFS('Intervenção-Pista (2)'!AB:AB,'Intervenção-Pista (2)'!$A:$A,$D14,'Intervenção-Pista (2)'!$B:$B,$D$13) -> 0 | AG14: =SUMIFS('Intervenção-Pista (2)'!AC:AC,'Intervenção-Pista (2)'!$A:$A,$D14,'Intervenção-Pista (2)'!$B:$B,$D$13) -> 0 | AH14: =SUMIFS('Intervenção-Pista (2)'!AD:AD,'Intervenção-Pista (2)'!$A:$A,$D14,'Intervenção-Pista (2)'!$B:$B,$D$13) -> 0 | AI14: =SUMIFS('Intervenção-Pista (2)'!AE:AE,'Intervenção-Pista (2)'!$A:$A,$D14,'Intervenção-Pista (2)'!$B:$B,$D$13) -> 0 | AJ14: =SUMIFS('Intervenção-Pista (2)'!AF:AF,'Intervenção-Pista (2)'!$A:$A,$D14,'Intervenção-Pista (2)'!$B:$B,$D$13) -> 0 | AK14: =SUMIFS('Intervenção-Pista (2)'!AG:AG,'Intervenção-Pista (2)'!$A:$A,$D14,'Intervenção-Pista (2)'!$B:$B,$D$13) -> 0
B15: 8.1.1.2 | D15: 167EMG0205 | E15: M2 | F15: 0 | H15: =SUMIFS('Intervenção-Pista (2)'!D:D,'Intervenção-Pista (2)'!$A:$A,$D15,'Intervenção-Pista (2)'!$B:$B,$D$13) -> 0 | I15: =SUMIFS('Intervenção-Pista (2)'!E:E,'Intervenção-Pista (2)'!$A:$A,$D15,'Intervenção-Pista (2)'!$B:$B,$D$13) -> 0 | J15: =SUMIFS('Intervenção-Pista (2)'!F:F,'Intervenção-Pista (2)'!$A:$A,$D15,'Intervenção-Pista (2)'!$B:$B,$D$13) -> 0 | K15: =SUMIFS('Intervenção-Pista (2)'!G:G,'Intervenção-Pista (2)'!$A:$A,$D15,'Intervenção-Pista (2)'!$B:$B,$D$13) -> 0 | L15: =SUMIFS('Intervenção-Pista (2)'!H:H,'Intervenção-Pista (2)'!$A:$A,$D15,'Intervenção-Pista (2)'!$B:$B,$D$13) -> 0 | M15: =SUMIFS('Intervenção-Pista (2)'!I:I,'Intervenção-Pista (2)'!$A:$A,$D15,'Intervenção-Pista (2)'!$B:$B,$D$13) -> 0 | N15: =SUMIFS('Intervenção-Pista (2)'!J:J,'Intervenção-Pista (2)'!$A:$A,$D15,'Intervenção-Pista (2)'!$B:$B,$D$13) -> 0 | O15: =SUMIFS('Intervenção-Pista (2)'!K:K,'Intervenção-Pista (2)'!$A:$A,$D15,'Intervenção-Pista (2)'!$B:$B,$D$13) -> 0 | P15: =SUMIFS('Intervenção-Pista (2)'!L:L,'Intervenção-Pista (2)'!$A:$A,$D15,'Intervenção-Pista (2)'!$B:$B,$D$13) -> 0 | Q15: =SUMIFS('Intervenção-Pista (2)'!M:M,'Intervenção-Pista (2)'!$A:$A,$D15,'Intervenção-Pista (2)'!$B:$B,$D$13) -> 0 | R15: =SUMIFS('Intervenção-Pista (2)'!N:N,'Intervenção-Pista (2)'!$A:$A,$D15,'Intervenção-Pista (2)'!$B:$B,$D$13) -> 0 | S15: =SUMIFS('Intervenção-Pista (2)'!O:O,'Intervenção-Pista (2)'!$A:$A,$D15,'Intervenção-Pista (2)'!$B:$B,$D$13) -> 0 | T15: =SUMIFS('Intervenção-Pista (2)'!P:P,'Intervenção-Pista (2)'!$A:$A,$D15,'Intervenção-Pista (2)'!$B:$B,$D$13) -> 0 | U15: =SUMIFS('Intervenção-Pista (2)'!Q:Q,'Intervenção-Pista (2)'!$A:$A,$D15,'Intervenção-Pista (2)'!$B:$B,$D$13) -> 0 | V15: =SUMIFS('Intervenção-Pista (2)'!R:R,'Intervenção-Pista (2)'!$A:$A,$D15,'Intervenção-Pista (2)'!$B:$B,$D$13) -> 0 | W15: =SUMIFS('Intervenção-Pista (2)'!S:S,'Intervenção-Pista (2)'!$A:$A,$D15,'Intervenção-Pista (2)'!$B:$B,$D$13) -> 0 | X15: =SUMIFS('Intervenção-Pista (2)'!T:T,'Intervenção-Pista (2)'!$A:$A,$D15,'Intervenção-Pista (2)'!$B:$B,$D$13) -> 0 | Y15: =SUMIFS('Intervenção-Pista (2)'!U:U,'Intervenção-Pista (2)'!$A:$A,$D15,'Intervenção-Pista (2)'!$B:$B,$D$13) -> 0 | Z15: =SUMIFS('Intervenção-Pista (2)'!V:V,'Intervenção-Pista (2)'!$A:$A,$D15,'Intervenção-Pista (2)'!$B:$B,$D$13) -> 0 | AA15: =SUMIFS('Intervenção-Pista (2)'!W:W,'Intervenção-Pista (2)'!$A:$A,$D15,'Intervenção-Pista (2)'!$B:$B,$D$13) -> 0 | AB15: =SUMIFS('Intervenção-Pista (2)'!X:X,'Intervenção-Pista (2)'!$A:$A,$D15,'Intervenção-Pista (2)'!$B:$B,$D$13) -> 0 | AC15: =SUMIFS('Intervenção-Pista (2)'!Y:Y,'Intervenção-Pista (2)'!$A:$A,$D15,'Intervenção-Pista (2)'!$B:$B,$D$13) -> 0 | AD15: =SUMIFS('Intervenção-Pista (2)'!Z:Z,'Intervenção-Pista (2)'!$A:$A,$D15,'Intervenção-Pista (2)'!$B:$B,$D$13) -> 0 | AE15: =SUMIFS('Intervenção-Pista (2)'!AA:AA,'Intervenção-Pista (2)'!$A:$A,$D15,'Intervenção-Pista (2)'!$B:$B,$D$13) -> 0 | AF15: =SUMIFS('Intervenção-Pista (2)'!AB:AB,'Intervenção-Pista (2)'!$A:$A,$D15,'Intervenção-Pista (2)'!$B:$B,$D$13) -> 0 | AG15: =SUMIFS('Intervenção-Pista (2)'!AC:AC,'Intervenção-Pista (2)'!$A:$A,$D15,'Intervenção-Pista (2)'!$B:$B,$D$13) -> 0 | AH15: =SUMIFS('Intervenção-Pista (2)'!AD:AD,'Intervenção-Pista (2)'!$A:$A,$D15,'Intervenção-Pista (2)'!$B:$B,$D$13) -> 0 | AI15: =SUMIFS('Intervenção-Pista (2)'!AE:AE,'Intervenção-Pista (2)'!$A:$A,$D15,'Intervenção-Pista (2)'!$B:$B,$D$13) -> 0 | AJ15: =SUMIFS('Intervenção-Pista (2)'!AF:AF,'Intervenção-Pista (2)'!$A:$A,$D15,'Intervenção-Pista (2)'!$B:$B,$D$13) -> 0 | AK15: =SUMIFS('Intervenção-Pista (2)'!AG:AG,'Intervenção-Pista (2)'!$A:$A,$D15,'Intervenção-Pista (2)'!$B:$B,$D$13) -> 0
B16: 8.1.1.3 | D16: 167EMG0220 | E16: M2 | F16: 36,000.00 | H16: =SUMIFS('Intervenção-Pista (2)'!D:D,'Intervenção-Pista (2)'!$A:$A,$D16,'Intervenção-Pista (2)'!$B:$B,$D$13) -> 0 | I16: =SUMIFS('Intervenção-Pista (2)'!E:E,'Intervenção-Pista (2)'!$A:$A,$D16,'Intervenção-Pista (2)'!$B:$B,$D$13) -> 0 | J16: =SUMIFS('Intervenção-Pista (2)'!F:F,'Intervenção-Pista (2)'!$A:$A,$D16,'Intervenção-Pista (2)'!$B:$B,$D$13) -> 0 | K16: =SUMIFS('Intervenção-Pista (2)'!G:G,'Intervenção-Pista (2)'!$A:$A,$D16,'Intervenção-Pista (2)'!$B:$B,$D$13) -> 0 | L16: =SUMIFS('Intervenção-Pista (2)'!H:H,'Intervenção-Pista (2)'!$A:$A,$D16,'Intervenção-Pista (2)'!$B:$B,$D$13) -> 0 | M16: =SUMIFS('Intervenção-Pista (2)'!I:I,'Intervenção-Pista (2)'!$A:$A,$D16,'Intervenção-Pista (2)'!$B:$B,$D$13) -> 36,000.00 | N16: =SUMIFS('Intervenção-Pista (2)'!J:J,'Intervenção-Pista (2)'!$A:$A,$D16,'Intervenção-Pista (2)'!$B:$B,$D$13) -> 0 | O16: =SUMIFS('Intervenção-Pista (2)'!K:K,'Intervenção-Pista (2)'!$A:$A,$D16,'Intervenção-Pista (2)'!$B:$B,$D$13) -> 0 | P16: =SUMIFS('Intervenção-Pista (2)'!L:L,'Intervenção-Pista (2)'!$A:$A,$D16,'Intervenção-Pista (2)'!$B:$B,$D$13) -> 0 | Q16: =SUMIFS('Intervenção-Pista (2)'!M:M,'Intervenção-Pista (2)'!$A:$A,$D16,'Intervenção-Pista (2)'!$B:$B,$D$13) -> 0 | R16: =SUMIFS('Intervenção-Pista (2)'!N:N,'Intervenção-Pista (2)'!$A:$A,$D16,'Intervenção-Pista (2)'!$B:$B,$D$13) -> 0 | S16: =SUMIFS('Intervenção-Pista (2)'!O:O,'Intervenção-Pista (2)'!$A:$A,$D16,'Intervenção-Pista (2)'!$B:$B,$D$13) -> 0 | T16: =SUMIFS('Intervenção-Pista (2)'!P:P,'Intervenção-Pista (2)'!$A:$A,$D16,'Intervenção-Pista (2)'!$B:$B,$D$13) -> 0 | U16: =SUMIFS('Intervenção-Pista (2)'!Q:Q,'Intervenção-Pista (2)'!$A:$A,$D16,'Intervenção-Pista (2)'!$B:$B,$D$13) -> 0 | V16: =SUMIFS('Intervenção-Pista (2)'!R:R,'Intervenção-Pista (2)'!$A:$A,$D16,'Intervenção-Pista (2)'!$B:$B,$D$13) -> 0 | W16: =SUMIFS('Intervenção-Pista (2)'!S:S,'Intervenção-Pista (2)'!$A:$A,$D16,'Intervenção-Pista (2)'!$B:$B,$D$13) -> 0 | X16: =SUMIFS('Intervenção-Pista (2)'!T:T,'Intervenção-Pista (2)'!$A:$A,$D16,'Intervenção-Pista (2)'!$B:$B,$D$13) -> 0 | Y16: =SUMIFS('Intervenção-Pista (2)'!U:U,'Intervenção-Pista (2)'!$A:$A,$D16,'Intervenção-Pista (2)'!$B:$B,$D$13) -> 0 | Z16: =SUMIFS('Intervenção-Pista (2)'!V:V,'Intervenção-Pista (2)'!$A:$A,$D16,'Intervenção-Pista (2)'!$B:$B,$D$13) -> 0 | AA16: =SUMIFS('Intervenção-Pista (2)'!W:W,'Intervenção-Pista (2)'!$A:$A,$D16,'Intervenção-Pista (2)'!$B:$B,$D$13) -> 0 | AB16: =SUMIFS('Intervenção-Pista (2)'!X:X,'Intervenção-Pista (2)'!$A:$A,$D16,'Intervenção-Pista (2)'!$B:$B,$D$13) -> 0 | AC16: =SUMIFS('Intervenção-Pista (2)'!Y:Y,'Intervenção-Pista (2)'!$A:$A,$D16,'Intervenção-Pista (2)'!$B:$B,$D$13) -> 0 | AD16: =SUMIFS('Intervenção-Pista (2)'!Z:Z,'Intervenção-Pista (2)'!$A:$A,$D16,'Intervenção-Pista (2)'!$B:$B,$D$13) -> 0 | AE16: =SUMIFS('Intervenção-Pista (2)'!AA:AA,'Intervenção-Pista (2)'!$A:$A,$D16,'Intervenção-Pista (2)'!$B:$B,$D$13) -> 0 | AF16: =SUMIFS('Intervenção-Pista (2)'!AB:AB,'Intervenção-Pista (2)'!$A:$A,$D16,'Intervenção-Pista (2)'!$B:$B,$D$13) -> 0 | AG16: =SUMIFS('Intervenção-Pista (2)'!AC:AC,'Intervenção-Pista (2)'!$A:$A,$D16,'Intervenção-Pista (2)'!$B:$B,$D$13) -> 0 | AH16: =SUMIFS('Intervenção-Pista (2)'!AD:AD,'Intervenção-Pista (2)'!$A:$A,$D16,'Intervenção-Pista (2)'!$B:$B,$D$13) -> 0 | AI16: =SUMIFS('Intervenção-Pista (2)'!AE:AE,'Intervenção-Pista (2)'!$A:$A,$D16,'Intervenção-Pista (2)'!$B:$B,$D$13) -> 0 | AJ16: =SUMIFS('Intervenção-Pista (2)'!AF:AF,'Intervenção-Pista (2)'!$A:$A,$D16,'Intervenção-Pista (2)'!$B:$B,$D$13) -> 0 | AK16: =SUMIFS('Intervenção-Pista (2)'!AG:AG,'Intervenção-Pista (2)'!$A:$A,$D16,'Intervenção-Pista (2)'!$B:$B,$D$13) -> 0
B17: 8.1.1.4 | D17: 265BMG0270 | E17: M2 | F17: 0 | H17: =SUMIFS('Intervenção-Pista (2)'!D:D,'Intervenção-Pista (2)'!$A:$A,$D17,'Intervenção-Pista (2)'!$B:$B,$D$13) -> 0 | I17: =SUMIFS('Intervenção-Pista (2)'!E:E,'Intervenção-Pista (2)'!$A:$A,$D17,'Intervenção-Pista (2)'!$B:$B,$D$13) -> 0 | J17: =SUMIFS('Intervenção-Pista (2)'!F:F,'Intervenção-Pista (2)'!$A:$A,$D17,'Intervenção-Pista (2)'!$B:$B,$D$13) -> 0 | K17: =SUMIFS('Intervenção-Pista (2)'!G:G,'Intervenção-Pista (2)'!$A:$A,$D17,'Intervenção-Pista (2)'!$B:$B,$D$13) -> 0 | L17: =SUMIFS('Intervenção-Pista (2)'!H:H,'Intervenção-Pista (2)'!$A:$A,$D17,'Intervenção-Pista (2)'!$B:$B,$D$13) -> 0 | M17: =SUMIFS('Intervenção-Pista (2)'!I:I,'Intervenção-Pista (2)'!$A:$A,$D17,'Intervenção-Pista (2)'!$B:$B,$D$13) -> 0 | N17: =SUMIFS('Intervenção-Pista (2)'!J:J,'Intervenção-Pista (2)'!$A:$A,$D17,'Intervenção-Pista (2)'!$B:$B,$D$13) -> 0 | O17: =SUMIFS('Intervenção-Pista (2)'!K:K,'Intervenção-Pista (2)'!$A:$A,$D17,'Intervenção-Pista (2)'!$B:$B,$D$13) -> 0 | P17: =SUMIFS('Intervenção-Pista (2)'!L:L,'Intervenção-Pista (2)'!$A:$A,$D17,'Intervenção-Pista (2)'!$B:$B,$D$13) -> 0 | Q17: =SUMIFS('Intervenção-Pista (2)'!M:M,'Intervenção-Pista (2)'!$A:$A,$D17,'Intervenção-Pista (2)'!$B:$B,$D$13) -> 0 | R17: =SUMIFS('Intervenção-Pista (2)'!N:N,'Intervenção-Pista (2)'!$A:$A,$D17,'Intervenção-Pista (2)'!$B:$B,$D$13) -> 0 | S17: =SUMIFS('Intervenção-Pista (2)'!O:O,'Intervenção-Pista (2)'!$A:$A,$D17,'Intervenção-Pista (2)'!$B:$B,$D$13) -> 0 | T17: =SUMIFS('Intervenção-Pista (2)'!P:P,'Intervenção-Pista (2)'!$A:$A,$D17,'Intervenção-Pista (2)'!$B:$B,$D$13) -> 0 | U17: =SUMIFS('Intervenção-Pista (2)'!Q:Q,'Intervenção-Pista (2)'!$A:$A,$D17,'Intervenção-Pista (2)'!$B:$B,$D$13) -> 0 | V17: =SUMIFS('Intervenção-Pista (2)'!R:R,'Intervenção-Pista (2)'!$A:$A,$D17,'Intervenção-Pista (2)'!$B:$B,$D$13) -> 0 | W17: =SUMIFS('Intervenção-Pista (2)'!S:S,'Intervenção-Pista (2)'!$A:$A,$D17,'Intervenção-Pista (2)'!$B:$B,$D$13) -> 0 | X17: =SUMIFS('Intervenção-Pista (2)'!T:T,'Intervenção-Pista (2)'!$A:$A,$D17,'Intervenção-Pista (2)'!$B:$B,$D$13) -> 0 | Y17: =SUMIFS('Intervenção-Pista (2)'!U:U,'Intervenção-Pista (2)'!$A:$A,$D17,'Intervenção-Pista (2)'!$B:$B,$D$13) -> 0 | Z17: =SUMIFS('Intervenção-Pista (2)'!V:V,'Intervenção-Pista (2)'!$A:$A,$D17,'Intervenção-Pista (2)'!$B:$B,$D$13) -> 0 | AA17: =SUMIFS('Intervenção-Pista (2)'!W:W,'Intervenção-Pista (2)'!$A:$A,$D17,'Intervenção-Pista (2)'!$B:$B,$D$13) -> 0 | AB17: =SUMIFS('Intervenção-Pista (2)'!X:X,'Intervenção-Pista (2)'!$A:$A,$D17,'Intervenção-Pista (2)'!$B:$B,$D$13) -> 0 | AC17: =SUMIFS('Intervenção-Pista (2)'!Y:Y,'Intervenção-Pista (2)'!$A:$A,$D17,'Intervenção-Pista (2)'!$B:$B,$D$13) -> 0 | AD17: =SUMIFS('Intervenção-Pista (2)'!Z:Z,'Intervenção-Pista (2)'!$A:$A,$D17,'Intervenção-Pista (2)'!$B:$B,$D$13) -> 0 | AE17: =SUMIFS('Intervenção-Pista (2)'!AA:AA,'Intervenção-Pista (2)'!$A:$A,$D17,'Intervenção-Pista (2)'!$B:$B,$D$13) -> 0 | AF17: =SUMIFS('Intervenção-Pista (2)'!AB:AB,'Intervenção-Pista (2)'!$A:$A,$D17,'Intervenção-Pista (2)'!$B:$B,$D$13) -> 0 | AG17: =SUMIFS('Intervenção-Pista (2)'!AC:AC,'Intervenção-Pista (2)'!$A:$A,$D17,'Intervenção-Pista (2)'!$B:$B,$D$13) -> 0 | AH17: =SUMIFS('Intervenção-Pista (2)'!AD:AD,'Intervenção-Pista (2)'!$A:$A,$D17,'Intervenção-Pista (2)'!$B:$B,$D$13) -> 0 | AI17: =SUMIFS('Intervenção-Pista (2)'!AE:AE,'Intervenção-Pista (2)'!$A:$A,$D17,'Intervenção-Pista (2)'!$B:$B,$D$13) -> 0 | AJ17: =SUMIFS('Intervenção-Pista (2)'!AF:AF,'Intervenção-Pista (2)'!$A:$A,$D17,'Intervenção-Pista (2)'!$B:$B,$D$13) -> 0 | AK17: =SUMIFS('Intervenção-Pista (2)'!AG:AG,'Intervenção-Pista (2)'!$A:$A,$D17,'Intervenção-Pista (2)'!$B:$B,$D$13) -> 0
B18: 8.1.1.5 | D18: 265BMG0290 | E18: M2 | F18: 0 | H18: =SUMIFS('Intervenção-Pista (2)'!D:D,'Intervenção-Pista (2)'!$A:$A,$D18,'Intervenção-Pista (2)'!$B:$B,$D$13) -> 0 | I18: =SUMIFS('Intervenção-Pista (2)'!E:E,'Intervenção-Pista (2)'!$A:$A,$D18,'Intervenção-Pista (2)'!$B:$B,$D$13) -> 0 | J18: =SUMIFS('Intervenção-Pista (2)'!F:F,'Intervenção-Pista (2)'!$A:$A,$D18,'Intervenção-Pista (2)'!$B:$B,$D$13) -> 0 | K18: =SUMIFS('Intervenção-Pista (2)'!G:G,'Intervenção-Pista (2)'!$A:$A,$D18,'Intervenção-Pista (2)'!$B:$B,$D$13) -> 0 | L18: =SUMIFS('Intervenção-Pista (2)'!H:H,'Intervenção-Pista (2)'!$A:$A,$D18,'Intervenção-Pista (2)'!$B:$B,$D$13) -> 0 | M18: =SUMIFS('Intervenção-Pista (2)'!I:I,'Intervenção-Pista (2)'!$A:$A,$D18,'Intervenção-Pista (2)'!$B:$B,$D$13) -> 0 | N18: =SUMIFS('Intervenção-Pista (2)'!J:J,'Intervenção-Pista (2)'!$A:$A,$D18,'Intervenção-Pista (2)'!$B:$B,$D$13) -> 0 | O18: =SUMIFS('Intervenção-Pista (2)'!K:K,'Intervenção-Pista (2)'!$A:$A,$D18,'Intervenção-Pista (2)'!$B:$B,$D$13) -> 0 | P18: =SUMIFS('Intervenção-Pista (2)'!L:L,'Intervenção-Pista (2)'!$A:$A,$D18,'Intervenção-Pista (2)'!$B:$B,$D$13) -> 0 | Q18: =SUMIFS('Intervenção-Pista (2)'!M:M,'Intervenção-Pista (2)'!$A:$A,$D18,'Intervenção-Pista (2)'!$B:$B,$D$13) -> 0 | R18: =SUMIFS('Intervenção-Pista (2)'!N:N,'Intervenção-Pista (2)'!$A:$A,$D18,'Intervenção-Pista (2)'!$B:$B,$D$13) -> 0 | S18: =SUMIFS('Intervenção-Pista (2)'!O:O,'Intervenção-Pista (2)'!$A:$A,$D18,'Intervenção-Pista (2)'!$B:$B,$D$13) -> 0 | T18: =SUMIFS('Intervenção-Pista (2)'!P:P,'Intervenção-Pista (2)'!$A:$A,$D18,'Intervenção-Pista (2)'!$B:$B,$D$13) -> 0 | U18: =SUMIFS('Intervenção-Pista (2)'!Q:Q,'Intervenção-Pista (2)'!$A:$A,$D18,'Intervenção-Pista (2)'!$B:$B,$D$13) -> 0 | V18: =SUMIFS('Intervenção-Pista (2)'!R:R,'Intervenção-Pista (2)'!$A:$A,$D18,'Intervenção-Pista (2)'!$B:$B,$D$13) -> 0 | W18: =SUMIFS('Intervenção-Pista (2)'!S:S,'Intervenção-Pista (2)'!$A:$A,$D18,'Intervenção-Pista (2)'!$B:$B,$D$13) -> 0 | X18: =SUMIFS('Intervenção-Pista (2)'!T:T,'Intervenção-Pista (2)'!$A:$A,$D18,'Intervenção-Pista (2)'!$B:$B,$D$13) -> 0 | Y18: =SUMIFS('Intervenção-Pista (2)'!U:U,'Intervenção-Pista (2)'!$A:$A,$D18,'Intervenção-Pista (2)'!$B:$B,$D$13) -> 0 | Z18: =SUMIFS('Intervenção-Pista (2)'!V:V,'Intervenção-Pista (2)'!$A:$A,$D18,'Intervenção-Pista (2)'!$B:$B,$D$13) -> 0 | AA18: =SUMIFS('Intervenção-Pista (2)'!W:W,'Intervenção-Pista (2)'!$A:$A,$D18,'Intervenção-Pista (2)'!$B:$B,$D$13) -> 0 | AB18: =SUMIFS('Intervenção-Pista (2)'!X:X,'Intervenção-Pista (2)'!$A:$A,$D18,'Intervenção-Pista (2)'!$B:$B,$D$13) -> 0 | AC18: =SUMIFS('Intervenção-Pista (2)'!Y:Y,'Intervenção-Pista (2)'!$A:$A,$D18,'Intervenção-Pista (2)'!$B:$B,$D$13) -> 0 | AD18: =SUMIFS('Intervenção-Pista (2)'!Z:Z,'Intervenção-Pista (2)'!$A:$A,$D18,'Intervenção-Pista (2)'!$B:$B,$D$13) -> 0 | AE18: =SUMIFS('Intervenção-Pista (2)'!AA:AA,'Intervenção-Pista (2)'!$A:$A,$D18,'Intervenção-Pista (2)'!$B:$B,$D$13) -> 0 | AF18: =SUMIFS('Intervenção-Pista (2)'!AB:AB,'Intervenção-Pista (2)'!$A:$A,$D18,'Intervenção-Pista (2)'!$B:$B,$D$13) -> 0 | AG18: =SUMIFS('Intervenção-Pista (2)'!AC:AC,'Intervenção-Pista (2)'!$A:$A,$D18,'Intervenção-Pista (2)'!$B:$B,$D$13) -> 0 | AH18: =SUMIFS('Intervenção-Pista (2)'!AD:AD,'Intervenção-Pista (2)'!$A:$A,$D18,'Intervenção-Pista (2)'!$B:$B,$D$13) -> 0 | AI18: =SUMIFS('Intervenção-Pista (2)'!AE:AE,'Intervenção-Pista (2)'!$A:$A,$D18,'Intervenção-Pista (2)'!$B:$B,$D$13) -> 0 | AJ18: =SUMIFS('Intervenção-Pista (2)'!AF:AF,'Intervenção-Pista (2)'!$A:$A,$D18,'Intervenção-Pista (2)'!$B:$B,$D$13) -> 0 | AK18: =SUMIFS('Intervenção-Pista (2)'!AG:AG,'Intervenção-Pista (2)'!$A:$A,$D18,'Intervenção-Pista (2)'!$B:$B,$D$13) -> 0
B19: 8.1.1.6 | D19: 265BMG0305 | E19: M2 | F19: 0 | H19: =SUMIFS('Intervenção-Pista (2)'!D:D,'Intervenção-Pista (2)'!$A:$A,$D19,'Intervenção-Pista (2)'!$B:$B,$D$13) -> 0 | I19: =SUMIFS('Intervenção-Pista (2)'!E:E,'Intervenção-Pista (2)'!$A:$A,$D19,'Intervenção-Pista (2)'!$B:$B,$D$13) -> 0 | J19: =SUMIFS('Intervenção-Pista (2)'!F:F,'Intervenção-Pista (2)'!$A:$A,$D19,'Intervenção-Pista (2)'!$B:$B,$D$13) -> 0 | K19: =SUMIFS('Intervenção-Pista (2)'!G:G,'Intervenção-Pista (2)'!$A:$A,$D19,'Intervenção-Pista (2)'!$B:$B,$D$13) -> 0 | L19: =SUMIFS('Intervenção-Pista (2)'!H:H,'Intervenção-Pista (2)'!$A:$A,$D19,'Intervenção-Pista (2)'!$B:$B,$D$13) -> 0 | M19: =SUMIFS('Intervenção-Pista (2)'!I:I,'Intervenção-Pista (2)'!$A:$A,$D19,'Intervenção-Pista (2)'!$B:$B,$D$13) -> 0 | N19: =SUMIFS('Intervenção-Pista (2)'!J:J,'Intervenção-Pista (2)'!$A:$A,$D19,'Intervenção-Pista (2)'!$B:$B,$D$13) -> 0 | O19: =SUMIFS('Intervenção-Pista (2)'!K:K,'Intervenção-Pista (2)'!$A:$A,$D19,'Intervenção-Pista (2)'!$B:$B,$D$13) -> 0 | P19: =SUMIFS('Intervenção-Pista (2)'!L:L,'Intervenção-Pista (2)'!$A:$A,$D19,'Intervenção-Pista (2)'!$B:$B,$D$13) -> 0 | Q19: =SUMIFS('Intervenção-Pista (2)'!M:M,'Intervenção-Pista (2)'!$A:$A,$D19,'Intervenção-Pista (2)'!$B:$B,$D$13) -> 0 | R19: =SUMIFS('Intervenção-Pista (2)'!N:N,'Intervenção-Pista (2)'!$A:$A,$D19,'Intervenção-Pista (2)'!$B:$B,$D$13) -> 0 | S19: =SUMIFS('Intervenção-Pista (2)'!O:O,'Intervenção-Pista (2)'!$A:$A,$D19,'Intervenção-Pista (2)'!$B:$B,$D$13) -> 0 | T19: =SUMIFS('Intervenção-Pista (2)'!P:P,'Intervenção-Pista (2)'!$A:$A,$D19,'Intervenção-Pista (2)'!$B:$B,$D$13) -> 0 | U19: =SUMIFS('Intervenção-Pista (2)'!Q:Q,'Intervenção-Pista (2)'!$A:$A,$D19,'Intervenção-Pista (2)'!$B:$B,$D$13) -> 0 | V19: =SUMIFS('Intervenção-Pista (2)'!R:R,'Intervenção-Pista (2)'!$A:$A,$D19,'Intervenção-Pista (2)'!$B:$B,$D$13) -> 0 | W19: =SUMIFS('Intervenção-Pista (2)'!S:S,'Intervenção-Pista (2)'!$A:$A,$D19,'Intervenção-Pista (2)'!$B:$B,$D$13) -> 0 | X19: =SUMIFS('Intervenção-Pista (2)'!T:T,'Intervenção-Pista (2)'!$A:$A,$D19,'Intervenção-Pista (2)'!$B:$B,$D$13) -> 0 | Y19: =SUMIFS('Intervenção-Pista (2)'!U:U,'Intervenção-Pista (2)'!$A:$A,$D19,'Intervenção-Pista (2)'!$B:$B,$D$13) -> 0 | Z19: =SUMIFS('Intervenção-Pista (2)'!V:V,'Intervenção-Pista (2)'!$A:$A,$D19,'Intervenção-Pista (2)'!$B:$B,$D$13) -> 0 | AA19: =SUMIFS('Intervenção-Pista (2)'!W:W,'Intervenção-Pista (2)'!$A:$A,$D19,'Intervenção-Pista (2)'!$B:$B,$D$13) -> 0 | AB19: =SUMIFS('Intervenção-Pista (2)'!X:X,'Intervenção-Pista (2)'!$A:$A,$D19,'Intervenção-Pista (2)'!$B:$B,$D$13) -> 0 | AC19: =SUMIFS('Intervenção-Pista (2)'!Y:Y,'Intervenção-Pista (2)'!$A:$A,$D19,'Intervenção-Pista (2)'!$B:$B,$D$13) -> 0 | AD19: =SUMIFS('Intervenção-Pista (2)'!Z:Z,'Intervenção-Pista (2)'!$A:$A,$D19,'Intervenção-Pista (2)'!$B:$B,$D$13) -> 0 | AE19: =SUMIFS('Intervenção-Pista (2)'!AA:AA,'Intervenção-Pista (2)'!$A:$A,$D19,'Intervenção-Pista (2)'!$B:$B,$D$13) -> 0 | AF19: =SUMIFS('Intervenção-Pista (2)'!AB:AB,'Intervenção-Pista (2)'!$A:$A,$D19,'Intervenção-Pista (2)'!$B:$B,$D$13) -> 0 | AG19: =SUMIFS('Intervenção-Pista (2)'!AC:AC,'Intervenção-Pista (2)'!$A:$A,$D19,'Intervenção-Pista (2)'!$B:$B,$D$13) -> 0 | AH19: =SUMIFS('Intervenção-Pista (2)'!AD:AD,'Intervenção-Pista (2)'!$A:$A,$D19,'Intervenção-Pista (2)'!$B:$B,$D$13) -> 0 | AI19: =SUMIFS('Intervenção-Pista (2)'!AE:AE,'Intervenção-Pista (2)'!$A:$A,$D19,'Intervenção-Pista (2)'!$B:$B,$D$13) -> 0 | AJ19: =SUMIFS('Intervenção-Pista (2)'!AF:AF,'Intervenção-Pista (2)'!$A:$A,$D19,'Intervenção-Pista (2)'!$B:$B,$D$13) -> 0 | AK19: =SUMIFS('Intervenção-Pista (2)'!AG:AG,'Intervenção-Pista (2)'!$A:$A,$D19,'Intervenção-Pista (2)'!$B:$B,$D$13) -> 0
B20: 8.1.1.7 | D20: 265BMG0310 | E20: M2 | F20: 0 | H20: =SUMIFS('Intervenção-Pista (2)'!D:D,'Intervenção-Pista (2)'!$A:$A,$D20,'Intervenção-Pista (2)'!$B:$B,$D$13) -> 0 | I20: =SUMIFS('Intervenção-Pista (2)'!E:E,'Intervenção-Pista (2)'!$A:$A,$D20,'Intervenção-Pista (2)'!$B:$B,$D$13) -> 0 | J20: =SUMIFS('Intervenção-Pista (2)'!F:F,'Intervenção-Pista (2)'!$A:$A,$D20,'Intervenção-Pista (2)'!$B:$B,$D$13) -> 0 | K20: =SUMIFS('Intervenção-Pista (2)'!G:G,'Intervenção-Pista (2)'!$A:$A,$D20,'Intervenção-Pista (2)'!$B:$B,$D$13) -> 0 | L20: =SUMIFS('Intervenção-Pista (2)'!H:H,'Intervenção-Pista (2)'!$A:$A,$D20,'Intervenção-Pista (2)'!$B:$B,$D$13) -> 0 | M20: =SUMIFS('Intervenção-Pista (2)'!I:I,'Intervenção-Pista (2)'!$A:$A,$D20,'Intervenção-Pista (2)'!$B:$B,$D$13) -> 0 | N20: =SUMIFS('Intervenção-Pista (2)'!J:J,'Intervenção-Pista (2)'!$A:$A,$D20,'Intervenção-Pista (2)'!$B:$B,$D$13) -> 0 | O20: =SUMIFS('Intervenção-Pista (2)'!K:K,'Intervenção-Pista (2)'!$A:$A,$D20,'Intervenção-Pista (2)'!$B:$B,$D$13) -> 0 | P20: =SUMIFS('Intervenção-Pista (2)'!L:L,'Intervenção-Pista (2)'!$A:$A,$D20,'Intervenção-Pista (2)'!$B:$B,$D$13) -> 0 | Q20: =SUMIFS('Intervenção-Pista (2)'!M:M,'Intervenção-Pista (2)'!$A:$A,$D20,'Intervenção-Pista (2)'!$B:$B,$D$13) -> 0 | R20: =SUMIFS('Intervenção-Pista (2)'!N:N,'Intervenção-Pista (2)'!$A:$A,$D20,'Intervenção-Pista (2)'!$B:$B,$D$13) -> 0 | S20: =SUMIFS('Intervenção-Pista (2)'!O:O,'Intervenção-Pista (2)'!$A:$A,$D20,'Intervenção-Pista (2)'!$B:$B,$D$13) -> 0 | T20: =SUMIFS('Intervenção-Pista (2)'!P:P,'Intervenção-Pista (2)'!$A:$A,$D20,'Intervenção-Pista (2)'!$B:$B,$D$13) -> 0 | U20: =SUMIFS('Intervenção-Pista (2)'!Q:Q,'Intervenção-Pista (2)'!$A:$A,$D20,'Intervenção-Pista (2)'!$B:$B,$D$13) -> 0 | V20: =SUMIFS('Intervenção-Pista (2)'!R:R,'Intervenção-Pista (2)'!$A:$A,$D20,'Intervenção-Pista (2)'!$B:$B,$D$13) -> 0 | W20: =SUMIFS('Intervenção-Pista (2)'!S:S,'Intervenção-Pista (2)'!$A:$A,$D20,'Intervenção-Pista (2)'!$B:$B,$D$13) -> 0 | X20: =SUMIFS('Intervenção-Pista (2)'!T:T,'Intervenção-Pista (2)'!$A:$A,$D20,'Intervenção-Pista (2)'!$B:$B,$D$13) -> 0 | Y20: =SUMIFS('Intervenção-Pista (2)'!U:U,'Intervenção-Pista (2)'!$A:$A,$D20,'Intervenção-Pista (2)'!$B:$B,$D$13) -> 0 | Z20: =SUMIFS('Intervenção-Pista (2)'!V:V,'Intervenção-Pista (2)'!$A:$A,$D20,'Intervenção-Pista (2)'!$B:$B,$D$13) -> 0 | AA20: =SUMIFS('Intervenção-Pista (2)'!W:W,'Intervenção-Pista (2)'!$A:$A,$D20,'Intervenção-Pista (2)'!$B:$B,$D$13) -> 0 | AB20: =SUMIFS('Intervenção-Pista (2)'!X:X,'Intervenção-Pista (2)'!$A:$A,$D20,'Intervenção-Pista (2)'!$B:$B,$D$13) -> 0 | AC20: =SUMIFS('Intervenção-Pista (2)'!Y:Y,'Intervenção-Pista (2)'!$A:$A,$D20,'Intervenção-Pista (2)'!$B:$B,$D$13) -> 0 | AD20: =SUMIFS('Intervenção-Pista (2)'!Z:Z,'Intervenção-Pista (2)'!$A:$A,$D20,'Intervenção-Pista (2)'!$B:$B,$D$13) -> 0 | AE20: =SUMIFS('Intervenção-Pista (2)'!AA:AA,'Intervenção-Pista (2)'!$A:$A,$D20,'Intervenção-Pista (2)'!$B:$B,$D$13) -> 0 | AF20: =SUMIFS('Intervenção-Pista (2)'!AB:AB,'Intervenção-Pista (2)'!$A:$A,$D20,'Intervenção-Pista (2)'!$B:$B,$D$13) -> 0 | AG20: =SUMIFS('Intervenção-Pista (2)'!AC:AC,'Intervenção-Pista (2)'!$A:$A,$D20,'Intervenção-Pista (2)'!$B:$B,$D$13) -> 0 | AH20: =SUMIFS('Intervenção-Pista (2)'!AD:AD,'Intervenção-Pista (2)'!$A:$A,$D20,'Intervenção-Pista (2)'!$B:$B,$D$13) -> 0 | AI20: =SUMIFS('Intervenção-Pista (2)'!AE:AE,'Intervenção-Pista (2)'!$A:$A,$D20,'Intervenção-Pista (2)'!$B:$B,$D$13) -> 0 | AJ20: =SUMIFS('Intervenção-Pista (2)'!AF:AF,'Intervenção-Pista (2)'!$A:$A,$D20,'Intervenção-Pista (2)'!$B:$B,$D$13) -> 0 | AK20: =SUMIFS('Intervenção-Pista (2)'!AG:AG,'Intervenção-Pista (2)'!$A:$A,$D20,'Intervenção-Pista (2)'!$B:$B,$D$13) -> 0
B21: 8.1.1.8 | D21: 265BMG0311 | E21: M2 | F21: 19,398.34 | H21: =SUMIFS('Intervenção-Pista (2)'!D:D,'Intervenção-Pista (2)'!$A:$A,$D21,'Intervenção-Pista (2)'!$B:$B,$D$13) -> 0 | I21: =SUMIFS('Intervenção-Pista (2)'!E:E,'Intervenção-Pista (2)'!$A:$A,$D21,'Intervenção-Pista (2)'!$B:$B,$D$13) -> 0 | J21: =SUMIFS('Intervenção-Pista (2)'!F:F,'Intervenção-Pista (2)'!$A:$A,$D21,'Intervenção-Pista (2)'!$B:$B,$D$13) -> 0 | K21: =SUMIFS('Intervenção-Pista (2)'!G:G,'Intervenção-Pista (2)'!$A:$A,$D21,'Intervenção-Pista (2)'!$B:$B,$D$13) -> 0 | L21: =SUMIFS('Intervenção-Pista (2)'!H:H,'Intervenção-Pista (2)'!$A:$A,$D21,'Intervenção-Pista (2)'!$B:$B,$D$13) -> 0 | M21: =SUMIFS('Intervenção-Pista (2)'!I:I,'Intervenção-Pista (2)'!$A:$A,$D21,'Intervenção-Pista (2)'!$B:$B,$D$13) -> 19,398.34 | N21: =SUMIFS('Intervenção-Pista (2)'!J:J,'Intervenção-Pista (2)'!$A:$A,$D21,'Intervenção-Pista (2)'!$B:$B,$D$13) -> 0 | O21: =SUMIFS('Intervenção-Pista (2)'!K:K,'Intervenção-Pista (2)'!$A:$A,$D21,'Intervenção-Pista (2)'!$B:$B,$D$13) -> 0 | P21: =SUMIFS('Intervenção-Pista (2)'!L:L,'Intervenção-Pista (2)'!$A:$A,$D21,'Intervenção-Pista (2)'!$B:$B,$D$13) -> 0 | Q21: =SUMIFS('Intervenção-Pista (2)'!M:M,'Intervenção-Pista (2)'!$A:$A,$D21,'Intervenção-Pista (2)'!$B:$B,$D$13) -> 0 | R21: =SUMIFS('Intervenção-Pista (2)'!N:N,'Intervenção-Pista (2)'!$A:$A,$D21,'Intervenção-Pista (2)'!$B:$B,$D$13) -> 0 | S21: =SUMIFS('Intervenção-Pista (2)'!O:O,'Intervenção-Pista (2)'!$A:$A,$D21,'Intervenção-Pista (2)'!$B:$B,$D$13) -> 0 | T21: =SUMIFS('Intervenção-Pista (2)'!P:P,'Intervenção-Pista (2)'!$A:$A,$D21,'Intervenção-Pista (2)'!$B:$B,$D$13) -> 0 | U21: =SUMIFS('Intervenção-Pista (2)'!Q:Q,'Intervenção-Pista (2)'!$A:$A,$D21,'Intervenção-Pista (2)'!$B:$B,$D$13) -> 0 | V21: =SUMIFS('Intervenção-Pista (2)'!R:R,'Intervenção-Pista (2)'!$A:$A,$D21,'Intervenção-Pista (2)'!$B:$B,$D$13) -> 0 | W21: =SUMIFS('Intervenção-Pista (2)'!S:S,'Intervenção-Pista (2)'!$A:$A,$D21,'Intervenção-Pista (2)'!$B:$B,$D$13) -> 0 | X21: =SUMIFS('Intervenção-Pista (2)'!T:T,'Intervenção-Pista (2)'!$A:$A,$D21,'Intervenção-Pista (2)'!$B:$B,$D$13) -> 0 | Y21: =SUMIFS('Intervenção-Pista (2)'!U:U,'Intervenção-Pista (2)'!$A:$A,$D21,'Intervenção-Pista (2)'!$B:$B,$D$13) -> 0 | Z21: =SUMIFS('Intervenção-Pista (2)'!V:V,'Intervenção-Pista (2)'!$A:$A,$D21,'Intervenção-Pista (2)'!$B:$B,$D$13) -> 0 | AA21: =SUMIFS('Intervenção-Pista (2)'!W:W,'Intervenção-Pista (2)'!$A:$A,$D21,'Intervenção-Pista (2)'!$B:$B,$D$13) -> 0 | AB21: =SUMIFS('Intervenção-Pista (2)'!X:X,'Intervenção-Pista (2)'!$A:$A,$D21,'Intervenção-Pista (2)'!$B:$B,$D$13) -> 0 | AC21: =SUMIFS('Intervenção-Pista (2)'!Y:Y,'Intervenção-Pista (2)'!$A:$A,$D21,'Intervenção-Pista (2)'!$B:$B,$D$13) -> 0 | AD21: =SUMIFS('Intervenção-Pista (2)'!Z:Z,'Intervenção-Pista (2)'!$A:$A,$D21,'Intervenção-Pista (2)'!$B:$B,$D$13) -> 0 | AE21: =SUMIFS('Intervenção-Pista (2)'!AA:AA,'Intervenção-Pista (2)'!$A:$A,$D21,'Intervenção-Pista (2)'!$B:$B,$D$13) -> 0 | AF21: =SUMIFS('Intervenção-Pista (2)'!AB:AB,'Intervenção-Pista (2)'!$A:$A,$D21,'Intervenção-Pista (2)'!$B:$B,$D$13) -> 0 | AG21: =SUMIFS('Intervenção-Pista (2)'!AC:AC,'Intervenção-Pista (2)'!$A:$A,$D21,'Intervenção-Pista (2)'!$B:$B,$D$13) -> 0 | AH21: =SUMIFS('Intervenção-Pista (2)'!AD:AD,'Intervenção-Pista (2)'!$A:$A,$D21,'Intervenção-Pista (2)'!$B:$B,$D$13) -> 0 | AI21: =SUMIFS('Intervenção-Pista (2)'!AE:AE,'Intervenção-Pista (2)'!$A:$A,$D21,'Intervenção-Pista (2)'!$B:$B,$D$13) -> 0 | AJ21: =SUMIFS('Intervenção-Pista (2)'!AF:AF,'Intervenção-Pista (2)'!$A:$A,$D21,'Intervenção-Pista (2)'!$B:$B,$D$13) -> 0 | AK21: =SUMIFS('Intervenção-Pista (2)'!AG:AG,'Intervenção-Pista (2)'!$A:$A,$D21,'Intervenção-Pista (2)'!$B:$B,$D$13) -> 0
B22: 8.1.1.9 | D22: 863LMG0010 | E22: M2 | F22: 0 | H22: =SUMIFS('Intervenção-Pista (2)'!D:D,'Intervenção-Pista (2)'!$A:$A,$D22,'Intervenção-Pista (2)'!$B:$B,$D$13) -> 0 | I22: =SUMIFS('Intervenção-Pista (2)'!E:E,'Intervenção-Pista (2)'!$A:$A,$D22,'Intervenção-Pista (2)'!$B:$B,$D$13) -> 0 | J22: =SUMIFS('Intervenção-Pista (2)'!F:F,'Intervenção-Pista (2)'!$A:$A,$D22,'Intervenção-Pista (2)'!$B:$B,$D$13) -> 0 | K22: =SUMIFS('Intervenção-Pista (2)'!G:G,'Intervenção-Pista (2)'!$A:$A,$D22,'Intervenção-Pista (2)'!$B:$B,$D$13) -> 0 | L22: =SUMIFS('Intervenção-Pista (2)'!H:H,'Intervenção-Pista (2)'!$A:$A,$D22,'Intervenção-Pista (2)'!$B:$B,$D$13) -> 0 | M22: =SUMIFS('Intervenção-Pista (2)'!I:I,'Intervenção-Pista (2)'!$A:$A,$D22,'Intervenção-Pista (2)'!$B:$B,$D$13) -> 0 | N22: =SUMIFS('Intervenção-Pista (2)'!J:J,'Intervenção-Pista (2)'!$A:$A,$D22,'Intervenção-Pista (2)'!$B:$B,$D$13) -> 0 | O22: =SUMIFS('Intervenção-Pista (2)'!K:K,'Intervenção-Pista (2)'!$A:$A,$D22,'Intervenção-Pista (2)'!$B:$B,$D$13) -> 0 | P22: =SUMIFS('Intervenção-Pista (2)'!L:L,'Intervenção-Pista (2)'!$A:$A,$D22,'Intervenção-Pista (2)'!$B:$B,$D$13) -> 0 | Q22: =SUMIFS('Intervenção-Pista (2)'!M:M,'Intervenção-Pista (2)'!$A:$A,$D22,'Intervenção-Pista (2)'!$B:$B,$D$13) -> 0 | R22: =SUMIFS('Intervenção-Pista (2)'!N:N,'Intervenção-Pista (2)'!$A:$A,$D22,'Intervenção-Pista (2)'!$B:$B,$D$13) -> 0 | S22: =SUMIFS('Intervenção-Pista (2)'!O:O,'Intervenção-Pista (2)'!$A:$A,$D22,'Intervenção-Pista (2)'!$B:$B,$D$13) -> 0 | T22: =SUMIFS('Intervenção-Pista (2)'!P:P,'Intervenção-Pista (2)'!$A:$A,$D22,'Intervenção-Pista (2)'!$B:$B,$D$13) -> 0 | U22: =SUMIFS('Intervenção-Pista (2)'!Q:Q,'Intervenção-Pista (2)'!$A:$A,$D22,'Intervenção-Pista (2)'!$B:$B,$D$13) -> 0 | V22: =SUMIFS('Intervenção-Pista (2)'!R:R,'Intervenção-Pista (2)'!$A:$A,$D22,'Intervenção-Pista (2)'!$B:$B,$D$13) -> 0 | W22: =SUMIFS('Intervenção-Pista (2)'!S:S,'Intervenção-Pista (2)'!$A:$A,$D22,'Intervenção-Pista (2)'!$B:$B,$D$13) -> 0 | X22: =SUMIFS('Intervenção-Pista (2)'!T:T,'Intervenção-Pista (2)'!$A:$A,$D22,'Intervenção-Pista (2)'!$B:$B,$D$13) -> 0 | Y22: =SUMIFS('Intervenção-Pista (2)'!U:U,'Intervenção-Pista (2)'!$A:$A,$D22,'Intervenção-Pista (2)'!$B:$B,$D$13) -> 0 | Z22: =SUMIFS('Intervenção-Pista (2)'!V:V,'Intervenção-Pista (2)'!$A:$A,$D22,'Intervenção-Pista (2)'!$B:$B,$D$13) -> 0 | AA22: =SUMIFS('Intervenção-Pista (2)'!W:W,'Intervenção-Pista (2)'!$A:$A,$D22,'Intervenção-Pista (2)'!$B:$B,$D$13) -> 0 | AB22: =SUMIFS('Intervenção-Pista (2)'!X:X,'Intervenção-Pista (2)'!$A:$A,$D22,'Intervenção-Pista (2)'!$B:$B,$D$13) -> 0 | AC22: =SUMIFS('Intervenção-Pista (2)'!Y:Y,'Intervenção-Pista (2)'!$A:$A,$D22,'Intervenção-Pista (2)'!$B:$B,$D$13) -> 0 | AD22: =SUMIFS('Intervenção-Pista (2)'!Z:Z,'Intervenção-Pista (2)'!$A:$A,$D22,'Intervenção-Pista (2)'!$B:$B,$D$13) -> 0 | AE22: =SUMIFS('Intervenção-Pista (2)'!AA:AA,'Intervenção-Pista (2)'!$A:$A,$D22,'Intervenção-Pista (2)'!$B:$B,$D$13) -> 0 | AF22: =SUMIFS('Intervenção-Pista (2)'!AB:AB,'Intervenção-Pista (2)'!$A:$A,$D22,'Intervenção-Pista (2)'!$B:$B,$D$13) -> 0 | AG22: =SUMIFS('Intervenção-Pista (2)'!AC:AC,'Intervenção-Pista (2)'!$A:$A,$D22,'Intervenção-Pista (2)'!$B:$B,$D$13) -> 0 | AH22: =SUMIFS('Intervenção-Pista (2)'!AD:AD,'Intervenção-Pista (2)'!$A:$A,$D22,'Intervenção-Pista (2)'!$B:$B,$D$13) -> 0 | AI22: =SUMIFS('Intervenção-Pista (2)'!AE:AE,'Intervenção-Pista (2)'!$A:$A,$D22,'Intervenção-Pista (2)'!$B:$B,$D$13) -> 0 | AJ22: =SUMIFS('Intervenção-Pista (2)'!AF:AF,'Intervenção-Pista (2)'!$A:$A,$D22,'Intervenção-Pista (2)'!$B:$B,$D$13) -> 0 | AK22: =SUMIFS('Intervenção-Pista (2)'!AG:AG,'Intervenção-Pista (2)'!$A:$A,$D22,'Intervenção-Pista (2)'!$B:$B,$D$13) -> 0
B23: 8.1.1.10 | D23: 491CMG0010 | E23: M2 | F23: 0 | H23: =SUMIFS('Intervenção-Pista (2)'!D:D,'Intervenção-Pista (2)'!$A:$A,$D23,'Intervenção-Pista (2)'!$B:$B,$D$13) -> 0 | I23: =SUMIFS('Intervenção-Pista (2)'!E:E,'Intervenção-Pista (2)'!$A:$A,$D23,'Intervenção-Pista (2)'!$B:$B,$D$13) -> 0 | J23: =SUMIFS('Intervenção-Pista (2)'!F:F,'Intervenção-Pista (2)'!$A:$A,$D23,'Intervenção-Pista (2)'!$B:$B,$D$13) -> 0 | K23: =SUMIFS('Intervenção-Pista (2)'!G:G,'Intervenção-Pista (2)'!$A:$A,$D23,'Intervenção-Pista (2)'!$B:$B,$D$13) -> 0 | L23: =SUMIFS('Intervenção-Pista (2)'!H:H,'Intervenção-Pista (2)'!$A:$A,$D23,'Intervenção-Pista (2)'!$B:$B,$D$13) -> 0 | M23: =SUMIFS('Intervenção-Pista (2)'!I:I,'Intervenção-Pista (2)'!$A:$A,$D23,'Intervenção-Pista (2)'!$B:$B,$D$13) -> 0 | N23: =SUMIFS('Intervenção-Pista (2)'!J:J,'Intervenção-Pista (2)'!$A:$A,$D23,'Intervenção-Pista (2)'!$B:$B,$D$13) -> 0 | O23: =SUMIFS('Intervenção-Pista (2)'!K:K,'Intervenção-Pista (2)'!$A:$A,$D23,'Intervenção-Pista (2)'!$B:$B,$D$13) -> 0 | P23: =SUMIFS('Intervenção-Pista (2)'!L:L,'Intervenção-Pista (2)'!$A:$A,$D23,'Intervenção-Pista (2)'!$B:$B,$D$13) -> 0 | Q23: =SUMIFS('Intervenção-Pista (2)'!M:M,'Intervenção-Pista (2)'!$A:$A,$D23,'Intervenção-Pista (2)'!$B:$B,$D$13) -> 0 | R23: =SUMIFS('Intervenção-Pista (2)'!N:N,'Intervenção-Pista (2)'!$A:$A,$D23,'Intervenção-Pista (2)'!$B:$B,$D$13) -> 0 | S23: =SUMIFS('Intervenção-Pista (2)'!O:O,'Intervenção-Pista (2)'!$A:$A,$D23,'Intervenção-Pista (2)'!$B:$B,$D$13) -> 0 | T23: =SUMIFS('Intervenção-Pista (2)'!P:P,'Intervenção-Pista (2)'!$A:$A,$D23,'Intervenção-Pista (2)'!$B:$B,$D$13) -> 0 | U23: =SUMIFS('Intervenção-Pista (2)'!Q:Q,'Intervenção-Pista (2)'!$A:$A,$D23,'Intervenção-Pista (2)'!$B:$B,$D$13) -> 0 | V23: =SUMIFS('Intervenção-Pista (2)'!R:R,'Intervenção-Pista (2)'!$A:$A,$D23,'Intervenção-Pista (2)'!$B:$B,$D$13) -> 0 | W23: =SUMIFS('Intervenção-Pista (2)'!S:S,'Intervenção-Pista (2)'!$A:$A,$D23,'Intervenção-Pista (2)'!$B:$B,$D$13) -> 0 | X23: =SUMIFS('Intervenção-Pista (2)'!T:T,'Intervenção-Pista (2)'!$A:$A,$D23,'Intervenção-Pista (2)'!$B:$B,$D$13) -> 0 | Y23: =SUMIFS('Intervenção-Pista (2)'!U:U,'Intervenção-Pista (2)'!$A:$A,$D23,'Intervenção-Pista (2)'!$B:$B,$D$13) -> 0 | Z23: =SUMIFS('Intervenção-Pista (2)'!V:V,'Intervenção-Pista (2)'!$A:$A,$D23,'Intervenção-Pista (2)'!$B:$B,$D$13) -> 0 | AA23: =SUMIFS('Intervenção-Pista (2)'!W:W,'Intervenção-Pista (2)'!$A:$A,$D23,'Intervenção-Pista (2)'!$B:$B,$D$13) -> 0 | AB23: =SUMIFS('Intervenção-Pista (2)'!X:X,'Intervenção-Pista (2)'!$A:$A,$D23,'Intervenção-Pista (2)'!$B:$B,$D$13) -> 0 | AC23: =SUMIFS('Intervenção-Pista (2)'!Y:Y,'Intervenção-Pista (2)'!$A:$A,$D23,'Intervenção-Pista (2)'!$B:$B,$D$13) -> 0 | AD23: =SUMIFS('Intervenção-Pista (2)'!Z:Z,'Intervenção-Pista (2)'!$A:$A,$D23,'Intervenção-Pista (2)'!$B:$B,$D$13) -> 0 | AE23: =SUMIFS('Intervenção-Pista (2)'!AA:AA,'Intervenção-Pista (2)'!$A:$A,$D23,'Intervenção-Pista (2)'!$B:$B,$D$13) -> 0 | AF23: =SUMIFS('Intervenção-Pista (2)'!AB:AB,'Intervenção-Pista (2)'!$A:$A,$D23,'Intervenção-Pista (2)'!$B:$B,$D$13) -> 0 | AG23: =SUMIFS('Intervenção-Pista (2)'!AC:AC,'Intervenção-Pista (2)'!$A:$A,$D23,'Intervenção-Pista (2)'!$B:$B,$D$13) -> 0 | AH23: =SUMIFS('Intervenção-Pista (2)'!AD:AD,'Intervenção-Pista (2)'!$A:$A,$D23,'Intervenção-Pista (2)'!$B:$B,$D$13) -> 0 | AI23: =SUMIFS('Intervenção-Pista (2)'!AE:AE,'Intervenção-Pista (2)'!$A:$A,$D23,'Intervenção-Pista (2)'!$B:$B,$D$13) -> 0 | AJ23: =SUMIFS('Intervenção-Pista (2)'!AF:AF,'Intervenção-Pista (2)'!$A:$A,$D23,'Intervenção-Pista (2)'!$B:$B,$D$13) -> 0 | AK23: =SUMIFS('Intervenção-Pista (2)'!AG:AG,'Intervenção-Pista (2)'!$A:$A,$D23,'Intervenção-Pista (2)'!$B:$B,$D$13) -> 0
B24: 8.1.1.11 | D24: 491CMG0023 | E24: M2 | F24: 0 | H24: =SUMIFS('Intervenção-Pista (2)'!D:D,'Intervenção-Pista (2)'!$A:$A,$D24,'Intervenção-Pista (2)'!$B:$B,$D$13) -> 0 | I24: =SUMIFS('Intervenção-Pista (2)'!E:E,'Intervenção-Pista (2)'!$A:$A,$D24,'Intervenção-Pista (2)'!$B:$B,$D$13) -> 0 | J24: =SUMIFS('Intervenção-Pista (2)'!F:F,'Intervenção-Pista (2)'!$A:$A,$D24,'Intervenção-Pista (2)'!$B:$B,$D$13) -> 0 | K24: =SUMIFS('Intervenção-Pista (2)'!G:G,'Intervenção-Pista (2)'!$A:$A,$D24,'Intervenção-Pista (2)'!$B:$B,$D$13) -> 0 | L24: =SUMIFS('Intervenção-Pista (2)'!H:H,'Intervenção-Pista (2)'!$A:$A,$D24,'Intervenção-Pista (2)'!$B:$B,$D$13) -> 0 | M24: =SUMIFS('Intervenção-Pista (2)'!I:I,'Intervenção-Pista (2)'!$A:$A,$D24,'Intervenção-Pista (2)'!$B:$B,$D$13) -> 0 | N24: =SUMIFS('Intervenção-Pista (2)'!J:J,'Intervenção-Pista (2)'!$A:$A,$D24,'Intervenção-Pista (2)'!$B:$B,$D$13) -> 0 | O24: =SUMIFS('Intervenção-Pista (2)'!K:K,'Intervenção-Pista (2)'!$A:$A,$D24,'Intervenção-Pista (2)'!$B:$B,$D$13) -> 0 | P24: =SUMIFS('Intervenção-Pista (2)'!L:L,'Intervenção-Pista (2)'!$A:$A,$D24,'Intervenção-Pista (2)'!$B:$B,$D$13) -> 0 | Q24: =SUMIFS('Intervenção-Pista (2)'!M:M,'Intervenção-Pista (2)'!$A:$A,$D24,'Intervenção-Pista (2)'!$B:$B,$D$13) -> 0 | R24: =SUMIFS('Intervenção-Pista (2)'!N:N,'Intervenção-Pista (2)'!$A:$A,$D24,'Intervenção-Pista (2)'!$B:$B,$D$13) -> 0 | S24: =SUMIFS('Intervenção-Pista (2)'!O:O,'Intervenção-Pista (2)'!$A:$A,$D24,'Intervenção-Pista (2)'!$B:$B,$D$13) -> 0 | T24: =SUMIFS('Intervenção-Pista (2)'!P:P,'Intervenção-Pista (2)'!$A:$A,$D24,'Intervenção-Pista (2)'!$B:$B,$D$13) -> 0 | U24: =SUMIFS('Intervenção-Pista (2)'!Q:Q,'Intervenção-Pista (2)'!$A:$A,$D24,'Intervenção-Pista (2)'!$B:$B,$D$13) -> 0 | V24: =SUMIFS('Intervenção-Pista (2)'!R:R,'Intervenção-Pista (2)'!$A:$A,$D24,'Intervenção-Pista (2)'!$B:$B,$D$13) -> 0 | W24: =SUMIFS('Intervenção-Pista (2)'!S:S,'Intervenção-Pista (2)'!$A:$A,$D24,'Intervenção-Pista (2)'!$B:$B,$D$13) -> 0 | X24: =SUMIFS('Intervenção-Pista (2)'!T:T,'Intervenção-Pista (2)'!$A:$A,$D24,'Intervenção-Pista (2)'!$B:$B,$D$13) -> 0 | Y24: =SUMIFS('Intervenção-Pista (2)'!U:U,'Intervenção-Pista (2)'!$A:$A,$D24,'Intervenção-Pista (2)'!$B:$B,$D$13) -> 0 | Z24: =SUMIFS('Intervenção-Pista (2)'!V:V,'Intervenção-Pista (2)'!$A:$A,$D24,'Intervenção-Pista (2)'!$B:$B,$D$13) -> 0 | AA24: =SUMIFS('Intervenção-Pista (2)'!W:W,'Intervenção-Pista (2)'!$A:$A,$D24,'Intervenção-Pista (2)'!$B:$B,$D$13) -> 0 | AB24: =SUMIFS('Intervenção-Pista (2)'!X:X,'Intervenção-Pista (2)'!$A:$A,$D24,'Intervenção-Pista (2)'!$B:$B,$D$13) -> 0 | AC24: =SUMIFS('Intervenção-Pista (2)'!Y:Y,'Intervenção-Pista (2)'!$A:$A,$D24,'Intervenção-Pista (2)'!$B:$B,$D$13) -> 0 | AD24: =SUMIFS('Intervenção-Pista (2)'!Z:Z,'Intervenção-Pista (2)'!$A:$A,$D24,'Intervenção-Pista (2)'!$B:$B,$D$13) -> 0 | AE24: =SUMIFS('Intervenção-Pista (2)'!AA:AA,'Intervenção-Pista (2)'!$A:$A,$D24,'Intervenção-Pista (2)'!$B:$B,$D$13) -> 0 | AF24: =SUMIFS('Intervenção-Pista (2)'!AB:AB,'Intervenção-Pista (2)'!$A:$A,$D24,'Intervenção-Pista (2)'!$B:$B,$D$13) -> 0 | AG24: =SUMIFS('Intervenção-Pista (2)'!AC:AC,'Intervenção-Pista (2)'!$A:$A,$D24,'Intervenção-Pista (2)'!$B:$B,$D$13) -> 0 | AH24: =SUMIFS('Intervenção-Pista (2)'!AD:AD,'Intervenção-Pista (2)'!$A:$A,$D24,'Intervenção-Pista (2)'!$B:$B,$D$13) -> 0 | AI24: =SUMIFS('Intervenção-Pista (2)'!AE:AE,'Intervenção-Pista (2)'!$A:$A,$D24,'Intervenção-Pista (2)'!$B:$B,$D$13) -> 0 | AJ24: =SUMIFS('Intervenção-Pista (2)'!AF:AF,'Intervenção-Pista (2)'!$A:$A,$D24,'Intervenção-Pista (2)'!$B:$B,$D$13) -> 0 | AK24: =SUMIFS('Intervenção-Pista (2)'!AG:AG,'Intervenção-Pista (2)'!$A:$A,$D24,'Intervenção-Pista (2)'!$B:$B,$D$13) -> 0
B25: 8.1.1.12 | D25: 491CMG0050 | E25: M2 | F25: 10,052.08 | H25: =SUMIFS('Intervenção-Pista (2)'!D:D,'Intervenção-Pista (2)'!$A:$A,$D25,'Intervenção-Pista (2)'!$B:$B,$D$13) -> 0 | I25: =SUMIFS('Intervenção-Pista (2)'!E:E,'Intervenção-Pista (2)'!$A:$A,$D25,'Intervenção-Pista (2)'!$B:$B,$D$13) -> 0 | J25: =SUMIFS('Intervenção-Pista (2)'!F:F,'Intervenção-Pista (2)'!$A:$A,$D25,'Intervenção-Pista (2)'!$B:$B,$D$13) -> 0 | K25: =SUMIFS('Intervenção-Pista (2)'!G:G,'Intervenção-Pista (2)'!$A:$A,$D25,'Intervenção-Pista (2)'!$B:$B,$D$13) -> 0 | L25: =SUMIFS('Intervenção-Pista (2)'!H:H,'Intervenção-Pista (2)'!$A:$A,$D25,'Intervenção-Pista (2)'!$B:$B,$D$13) -> 0 | M25: =SUMIFS('Intervenção-Pista (2)'!I:I,'Intervenção-Pista (2)'!$A:$A,$D25,'Intervenção-Pista (2)'!$B:$B,$D$13) -> 10,052.08 | N25: =SUMIFS('Intervenção-Pista (2)'!J:J,'Intervenção-Pista (2)'!$A:$A,$D25,'Intervenção-Pista (2)'!$B:$B,$D$13) -> 0 | O25: =SUMIFS('Intervenção-Pista (2)'!K:K,'Intervenção-Pista (2)'!$A:$A,$D25,'Intervenção-Pista (2)'!$B:$B,$D$13) -> 0 | P25: =SUMIFS('Intervenção-Pista (2)'!L:L,'Intervenção-Pista (2)'!$A:$A,$D25,'Intervenção-Pista (2)'!$B:$B,$D$13) -> 0 | Q25: =SUMIFS('Intervenção-Pista (2)'!M:M,'Intervenção-Pista (2)'!$A:$A,$D25,'Intervenção-Pista (2)'!$B:$B,$D$13) -> 0 | R25: =SUMIFS('Intervenção-Pista (2)'!N:N,'Intervenção-Pista (2)'!$A:$A,$D25,'Intervenção-Pista (2)'!$B:$B,$D$13) -> 0 | S25: =SUMIFS('Intervenção-Pista (2)'!O:O,'Intervenção-Pista (2)'!$A:$A,$D25,'Intervenção-Pista (2)'!$B:$B,$D$13) -> 0 | T25: =SUMIFS('Intervenção-Pista (2)'!P:P,'Intervenção-Pista (2)'!$A:$A,$D25,'Intervenção-Pista (2)'!$B:$B,$D$13) -> 0 | U25: =SUMIFS('Intervenção-Pista (2)'!Q:Q,'Intervenção-Pista (2)'!$A:$A,$D25,'Intervenção-Pista (2)'!$B:$B,$D$13) -> 0 | V25: =SUMIFS('Intervenção-Pista (2)'!R:R,'Intervenção-Pista (2)'!$A:$A,$D25,'Intervenção-Pista (2)'!$B:$B,$D$13) -> 0 | W25: =SUMIFS('Intervenção-Pista (2)'!S:S,'Intervenção-Pista (2)'!$A:$A,$D25,'Intervenção-Pista (2)'!$B:$B,$D$13) -> 0 | X25: =SUMIFS('Intervenção-Pista (2)'!T:T,'Intervenção-Pista (2)'!$A:$A,$D25,'Intervenção-Pista (2)'!$B:$B,$D$13) -> 0 | Y25: =SUMIFS('Intervenção-Pista (2)'!U:U,'Intervenção-Pista (2)'!$A:$A,$D25,'Intervenção-Pista (2)'!$B:$B,$D$13) -> 0 | Z25: =SUMIFS('Intervenção-Pista (2)'!V:V,'Intervenção-Pista (2)'!$A:$A,$D25,'Intervenção-Pista (2)'!$B:$B,$D$13) -> 0 | AA25: =SUMIFS('Intervenção-Pista (2)'!W:W,'Intervenção-Pista (2)'!$A:$A,$D25,'Intervenção-Pista (2)'!$B:$B,$D$13) -> 0 | AB25: =SUMIFS('Intervenção-Pista (2)'!X:X,'Intervenção-Pista (2)'!$A:$A,$D25,'Intervenção-Pista (2)'!$B:$B,$D$13) -> 0 | AC25: =SUMIFS('Intervenção-Pista (2)'!Y:Y,'Intervenção-Pista (2)'!$A:$A,$D25,'Intervenção-Pista (2)'!$B:$B,$D$13) -> 0 | AD25: =SUMIFS('Intervenção-Pista (2)'!Z:Z,'Intervenção-Pista (2)'!$A:$A,$D25,'Intervenção-Pista (2)'!$B:$B,$D$13) -> 0 | AE25: =SUMIFS('Intervenção-Pista (2)'!AA:AA,'Intervenção-Pista (2)'!$A:$A,$D25,'Intervenção-Pista (2)'!$B:$B,$D$13) -> 0 | AF25: =SUMIFS('Intervenção-Pista (2)'!AB:AB,'Intervenção-Pista (2)'!$A:$A,$D25,'Intervenção-Pista (2)'!$B:$B,$D$13) -> 0 | AG25: =SUMIFS('Intervenção-Pista (2)'!AC:AC,'Intervenção-Pista (2)'!$A:$A,$D25,'Intervenção-Pista (2)'!$B:$B,$D$13) -> 0 | AH25: =SUMIFS('Intervenção-Pista (2)'!AD:AD,'Intervenção-Pista (2)'!$A:$A,$D25,'Intervenção-Pista (2)'!$B:$B,$D$13) -> 0 | AI25: =SUMIFS('Intervenção-Pista (2)'!AE:AE,'Intervenção-Pista (2)'!$A:$A,$D25,'Intervenção-Pista (2)'!$B:$B,$D$13) -> 0 | AJ25: =SUMIFS('Intervenção-Pista (2)'!AF:AF,'Intervenção-Pista (2)'!$A:$A,$D25,'Intervenção-Pista (2)'!$B:$B,$D$13) -> 0 | AK25: =SUMIFS('Intervenção-Pista (2)'!AG:AG,'Intervenção-Pista (2)'!$A:$A,$D25,'Intervenção-Pista (2)'!$B:$B,$D$13) -> 0
B26: 8.1.1.13 | D26: 491CMG0090 | E26: M2 | F26: 0 | H26: =SUMIFS('Intervenção-Pista (2)'!D:D,'Intervenção-Pista (2)'!$A:$A,$D26,'Intervenção-Pista (2)'!$B:$B,$D$13) -> 0 | I26: =SUMIFS('Intervenção-Pista (2)'!E:E,'Intervenção-Pista (2)'!$A:$A,$D26,'Intervenção-Pista (2)'!$B:$B,$D$13) -> 0 | J26: =SUMIFS('Intervenção-Pista (2)'!F:F,'Intervenção-Pista (2)'!$A:$A,$D26,'Intervenção-Pista (2)'!$B:$B,$D$13) -> 0 | K26: =SUMIFS('Intervenção-Pista (2)'!G:G,'Intervenção-Pista (2)'!$A:$A,$D26,'Intervenção-Pista (2)'!$B:$B,$D$13) -> 0 | L26: =SUMIFS('Intervenção-Pista (2)'!H:H,'Intervenção-Pista (2)'!$A:$A,$D26,'Intervenção-Pista (2)'!$B:$B,$D$13) -> 0 | M26: =SUMIFS('Intervenção-Pista (2)'!I:I,'Intervenção-Pista (2)'!$A:$A,$D26,'Intervenção-Pista (2)'!$B:$B,$D$13) -> 0 | N26: =SUMIFS('Intervenção-Pista (2)'!J:J,'Intervenção-Pista (2)'!$A:$A,$D26,'Intervenção-Pista (2)'!$B:$B,$D$13) -> 0 | O26: =SUMIFS('Intervenção-Pista (2)'!K:K,'Intervenção-Pista (2)'!$A:$A,$D26,'Intervenção-Pista (2)'!$B:$B,$D$13) -> 0 | P26: =SUMIFS('Intervenção-Pista (2)'!L:L,'Intervenção-Pista (2)'!$A:$A,$D26,'Intervenção-Pista (2)'!$B:$B,$D$13) -> 0 | Q26: =SUMIFS('Intervenção-Pista (2)'!M:M,'Intervenção-Pista (2)'!$A:$A,$D26,'Intervenção-Pista (2)'!$B:$B,$D$13) -> 0 | R26: =SUMIFS('Intervenção-Pista (2)'!N:N,'Intervenção-Pista (2)'!$A:$A,$D26,'Intervenção-Pista (2)'!$B:$B,$D$13) -> 0 | S26: =SUMIFS('Intervenção-Pista (2)'!O:O,'Intervenção-Pista (2)'!$A:$A,$D26,'Intervenção-Pista (2)'!$B:$B,$D$13) -> 0 | T26: =SUMIFS('Intervenção-Pista (2)'!P:P,'Intervenção-Pista (2)'!$A:$A,$D26,'Intervenção-Pista (2)'!$B:$B,$D$13) -> 0 | U26: =SUMIFS('Intervenção-Pista (2)'!Q:Q,'Intervenção-Pista (2)'!$A:$A,$D26,'Intervenção-Pista (2)'!$B:$B,$D$13) -> 0 | V26: =SUMIFS('Intervenção-Pista (2)'!R:R,'Intervenção-Pista (2)'!$A:$A,$D26,'Intervenção-Pista (2)'!$B:$B,$D$13) -> 0 | W26: =SUMIFS('Intervenção-Pista (2)'!S:S,'Intervenção-Pista (2)'!$A:$A,$D26,'Intervenção-Pista (2)'!$B:$B,$D$13) -> 0 | X26: =SUMIFS('Intervenção-Pista (2)'!T:T,'Intervenção-Pista (2)'!$A:$A,$D26,'Intervenção-Pista (2)'!$B:$B,$D$13) -> 0 | Y26: =SUMIFS('Intervenção-Pista (2)'!U:U,'Intervenção-Pista (2)'!$A:$A,$D26,'Intervenção-Pista (2)'!$B:$B,$D$13) -> 0 | Z26: =SUMIFS('Intervenção-Pista (2)'!V:V,'Intervenção-Pista (2)'!$A:$A,$D26,'Intervenção-Pista (2)'!$B:$B,$D$13) -> 0 | AA26: =SUMIFS('Intervenção-Pista (2)'!W:W,'Intervenção-Pista (2)'!$A:$A,$D26,'Intervenção-Pista (2)'!$B:$B,$D$13) -> 0 | AB26: =SUMIFS('Intervenção-Pista (2)'!X:X,'Intervenção-Pista (2)'!$A:$A,$D26,'Intervenção-Pista (2)'!$B:$B,$D$13) -> 0 | AC26: =SUMIFS('Intervenção-Pista (2)'!Y:Y,'Intervenção-Pista (2)'!$A:$A,$D26,'Intervenção-Pista (2)'!$B:$B,$D$13) -> 0 | AD26: =SUMIFS('Intervenção-Pista (2)'!Z:Z,'Intervenção-Pista (2)'!$A:$A,$D26,'Intervenção-Pista (2)'!$B:$B,$D$13) -> 0 | AE26: =SUMIFS('Intervenção-Pista (2)'!AA:AA,'Intervenção-Pista (2)'!$A:$A,$D26,'Intervenção-Pista (2)'!$B:$B,$D$13) -> 0 | AF26: =SUMIFS('Intervenção-Pista (2)'!AB:AB,'Intervenção-Pista (2)'!$A:$A,$D26,'Intervenção-Pista (2)'!$B:$B,$D$13) -> 0 | AG26: =SUMIFS('Intervenção-Pista (2)'!AC:AC,'Intervenção-Pista (2)'!$A:$A,$D26,'Intervenção-Pista (2)'!$B:$B,$D$13) -> 0 | AH26: =SUMIFS('Intervenção-Pista (2)'!AD:AD,'Intervenção-Pista (2)'!$A:$A,$D26,'Intervenção-Pista (2)'!$B:$B,$D$13) -> 0 | AI26: =SUMIFS('Intervenção-Pista (2)'!AE:AE,'Intervenção-Pista (2)'!$A:$A,$D26,'Intervenção-Pista (2)'!$B:$B,$D$13) -> 0 | AJ26: =SUMIFS('Intervenção-Pista (2)'!AF:AF,'Intervenção-Pista (2)'!$A:$A,$D26,'Intervenção-Pista (2)'!$B:$B,$D$13) -> 0 | AK26: =SUMIFS('Intervenção-Pista (2)'!AG:AG,'Intervenção-Pista (2)'!$A:$A,$D26,'Intervenção-Pista (2)'!$B:$B,$D$13) -> 0
B27: 8.1.1.14 | D27: 491CMG0100 | E27: M2 | F27: 0 | H27: =SUMIFS('Intervenção-Pista (2)'!D:D,'Intervenção-Pista (2)'!$A:$A,$D27,'Intervenção-Pista (2)'!$B:$B,$D$13) -> 0 | I27: =SUMIFS('Intervenção-Pista (2)'!E:E,'Intervenção-Pista (2)'!$A:$A,$D27,'Intervenção-Pista (2)'!$B:$B,$D$13) -> 0 | J27: =SUMIFS('Intervenção-Pista (2)'!F:F,'Intervenção-Pista (2)'!$A:$A,$D27,'Intervenção-Pista (2)'!$B:$B,$D$13) -> 0 | K27: =SUMIFS('Intervenção-Pista (2)'!G:G,'Intervenção-Pista (2)'!$A:$A,$D27,'Intervenção-Pista (2)'!$B:$B,$D$13) -> 0 | L27: =SUMIFS('Intervenção-Pista (2)'!H:H,'Intervenção-Pista (2)'!$A:$A,$D27,'Intervenção-Pista (2)'!$B:$B,$D$13) -> 0 | M27: =SUMIFS('Intervenção-Pista (2)'!I:I,'Intervenção-Pista (2)'!$A:$A,$D27,'Intervenção-Pista (2)'!$B:$B,$D$13) -> 0 | N27: =SUMIFS('Intervenção-Pista (2)'!J:J,'Intervenção-Pista (2)'!$A:$A,$D27,'Intervenção-Pista (2)'!$B:$B,$D$13) -> 0 | O27: =SUMIFS('Intervenção-Pista (2)'!K:K,'Intervenção-Pista (2)'!$A:$A,$D27,'Intervenção-Pista (2)'!$B:$B,$D$13) -> 0 | P27: =SUMIFS('Intervenção-Pista (2)'!L:L,'Intervenção-Pista (2)'!$A:$A,$D27,'Intervenção-Pista (2)'!$B:$B,$D$13) -> 0 | Q27: =SUMIFS('Intervenção-Pista (2)'!M:M,'Intervenção-Pista (2)'!$A:$A,$D27,'Intervenção-Pista (2)'!$B:$B,$D$13) -> 0 | R27: =SUMIFS('Intervenção-Pista (2)'!N:N,'Intervenção-Pista (2)'!$A:$A,$D27,'Intervenção-Pista (2)'!$B:$B,$D$13) -> 0 | S27: =SUMIFS('Intervenção-Pista (2)'!O:O,'Intervenção-Pista (2)'!$A:$A,$D27,'Intervenção-Pista (2)'!$B:$B,$D$13) -> 0 | T27: =SUMIFS('Intervenção-Pista (2)'!P:P,'Intervenção-Pista (2)'!$A:$A,$D27,'Intervenção-Pista (2)'!$B:$B,$D$13) -> 0 | U27: =SUMIFS('Intervenção-Pista (2)'!Q:Q,'Intervenção-Pista (2)'!$A:$A,$D27,'Intervenção-Pista (2)'!$B:$B,$D$13) -> 0 | V27: =SUMIFS('Intervenção-Pista (2)'!R:R,'Intervenção-Pista (2)'!$A:$A,$D27,'Intervenção-Pista (2)'!$B:$B,$D$13) -> 0 | W27: =SUMIFS('Intervenção-Pista (2)'!S:S,'Intervenção-Pista (2)'!$A:$A,$D27,'Intervenção-Pista (2)'!$B:$B,$D$13) -> 0 | X27: =SUMIFS('Intervenção-Pista (2)'!T:T,'Intervenção-Pista (2)'!$A:$A,$D27,'Intervenção-Pista (2)'!$B:$B,$D$13) -> 0 | Y27: =SUMIFS('Intervenção-Pista (2)'!U:U,'Intervenção-Pista (2)'!$A:$A,$D27,'Intervenção-Pista (2)'!$B:$B,$D$13) -> 0 | Z27: =SUMIFS('Intervenção-Pista (2)'!V:V,'Intervenção-Pista (2)'!$A:$A,$D27,'Intervenção-Pista (2)'!$B:$B,$D$13) -> 0 | AA27: =SUMIFS('Intervenção-Pista (2)'!W:W,'Intervenção-Pista (2)'!$A:$A,$D27,'Intervenção-Pista (2)'!$B:$B,$D$13) -> 0 | AB27: =SUMIFS('Intervenção-Pista (2)'!X:X,'Intervenção-Pista (2)'!$A:$A,$D27,'Intervenção-Pista (2)'!$B:$B,$D$13) -> 0 | AC27: =SUMIFS('Intervenção-Pista (2)'!Y:Y,'Intervenção-Pista (2)'!$A:$A,$D27,'Intervenção-Pista (2)'!$B:$B,$D$13) -> 0 | AD27: =SUMIFS('Intervenção-Pista (2)'!Z:Z,'Intervenção-Pista (2)'!$A:$A,$D27,'Intervenção-Pista (2)'!$B:$B,$D$13) -> 0 | AE27: =SUMIFS('Intervenção-Pista (2)'!AA:AA,'Intervenção-Pista (2)'!$A:$A,$D27,'Intervenção-Pista (2)'!$B:$B,$D$13) -> 0 | AF27: =SUMIFS('Intervenção-Pista (2)'!AB:AB,'Intervenção-Pista (2)'!$A:$A,$D27,'Intervenção-Pista (2)'!$B:$B,$D$13) -> 0 | AG27: =SUMIFS('Intervenção-Pista (2)'!AC:AC,'Intervenção-Pista (2)'!$A:$A,$D27,'Intervenção-Pista (2)'!$B:$B,$D$13) -> 0 | AH27: =SUMIFS('Intervenção-Pista (2)'!AD:AD,'Intervenção-Pista (2)'!$A:$A,$D27,'Intervenção-Pista (2)'!$B:$B,$D$13) -> 0 | AI27: =SUMIFS('Intervenção-Pista (2)'!AE:AE,'Intervenção-Pista (2)'!$A:$A,$D27,'Intervenção-Pista (2)'!$B:$B,$D$13) -> 0 | AJ27: =SUMIFS('Intervenção-Pista (2)'!AF:AF,'Intervenção-Pista (2)'!$A:$A,$D27,'Intervenção-Pista (2)'!$B:$B,$D$13) -> 0 | AK27: =SUMIFS('Intervenção-Pista (2)'!AG:AG,'Intervenção-Pista (2)'!$A:$A,$D27,'Intervenção-Pista (2)'!$B:$B,$D$13) -> 0
B28: 8.1.1.15 | D28: 491CMG0230 | E28: M2 | F28: 36,981.45 | H28: =SUMIFS('Intervenção-Pista (2)'!D:D,'Intervenção-Pista (2)'!$A:$A,$D28,'Intervenção-Pista (2)'!$B:$B,$D$13) -> 0 | I28: =SUMIFS('Intervenção-Pista (2)'!E:E,'Intervenção-Pista (2)'!$A:$A,$D28,'Intervenção-Pista (2)'!$B:$B,$D$13) -> 0 | J28: =SUMIFS('Intervenção-Pista (2)'!F:F,'Intervenção-Pista (2)'!$A:$A,$D28,'Intervenção-Pista (2)'!$B:$B,$D$13) -> 0 | K28: =SUMIFS('Intervenção-Pista (2)'!G:G,'Intervenção-Pista (2)'!$A:$A,$D28,'Intervenção-Pista (2)'!$B:$B,$D$13) -> 0 | L28: =SUMIFS('Intervenção-Pista (2)'!H:H,'Intervenção-Pista (2)'!$A:$A,$D28,'Intervenção-Pista (2)'!$B:$B,$D$13) -> 36,981.45 | M28: =SUMIFS('Intervenção-Pista (2)'!I:I,'Intervenção-Pista (2)'!$A:$A,$D28,'Intervenção-Pista (2)'!$B:$B,$D$13) -> 0 | N28: =SUMIFS('Intervenção-Pista (2)'!J:J,'Intervenção-Pista (2)'!$A:$A,$D28,'Intervenção-Pista (2)'!$B:$B,$D$13) -> 0 | O28: =SUMIFS('Intervenção-Pista (2)'!K:K,'Intervenção-Pista (2)'!$A:$A,$D28,'Intervenção-Pista (2)'!$B:$B,$D$13) -> 0 | P28: =SUMIFS('Intervenção-Pista (2)'!L:L,'Intervenção-Pista (2)'!$A:$A,$D28,'Intervenção-Pista (2)'!$B:$B,$D$13) -> 0 | Q28: =SUMIFS('Intervenção-Pista (2)'!M:M,'Intervenção-Pista (2)'!$A:$A,$D28,'Intervenção-Pista (2)'!$B:$B,$D$13) -> 0 | R28: =SUMIFS('Intervenção-Pista (2)'!N:N,'Intervenção-Pista (2)'!$A:$A,$D28,'Intervenção-Pista (2)'!$B:$B,$D$13) -> 0 | S28: =SUMIFS('Intervenção-Pista (2)'!O:O,'Intervenção-Pista (2)'!$A:$A,$D28,'Intervenção-Pista (2)'!$B:$B,$D$13) -> 0 | T28: =SUMIFS('Intervenção-Pista (2)'!P:P,'Intervenção-Pista (2)'!$A:$A,$D28,'Intervenção-Pista (2)'!$B:$B,$D$13) -> 0 | U28: =SUMIFS('Intervenção-Pista (2)'!Q:Q,'Intervenção-Pista (2)'!$A:$A,$D28,'Intervenção-Pista (2)'!$B:$B,$D$13) -> 0 | V28: =SUMIFS('Intervenção-Pista (2)'!R:R,'Intervenção-Pista (2)'!$A:$A,$D28,'Intervenção-Pista (2)'!$B:$B,$D$13) -> 0 | W28: =SUMIFS('Intervenção-Pista (2)'!S:S,'Intervenção-Pista (2)'!$A:$A,$D28,'Intervenção-Pista (2)'!$B:$B,$D$13) -> 0 | X28: =SUMIFS('Intervenção-Pista (2)'!T:T,'Intervenção-Pista (2)'!$A:$A,$D28,'Intervenção-Pista (2)'!$B:$B,$D$13) -> 0 | Y28: =SUMIFS('Intervenção-Pista (2)'!U:U,'Intervenção-Pista (2)'!$A:$A,$D28,'Intervenção-Pista (2)'!$B:$B,$D$13) -> 0 | Z28: =SUMIFS('Intervenção-Pista (2)'!V:V,'Intervenção-Pista (2)'!$A:$A,$D28,'Intervenção-Pista (2)'!$B:$B,$D$13) -> 0 | AA28: =SUMIFS('Intervenção-Pista (2)'!W:W,'Intervenção-Pista (2)'!$A:$A,$D28,'Intervenção-Pista (2)'!$B:$B,$D$13) -> 0 | AB28: =SUMIFS('Intervenção-Pista (2)'!X:X,'Intervenção-Pista (2)'!$A:$A,$D28,'Intervenção-Pista (2)'!$B:$B,$D$13) -> 0 | AC28: =SUMIFS('Intervenção-Pista (2)'!Y:Y,'Intervenção-Pista (2)'!$A:$A,$D28,'Intervenção-Pista (2)'!$B:$B,$D$13) -> 0 | AD28: =SUMIFS('Intervenção-Pista (2)'!Z:Z,'Intervenção-Pista (2)'!$A:$A,$D28,'Intervenção-Pista (2)'!$B:$B,$D$13) -> 0 | AE28: =SUMIFS('Intervenção-Pista (2)'!AA:AA,'Intervenção-Pista (2)'!$A:$A,$D28,'Intervenção-Pista (2)'!$B:$B,$D$13) -> 0 | AF28: =SUMIFS('Intervenção-Pista (2)'!AB:AB,'Intervenção-Pista (2)'!$A:$A,$D28,'Intervenção-Pista (2)'!$B:$B,$D$13) -> 0 | AG28: =SUMIFS('Intervenção-Pista (2)'!AC:AC,'Intervenção-Pista (2)'!$A:$A,$D28,'Intervenção-Pista (2)'!$B:$B,$D$13) -> 0 | AH28: =SUMIFS('Intervenção-Pista (2)'!AD:AD,'Intervenção-Pista (2)'!$A:$A,$D28,'Intervenção-Pista (2)'!$B:$B,$D$13) -> 0 | AI28: =SUMIFS('Intervenção-Pista (2)'!AE:AE,'Intervenção-Pista (2)'!$A:$A,$D28,'Intervenção-Pista (2)'!$B:$B,$D$13) -> 0 | AJ28: =SUMIFS('Intervenção-Pista (2)'!AF:AF,'Intervenção-Pista (2)'!$A:$A,$D28,'Intervenção-Pista (2)'!$B:$B,$D$13) -> 0 | AK28: =SUMIFS('Intervenção-Pista (2)'!AG:AG,'Intervenção-Pista (2)'!$A:$A,$D28,'Intervenção-Pista (2)'!$B:$B,$D$13) -> 0
B29: 8.1.1.16 | D29: 491CMG0030 | E29: M2 | F29: 30,396.86 | H29: =SUMIFS('Intervenção-Pista (2)'!D:D,'Intervenção-Pista (2)'!$A:$A,$D29,'Intervenção-Pista (2)'!$B:$B,$D$13) -> 0 | I29: =SUMIFS('Intervenção-Pista (2)'!E:E,'Intervenção-Pista (2)'!$A:$A,$D29,'Intervenção-Pista (2)'!$B:$B,$D$13) -> 0 | J29: =SUMIFS('Intervenção-Pista (2)'!F:F,'Intervenção-Pista (2)'!$A:$A,$D29,'Intervenção-Pista (2)'!$B:$B,$D$13) -> 0 | K29: =SUMIFS('Intervenção-Pista (2)'!G:G,'Intervenção-Pista (2)'!$A:$A,$D29,'Intervenção-Pista (2)'!$B:$B,$D$13) -> 0 | L29: =SUMIFS('Intervenção-Pista (2)'!H:H,'Intervenção-Pista (2)'!$A:$A,$D29,'Intervenção-Pista (2)'!$B:$B,$D$13) -> 0 | M29: =SUMIFS('Intervenção-Pista (2)'!I:I,'Intervenção-Pista (2)'!$A:$A,$D29,'Intervenção-Pista (2)'!$B:$B,$D$13) -> 30,396.86 | N29: =SUMIFS('Intervenção-Pista (2)'!J:J,'Intervenção-Pista (2)'!$A:$A,$D29,'Intervenção-Pista (2)'!$B:$B,$D$13) -> 0 | O29: =SUMIFS('Intervenção-Pista (2)'!K:K,'Intervenção-Pista (2)'!$A:$A,$D29,'Intervenção-Pista (2)'!$B:$B,$D$13) -> 0 | P29: =SUMIFS('Intervenção-Pista (2)'!L:L,'Intervenção-Pista (2)'!$A:$A,$D29,'Intervenção-Pista (2)'!$B:$B,$D$13) -> 0 | Q29: =SUMIFS('Intervenção-Pista (2)'!M:M,'Intervenção-Pista (2)'!$A:$A,$D29,'Intervenção-Pista (2)'!$B:$B,$D$13) -> 0 | R29: =SUMIFS('Intervenção-Pista (2)'!N:N,'Intervenção-Pista (2)'!$A:$A,$D29,'Intervenção-Pista (2)'!$B:$B,$D$13) -> 0 | S29: =SUMIFS('Intervenção-Pista (2)'!O:O,'Intervenção-Pista (2)'!$A:$A,$D29,'Intervenção-Pista (2)'!$B:$B,$D$13) -> 0 | T29: =SUMIFS('Intervenção-Pista (2)'!P:P,'Intervenção-Pista (2)'!$A:$A,$D29,'Intervenção-Pista (2)'!$B:$B,$D$13) -> 0 | U29: =SUMIFS('Intervenção-Pista (2)'!Q:Q,'Intervenção-Pista (2)'!$A:$A,$D29,'Intervenção-Pista (2)'!$B:$B,$D$13) -> 0 | V29: =SUMIFS('Intervenção-Pista (2)'!R:R,'Intervenção-Pista (2)'!$A:$A,$D29,'Intervenção-Pista (2)'!$B:$B,$D$13) -> 0 | W29: =SUMIFS('Intervenção-Pista (2)'!S:S,'Intervenção-Pista (2)'!$A:$A,$D29,'Intervenção-Pista (2)'!$B:$B,$D$13) -> 0 | X29: =SUMIFS('Intervenção-Pista (2)'!T:T,'Intervenção-Pista (2)'!$A:$A,$D29,'Intervenção-Pista (2)'!$B:$B,$D$13) -> 0 | Y29: =SUMIFS('Intervenção-Pista (2)'!U:U,'Intervenção-Pista (2)'!$A:$A,$D29,'Intervenção-Pista (2)'!$B:$B,$D$13) -> 0 | Z29: =SUMIFS('Intervenção-Pista (2)'!V:V,'Intervenção-Pista (2)'!$A:$A,$D29,'Intervenção-Pista (2)'!$B:$B,$D$13) -> 0 | AA29: =SUMIFS('Intervenção-Pista (2)'!W:W,'Intervenção-Pista (2)'!$A:$A,$D29,'Intervenção-Pista (2)'!$B:$B,$D$13) -> 0 | AB29: =SUMIFS('Intervenção-Pista (2)'!X:X,'Intervenção-Pista (2)'!$A:$A,$D29,'Intervenção-Pista (2)'!$B:$B,$D$13) -> 0 | AC29: =SUMIFS('Intervenção-Pista (2)'!Y:Y,'Intervenção-Pista (2)'!$A:$A,$D29,'Intervenção-Pista (2)'!$B:$B,$D$13) -> 0 | AD29: =SUMIFS('Intervenção-Pista (2)'!Z:Z,'Intervenção-Pista (2)'!$A:$A,$D29,'Intervenção-Pista (2)'!$B:$B,$D$13) -> 0 | AE29: =SUMIFS('Intervenção-Pista (2)'!AA:AA,'Intervenção-Pista (2)'!$A:$A,$D29,'Intervenção-Pista (2)'!$B:$B,$D$13) -> 0 | AF29: =SUMIFS('Intervenção-Pista (2)'!AB:AB,'Intervenção-Pista (2)'!$A:$A,$D29,'Intervenção-Pista (2)'!$B:$B,$D$13) -> 0 | AG29: =SUMIFS('Intervenção-Pista (2)'!AC:AC,'Intervenção-Pista (2)'!$A:$A,$D29,'Intervenção-Pista (2)'!$B:$B,$D$13) -> 0 | AH29: =SUMIFS('Intervenção-Pista (2)'!AD:AD,'Intervenção-Pista (2)'!$A:$A,$D29,'Intervenção-Pista (2)'!$B:$B,$D$13) -> 0 | AI29: =SUMIFS('Intervenção-Pista (2)'!AE:AE,'Intervenção-Pista (2)'!$A:$A,$D29,'Intervenção-Pista (2)'!$B:$B,$D$13) -> 0 | AJ29: =SUMIFS('Intervenção-Pista (2)'!AF:AF,'Intervenção-Pista (2)'!$A:$A,$D29,'Intervenção-Pista (2)'!$B:$B,$D$13) -> 0 | AK29: =SUMIFS('Intervenção-Pista (2)'!AG:AG,'Intervenção-Pista (2)'!$A:$A,$D29,'Intervenção-Pista (2)'!$B:$B,$D$13) -> 0
B30: 8.1.1.17 | D30: 491CMG0110 | E30: M2 | F30: 0 | H30: =SUMIFS('Intervenção-Pista (2)'!D:D,'Intervenção-Pista (2)'!$A:$A,$D30,'Intervenção-Pista (2)'!$B:$B,$D$13) -> 0 | I30: =SUMIFS('Intervenção-Pista (2)'!E:E,'Intervenção-Pista (2)'!$A:$A,$D30,'Intervenção-Pista (2)'!$B:$B,$D$13) -> 0 | J30: =SUMIFS('Intervenção-Pista (2)'!F:F,'Intervenção-Pista (2)'!$A:$A,$D30,'Intervenção-Pista (2)'!$B:$B,$D$13) -> 0 | K30: =SUMIFS('Intervenção-Pista (2)'!G:G,'Intervenção-Pista (2)'!$A:$A,$D30,'Intervenção-Pista (2)'!$B:$B,$D$13) -> 0 | L30: =SUMIFS('Intervenção-Pista (2)'!H:H,'Intervenção-Pista (2)'!$A:$A,$D30,'Intervenção-Pista (2)'!$B:$B,$D$13) -> 0 | M30: =SUMIFS('Intervenção-Pista (2)'!I:I,'Intervenção-Pista (2)'!$A:$A,$D30,'Intervenção-Pista (2)'!$B:$B,$D$13) -> 0 | N30: =SUMIFS('Intervenção-Pista (2)'!J:J,'Intervenção-Pista (2)'!$A:$A,$D30,'Intervenção-Pista (2)'!$B:$B,$D$13) -> 0 | O30: =SUMIFS('Intervenção-Pista (2)'!K:K,'Intervenção-Pista (2)'!$A:$A,$D30,'Intervenção-Pista (2)'!$B:$B,$D$13) -> 0 | P30: =SUMIFS('Intervenção-Pista (2)'!L:L,'Intervenção-Pista (2)'!$A:$A,$D30,'Intervenção-Pista (2)'!$B:$B,$D$13) -> 0 | Q30: =SUMIFS('Intervenção-Pista (2)'!M:M,'Intervenção-Pista (2)'!$A:$A,$D30,'Intervenção-Pista (2)'!$B:$B,$D$13) -> 0 | R30: =SUMIFS('Intervenção-Pista (2)'!N:N,'Intervenção-Pista (2)'!$A:$A,$D30,'Intervenção-Pista (2)'!$B:$B,$D$13) -> 0 | S30: =SUMIFS('Intervenção-Pista (2)'!O:O,'Intervenção-Pista (2)'!$A:$A,$D30,'Intervenção-Pista (2)'!$B:$B,$D$13) -> 0 | T30: =SUMIFS('Intervenção-Pista (2)'!P:P,'Intervenção-Pista (2)'!$A:$A,$D30,'Intervenção-Pista (2)'!$B:$B,$D$13) -> 0 | U30: =SUMIFS('Intervenção-Pista (2)'!Q:Q,'Intervenção-Pista (2)'!$A:$A,$D30,'Intervenção-Pista (2)'!$B:$B,$D$13) -> 0 | V30: =SUMIFS('Intervenção-Pista (2)'!R:R,'Intervenção-Pista (2)'!$A:$A,$D30,'Intervenção-Pista (2)'!$B:$B,$D$13) -> 0 | W30: =SUMIFS('Intervenção-Pista (2)'!S:S,'Intervenção-Pista (2)'!$A:$A,$D30,'Intervenção-Pista (2)'!$B:$B,$D$13) -> 0 | X30: =SUMIFS('Intervenção-Pista (2)'!T:T,'Intervenção-Pista (2)'!$A:$A,$D30,'Intervenção-Pista (2)'!$B:$B,$D$13) -> 0 | Y30: =SUMIFS('Intervenção-Pista (2)'!U:U,'Intervenção-Pista (2)'!$A:$A,$D30,'Intervenção-Pista (2)'!$B:$B,$D$13) -> 0 | Z30: =SUMIFS('Intervenção-Pista (2)'!V:V,'Intervenção-Pista (2)'!$A:$A,$D30,'Intervenção-Pista (2)'!$B:$B,$D$13) -> 0 | AA30: =SUMIFS('Intervenção-Pista (2)'!W:W,'Intervenção-Pista (2)'!$A:$A,$D30,'Intervenção-Pista (2)'!$B:$B,$D$13) -> 0 | AB30: =SUMIFS('Intervenção-Pista (2)'!X:X,'Intervenção-Pista (2)'!$A:$A,$D30,'Intervenção-Pista (2)'!$B:$B,$D$13) -> 0 | AC30: =SUMIFS('Intervenção-Pista (2)'!Y:Y,'Intervenção-Pista (2)'!$A:$A,$D30,'Intervenção-Pista (2)'!$B:$B,$D$13) -> 0 | AD30: =SUMIFS('Intervenção-Pista (2)'!Z:Z,'Intervenção-Pista (2)'!$A:$A,$D30,'Intervenção-Pista (2)'!$B:$B,$D$13) -> 0 | AE30: =SUMIFS('Intervenção-Pista (2)'!AA:AA,'Intervenção-Pista (2)'!$A:$A,$D30,'Intervenção-Pista (2)'!$B:$B,$D$13) -> 0 | AF30: =SUMIFS('Intervenção-Pista (2)'!AB:AB,'Intervenção-Pista (2)'!$A:$A,$D30,'Intervenção-Pista (2)'!$B:$B,$D$13) -> 0 | AG30: =SUMIFS('Intervenção-Pista (2)'!AC:AC,'Intervenção-Pista (2)'!$A:$A,$D30,'Intervenção-Pista (2)'!$B:$B,$D$13) -> 0 | AH30: =SUMIFS('Intervenção-Pista (2)'!AD:AD,'Intervenção-Pista (2)'!$A:$A,$D30,'Intervenção-Pista (2)'!$B:$B,$D$13) -> 0 | AI30: =SUMIFS('Intervenção-Pista (2)'!AE:AE,'Intervenção-Pista (2)'!$A:$A,$D30,'Intervenção-Pista (2)'!$B:$B,$D$13) -> 0 | AJ30: =SUMIFS('Intervenção-Pista (2)'!AF:AF,'Intervenção-Pista (2)'!$A:$A,$D30,'Intervenção-Pista (2)'!$B:$B,$D$13) -> 0 | AK30: =SUMIFS('Intervenção-Pista (2)'!AG:AG,'Intervenção-Pista (2)'!$A:$A,$D30,'Intervenção-Pista (2)'!$B:$B,$D$13) -> 0
B31: 8.1.1.18 | D31: 491CMG0130 | E31: M2 | F31: 0 | H31: =SUMIFS('Intervenção-Pista (2)'!D:D,'Intervenção-Pista (2)'!$A:$A,$D31,'Intervenção-Pista (2)'!$B:$B,$D$13) -> 0 | I31: =SUMIFS('Intervenção-Pista (2)'!E:E,'Intervenção-Pista (2)'!$A:$A,$D31,'Intervenção-Pista (2)'!$B:$B,$D$13) -> 0 | J31: =SUMIFS('Intervenção-Pista (2)'!F:F,'Intervenção-Pista (2)'!$A:$A,$D31,'Intervenção-Pista (2)'!$B:$B,$D$13) -> 0 | K31: =SUMIFS('Intervenção-Pista (2)'!G:G,'Intervenção-Pista (2)'!$A:$A,$D31,'Intervenção-Pista (2)'!$B:$B,$D$13) -> 0 | L31: =SUMIFS('Intervenção-Pista (2)'!H:H,'Intervenção-Pista (2)'!$A:$A,$D31,'Intervenção-Pista (2)'!$B:$B,$D$13) -> 0 | M31: =SUMIFS('Intervenção-Pista (2)'!I:I,'Intervenção-Pista (2)'!$A:$A,$D31,'Intervenção-Pista (2)'!$B:$B,$D$13) -> 0 | N31: =SUMIFS('Intervenção-Pista (2)'!J:J,'Intervenção-Pista (2)'!$A:$A,$D31,'Intervenção-Pista (2)'!$B:$B,$D$13) -> 0 | O31: =SUMIFS('Intervenção-Pista (2)'!K:K,'Intervenção-Pista (2)'!$A:$A,$D31,'Intervenção-Pista (2)'!$B:$B,$D$13) -> 0 | P31: =SUMIFS('Intervenção-Pista (2)'!L:L,'Intervenção-Pista (2)'!$A:$A,$D31,'Intervenção-Pista (2)'!$B:$B,$D$13) -> 0 | Q31: =SUMIFS('Intervenção-Pista (2)'!M:M,'Intervenção-Pista (2)'!$A:$A,$D31,'Intervenção-Pista (2)'!$B:$B,$D$13) -> 0 | R31: =SUMIFS('Intervenção-Pista (2)'!N:N,'Intervenção-Pista (2)'!$A:$A,$D31,'Intervenção-Pista (2)'!$B:$B,$D$13) -> 0 | S31: =SUMIFS('Intervenção-Pista (2)'!O:O,'Intervenção-Pista (2)'!$A:$A,$D31,'Intervenção-Pista (2)'!$B:$B,$D$13) -> 0 | T31: =SUMIFS('Intervenção-Pista (2)'!P:P,'Intervenção-Pista (2)'!$A:$A,$D31,'Intervenção-Pista (2)'!$B:$B,$D$13) -> 0 | U31: =SUMIFS('Intervenção-Pista (2)'!Q:Q,'Intervenção-Pista (2)'!$A:$A,$D31,'Intervenção-Pista (2)'!$B:$B,$D$13) -> 0 | V31: =SUMIFS('Intervenção-Pista (2)'!R:R,'Intervenção-Pista (2)'!$A:$A,$D31,'Intervenção-Pista (2)'!$B:$B,$D$13) -> 0 | W31: =SUMIFS('Intervenção-Pista (2)'!S:S,'Intervenção-Pista (2)'!$A:$A,$D31,'Intervenção-Pista (2)'!$B:$B,$D$13) -> 0 | X31: =SUMIFS('Intervenção-Pista (2)'!T:T,'Intervenção-Pista (2)'!$A:$A,$D31,'Intervenção-Pista (2)'!$B:$B,$D$13) -> 0 | Y31: =SUMIFS('Intervenção-Pista (2)'!U:U,'Intervenção-Pista (2)'!$A:$A,$D31,'Intervenção-Pista (2)'!$B:$B,$D$13) -> 0 | Z31: =SUMIFS('Intervenção-Pista (2)'!V:V,'Intervenção-Pista (2)'!$A:$A,$D31,'Intervenção-Pista (2)'!$B:$B,$D$13) -> 0 | AA31: =SUMIFS('Intervenção-Pista (2)'!W:W,'Intervenção-Pista (2)'!$A:$A,$D31,'Intervenção-Pista (2)'!$B:$B,$D$13) -> 0 | AB31: =SUMIFS('Intervenção-Pista (2)'!X:X,'Intervenção-Pista (2)'!$A:$A,$D31,'Intervenção-Pista (2)'!$B:$B,$D$13) -> 0 | AC31: =SUMIFS('Intervenção-Pista (2)'!Y:Y,'Intervenção-Pista (2)'!$A:$A,$D31,'Intervenção-Pista (2)'!$B:$B,$D$13) -> 0 | AD31: =SUMIFS('Intervenção-Pista (2)'!Z:Z,'Intervenção-Pista (2)'!$A:$A,$D31,'Intervenção-Pista (2)'!$B:$B,$D$13) -> 0 | AE31: =SUMIFS('Intervenção-Pista (2)'!AA:AA,'Intervenção-Pista (2)'!$A:$A,$D31,'Intervenção-Pista (2)'!$B:$B,$D$13) -> 0 | AF31: =SUMIFS('Intervenção-Pista (2)'!AB:AB,'Intervenção-Pista (2)'!$A:$A,$D31,'Intervenção-Pista (2)'!$B:$B,$D$13) -> 0 | AG31: =SUMIFS('Intervenção-Pista (2)'!AC:AC,'Intervenção-Pista (2)'!$A:$A,$D31,'Intervenção-Pista (2)'!$B:$B,$D$13) -> 0 | AH31: =SUMIFS('Intervenção-Pista (2)'!AD:AD,'Intervenção-Pista (2)'!$A:$A,$D31,'Intervenção-Pista (2)'!$B:$B,$D$13) -> 0 | AI31: =SUMIFS('Intervenção-Pista (2)'!AE:AE,'Intervenção-Pista (2)'!$A:$A,$D31,'Intervenção-Pista (2)'!$B:$B,$D$13) -> 0 | AJ31: =SUMIFS('Intervenção-Pista (2)'!AF:AF,'Intervenção-Pista (2)'!$A:$A,$D31,'Intervenção-Pista (2)'!$B:$B,$D$13) -> 0 | AK31: =SUMIFS('Intervenção-Pista (2)'!AG:AG,'Intervenção-Pista (2)'!$A:$A,$D31,'Intervenção-Pista (2)'!$B:$B,$D$13) -> 0
B32: 8.1.1.19 | D32: 491CMG0150 | E32: M2 | F32: 0 | H32: =SUMIFS('Intervenção-Pista (2)'!D:D,'Intervenção-Pista (2)'!$A:$A,$D32,'Intervenção-Pista (2)'!$B:$B,$D$13) -> 0 | I32: =SUMIFS('Intervenção-Pista (2)'!E:E,'Intervenção-Pista (2)'!$A:$A,$D32,'Intervenção-Pista (2)'!$B:$B,$D$13) -> 0 | J32: =SUMIFS('Intervenção-Pista (2)'!F:F,'Intervenção-Pista (2)'!$A:$A,$D32,'Intervenção-Pista (2)'!$B:$B,$D$13) -> 0 | K32: =SUMIFS('Intervenção-Pista (2)'!G:G,'Intervenção-Pista (2)'!$A:$A,$D32,'Intervenção-Pista (2)'!$B:$B,$D$13) -> 0 | L32: =SUMIFS('Intervenção-Pista (2)'!H:H,'Intervenção-Pista (2)'!$A:$A,$D32,'Intervenção-Pista (2)'!$B:$B,$D$13) -> 0 | M32: =SUMIFS('Intervenção-Pista (2)'!I:I,'Intervenção-Pista (2)'!$A:$A,$D32,'Intervenção-Pista (2)'!$B:$B,$D$13) -> 0 | N32: =SUMIFS('Intervenção-Pista (2)'!J:J,'Intervenção-Pista (2)'!$A:$A,$D32,'Intervenção-Pista (2)'!$B:$B,$D$13) -> 0 | O32: =SUMIFS('Intervenção-Pista (2)'!K:K,'Intervenção-Pista (2)'!$A:$A,$D32,'Intervenção-Pista (2)'!$B:$B,$D$13) -> 0 | P32: =SUMIFS('Intervenção-Pista (2)'!L:L,'Intervenção-Pista (2)'!$A:$A,$D32,'Intervenção-Pista (2)'!$B:$B,$D$13) -> 0 | Q32: =SUMIFS('Intervenção-Pista (2)'!M:M,'Intervenção-Pista (2)'!$A:$A,$D32,'Intervenção-Pista (2)'!$B:$B,$D$13) -> 0 | R32: =SUMIFS('Intervenção-Pista (2)'!N:N,'Intervenção-Pista (2)'!$A:$A,$D32,'Intervenção-Pista (2)'!$B:$B,$D$13) -> 0 | S32: =SUMIFS('Intervenção-Pista (2)'!O:O,'Intervenção-Pista (2)'!$A:$A,$D32,'Intervenção-Pista (2)'!$B:$B,$D$13) -> 0 | T32: =SUMIFS('Intervenção-Pista (2)'!P:P,'Intervenção-Pista (2)'!$A:$A,$D32,'Intervenção-Pista (2)'!$B:$B,$D$13) -> 0 | U32: =SUMIFS('Intervenção-Pista (2)'!Q:Q,'Intervenção-Pista (2)'!$A:$A,$D32,'Intervenção-Pista (2)'!$B:$B,$D$13) -> 0 | V32: =SUMIFS('Intervenção-Pista (2)'!R:R,'Intervenção-Pista (2)'!$A:$A,$D32,'Intervenção-Pista (2)'!$B:$B,$D$13) -> 0 | W32: =SUMIFS('Intervenção-Pista (2)'!S:S,'Intervenção-Pista (2)'!$A:$A,$D32,'Intervenção-Pista (2)'!$B:$B,$D$13) -> 0 | X32: =SUMIFS('Intervenção-Pista (2)'!T:T,'Intervenção-Pista (2)'!$A:$A,$D32,'Intervenção-Pista (2)'!$B:$B,$D$13) -> 0 | Y32: =SUMIFS('Intervenção-Pista (2)'!U:U,'Intervenção-Pista (2)'!$A:$A,$D32,'Intervenção-Pista (2)'!$B:$B,$D$13) -> 0 | Z32: =SUMIFS('Intervenção-Pista (2)'!V:V,'Intervenção-Pista (2)'!$A:$A,$D32,'Intervenção-Pista (2)'!$B:$B,$D$13) -> 0 | AA32: =SUMIFS('Intervenção-Pista (2)'!W:W,'Intervenção-Pista (2)'!$A:$A,$D32,'Intervenção-Pista (2)'!$B:$B,$D$13) -> 0 | AB32: =SUMIFS('Intervenção-Pista (2)'!X:X,'Intervenção-Pista (2)'!$A:$A,$D32,'Intervenção-Pista (2)'!$B:$B,$D$13) -> 0 | AC32: =SUMIFS('Intervenção-Pista (2)'!Y:Y,'Intervenção-Pista (2)'!$A:$A,$D32,'Intervenção-Pista (2)'!$B:$B,$D$13) -> 0 | AD32: =SUMIFS('Intervenção-Pista (2)'!Z:Z,'Intervenção-Pista (2)'!$A:$A,$D32,'Intervenção-Pista (2)'!$B:$B,$D$13) -> 0 | AE32: =SUMIFS('Intervenção-Pista (2)'!AA:AA,'Intervenção-Pista (2)'!$A:$A,$D32,'Intervenção-Pista (2)'!$B:$B,$D$13) -> 0 | AF32: =SUMIFS('Intervenção-Pista (2)'!AB:AB,'Intervenção-Pista (2)'!$A:$A,$D32,'Intervenção-Pista (2)'!$B:$B,$D$13) -> 0 | AG32: =SUMIFS('Intervenção-Pista (2)'!AC:AC,'Intervenção-Pista (2)'!$A:$A,$D32,'Intervenção-Pista (2)'!$B:$B,$D$13) -> 0 | AH32: =SUMIFS('Intervenção-Pista (2)'!AD:AD,'Intervenção-Pista (2)'!$A:$A,$D32,'Intervenção-Pista (2)'!$B:$B,$D$13) -> 0 | AI32: =SUMIFS('Intervenção-Pista (2)'!AE:AE,'Intervenção-Pista (2)'!$A:$A,$D32,'Intervenção-Pista (2)'!$B:$B,$D$13) -> 0 | AJ32: =SUMIFS('Intervenção-Pista (2)'!AF:AF,'Intervenção-Pista (2)'!$A:$A,$D32,'Intervenção-Pista (2)'!$B:$B,$D$13) -> 0 | AK32: =SUMIFS('Intervenção-Pista (2)'!AG:AG,'Intervenção-Pista (2)'!$A:$A,$D32,'Intervenção-Pista (2)'!$B:$B,$D$13) -> 0
B33: 8.1.1.20 | D33: 491CMG0170 | E33: M2 | F33: 0 | H33: =SUMIFS('Intervenção-Pista (2)'!D:D,'Intervenção-Pista (2)'!$A:$A,$D33,'Intervenção-Pista (2)'!$B:$B,$D$13) -> 0 | I33: =SUMIFS('Intervenção-Pista (2)'!E:E,'Intervenção-Pista (2)'!$A:$A,$D33,'Intervenção-Pista (2)'!$B:$B,$D$13) -> 0 | J33: =SUMIFS('Intervenção-Pista (2)'!F:F,'Intervenção-Pista (2)'!$A:$A,$D33,'Intervenção-Pista (2)'!$B:$B,$D$13) -> 0 | K33: =SUMIFS('Intervenção-Pista (2)'!G:G,'Intervenção-Pista (2)'!$A:$A,$D33,'Intervenção-Pista (2)'!$B:$B,$D$13) -> 0 | L33: =SUMIFS('Intervenção-Pista (2)'!H:H,'Intervenção-Pista (2)'!$A:$A,$D33,'Intervenção-Pista (2)'!$B:$B,$D$13) -> 0 | M33: =SUMIFS('Intervenção-Pista (2)'!I:I,'Intervenção-Pista (2)'!$A:$A,$D33,'Intervenção-Pista (2)'!$B:$B,$D$13) -> 0 | N33: =SUMIFS('Intervenção-Pista (2)'!J:J,'Intervenção-Pista (2)'!$A:$A,$D33,'Intervenção-Pista (2)'!$B:$B,$D$13) -> 0 | O33: =SUMIFS('Intervenção-Pista (2)'!K:K,'Intervenção-Pista (2)'!$A:$A,$D33,'Intervenção-Pista (2)'!$B:$B,$D$13) -> 0 | P33: =SUMIFS('Intervenção-Pista (2)'!L:L,'Intervenção-Pista (2)'!$A:$A,$D33,'Intervenção-Pista (2)'!$B:$B,$D$13) -> 0 | Q33: =SUMIFS('Intervenção-Pista (2)'!M:M,'Intervenção-Pista (2)'!$A:$A,$D33,'Intervenção-Pista (2)'!$B:$B,$D$13) -> 0 | R33: =SUMIFS('Intervenção-Pista (2)'!N:N,'Intervenção-Pista (2)'!$A:$A,$D33,'Intervenção-Pista (2)'!$B:$B,$D$13) -> 0 | S33: =SUMIFS('Intervenção-Pista (2)'!O:O,'Intervenção-Pista (2)'!$A:$A,$D33,'Intervenção-Pista (2)'!$B:$B,$D$13) -> 0 | T33: =SUMIFS('Intervenção-Pista (2)'!P:P,'Intervenção-Pista (2)'!$A:$A,$D33,'Intervenção-Pista (2)'!$B:$B,$D$13) -> 0 | U33: =SUMIFS('Intervenção-Pista (2)'!Q:Q,'Intervenção-Pista (2)'!$A:$A,$D33,'Intervenção-Pista (2)'!$B:$B,$D$13) -> 0 | V33: =SUMIFS('Intervenção-Pista (2)'!R:R,'Intervenção-Pista (2)'!$A:$A,$D33,'Intervenção-Pista (2)'!$B:$B,$D$13) -> 0 | W33: =SUMIFS('Intervenção-Pista (2)'!S:S,'Intervenção-Pista (2)'!$A:$A,$D33,'Intervenção-Pista (2)'!$B:$B,$D$13) -> 0 | X33: =SUMIFS('Intervenção-Pista (2)'!T:T,'Intervenção-Pista (2)'!$A:$A,$D33,'Intervenção-Pista (2)'!$B:$B,$D$13) -> 0 | Y33: =SUMIFS('Intervenção-Pista (2)'!U:U,'Intervenção-Pista (2)'!$A:$A,$D33,'Intervenção-Pista (2)'!$B:$B,$D$13) -> 0 | Z33: =SUMIFS('Intervenção-Pista (2)'!V:V,'Intervenção-Pista (2)'!$A:$A,$D33,'Intervenção-Pista (2)'!$B:$B,$D$13) -> 0 | AA33: =SUMIFS('Intervenção-Pista (2)'!W:W,'Intervenção-Pista (2)'!$A:$A,$D33,'Intervenção-Pista (2)'!$B:$B,$D$13) -> 0 | AB33: =SUMIFS('Intervenção-Pista (2)'!X:X,'Intervenção-Pista (2)'!$A:$A,$D33,'Intervenção-Pista (2)'!$B:$B,$D$13) -> 0 | AC33: =SUMIFS('Intervenção-Pista (2)'!Y:Y,'Intervenção-Pista (2)'!$A:$A,$D33,'Intervenção-Pista (2)'!$B:$B,$D$13) -> 0 | AD33: =SUMIFS('Intervenção-Pista (2)'!Z:Z,'Intervenção-Pista (2)'!$A:$A,$D33,'Intervenção-Pista (2)'!$B:$B,$D$13) -> 0 | AE33: =SUMIFS('Intervenção-Pista (2)'!AA:AA,'Intervenção-Pista (2)'!$A:$A,$D33,'Intervenção-Pista (2)'!$B:$B,$D$13) -> 0 | AF33: =SUMIFS('Intervenção-Pista (2)'!AB:AB,'Intervenção-Pista (2)'!$A:$A,$D33,'Intervenção-Pista (2)'!$B:$B,$D$13) -> 0 | AG33: =SUMIFS('Intervenção-Pista (2)'!AC:AC,'Intervenção-Pista (2)'!$A:$A,$D33,'Intervenção-Pista (2)'!$B:$B,$D$13) -> 0 | AH33: =SUMIFS('Intervenção-Pista (2)'!AD:AD,'Intervenção-Pista (2)'!$A:$A,$D33,'Intervenção-Pista (2)'!$B:$B,$D$13) -> 0 | AI33: =SUMIFS('Intervenção-Pista (2)'!AE:AE,'Intervenção-Pista (2)'!$A:$A,$D33,'Intervenção-Pista (2)'!$B:$B,$D$13) -> 0 | AJ33: =SUMIFS('Intervenção-Pista (2)'!AF:AF,'Intervenção-Pista (2)'!$A:$A,$D33,'Intervenção-Pista (2)'!$B:$B,$D$13) -> 0 | AK33: =SUMIFS('Intervenção-Pista (2)'!AG:AG,'Intervenção-Pista (2)'!$A:$A,$D33,'Intervenção-Pista (2)'!$B:$B,$D$13) -> 0
B34: 8.1.1.21 | D34: 491CMG0190 | E34: M2 | F34: 20,811.21 | H34: =SUMIFS('Intervenção-Pista (2)'!D:D,'Intervenção-Pista (2)'!$A:$A,$D34,'Intervenção-Pista (2)'!$B:$B,$D$13) -> 0 | I34: =SUMIFS('Intervenção-Pista (2)'!E:E,'Intervenção-Pista (2)'!$A:$A,$D34,'Intervenção-Pista (2)'!$B:$B,$D$13) -> 0 | J34: =SUMIFS('Intervenção-Pista (2)'!F:F,'Intervenção-Pista (2)'!$A:$A,$D34,'Intervenção-Pista (2)'!$B:$B,$D$13) -> 0 | K34: =SUMIFS('Intervenção-Pista (2)'!G:G,'Intervenção-Pista (2)'!$A:$A,$D34,'Intervenção-Pista (2)'!$B:$B,$D$13) -> 0 | L34: =SUMIFS('Intervenção-Pista (2)'!H:H,'Intervenção-Pista (2)'!$A:$A,$D34,'Intervenção-Pista (2)'!$B:$B,$D$13) -> 20,811.21 | M34: =SUMIFS('Intervenção-Pista (2)'!I:I,'Intervenção-Pista (2)'!$A:$A,$D34,'Intervenção-Pista (2)'!$B:$B,$D$13) -> 0 | N34: =SUMIFS('Intervenção-Pista (2)'!J:J,'Intervenção-Pista (2)'!$A:$A,$D34,'Intervenção-Pista (2)'!$B:$B,$D$13) -> 0 | O34: =SUMIFS('Intervenção-Pista (2)'!K:K,'Intervenção-Pista (2)'!$A:$A,$D34,'Intervenção-Pista (2)'!$B:$B,$D$13) -> 0 | P34: =SUMIFS('Intervenção-Pista (2)'!L:L,'Intervenção-Pista (2)'!$A:$A,$D34,'Intervenção-Pista (2)'!$B:$B,$D$13) -> 0 | Q34: =SUMIFS('Intervenção-Pista (2)'!M:M,'Intervenção-Pista (2)'!$A:$A,$D34,'Intervenção-Pista (2)'!$B:$B,$D$13) -> 0 | R34: =SUMIFS('Intervenção-Pista (2)'!N:N,'Intervenção-Pista (2)'!$A:$A,$D34,'Intervenção-Pista (2)'!$B:$B,$D$13) -> 0 | S34: =SUMIFS('Intervenção-Pista (2)'!O:O,'Intervenção-Pista (2)'!$A:$A,$D34,'Intervenção-Pista (2)'!$B:$B,$D$13) -> 0 | T34: =SUMIFS('Intervenção-Pista (2)'!P:P,'Intervenção-Pista (2)'!$A:$A,$D34,'Intervenção-Pista (2)'!$B:$B,$D$13) -> 0 | U34: =SUMIFS('Intervenção-Pista (2)'!Q:Q,'Intervenção-Pista (2)'!$A:$A,$D34,'Intervenção-Pista (2)'!$B:$B,$D$13) -> 0 | V34: =SUMIFS('Intervenção-Pista (2)'!R:R,'Intervenção-Pista (2)'!$A:$A,$D34,'Intervenção-Pista (2)'!$B:$B,$D$13) -> 0 | W34: =SUMIFS('Intervenção-Pista (2)'!S:S,'Intervenção-Pista (2)'!$A:$A,$D34,'Intervenção-Pista (2)'!$B:$B,$D$13) -> 0 | X34: =SUMIFS('Intervenção-Pista (2)'!T:T,'Intervenção-Pista (2)'!$A:$A,$D34,'Intervenção-Pista (2)'!$B:$B,$D$13) -> 0 | Y34: =SUMIFS('Intervenção-Pista (2)'!U:U,'Intervenção-Pista (2)'!$A:$A,$D34,'Intervenção-Pista (2)'!$B:$B,$D$13) -> 0 | Z34: =SUMIFS('Intervenção-Pista (2)'!V:V,'Intervenção-Pista (2)'!$A:$A,$D34,'Intervenção-Pista (2)'!$B:$B,$D$13) -> 0 | AA34: =SUMIFS('Intervenção-Pista (2)'!W:W,'Intervenção-Pista (2)'!$A:$A,$D34,'Intervenção-Pista (2)'!$B:$B,$D$13) -> 0 | AB34: =SUMIFS('Intervenção-Pista (2)'!X:X,'Intervenção-Pista (2)'!$A:$A,$D34,'Intervenção-Pista (2)'!$B:$B,$D$13) -> 0 | AC34: =SUMIFS('Intervenção-Pista (2)'!Y:Y,'Intervenção-Pista (2)'!$A:$A,$D34,'Intervenção-Pista (2)'!$B:$B,$D$13) -> 0 | AD34: =SUMIFS('Intervenção-Pista (2)'!Z:Z,'Intervenção-Pista (2)'!$A:$A,$D34,'Intervenção-Pista (2)'!$B:$B,$D$13) -> 0 | AE34: =SUMIFS('Intervenção-Pista (2)'!AA:AA,'Intervenção-Pista (2)'!$A:$A,$D34,'Intervenção-Pista (2)'!$B:$B,$D$13) -> 0 | AF34: =SUMIFS('Intervenção-Pista (2)'!AB:AB,'Intervenção-Pista (2)'!$A:$A,$D34,'Intervenção-Pista (2)'!$B:$B,$D$13) -> 0 | AG34: =SUMIFS('Intervenção-Pista (2)'!AC:AC,'Intervenção-Pista (2)'!$A:$A,$D34,'Intervenção-Pista (2)'!$B:$B,$D$13) -> 0 | AH34: =SUMIFS('Intervenção-Pista (2)'!AD:AD,'Intervenção-Pista (2)'!$A:$A,$D34,'Intervenção-Pista (2)'!$B:$B,$D$13) -> 0 | AI34: =SUMIFS('Intervenção-Pista (2)'!AE:AE,'Intervenção-Pista (2)'!$A:$A,$D34,'Intervenção-Pista (2)'!$B:$B,$D$13) -> 0 | AJ34: =SUMIFS('Intervenção-Pista (2)'!AF:AF,'Intervenção-Pista (2)'!$A:$A,$D34,'Intervenção-Pista (2)'!$B:$B,$D$13) -> 0 | AK34: =SUMIFS('Intervenção-Pista (2)'!AG:AG,'Intervenção-Pista (2)'!$A:$A,$D34,'Intervenção-Pista (2)'!$B:$B,$D$13) -> 0
B35: 8.1.1.22 | D35: 491CMG0210D | E35: M2 | F35: 0 | H35: =SUMIFS('Intervenção-Pista (2)'!D:D,'Intervenção-Pista (2)'!$A:$A,$D35,'Intervenção-Pista (2)'!$B:$B,$D$13) -> 0 | I35: =SUMIFS('Intervenção-Pista (2)'!E:E,'Intervenção-Pista (2)'!$A:$A,$D35,'Intervenção-Pista (2)'!$B:$B,$D$13) -> 0 | J35: =SUMIFS('Intervenção-Pista (2)'!F:F,'Intervenção-Pista (2)'!$A:$A,$D35,'Intervenção-Pista (2)'!$B:$B,$D$13) -> 0 | K35: =SUMIFS('Intervenção-Pista (2)'!G:G,'Intervenção-Pista (2)'!$A:$A,$D35,'Intervenção-Pista (2)'!$B:$B,$D$13) -> 0 | L35: =SUMIFS('Intervenção-Pista (2)'!H:H,'Intervenção-Pista (2)'!$A:$A,$D35,'Intervenção-Pista (2)'!$B:$B,$D$13) -> 0 | M35: =SUMIFS('Intervenção-Pista (2)'!I:I,'Intervenção-Pista (2)'!$A:$A,$D35,'Intervenção-Pista (2)'!$B:$B,$D$13) -> 0 | N35: =SUMIFS('Intervenção-Pista (2)'!J:J,'Intervenção-Pista (2)'!$A:$A,$D35,'Intervenção-Pista (2)'!$B:$B,$D$13) -> 0 | O35: =SUMIFS('Intervenção-Pista (2)'!K:K,'Intervenção-Pista (2)'!$A:$A,$D35,'Intervenção-Pista (2)'!$B:$B,$D$13) -> 0 | P35: =SUMIFS('Intervenção-Pista (2)'!L:L,'Intervenção-Pista (2)'!$A:$A,$D35,'Intervenção-Pista (2)'!$B:$B,$D$13) -> 0 | Q35: =SUMIFS('Intervenção-Pista (2)'!M:M,'Intervenção-Pista (2)'!$A:$A,$D35,'Intervenção-Pista (2)'!$B:$B,$D$13) -> 0 | R35: =SUMIFS('Intervenção-Pista (2)'!N:N,'Intervenção-Pista (2)'!$A:$A,$D35,'Intervenção-Pista (2)'!$B:$B,$D$13) -> 0 | S35: =SUMIFS('Intervenção-Pista (2)'!O:O,'Intervenção-Pista (2)'!$A:$A,$D35,'Intervenção-Pista (2)'!$B:$B,$D$13) -> 0 | T35: =SUMIFS('Intervenção-Pista (2)'!P:P,'Intervenção-Pista (2)'!$A:$A,$D35,'Intervenção-Pista (2)'!$B:$B,$D$13) -> 0 | U35: =SUMIFS('Intervenção-Pista (2)'!Q:Q,'Intervenção-Pista (2)'!$A:$A,$D35,'Intervenção-Pista (2)'!$B:$B,$D$13) -> 0 | V35: =SUMIFS('Intervenção-Pista (2)'!R:R,'Intervenção-Pista (2)'!$A:$A,$D35,'Intervenção-Pista (2)'!$B:$B,$D$13) -> 0 | W35: =SUMIFS('Intervenção-Pista (2)'!S:S,'Intervenção-Pista (2)'!$A:$A,$D35,'Intervenção-Pista (2)'!$B:$B,$D$13) -> 0 | X35: =SUMIFS('Intervenção-Pista (2)'!T:T,'Intervenção-Pista (2)'!$A:$A,$D35,'Intervenção-Pista (2)'!$B:$B,$D$13) -> 0 | Y35: =SUMIFS('Intervenção-Pista (2)'!U:U,'Intervenção-Pista (2)'!$A:$A,$D35,'Intervenção-Pista (2)'!$B:$B,$D$13) -> 0 | Z35: =SUMIFS('Intervenção-Pista (2)'!V:V,'Intervenção-Pista (2)'!$A:$A,$D35,'Intervenção-Pista (2)'!$B:$B,$D$13) -> 0 | AA35: =SUMIFS('Intervenção-Pista (2)'!W:W,'Intervenção-Pista (2)'!$A:$A,$D35,'Intervenção-Pista (2)'!$B:$B,$D$13) -> 0 | AB35: =SUMIFS('Intervenção-Pista (2)'!X:X,'Intervenção-Pista (2)'!$A:$A,$D35,'Intervenção-Pista (2)'!$B:$B,$D$13) -> 0 | AC35: =SUMIFS('Intervenção-Pista (2)'!Y:Y,'Intervenção-Pista (2)'!$A:$A,$D35,'Intervenção-Pista (2)'!$B:$B,$D$13) -> 0 | AD35: =SUMIFS('Intervenção-Pista (2)'!Z:Z,'Intervenção-Pista (2)'!$A:$A,$D35,'Intervenção-Pista (2)'!$B:$B,$D$13) -> 0 | AE35: =SUMIFS('Intervenção-Pista (2)'!AA:AA,'Intervenção-Pista (2)'!$A:$A,$D35,'Intervenção-Pista (2)'!$B:$B,$D$13) -> 0 | AF35: =SUMIFS('Intervenção-Pista (2)'!AB:AB,'Intervenção-Pista (2)'!$A:$A,$D35,'Intervenção-Pista (2)'!$B:$B,$D$13) -> 0 | AG35: =SUMIFS('Intervenção-Pista (2)'!AC:AC,'Intervenção-Pista (2)'!$A:$A,$D35,'Intervenção-Pista (2)'!$B:$B,$D$13) -> 0 | AH35: =SUMIFS('Intervenção-Pista (2)'!AD:AD,'Intervenção-Pista (2)'!$A:$A,$D35,'Intervenção-Pista (2)'!$B:$B,$D$13) -> 0 | AI35: =SUMIFS('Intervenção-Pista (2)'!AE:AE,'Intervenção-Pista (2)'!$A:$A,$D35,'Intervenção-Pista (2)'!$B:$B,$D$13) -> 0 | AJ35: =SUMIFS('Intervenção-Pista (2)'!AF:AF,'Intervenção-Pista (2)'!$A:$A,$D35,'Intervenção-Pista (2)'!$B:$B,$D$13) -> 0 | AK35: =SUMIFS('Intervenção-Pista (2)'!AG:AG,'Intervenção-Pista (2)'!$A:$A,$D35,'Intervenção-Pista (2)'!$B:$B,$D$13) -> 0
B36: 8.1.1.23 | D36: 146BMG0250 | E36: M2 | F36: 0 | H36: =SUMIFS('Intervenção-Pista (2)'!D:D,'Intervenção-Pista (2)'!$A:$A,$D36,'Intervenção-Pista (2)'!$B:$B,$D$13) -> 0 | I36: =SUMIFS('Intervenção-Pista (2)'!E:E,'Intervenção-Pista (2)'!$A:$A,$D36,'Intervenção-Pista (2)'!$B:$B,$D$13) -> 0 | J36: =SUMIFS('Intervenção-Pista (2)'!F:F,'Intervenção-Pista (2)'!$A:$A,$D36,'Intervenção-Pista (2)'!$B:$B,$D$13) -> 0 | K36: =SUMIFS('Intervenção-Pista (2)'!G:G,'Intervenção-Pista (2)'!$A:$A,$D36,'Intervenção-Pista (2)'!$B:$B,$D$13) -> 0 | L36: =SUMIFS('Intervenção-Pista (2)'!H:H,'Intervenção-Pista (2)'!$A:$A,$D36,'Intervenção-Pista (2)'!$B:$B,$D$13) -> 0 | M36: =SUMIFS('Intervenção-Pista (2)'!I:I,'Intervenção-Pista (2)'!$A:$A,$D36,'Intervenção-Pista (2)'!$B:$B,$D$13) -> 0 | N36: =SUMIFS('Intervenção-Pista (2)'!J:J,'Intervenção-Pista (2)'!$A:$A,$D36,'Intervenção-Pista (2)'!$B:$B,$D$13) -> 0 | O36: =SUMIFS('Intervenção-Pista (2)'!K:K,'Intervenção-Pista (2)'!$A:$A,$D36,'Intervenção-Pista (2)'!$B:$B,$D$13) -> 0 | P36: =SUMIFS('Intervenção-Pista (2)'!L:L,'Intervenção-Pista (2)'!$A:$A,$D36,'Intervenção-Pista (2)'!$B:$B,$D$13) -> 0 | Q36: =SUMIFS('Intervenção-Pista (2)'!M:M,'Intervenção-Pista (2)'!$A:$A,$D36,'Intervenção-Pista (2)'!$B:$B,$D$13) -> 0 | R36: =SUMIFS('Intervenção-Pista (2)'!N:N,'Intervenção-Pista (2)'!$A:$A,$D36,'Intervenção-Pista (2)'!$B:$B,$D$13) -> 0 | S36: =SUMIFS('Intervenção-Pista (2)'!O:O,'Intervenção-Pista (2)'!$A:$A,$D36,'Intervenção-Pista (2)'!$B:$B,$D$13) -> 0 | T36: =SUMIFS('Intervenção-Pista (2)'!P:P,'Intervenção-Pista (2)'!$A:$A,$D36,'Intervenção-Pista (2)'!$B:$B,$D$13) -> 0 | U36: =SUMIFS('Intervenção-Pista (2)'!Q:Q,'Intervenção-Pista (2)'!$A:$A,$D36,'Intervenção-Pista (2)'!$B:$B,$D$13) -> 0 | V36: =SUMIFS('Intervenção-Pista (2)'!R:R,'Intervenção-Pista (2)'!$A:$A,$D36,'Intervenção-Pista (2)'!$B:$B,$D$13) -> 0 | W36: =SUMIFS('Intervenção-Pista (2)'!S:S,'Intervenção-Pista (2)'!$A:$A,$D36,'Intervenção-Pista (2)'!$B:$B,$D$13) -> 0 | X36: =SUMIFS('Intervenção-Pista (2)'!T:T,'Intervenção-Pista (2)'!$A:$A,$D36,'Intervenção-Pista (2)'!$B:$B,$D$13) -> 0 | Y36: =SUMIFS('Intervenção-Pista (2)'!U:U,'Intervenção-Pista (2)'!$A:$A,$D36,'Intervenção-Pista (2)'!$B:$B,$D$13) -> 0 | Z36: =SUMIFS('Intervenção-Pista (2)'!V:V,'Intervenção-Pista (2)'!$A:$A,$D36,'Intervenção-Pista (2)'!$B:$B,$D$13) -> 0 | AA36: =SUMIFS('Intervenção-Pista (2)'!W:W,'Intervenção-Pista (2)'!$A:$A,$D36,'Intervenção-Pista (2)'!$B:$B,$D$13) -> 0 | AB36: =SUMIFS('Intervenção-Pista (2)'!X:X,'Intervenção-Pista (2)'!$A:$A,$D36,'Intervenção-Pista (2)'!$B:$B,$D$13) -> 0 | AC36: =SUMIFS('Intervenção-Pista (2)'!Y:Y,'Intervenção-Pista (2)'!$A:$A,$D36,'Intervenção-Pista (2)'!$B:$B,$D$13) -> 0 | AD36: =SUMIFS('Intervenção-Pista (2)'!Z:Z,'Intervenção-Pista (2)'!$A:$A,$D36,'Intervenção-Pista (2)'!$B:$B,$D$13) -> 0 | AE36: =SUMIFS('Intervenção-Pista (2)'!AA:AA,'Intervenção-Pista (2)'!$A:$A,$D36,'Intervenção-Pista (2)'!$B:$B,$D$13) -> 0 | AF36: =SUMIFS('Intervenção-Pista (2)'!AB:AB,'Intervenção-Pista (2)'!$A:$A,$D36,'Intervenção-Pista (2)'!$B:$B,$D$13) -> 0 | AG36: =SUMIFS('Intervenção-Pista (2)'!AC:AC,'Intervenção-Pista (2)'!$A:$A,$D36,'Intervenção-Pista (2)'!$B:$B,$D$13) -> 0 | AH36: =SUMIFS('Intervenção-Pista (2)'!AD:AD,'Intervenção-Pista (2)'!$A:$A,$D36,'Intervenção-Pista (2)'!$B:$B,$D$13) -> 0 | AI36: =SUMIFS('Intervenção-Pista (2)'!AE:AE,'Intervenção-Pista (2)'!$A:$A,$D36,'Intervenção-Pista (2)'!$B:$B,$D$13) -> 0 | AJ36: =SUMIFS('Intervenção-Pista (2)'!AF:AF,'Intervenção-Pista (2)'!$A:$A,$D36,'Intervenção-Pista (2)'!$B:$B,$D$13) -> 0 | AK36: =SUMIFS('Intervenção-Pista (2)'!AG:AG,'Intervenção-Pista (2)'!$A:$A,$D36,'Intervenção-Pista (2)'!$B:$B,$D$13) -> 0
B37: 8.1.1.24 | D37: 146BMG0252 | E37: M2 | F37: 0 | H37: =SUMIFS('Intervenção-Pista (2)'!D:D,'Intervenção-Pista (2)'!$A:$A,$D37,'Intervenção-Pista (2)'!$B:$B,$D$13) -> 0 | I37: =SUMIFS('Intervenção-Pista (2)'!E:E,'Intervenção-Pista (2)'!$A:$A,$D37,'Intervenção-Pista (2)'!$B:$B,$D$13) -> 0 | J37: =SUMIFS('Intervenção-Pista (2)'!F:F,'Intervenção-Pista (2)'!$A:$A,$D37,'Intervenção-Pista (2)'!$B:$B,$D$13) -> 0 | K37: =SUMIFS('Intervenção-Pista (2)'!G:G,'Intervenção-Pista (2)'!$A:$A,$D37,'Intervenção-Pista (2)'!$B:$B,$D$13) -> 0 | L37: =SUMIFS('Intervenção-Pista (2)'!H:H,'Intervenção-Pista (2)'!$A:$A,$D37,'Intervenção-Pista (2)'!$B:$B,$D$13) -> 0 | M37: =SUMIFS('Intervenção-Pista (2)'!I:I,'Intervenção-Pista (2)'!$A:$A,$D37,'Intervenção-Pista (2)'!$B:$B,$D$13) -> 0 | N37: =SUMIFS('Intervenção-Pista (2)'!J:J,'Intervenção-Pista (2)'!$A:$A,$D37,'Intervenção-Pista (2)'!$B:$B,$D$13) -> 0 | O37: =SUMIFS('Intervenção-Pista (2)'!K:K,'Intervenção-Pista (2)'!$A:$A,$D37,'Intervenção-Pista (2)'!$B:$B,$D$13) -> 0 | P37: =SUMIFS('Intervenção-Pista (2)'!L:L,'Intervenção-Pista (2)'!$A:$A,$D37,'Intervenção-Pista (2)'!$B:$B,$D$13) -> 0 | Q37: =SUMIFS('Intervenção-Pista (2)'!M:M,'Intervenção-Pista (2)'!$A:$A,$D37,'Intervenção-Pista (2)'!$B:$B,$D$13) -> 0 | R37: =SUMIFS('Intervenção-Pista (2)'!N:N,'Intervenção-Pista (2)'!$A:$A,$D37,'Intervenção-Pista (2)'!$B:$B,$D$13) -> 0 | S37: =SUMIFS('Intervenção-Pista (2)'!O:O,'Intervenção-Pista (2)'!$A:$A,$D37,'Intervenção-Pista (2)'!$B:$B,$D$13) -> 0 | T37: =SUMIFS('Intervenção-Pista (2)'!P:P,'Intervenção-Pista (2)'!$A:$A,$D37,'Intervenção-Pista (2)'!$B:$B,$D$13) -> 0 | U37: =SUMIFS('Intervenção-Pista (2)'!Q:Q,'Intervenção-Pista (2)'!$A:$A,$D37,'Intervenção-Pista (2)'!$B:$B,$D$13) -> 0 | V37: =SUMIFS('Intervenção-Pista (2)'!R:R,'Intervenção-Pista (2)'!$A:$A,$D37,'Intervenção-Pista (2)'!$B:$B,$D$13) -> 0 | W37: =SUMIFS('Intervenção-Pista (2)'!S:S,'Intervenção-Pista (2)'!$A:$A,$D37,'Intervenção-Pista (2)'!$B:$B,$D$13) -> 0 | X37: =SUMIFS('Intervenção-Pista (2)'!T:T,'Intervenção-Pista (2)'!$A:$A,$D37,'Intervenção-Pista (2)'!$B:$B,$D$13) -> 0 | Y37: =SUMIFS('Intervenção-Pista (2)'!U:U,'Intervenção-Pista (2)'!$A:$A,$D37,'Intervenção-Pista (2)'!$B:$B,$D$13) -> 0 | Z37: =SUMIFS('Intervenção-Pista (2)'!V:V,'Intervenção-Pista (2)'!$A:$A,$D37,'Intervenção-Pista (2)'!$B:$B,$D$13) -> 0 | AA37: =SUMIFS('Intervenção-Pista (2)'!W:W,'Intervenção-Pista (2)'!$A:$A,$D37,'Intervenção-Pista (2)'!$B:$B,$D$13) -> 0 | AB37: =SUMIFS('Intervenção-Pista (2)'!X:X,'Intervenção-Pista (2)'!$A:$A,$D37,'Intervenção-Pista (2)'!$B:$B,$D$13) -> 0 | AC37: =SUMIFS('Intervenção-Pista (2)'!Y:Y,'Intervenção-Pista (2)'!$A:$A,$D37,'Intervenção-Pista (2)'!$B:$B,$D$13) -> 0 | AD37: =SUMIFS('Intervenção-Pista (2)'!Z:Z,'Intervenção-Pista (2)'!$A:$A,$D37,'Intervenção-Pista (2)'!$B:$B,$D$13) -> 0 | AE37: =SUMIFS('Intervenção-Pista (2)'!AA:AA,'Intervenção-Pista (2)'!$A:$A,$D37,'Intervenção-Pista (2)'!$B:$B,$D$13) -> 0 | AF37: =SUMIFS('Intervenção-Pista (2)'!AB:AB,'Intervenção-Pista (2)'!$A:$A,$D37,'Intervenção-Pista (2)'!$B:$B,$D$13) -> 0 | AG37: =SUMIFS('Intervenção-Pista (2)'!AC:AC,'Intervenção-Pista (2)'!$A:$A,$D37,'Intervenção-Pista (2)'!$B:$B,$D$13) -> 0 | AH37: =SUMIFS('Intervenção-Pista (2)'!AD:AD,'Intervenção-Pista (2)'!$A:$A,$D37,'Intervenção-Pista (2)'!$B:$B,$D$13) -> 0 | AI37: =SUMIFS('Intervenção-Pista (2)'!AE:AE,'Intervenção-Pista (2)'!$A:$A,$D37,'Intervenção-Pista (2)'!$B:$B,$D$13) -> 0 | AJ37: =SUMIFS('Intervenção-Pista (2)'!AF:AF,'Intervenção-Pista (2)'!$A:$A,$D37,'Intervenção-Pista (2)'!$B:$B,$D$13) -> 0 | AK37: =SUMIFS('Intervenção-Pista (2)'!AG:AG,'Intervenção-Pista (2)'!$A:$A,$D37,'Intervenção-Pista (2)'!$B:$B,$D$13) -> 0
B38: 8.1.1.25 | D38: 369CMG0070 | E38: M2 | F38: 0 | H38: =SUMIFS('Intervenção-Pista (2)'!D:D,'Intervenção-Pista (2)'!$A:$A,$D38,'Intervenção-Pista (2)'!$B:$B,$D$13) -> 0 | I38: =SUMIFS('Intervenção-Pista (2)'!E:E,'Intervenção-Pista (2)'!$A:$A,$D38,'Intervenção-Pista (2)'!$B:$B,$D$13) -> 0 | J38: =SUMIFS('Intervenção-Pista (2)'!F:F,'Intervenção-Pista (2)'!$A:$A,$D38,'Intervenção-Pista (2)'!$B:$B,$D$13) -> 0 | K38: =SUMIFS('Intervenção-Pista (2)'!G:G,'Intervenção-Pista (2)'!$A:$A,$D38,'Intervenção-Pista (2)'!$B:$B,$D$13) -> 0 | L38: =SUMIFS('Intervenção-Pista (2)'!H:H,'Intervenção-Pista (2)'!$A:$A,$D38,'Intervenção-Pista (2)'!$B:$B,$D$13) -> 0 | M38: =SUMIFS('Intervenção-Pista (2)'!I:I,'Intervenção-Pista (2)'!$A:$A,$D38,'Intervenção-Pista (2)'!$B:$B,$D$13) -> 0 | N38: =SUMIFS('Intervenção-Pista (2)'!J:J,'Intervenção-Pista (2)'!$A:$A,$D38,'Intervenção-Pista (2)'!$B:$B,$D$13) -> 0 | O38: =SUMIFS('Intervenção-Pista (2)'!K:K,'Intervenção-Pista (2)'!$A:$A,$D38,'Intervenção-Pista (2)'!$B:$B,$D$13) -> 0 | P38: =SUMIFS('Intervenção-Pista (2)'!L:L,'Intervenção-Pista (2)'!$A:$A,$D38,'Intervenção-Pista (2)'!$B:$B,$D$13) -> 0 | Q38: =SUMIFS('Intervenção-Pista (2)'!M:M,'Intervenção-Pista (2)'!$A:$A,$D38,'Intervenção-Pista (2)'!$B:$B,$D$13) -> 0 | R38: =SUMIFS('Intervenção-Pista (2)'!N:N,'Intervenção-Pista (2)'!$A:$A,$D38,'Intervenção-Pista (2)'!$B:$B,$D$13) -> 0 | S38: =SUMIFS('Intervenção-Pista (2)'!O:O,'Intervenção-Pista (2)'!$A:$A,$D38,'Intervenção-Pista (2)'!$B:$B,$D$13) -> 0 | T38: =SUMIFS('Intervenção-Pista (2)'!P:P,'Intervenção-Pista (2)'!$A:$A,$D38,'Intervenção-Pista (2)'!$B:$B,$D$13) -> 0 | U38: =SUMIFS('Intervenção-Pista (2)'!Q:Q,'Intervenção-Pista (2)'!$A:$A,$D38,'Intervenção-Pista (2)'!$B:$B,$D$13) -> 0 | V38: =SUMIFS('Intervenção-Pista (2)'!R:R,'Intervenção-Pista (2)'!$A:$A,$D38,'Intervenção-Pista (2)'!$B:$B,$D$13) -> 0 | W38: =SUMIFS('Intervenção-Pista (2)'!S:S,'Intervenção-Pista (2)'!$A:$A,$D38,'Intervenção-Pista (2)'!$B:$B,$D$13) -> 0 | X38: =SUMIFS('Intervenção-Pista (2)'!T:T,'Intervenção-Pista (2)'!$A:$A,$D38,'Intervenção-Pista (2)'!$B:$B,$D$13) -> 0 | Y38: =SUMIFS('Intervenção-Pista (2)'!U:U,'Intervenção-Pista (2)'!$A:$A,$D38,'Intervenção-Pista (2)'!$B:$B,$D$13) -> 0 | Z38: =SUMIFS('Intervenção-Pista (2)'!V:V,'Intervenção-Pista (2)'!$A:$A,$D38,'Intervenção-Pista (2)'!$B:$B,$D$13) -> 0 | AA38: =SUMIFS('Intervenção-Pista (2)'!W:W,'Intervenção-Pista (2)'!$A:$A,$D38,'Intervenção-Pista (2)'!$B:$B,$D$13) -> 0 | AB38: =SUMIFS('Intervenção-Pista (2)'!X:X,'Intervenção-Pista (2)'!$A:$A,$D38,'Intervenção-Pista (2)'!$B:$B,$D$13) -> 0 | AC38: =SUMIFS('Intervenção-Pista (2)'!Y:Y,'Intervenção-Pista (2)'!$A:$A,$D38,'Intervenção-Pista (2)'!$B:$B,$D$13) -> 0 | AD38: =SUMIFS('Intervenção-Pista (2)'!Z:Z,'Intervenção-Pista (2)'!$A:$A,$D38,'Intervenção-Pista (2)'!$B:$B,$D$13) -> 0 | AE38: =SUMIFS('Intervenção-Pista (2)'!AA:AA,'Intervenção-Pista (2)'!$A:$A,$D38,'Intervenção-Pista (2)'!$B:$B,$D$13) -> 0 | AF38: =SUMIFS('Intervenção-Pista (2)'!AB:AB,'Intervenção-Pista (2)'!$A:$A,$D38,'Intervenção-Pista (2)'!$B:$B,$D$13) -> 0 | AG38: =SUMIFS('Intervenção-Pista (2)'!AC:AC,'Intervenção-Pista (2)'!$A:$A,$D38,'Intervenção-Pista (2)'!$B:$B,$D$13) -> 0 | AH38: =SUMIFS('Intervenção-Pista (2)'!AD:AD,'Intervenção-Pista (2)'!$A:$A,$D38,'Intervenção-Pista (2)'!$B:$B,$D$13) -> 0 | AI38: =SUMIFS('Intervenção-Pista (2)'!AE:AE,'Intervenção-Pista (2)'!$A:$A,$D38,'Intervenção-Pista (2)'!$B:$B,$D$13) -> 0 | AJ38: =SUMIFS('Intervenção-Pista (2)'!AF:AF,'Intervenção-Pista (2)'!$A:$A,$D38,'Intervenção-Pista (2)'!$B:$B,$D$13) -> 0 | AK38: =SUMIFS('Intervenção-Pista (2)'!AG:AG,'Intervenção-Pista (2)'!$A:$A,$D38,'Intervenção-Pista (2)'!$B:$B,$D$13) -> 0
B39: 8.1.1.26 | D39: 369CMG0090 | E39: M2 | F39: 89,331.00 | H39: =SUMIFS('Intervenção-Pista (2)'!D:D,'Intervenção-Pista (2)'!$A:$A,$D39,'Intervenção-Pista (2)'!$B:$B,$D$13) -> 0 | I39: =SUMIFS('Intervenção-Pista (2)'!E:E,'Intervenção-Pista (2)'!$A:$A,$D39,'Intervenção-Pista (2)'!$B:$B,$D$13) -> 0 | J39: =SUMIFS('Intervenção-Pista (2)'!F:F,'Intervenção-Pista (2)'!$A:$A,$D39,'Intervenção-Pista (2)'!$B:$B,$D$13) -> 0 | K39: =SUMIFS('Intervenção-Pista (2)'!G:G,'Intervenção-Pista (2)'!$A:$A,$D39,'Intervenção-Pista (2)'!$B:$B,$D$13) -> 89,331.00 | L39: =SUMIFS('Intervenção-Pista (2)'!H:H,'Intervenção-Pista (2)'!$A:$A,$D39,'Intervenção-Pista (2)'!$B:$B,$D$13) -> 0 | M39: =SUMIFS('Intervenção-Pista (2)'!I:I,'Intervenção-Pista (2)'!$A:$A,$D39,'Intervenção-Pista (2)'!$B:$B,$D$13) -> 0 | N39: =SUMIFS('Intervenção-Pista (2)'!J:J,'Intervenção-Pista (2)'!$A:$A,$D39,'Intervenção-Pista (2)'!$B:$B,$D$13) -> 0 | O39: =SUMIFS('Intervenção-Pista (2)'!K:K,'Intervenção-Pista (2)'!$A:$A,$D39,'Intervenção-Pista (2)'!$B:$B,$D$13) -> 0 | P39: =SUMIFS('Intervenção-Pista (2)'!L:L,'Intervenção-Pista (2)'!$A:$A,$D39,'Intervenção-Pista (2)'!$B:$B,$D$13) -> 0 | Q39: =SUMIFS('Intervenção-Pista (2)'!M:M,'Intervenção-Pista (2)'!$A:$A,$D39,'Intervenção-Pista (2)'!$B:$B,$D$13) -> 0 | R39: =SUMIFS('Intervenção-Pista (2)'!N:N,'Intervenção-Pista (2)'!$A:$A,$D39,'Intervenção-Pista (2)'!$B:$B,$D$13) -> 0 | S39: =SUMIFS('Intervenção-Pista (2)'!O:O,'Intervenção-Pista (2)'!$A:$A,$D39,'Intervenção-Pista (2)'!$B:$B,$D$13) -> 0 | T39: =SUMIFS('Intervenção-Pista (2)'!P:P,'Intervenção-Pista (2)'!$A:$A,$D39,'Intervenção-Pista (2)'!$B:$B,$D$13) -> 0 | U39: =SUMIFS('Intervenção-Pista (2)'!Q:Q,'Intervenção-Pista (2)'!$A:$A,$D39,'Intervenção-Pista (2)'!$B:$B,$D$13) -> 0 | V39: =SUMIFS('Intervenção-Pista (2)'!R:R,'Intervenção-Pista (2)'!$A:$A,$D39,'Intervenção-Pista (2)'!$B:$B,$D$13) -> 0 | W39: =SUMIFS('Intervenção-Pista (2)'!S:S,'Intervenção-Pista (2)'!$A:$A,$D39,'Intervenção-Pista (2)'!$B:$B,$D$13) -> 0 | X39: =SUMIFS('Intervenção-Pista (2)'!T:T,'Intervenção-Pista (2)'!$A:$A,$D39,'Intervenção-Pista (2)'!$B:$B,$D$13) -> 0 | Y39: =SUMIFS('Intervenção-Pista (2)'!U:U,'Intervenção-Pista (2)'!$A:$A,$D39,'Intervenção-Pista (2)'!$B:$B,$D$13) -> 0 | Z39: =SUMIFS('Intervenção-Pista (2)'!V:V,'Intervenção-Pista (2)'!$A:$A,$D39,'Intervenção-Pista (2)'!$B:$B,$D$13) -> 0 | AA39: =SUMIFS('Intervenção-Pista (2)'!W:W,'Intervenção-Pista (2)'!$A:$A,$D39,'Intervenção-Pista (2)'!$B:$B,$D$13) -> 0 | AB39: =SUMIFS('Intervenção-Pista (2)'!X:X,'Intervenção-Pista (2)'!$A:$A,$D39,'Intervenção-Pista (2)'!$B:$B,$D$13) -> 0 | AC39: =SUMIFS('Intervenção-Pista (2)'!Y:Y,'Intervenção-Pista (2)'!$A:$A,$D39,'Intervenção-Pista (2)'!$B:$B,$D$13) -> 0 | AD39: =SUMIFS('Intervenção-Pista (2)'!Z:Z,'Intervenção-Pista (2)'!$A:$A,$D39,'Intervenção-Pista (2)'!$B:$B,$D$13) -> 0 | AE39: =SUMIFS('Intervenção-Pista (2)'!AA:AA,'Intervenção-Pista (2)'!$A:$A,$D39,'Intervenção-Pista (2)'!$B:$B,$D$13) -> 0 | AF39: =SUMIFS('Intervenção-Pista (2)'!AB:AB,'Intervenção-Pista (2)'!$A:$A,$D39,'Intervenção-Pista (2)'!$B:$B,$D$13) -> 0 | AG39: =SUMIFS('Intervenção-Pista (2)'!AC:AC,'Intervenção-Pista (2)'!$A:$A,$D39,'Intervenção-Pista (2)'!$B:$B,$D$13) -> 0 | AH39: =SUMIFS('Intervenção-Pista (2)'!AD:AD,'Intervenção-Pista (2)'!$A:$A,$D39,'Intervenção-Pista (2)'!$B:$B,$D$13) -> 0 | AI39: =SUMIFS('Intervenção-Pista (2)'!AE:AE,'Intervenção-Pista (2)'!$A:$A,$D39,'Intervenção-Pista (2)'!$B:$B,$D$13) -> 0 | AJ39: =SUMIFS('Intervenção-Pista (2)'!AF:AF,'Intervenção-Pista (2)'!$A:$A,$D39,'Intervenção-Pista (2)'!$B:$B,$D$13) -> 0 | AK39: =SUMIFS('Intervenção-Pista (2)'!AG:AG,'Intervenção-Pista (2)'!$A:$A,$D39,'Intervenção-Pista (2)'!$B:$B,$D$13) -> 0
B40: 8.1.2 | D40: MF+MRAF2 | F40: =SUM(F41:F66) -> 13,593,161.24 | H40: =SUM(H41:H66) -> 0 | I40: =SUM(I41:I66) -> 470,198.95 | J40: =SUM(J41:J66) -> 0 | K40: =SUM(K41:K66) -> 216,723.80 | L40: =SUM(L41:L66) -> 188,038.22 | M40: =SUM(M41:M66) -> 133,599.80 | N40: =SUM(N41:N66) -> 260,947.70 | O40: =SUM(O41:O66) -> 548,698.61 | P40: =SUM(P41:P66) -> 685,709.44 | Q40: =SUM(Q41:Q66) -> 255,656.95 | R40: =SUM(R41:R66) -> 189,279.80 | S40: =SUM(S41:S66) -> 542,652.33 | T40: =SUM(T41:T66) -> 653,882.17 | U40: =SUM(U41:U66) -> 538,923.78 | V40: =SUM(V41:V66) -> 329,180.46 | W40: =SUM(W41:W66) -> 401,735.42 | X40: =SUM(X41:X66) -> 816,400.34 | Y40: =SUM(Y41:Y66) -> 293,457.19 | Z40: =SUM(Z41:Z66) -> 502,665.81 | AA40: =SUM(AA41:AA66) -> 663,407.85 | AB40: =SUM(AB41:AB66) -> 726,725.63 | AC40: =SUM(AC41:AC66) -> 630,926.10 | AD40: =SUM(AD41:AD66) -> 340,846.68 | AE40: =SUM(AE41:AE66) -> 700,390.17 | AF40: =SUM(AF41:AF66) -> 445,146.59 | AG40: =SUM(AG41:AG66) -> 468,921.29 | AH40: =SUM(AH41:AH66) -> 794,330.78 | AI40: =SUM(AI41:AI66) -> 653,838.85 | AJ40: =SUM(AJ41:AJ66) -> 801,056.51 | AK40: =SUM(AK41:AK66) -> 339,820.02
B41: 8.1.2.1 | D41: 167EMG0200 | E41: M2 | F41: =SUM(H41:AK41) -> 446,460.70 | H41: =SUMIFS('Intervenção-Pista (2)'!D:D,'Intervenção-Pista (2)'!$A:$A,$D41,'Intervenção-Pista (2)'!$B:$B,$D$40) -> 0 | I41: =SUMIFS('Intervenção-Pista (2)'!E:E,'Intervenção-Pista (2)'!$A:$A,$D41,'Intervenção-Pista (2)'!$B:$B,$D$40) -> 0 | J41: =SUMIFS('Intervenção-Pista (2)'!F:F,'Intervenção-Pista (2)'!$A:$A,$D41,'Intervenção-Pista (2)'!$B:$B,$D$40) -> 0 | K41: =SUMIFS('Intervenção-Pista (2)'!G:G,'Intervenção-Pista (2)'!$A:$A,$D41,'Intervenção-Pista (2)'!$B:$B,$D$40) -> 0 | L41: =SUMIFS('Intervenção-Pista (2)'!H:H,'Intervenção-Pista (2)'!$A:$A,$D41,'Intervenção-Pista (2)'!$B:$B,$D$40) -> 0 | M41: =SUMIFS('Intervenção-Pista (2)'!I:I,'Intervenção-Pista (2)'!$A:$A,$D41,'Intervenção-Pista (2)'!$B:$B,$D$40) -> 0 | N41: =SUMIFS('Intervenção-Pista (2)'!J:J,'Intervenção-Pista (2)'!$A:$A,$D41,'Intervenção-Pista (2)'!$B:$B,$D$40) -> 29,292.14 | O41: =SUMIFS('Intervenção-Pista (2)'!K:K,'Intervenção-Pista (2)'!$A:$A,$D41,'Intervenção-Pista (2)'!$B:$B,$D$40) -> 60,000.00 | P41: =SUMIFS('Intervenção-Pista (2)'!L:L,'Intervenção-Pista (2)'!$A:$A,$D41,'Intervenção-Pista (2)'!$B:$B,$D$40) -> 0 | Q41: =SUMIFS('Intervenção-Pista (2)'!M:M,'Intervenção-Pista (2)'!$A:$A,$D41,'Intervenção-Pista (2)'!$B:$B,$D$40) -> 0 | R41: =SUMIFS('Intervenção-Pista (2)'!N:N,'Intervenção-Pista (2)'!$A:$A,$D41,'Intervenção-Pista (2)'!$B:$B,$D$40) -> 0 | S41: =SUMIFS('Intervenção-Pista (2)'!O:O,'Intervenção-Pista (2)'!$A:$A,$D41,'Intervenção-Pista (2)'!$B:$B,$D$40) -> 29,292.14 | T41: =SUMIFS('Intervenção-Pista (2)'!P:P,'Intervenção-Pista (2)'!$A:$A,$D41,'Intervenção-Pista (2)'!$B:$B,$D$40) -> 30,000.00 | U41: =SUMIFS('Intervenção-Pista (2)'!Q:Q,'Intervenção-Pista (2)'!$A:$A,$D41,'Intervenção-Pista (2)'!$B:$B,$D$40) -> 30,000.00 | V41: =SUMIFS('Intervenção-Pista (2)'!R:R,'Intervenção-Pista (2)'!$A:$A,$D41,'Intervenção-Pista (2)'!$B:$B,$D$40) -> 0 | W41: =SUMIFS('Intervenção-Pista (2)'!S:S,'Intervenção-Pista (2)'!$A:$A,$D41,'Intervenção-Pista (2)'!$B:$B,$D$40) -> 0 | X41: =SUMIFS('Intervenção-Pista (2)'!T:T,'Intervenção-Pista (2)'!$A:$A,$D41,'Intervenção-Pista (2)'!$B:$B,$D$40) -> 29,292.14 | Y41: =SUMIFS('Intervenção-Pista (2)'!U:U,'Intervenção-Pista (2)'!$A:$A,$D41,'Intervenção-Pista (2)'!$B:$B,$D$40) -> 30,000.00 | Z41: =SUMIFS('Intervenção-Pista (2)'!V:V,'Intervenção-Pista (2)'!$A:$A,$D41,'Intervenção-Pista (2)'!$B:$B,$D$40) -> 30,000.00 | AA41: =SUMIFS('Intervenção-Pista (2)'!W:W,'Intervenção-Pista (2)'!$A:$A,$D41,'Intervenção-Pista (2)'!$B:$B,$D$40) -> 0 | AB41: =SUMIFS('Intervenção-Pista (2)'!X:X,'Intervenção-Pista (2)'!$A:$A,$D41,'Intervenção-Pista (2)'!$B:$B,$D$40) -> 0 | AC41: =SUMIFS('Intervenção-Pista (2)'!Y:Y,'Intervenção-Pista (2)'!$A:$A,$D41,'Intervenção-Pista (2)'!$B:$B,$D$40) -> 29,292.14 | AD41: =SUMIFS('Intervenção-Pista (2)'!Z:Z,'Intervenção-Pista (2)'!$A:$A,$D41,'Intervenção-Pista (2)'!$B:$B,$D$40) -> 30,000.00 | AE41: =SUMIFS('Intervenção-Pista (2)'!AA:AA,'Intervenção-Pista (2)'!$A:$A,$D41,'Intervenção-Pista (2)'!$B:$B,$D$40) -> 30,000.00 | AF41: =SUMIFS('Intervenção-Pista (2)'!AB:AB,'Intervenção-Pista (2)'!$A:$A,$D41,'Intervenção-Pista (2)'!$B:$B,$D$40) -> 0 | AG41: =SUMIFS('Intervenção-Pista (2)'!AC:AC,'Intervenção-Pista (2)'!$A:$A,$D41,'Intervenção-Pista (2)'!$B:$B,$D$40) -> 0 | AH41: =SUMIFS('Intervenção-Pista (2)'!AD:AD,'Intervenção-Pista (2)'!$A:$A,$D41,'Intervenção-Pista (2)'!$B:$B,$D$40) -> 29,292.14 | AI41: =SUMIFS('Intervenção-Pista (2)'!AE:AE,'Intervenção-Pista (2)'!$A:$A,$D41,'Intervenção-Pista (2)'!$B:$B,$D$40) -> 30,000.00 | AJ41: =SUMIFS('Intervenção-Pista (2)'!AF:AF,'Intervenção-Pista (2)'!$A:$A,$D41,'Intervenção-Pista (2)'!$B:$B,$D$40) -> 30,000.00 | AK41: =SUMIFS('Intervenção-Pista (2)'!AG:AG,'Intervenção-Pista (2)'!$A:$A,$D41,'Intervenção-Pista (2)'!$B:$B,$D$40) -> 0
B42: 8.1.2.2 | D42: 167EMG0205 | E42: M2 | F42: 52,429.38 | H42: =SUMIFS('Intervenção-Pista (2)'!D:D,'Intervenção-Pista (2)'!$A:$A,$D42,'Intervenção-Pista (2)'!$B:$B,$D$40) -> 0 | I42: =SUMIFS('Intervenção-Pista (2)'!E:E,'Intervenção-Pista (2)'!$A:$A,$D42,'Intervenção-Pista (2)'!$B:$B,$D$40) -> 0 | J42: =SUMIFS('Intervenção-Pista (2)'!F:F,'Intervenção-Pista (2)'!$A:$A,$D42,'Intervenção-Pista (2)'!$B:$B,$D$40) -> 0 | K42: =SUMIFS('Intervenção-Pista (2)'!G:G,'Intervenção-Pista (2)'!$A:$A,$D42,'Intervenção-Pista (2)'!$B:$B,$D$40) -> 0 | L42: =SUMIFS('Intervenção-Pista (2)'!H:H,'Intervenção-Pista (2)'!$A:$A,$D42,'Intervenção-Pista (2)'!$B:$B,$D$40) -> 0 | M42: =SUMIFS('Intervenção-Pista (2)'!I:I,'Intervenção-Pista (2)'!$A:$A,$D42,'Intervenção-Pista (2)'!$B:$B,$D$40) -> 0 | N42: =SUMIFS('Intervenção-Pista (2)'!J:J,'Intervenção-Pista (2)'!$A:$A,$D42,'Intervenção-Pista (2)'!$B:$B,$D$40) -> 17,476.46 | O42: =SUMIFS('Intervenção-Pista (2)'!K:K,'Intervenção-Pista (2)'!$A:$A,$D42,'Intervenção-Pista (2)'!$B:$B,$D$40) -> 0 | P42: =SUMIFS('Intervenção-Pista (2)'!L:L,'Intervenção-Pista (2)'!$A:$A,$D42,'Intervenção-Pista (2)'!$B:$B,$D$40) -> 0 | Q42: =SUMIFS('Intervenção-Pista (2)'!M:M,'Intervenção-Pista (2)'!$A:$A,$D42,'Intervenção-Pista (2)'!$B:$B,$D$40) -> 0 | R42: =SUMIFS('Intervenção-Pista (2)'!N:N,'Intervenção-Pista (2)'!$A:$A,$D42,'Intervenção-Pista (2)'!$B:$B,$D$40) -> 0 | S42: =SUMIFS('Intervenção-Pista (2)'!O:O,'Intervenção-Pista (2)'!$A:$A,$D42,'Intervenção-Pista (2)'!$B:$B,$D$40) -> 17,476.46 | T42: =SUMIFS('Intervenção-Pista (2)'!P:P,'Intervenção-Pista (2)'!$A:$A,$D42,'Intervenção-Pista (2)'!$B:$B,$D$40) -> 0 | U42: =SUMIFS('Intervenção-Pista (2)'!Q:Q,'Intervenção-Pista (2)'!$A:$A,$D42,'Intervenção-Pista (2)'!$B:$B,$D$40) -> 0 | V42: =SUMIFS('Intervenção-Pista (2)'!R:R,'Intervenção-Pista (2)'!$A:$A,$D42,'Intervenção-Pista (2)'!$B:$B,$D$40) -> 0 | W42: =SUMIFS('Intervenção-Pista (2)'!S:S,'Intervenção-Pista (2)'!$A:$A,$D42,'Intervenção-Pista (2)'!$B:$B,$D$40) -> 0 | X42: =SUMIFS('Intervenção-Pista (2)'!T:T,'Intervenção-Pista (2)'!$A:$A,$D42,'Intervenção-Pista (2)'!$B:$B,$D$40) -> 0 | Y42: =SUMIFS('Intervenção-Pista (2)'!U:U,'Intervenção-Pista (2)'!$A:$A,$D42,'Intervenção-Pista (2)'!$B:$B,$D$40) -> 0 | Z42: =SUMIFS('Intervenção-Pista (2)'!V:V,'Intervenção-Pista (2)'!$A:$A,$D42,'Intervenção-Pista (2)'!$B:$B,$D$40) -> 0 | AA42: =SUMIFS('Intervenção-Pista (2)'!W:W,'Intervenção-Pista (2)'!$A:$A,$D42,'Intervenção-Pista (2)'!$B:$B,$D$40) -> 0 | AB42: =SUMIFS('Intervenção-Pista (2)'!X:X,'Intervenção-Pista (2)'!$A:$A,$D42,'Intervenção-Pista (2)'!$B:$B,$D$40) -> 0 | AC42: =SUMIFS('Intervenção-Pista (2)'!Y:Y,'Intervenção-Pista (2)'!$A:$A,$D42,'Intervenção-Pista (2)'!$B:$B,$D$40) -> 0 | AD42: =SUMIFS('Intervenção-Pista (2)'!Z:Z,'Intervenção-Pista (2)'!$A:$A,$D42,'Intervenção-Pista (2)'!$B:$B,$D$40) -> 0 | AE42: =SUMIFS('Intervenção-Pista (2)'!AA:AA,'Intervenção-Pista (2)'!$A:$A,$D42,'Intervenção-Pista (2)'!$B:$B,$D$40) -> 0 | AF42: =SUMIFS('Intervenção-Pista (2)'!AB:AB,'Intervenção-Pista (2)'!$A:$A,$D42,'Intervenção-Pista (2)'!$B:$B,$D$40) -> 0 | AG42: =SUMIFS('Intervenção-Pista (2)'!AC:AC,'Intervenção-Pista (2)'!$A:$A,$D42,'Intervenção-Pista (2)'!$B:$B,$D$40) -> 0 | AH42: =SUMIFS('Intervenção-Pista (2)'!AD:AD,'Intervenção-Pista (2)'!$A:$A,$D42,'Intervenção-Pista (2)'!$B:$B,$D$40) -> 0 | AI42: =SUMIFS('Intervenção-Pista (2)'!AE:AE,'Intervenção-Pista (2)'!$A:$A,$D42,'Intervenção-Pista (2)'!$B:$B,$D$40) -> 17,476.46 | AJ42: =SUMIFS('Intervenção-Pista (2)'!AF:AF,'Intervenção-Pista (2)'!$A:$A,$D42,'Intervenção-Pista (2)'!$B:$B,$D$40) -> 0 | AK42: =SUMIFS('Intervenção-Pista (2)'!AG:AG,'Intervenção-Pista (2)'!$A:$A,$D42,'Intervenção-Pista (2)'!$B:$B,$D$40) -> 0
B43: 8.1.2.3 | D43: 167EMG0220 | E43: M2 | F43: 500,733.81 | H43: =SUMIFS('Intervenção-Pista (2)'!D:D,'Intervenção-Pista (2)'!$A:$A,$D43,'Intervenção-Pista (2)'!$B:$B,$D$40) -> 0 | I43: =SUMIFS('Intervenção-Pista (2)'!E:E,'Intervenção-Pista (2)'!$A:$A,$D43,'Intervenção-Pista (2)'!$B:$B,$D$40) -> 0 | J43: =SUMIFS('Intervenção-Pista (2)'!F:F,'Intervenção-Pista (2)'!$A:$A,$D43,'Intervenção-Pista (2)'!$B:$B,$D$40) -> 0 | K43: =SUMIFS('Intervenção-Pista (2)'!G:G,'Intervenção-Pista (2)'!$A:$A,$D43,'Intervenção-Pista (2)'!$B:$B,$D$40) -> 0 | L43: =SUMIFS('Intervenção-Pista (2)'!H:H,'Intervenção-Pista (2)'!$A:$A,$D43,'Intervenção-Pista (2)'!$B:$B,$D$40) -> 0 | M43: =SUMIFS('Intervenção-Pista (2)'!I:I,'Intervenção-Pista (2)'!$A:$A,$D43,'Intervenção-Pista (2)'!$B:$B,$D$40) -> 0 | N43: =SUMIFS('Intervenção-Pista (2)'!J:J,'Intervenção-Pista (2)'!$A:$A,$D43,'Intervenção-Pista (2)'!$B:$B,$D$40) -> 0 | O43: =SUMIFS('Intervenção-Pista (2)'!K:K,'Intervenção-Pista (2)'!$A:$A,$D43,'Intervenção-Pista (2)'!$B:$B,$D$40) -> 29,858.26 | P43: =SUMIFS('Intervenção-Pista (2)'!L:L,'Intervenção-Pista (2)'!$A:$A,$D43,'Intervenção-Pista (2)'!$B:$B,$D$40) -> 0 | Q43: =SUMIFS('Intervenção-Pista (2)'!M:M,'Intervenção-Pista (2)'!$A:$A,$D43,'Intervenção-Pista (2)'!$B:$B,$D$40) -> 21,600.00 | R43: =SUMIFS('Intervenção-Pista (2)'!N:N,'Intervenção-Pista (2)'!$A:$A,$D43,'Intervenção-Pista (2)'!$B:$B,$D$40) -> 0 | S43: =SUMIFS('Intervenção-Pista (2)'!O:O,'Intervenção-Pista (2)'!$A:$A,$D43,'Intervenção-Pista (2)'!$B:$B,$D$40) -> 36,000.00 | T43: =SUMIFS('Intervenção-Pista (2)'!P:P,'Intervenção-Pista (2)'!$A:$A,$D43,'Intervenção-Pista (2)'!$B:$B,$D$40) -> 29,858.26 | U43: =SUMIFS('Intervenção-Pista (2)'!Q:Q,'Intervenção-Pista (2)'!$A:$A,$D43,'Intervenção-Pista (2)'!$B:$B,$D$40) -> 0 | V43: =SUMIFS('Intervenção-Pista (2)'!R:R,'Intervenção-Pista (2)'!$A:$A,$D43,'Intervenção-Pista (2)'!$B:$B,$D$40) -> 0 | W43: =SUMIFS('Intervenção-Pista (2)'!S:S,'Intervenção-Pista (2)'!$A:$A,$D43,'Intervenção-Pista (2)'!$B:$B,$D$40) -> 21,600.00 | X43: =SUMIFS('Intervenção-Pista (2)'!T:T,'Intervenção-Pista (2)'!$A:$A,$D43,'Intervenção-Pista (2)'!$B:$B,$D$40) -> 36,000.00 | Y43: =SUMIFS('Intervenção-Pista (2)'!U:U,'Intervenção-Pista (2)'!$A:$A,$D43,'Intervenção-Pista (2)'!$B:$B,$D$40) -> 0 | Z43: =SUMIFS('Intervenção-Pista (2)'!V:V,'Intervenção-Pista (2)'!$A:$A,$D43,'Intervenção-Pista (2)'!$B:$B,$D$40) -> 36,253.01 | AA43: =SUMIFS('Intervenção-Pista (2)'!W:W,'Intervenção-Pista (2)'!$A:$A,$D43,'Intervenção-Pista (2)'!$B:$B,$D$40) -> 0 | AB43: =SUMIFS('Intervenção-Pista (2)'!X:X,'Intervenção-Pista (2)'!$A:$A,$D43,'Intervenção-Pista (2)'!$B:$B,$D$40) -> 0 | AC43: =SUMIFS('Intervenção-Pista (2)'!Y:Y,'Intervenção-Pista (2)'!$A:$A,$D43,'Intervenção-Pista (2)'!$B:$B,$D$40) -> 57,600.00 | AD43: =SUMIFS('Intervenção-Pista (2)'!Z:Z,'Intervenção-Pista (2)'!$A:$A,$D43,'Intervenção-Pista (2)'!$B:$B,$D$40) -> 36,253.01 | AE43: =SUMIFS('Intervenção-Pista (2)'!AA:AA,'Intervenção-Pista (2)'!$A:$A,$D43,'Intervenção-Pista (2)'!$B:$B,$D$40) -> 0 | AF43: =SUMIFS('Intervenção-Pista (2)'!AB:AB,'Intervenção-Pista (2)'!$A:$A,$D43,'Intervenção-Pista (2)'!$B:$B,$D$40) -> 0 | AG43: =SUMIFS('Intervenção-Pista (2)'!AC:AC,'Intervenção-Pista (2)'!$A:$A,$D43,'Intervenção-Pista (2)'!$B:$B,$D$40) -> 36,000.00 | AH43: =SUMIFS('Intervenção-Pista (2)'!AD:AD,'Intervenção-Pista (2)'!$A:$A,$D43,'Intervenção-Pista (2)'!$B:$B,$D$40) -> 72,253.01 | AI43: =SUMIFS('Intervenção-Pista (2)'!AE:AE,'Intervenção-Pista (2)'!$A:$A,$D43,'Intervenção-Pista (2)'!$B:$B,$D$40) -> 21,600.00 | AJ43: =SUMIFS('Intervenção-Pista (2)'!AF:AF,'Intervenção-Pista (2)'!$A:$A,$D43,'Intervenção-Pista (2)'!$B:$B,$D$40) -> 29,858.26 | AK43: =SUMIFS('Intervenção-Pista (2)'!AG:AG,'Intervenção-Pista (2)'!$A:$A,$D43,'Intervenção-Pista (2)'!$B:$B,$D$40) -> 36,000.00
B44: 8.1.2.4 | D44: 265BMG0270 | E44: M2 | F44: 175,341.90 | H44: =SUMIFS('Intervenção-Pista (2)'!D:D,'Intervenção-Pista (2)'!$A:$A,$D44,'Intervenção-Pista (2)'!$B:$B,$D$40) -> 0 | I44: =SUMIFS('Intervenção-Pista (2)'!E:E,'Intervenção-Pista (2)'!$A:$A,$D44,'Intervenção-Pista (2)'!$B:$B,$D$40) -> 0 | J44: =SUMIFS('Intervenção-Pista (2)'!F:F,'Intervenção-Pista (2)'!$A:$A,$D44,'Intervenção-Pista (2)'!$B:$B,$D$40) -> 0 | K44: =SUMIFS('Intervenção-Pista (2)'!G:G,'Intervenção-Pista (2)'!$A:$A,$D44,'Intervenção-Pista (2)'!$B:$B,$D$40) -> 0 | L44: =SUMIFS('Intervenção-Pista (2)'!H:H,'Intervenção-Pista (2)'!$A:$A,$D44,'Intervenção-Pista (2)'!$B:$B,$D$40) -> 0 | M44: =SUMIFS('Intervenção-Pista (2)'!I:I,'Intervenção-Pista (2)'!$A:$A,$D44,'Intervenção-Pista (2)'!$B:$B,$D$40) -> 0 | N44: =SUMIFS('Intervenção-Pista (2)'!J:J,'Intervenção-Pista (2)'!$A:$A,$D44,'Intervenção-Pista (2)'!$B:$B,$D$40) -> 0 | O44: =SUMIFS('Intervenção-Pista (2)'!K:K,'Intervenção-Pista (2)'!$A:$A,$D44,'Intervenção-Pista (2)'!$B:$B,$D$40) -> 33,066.68 | P44: =SUMIFS('Intervenção-Pista (2)'!L:L,'Intervenção-Pista (2)'!$A:$A,$D44,'Intervenção-Pista (2)'!$B:$B,$D$40) -> 0 | Q44: =SUMIFS('Intervenção-Pista (2)'!M:M,'Intervenção-Pista (2)'!$A:$A,$D44,'Intervenção-Pista (2)'!$B:$B,$D$40) -> 0 | R44: =SUMIFS('Intervenção-Pista (2)'!N:N,'Intervenção-Pista (2)'!$A:$A,$D44,'Intervenção-Pista (2)'!$B:$B,$D$40) -> 0 | S44: =SUMIFS('Intervenção-Pista (2)'!O:O,'Intervenção-Pista (2)'!$A:$A,$D44,'Intervenção-Pista (2)'!$B:$B,$D$40) -> 0 | T44: =SUMIFS('Intervenção-Pista (2)'!P:P,'Intervenção-Pista (2)'!$A:$A,$D44,'Intervenção-Pista (2)'!$B:$B,$D$40) -> 0 | U44: =SUMIFS('Intervenção-Pista (2)'!Q:Q,'Intervenção-Pista (2)'!$A:$A,$D44,'Intervenção-Pista (2)'!$B:$B,$D$40) -> 0 | V44: =SUMIFS('Intervenção-Pista (2)'!R:R,'Intervenção-Pista (2)'!$A:$A,$D44,'Intervenção-Pista (2)'!$B:$B,$D$40) -> 33,066.68 | W44: =SUMIFS('Intervenção-Pista (2)'!S:S,'Intervenção-Pista (2)'!$A:$A,$D44,'Intervenção-Pista (2)'!$B:$B,$D$40) -> 0 | X44: =SUMIFS('Intervenção-Pista (2)'!T:T,'Intervenção-Pista (2)'!$A:$A,$D44,'Intervenção-Pista (2)'!$B:$B,$D$40) -> 0 | Y44: =SUMIFS('Intervenção-Pista (2)'!U:U,'Intervenção-Pista (2)'!$A:$A,$D44,'Intervenção-Pista (2)'!$B:$B,$D$40) -> 0 | Z44: =SUMIFS('Intervenção-Pista (2)'!V:V,'Intervenção-Pista (2)'!$A:$A,$D44,'Intervenção-Pista (2)'!$B:$B,$D$40) -> 0 | AA44: =SUMIFS('Intervenção-Pista (2)'!W:W,'Intervenção-Pista (2)'!$A:$A,$D44,'Intervenção-Pista (2)'!$B:$B,$D$40) -> 0 | AB44: =SUMIFS('Intervenção-Pista (2)'!X:X,'Intervenção-Pista (2)'!$A:$A,$D44,'Intervenção-Pista (2)'!$B:$B,$D$40) -> 0 | AC44: =SUMIFS('Intervenção-Pista (2)'!Y:Y,'Intervenção-Pista (2)'!$A:$A,$D44,'Intervenção-Pista (2)'!$B:$B,$D$40) -> 33,066.68 | AD44: =SUMIFS('Intervenção-Pista (2)'!Z:Z,'Intervenção-Pista (2)'!$A:$A,$D44,'Intervenção-Pista (2)'!$B:$B,$D$40) -> 0 | AE44: =SUMIFS('Intervenção-Pista (2)'!AA:AA,'Intervenção-Pista (2)'!$A:$A,$D44,'Intervenção-Pista (2)'!$B:$B,$D$40) -> 0 | AF44: =SUMIFS('Intervenção-Pista (2)'!AB:AB,'Intervenção-Pista (2)'!$A:$A,$D44,'Intervenção-Pista (2)'!$B:$B,$D$40) -> 0 | AG44: =SUMIFS('Intervenção-Pista (2)'!AC:AC,'Intervenção-Pista (2)'!$A:$A,$D44,'Intervenção-Pista (2)'!$B:$B,$D$40) -> 0 | AH44: =SUMIFS('Intervenção-Pista (2)'!AD:AD,'Intervenção-Pista (2)'!$A:$A,$D44,'Intervenção-Pista (2)'!$B:$B,$D$40) -> 0 | AI44: =SUMIFS('Intervenção-Pista (2)'!AE:AE,'Intervenção-Pista (2)'!$A:$A,$D44,'Intervenção-Pista (2)'!$B:$B,$D$40) -> 43,075.18 | AJ44: =SUMIFS('Intervenção-Pista (2)'!AF:AF,'Intervenção-Pista (2)'!$A:$A,$D44,'Intervenção-Pista (2)'!$B:$B,$D$40) -> 33,066.68 | AK44: =SUMIFS('Intervenção-Pista (2)'!AG:AG,'Intervenção-Pista (2)'!$A:$A,$D44,'Intervenção-Pista (2)'!$B:$B,$D$40) -> 0
B45: 8.1.2.5 | D45: 265BMG0290 | E45: M2 | F45: 364,729.53 | H45: =SUMIFS('Intervenção-Pista (2)'!D:D,'Intervenção-Pista (2)'!$A:$A,$D45,'Intervenção-Pista (2)'!$B:$B,$D$40) -> 0 | I45: =SUMIFS('Intervenção-Pista (2)'!E:E,'Intervenção-Pista (2)'!$A:$A,$D45,'Intervenção-Pista (2)'!$B:$B,$D$40) -> 0 | J45: =SUMIFS('Intervenção-Pista (2)'!F:F,'Intervenção-Pista (2)'!$A:$A,$D45,'Intervenção-Pista (2)'!$B:$B,$D$40) -> 0 | K45: =SUMIFS('Intervenção-Pista (2)'!G:G,'Intervenção-Pista (2)'!$A:$A,$D45,'Intervenção-Pista (2)'!$B:$B,$D$40) -> 0 | L45: =SUMIFS('Intervenção-Pista (2)'!H:H,'Intervenção-Pista (2)'!$A:$A,$D45,'Intervenção-Pista (2)'!$B:$B,$D$40) -> 0 | M45: =SUMIFS('Intervenção-Pista (2)'!I:I,'Intervenção-Pista (2)'!$A:$A,$D45,'Intervenção-Pista (2)'!$B:$B,$D$40) -> 0 | N45: =SUMIFS('Intervenção-Pista (2)'!J:J,'Intervenção-Pista (2)'!$A:$A,$D45,'Intervenção-Pista (2)'!$B:$B,$D$40) -> 0 | O45: =SUMIFS('Intervenção-Pista (2)'!K:K,'Intervenção-Pista (2)'!$A:$A,$D45,'Intervenção-Pista (2)'!$B:$B,$D$40) -> 0 | P45: =SUMIFS('Intervenção-Pista (2)'!L:L,'Intervenção-Pista (2)'!$A:$A,$D45,'Intervenção-Pista (2)'!$B:$B,$D$40) -> 0 | Q45: =SUMIFS('Intervenção-Pista (2)'!M:M,'Intervenção-Pista (2)'!$A:$A,$D45,'Intervenção-Pista (2)'!$B:$B,$D$40) -> 0 | R45: =SUMIFS('Intervenção-Pista (2)'!N:N,'Intervenção-Pista (2)'!$A:$A,$D45,'Intervenção-Pista (2)'!$B:$B,$D$40) -> 0 | S45: =SUMIFS('Intervenção-Pista (2)'!O:O,'Intervenção-Pista (2)'!$A:$A,$D45,'Intervenção-Pista (2)'!$B:$B,$D$40) -> 0 | T45: =SUMIFS('Intervenção-Pista (2)'!P:P,'Intervenção-Pista (2)'!$A:$A,$D45,'Intervenção-Pista (2)'!$B:$B,$D$40) -> 0 | U45: =SUMIFS('Intervenção-Pista (2)'!Q:Q,'Intervenção-Pista (2)'!$A:$A,$D45,'Intervenção-Pista (2)'!$B:$B,$D$40) -> 0 | V45: =SUMIFS('Intervenção-Pista (2)'!R:R,'Intervenção-Pista (2)'!$A:$A,$D45,'Intervenção-Pista (2)'!$B:$B,$D$40) -> 0 | W45: =SUMIFS('Intervenção-Pista (2)'!S:S,'Intervenção-Pista (2)'!$A:$A,$D45,'Intervenção-Pista (2)'!$B:$B,$D$40) -> 0 | X45: =SUMIFS('Intervenção-Pista (2)'!T:T,'Intervenção-Pista (2)'!$A:$A,$D45,'Intervenção-Pista (2)'!$B:$B,$D$40) -> 0 | Y45: =SUMIFS('Intervenção-Pista (2)'!U:U,'Intervenção-Pista (2)'!$A:$A,$D45,'Intervenção-Pista (2)'!$B:$B,$D$40) -> 0 | Z45: =SUMIFS('Intervenção-Pista (2)'!V:V,'Intervenção-Pista (2)'!$A:$A,$D45,'Intervenção-Pista (2)'!$B:$B,$D$40) -> 0 | AA45: =SUMIFS('Intervenção-Pista (2)'!W:W,'Intervenção-Pista (2)'!$A:$A,$D45,'Intervenção-Pista (2)'!$B:$B,$D$40) -> 121,576.51 | AB45: =SUMIFS('Intervenção-Pista (2)'!X:X,'Intervenção-Pista (2)'!$A:$A,$D45,'Intervenção-Pista (2)'!$B:$B,$D$40) -> 0 | AC45: =SUMIFS('Intervenção-Pista (2)'!Y:Y,'Intervenção-Pista (2)'!$A:$A,$D45,'Intervenção-Pista (2)'!$B:$B,$D$40) -> 0 | AD45: =SUMIFS('Intervenção-Pista (2)'!Z:Z,'Intervenção-Pista (2)'!$A:$A,$D45,'Intervenção-Pista (2)'!$B:$B,$D$40) -> 0 | AE45: =SUMIFS('Intervenção-Pista (2)'!AA:AA,'Intervenção-Pista (2)'!$A:$A,$D45,'Intervenção-Pista (2)'!$B:$B,$D$40) -> 121,576.51 | AF45: =SUMIFS('Intervenção-Pista (2)'!AB:AB,'Intervenção-Pista (2)'!$A:$A,$D45,'Intervenção-Pista (2)'!$B:$B,$D$40) -> 0 | AG45: =SUMIFS('Intervenção-Pista (2)'!AC:AC,'Intervenção-Pista (2)'!$A:$A,$D45,'Intervenção-Pista (2)'!$B:$B,$D$40) -> 0 | AH45: =SUMIFS('Intervenção-Pista (2)'!AD:AD,'Intervenção-Pista (2)'!$A:$A,$D45,'Intervenção-Pista (2)'!$B:$B,$D$40) -> 0 | AI45: =SUMIFS('Intervenção-Pista (2)'!AE:AE,'Intervenção-Pista (2)'!$A:$A,$D45,'Intervenção-Pista (2)'!$B:$B,$D$40) -> 121,576.51 | AJ45: =SUMIFS('Intervenção-Pista (2)'!AF:AF,'Intervenção-Pista (2)'!$A:$A,$D45,'Intervenção-Pista (2)'!$B:$B,$D$40) -> 0 | AK45: =SUMIFS('Intervenção-Pista (2)'!AG:AG,'Intervenção-Pista (2)'!$A:$A,$D45,'Intervenção-Pista (2)'!$B:$B,$D$40) -> 0
B46: 8.1.2.6 | D46: 265BMG0305 | E46: M2 | F46: 216,654.12 | H46: =SUMIFS('Intervenção-Pista (2)'!D:D,'Intervenção-Pista (2)'!$A:$A,$D46,'Intervenção-Pista (2)'!$B:$B,$D$40) -> 0 | I46: =SUMIFS('Intervenção-Pista (2)'!E:E,'Intervenção-Pista (2)'!$A:$A,$D46,'Intervenção-Pista (2)'!$B:$B,$D$40) -> 0 | J46: =SUMIFS('Intervenção-Pista (2)'!F:F,'Intervenção-Pista (2)'!$A:$A,$D46,'Intervenção-Pista (2)'!$B:$B,$D$40) -> 0 | K46: =SUMIFS('Intervenção-Pista (2)'!G:G,'Intervenção-Pista (2)'!$A:$A,$D46,'Intervenção-Pista (2)'!$B:$B,$D$40) -> 0 | L46: =SUMIFS('Intervenção-Pista (2)'!H:H,'Intervenção-Pista (2)'!$A:$A,$D46,'Intervenção-Pista (2)'!$B:$B,$D$40) -> 0 | M46: =SUMIFS('Intervenção-Pista (2)'!I:I,'Intervenção-Pista (2)'!$A:$A,$D46,'Intervenção-Pista (2)'!$B:$B,$D$40) -> 0 | N46: =SUMIFS('Intervenção-Pista (2)'!J:J,'Intervenção-Pista (2)'!$A:$A,$D46,'Intervenção-Pista (2)'!$B:$B,$D$40) -> 0 | O46: =SUMIFS('Intervenção-Pista (2)'!K:K,'Intervenção-Pista (2)'!$A:$A,$D46,'Intervenção-Pista (2)'!$B:$B,$D$40) -> 0 | P46: =SUMIFS('Intervenção-Pista (2)'!L:L,'Intervenção-Pista (2)'!$A:$A,$D46,'Intervenção-Pista (2)'!$B:$B,$D$40) -> 0 | Q46: =SUMIFS('Intervenção-Pista (2)'!M:M,'Intervenção-Pista (2)'!$A:$A,$D46,'Intervenção-Pista (2)'!$B:$B,$D$40) -> 0 | R46: =SUMIFS('Intervenção-Pista (2)'!N:N,'Intervenção-Pista (2)'!$A:$A,$D46,'Intervenção-Pista (2)'!$B:$B,$D$40) -> 0 | S46: =SUMIFS('Intervenção-Pista (2)'!O:O,'Intervenção-Pista (2)'!$A:$A,$D46,'Intervenção-Pista (2)'!$B:$B,$D$40) -> 0 | T46: =SUMIFS('Intervenção-Pista (2)'!P:P,'Intervenção-Pista (2)'!$A:$A,$D46,'Intervenção-Pista (2)'!$B:$B,$D$40) -> 0 | U46: =SUMIFS('Intervenção-Pista (2)'!Q:Q,'Intervenção-Pista (2)'!$A:$A,$D46,'Intervenção-Pista (2)'!$B:$B,$D$40) -> 0 | V46: =SUMIFS('Intervenção-Pista (2)'!R:R,'Intervenção-Pista (2)'!$A:$A,$D46,'Intervenção-Pista (2)'!$B:$B,$D$40) -> 0 | W46: =SUMIFS('Intervenção-Pista (2)'!S:S,'Intervenção-Pista (2)'!$A:$A,$D46,'Intervenção-Pista (2)'!$B:$B,$D$40) -> 0 | X46: =SUMIFS('Intervenção-Pista (2)'!T:T,'Intervenção-Pista (2)'!$A:$A,$D46,'Intervenção-Pista (2)'!$B:$B,$D$40) -> 0 | Y46: =SUMIFS('Intervenção-Pista (2)'!U:U,'Intervenção-Pista (2)'!$A:$A,$D46,'Intervenção-Pista (2)'!$B:$B,$D$40) -> 0 | Z46: =SUMIFS('Intervenção-Pista (2)'!V:V,'Intervenção-Pista (2)'!$A:$A,$D46,'Intervenção-Pista (2)'!$B:$B,$D$40) -> 0 | AA46: =SUMIFS('Intervenção-Pista (2)'!W:W,'Intervenção-Pista (2)'!$A:$A,$D46,'Intervenção-Pista (2)'!$B:$B,$D$40) -> 72,218.04 | AB46: =SUMIFS('Intervenção-Pista (2)'!X:X,'Intervenção-Pista (2)'!$A:$A,$D46,'Intervenção-Pista (2)'!$B:$B,$D$40) -> 0 | AC46: =SUMIFS('Intervenção-Pista (2)'!Y:Y,'Intervenção-Pista (2)'!$A:$A,$D46,'Intervenção-Pista (2)'!$B:$B,$D$40) -> 0 | AD46: =SUMIFS('Intervenção-Pista (2)'!Z:Z,'Intervenção-Pista (2)'!$A:$A,$D46,'Intervenção-Pista (2)'!$B:$B,$D$40) -> 0 | AE46: =SUMIFS('Intervenção-Pista (2)'!AA:AA,'Intervenção-Pista (2)'!$A:$A,$D46,'Intervenção-Pista (2)'!$B:$B,$D$40) -> 72,218.04 | AF46: =SUMIFS('Intervenção-Pista (2)'!AB:AB,'Intervenção-Pista (2)'!$A:$A,$D46,'Intervenção-Pista (2)'!$B:$B,$D$40) -> 0 | AG46: =SUMIFS('Intervenção-Pista (2)'!AC:AC,'Intervenção-Pista (2)'!$A:$A,$D46,'Intervenção-Pista (2)'!$B:$B,$D$40) -> 0 | AH46: =SUMIFS('Intervenção-Pista (2)'!AD:AD,'Intervenção-Pista (2)'!$A:$A,$D46,'Intervenção-Pista (2)'!$B:$B,$D$40) -> 0 | AI46: =SUMIFS('Intervenção-Pista (2)'!AE:AE,'Intervenção-Pista (2)'!$A:$A,$D46,'Intervenção-Pista (2)'!$B:$B,$D$40) -> 72,218.04 | AJ46: =SUMIFS('Intervenção-Pista (2)'!AF:AF,'Intervenção-Pista (2)'!$A:$A,$D46,'Intervenção-Pista (2)'!$B:$B,$D$40) -> 0 | AK46: =SUMIFS('Intervenção-Pista (2)'!AG:AG,'Intervenção-Pista (2)'!$A:$A,$D46,'Intervenção-Pista (2)'!$B:$B,$D$40) -> 0
B47: 8.1.2.7 | D47: 265BMG0310 | E47: M2 | F47: 534,361.17 | H47: =SUMIFS('Intervenção-Pista (2)'!D:D,'Intervenção-Pista (2)'!$A:$A,$D47,'Intervenção-Pista (2)'!$B:$B,$D$40) -> 0 | I47: =SUMIFS('Intervenção-Pista (2)'!E:E,'Intervenção-Pista (2)'!$A:$A,$D47,'Intervenção-Pista (2)'!$B:$B,$D$40) -> 0 | J47: =SUMIFS('Intervenção-Pista (2)'!F:F,'Intervenção-Pista (2)'!$A:$A,$D47,'Intervenção-Pista (2)'!$B:$B,$D$40) -> 0 | K47: =SUMIFS('Intervenção-Pista (2)'!G:G,'Intervenção-Pista (2)'!$A:$A,$D47,'Intervenção-Pista (2)'!$B:$B,$D$40) -> 0 | L47: =SUMIFS('Intervenção-Pista (2)'!H:H,'Intervenção-Pista (2)'!$A:$A,$D47,'Intervenção-Pista (2)'!$B:$B,$D$40) -> 76,337.31 | M47: =SUMIFS('Intervenção-Pista (2)'!I:I,'Intervenção-Pista (2)'!$A:$A,$D47,'Intervenção-Pista (2)'!$B:$B,$D$40) -> 0 | N47: =SUMIFS('Intervenção-Pista (2)'!J:J,'Intervenção-Pista (2)'!$A:$A,$D47,'Intervenção-Pista (2)'!$B:$B,$D$40) -> 0 | O47: =SUMIFS('Intervenção-Pista (2)'!K:K,'Intervenção-Pista (2)'!$A:$A,$D47,'Intervenção-Pista (2)'!$B:$B,$D$40) -> 0 | P47: =SUMIFS('Intervenção-Pista (2)'!L:L,'Intervenção-Pista (2)'!$A:$A,$D47,'Intervenção-Pista (2)'!$B:$B,$D$40) -> 45,317.31 | Q47: =SUMIFS('Intervenção-Pista (2)'!M:M,'Intervenção-Pista (2)'!$A:$A,$D47,'Intervenção-Pista (2)'!$B:$B,$D$40) -> 31,020.00 | R47: =SUMIFS('Intervenção-Pista (2)'!N:N,'Intervenção-Pista (2)'!$A:$A,$D47,'Intervenção-Pista (2)'!$B:$B,$D$40) -> 0 | S47: =SUMIFS('Intervenção-Pista (2)'!O:O,'Intervenção-Pista (2)'!$A:$A,$D47,'Intervenção-Pista (2)'!$B:$B,$D$40) -> 0 | T47: =SUMIFS('Intervenção-Pista (2)'!P:P,'Intervenção-Pista (2)'!$A:$A,$D47,'Intervenção-Pista (2)'!$B:$B,$D$40) -> 45,317.31 | U47: =SUMIFS('Intervenção-Pista (2)'!Q:Q,'Intervenção-Pista (2)'!$A:$A,$D47,'Intervenção-Pista (2)'!$B:$B,$D$40) -> 31,020.00 | V47: =SUMIFS('Intervenção-Pista (2)'!R:R,'Intervenção-Pista (2)'!$A:$A,$D47,'Intervenção-Pista (2)'!$B:$B,$D$40) -> 0 | W47: =SUMIFS('Intervenção-Pista (2)'!S:S,'Intervenção-Pista (2)'!$A:$A,$D47,'Intervenção-Pista (2)'!$B:$B,$D$40) -> 0 | X47: =SUMIFS('Intervenção-Pista (2)'!T:T,'Intervenção-Pista (2)'!$A:$A,$D47,'Intervenção-Pista (2)'!$B:$B,$D$40) -> 45,317.31 | Y47: =SUMIFS('Intervenção-Pista (2)'!U:U,'Intervenção-Pista (2)'!$A:$A,$D47,'Intervenção-Pista (2)'!$B:$B,$D$40) -> 31,020.00 | Z47: =SUMIFS('Intervenção-Pista (2)'!V:V,'Intervenção-Pista (2)'!$A:$A,$D47,'Intervenção-Pista (2)'!$B:$B,$D$40) -> 0 | AA47: =SUMIFS('Intervenção-Pista (2)'!W:W,'Intervenção-Pista (2)'!$A:$A,$D47,'Intervenção-Pista (2)'!$B:$B,$D$40) -> 0 | AB47: =SUMIFS('Intervenção-Pista (2)'!X:X,'Intervenção-Pista (2)'!$A:$A,$D47,'Intervenção-Pista (2)'!$B:$B,$D$40) -> 45,317.31 | AC47: =SUMIFS('Intervenção-Pista (2)'!Y:Y,'Intervenção-Pista (2)'!$A:$A,$D47,'Intervenção-Pista (2)'!$B:$B,$D$40) -> 31,020.00 | AD47: =SUMIFS('Intervenção-Pista (2)'!Z:Z,'Intervenção-Pista (2)'!$A:$A,$D47,'Intervenção-Pista (2)'!$B:$B,$D$40) -> 0 | AE47: =SUMIFS('Intervenção-Pista (2)'!AA:AA,'Intervenção-Pista (2)'!$A:$A,$D47,'Intervenção-Pista (2)'!$B:$B,$D$40) -> 0 | AF47: =SUMIFS('Intervenção-Pista (2)'!AB:AB,'Intervenção-Pista (2)'!$A:$A,$D47,'Intervenção-Pista (2)'!$B:$B,$D$40) -> 0 | AG47: =SUMIFS('Intervenção-Pista (2)'!AC:AC,'Intervenção-Pista (2)'!$A:$A,$D47,'Intervenção-Pista (2)'!$B:$B,$D$40) -> 76,337.31 | AH47: =SUMIFS('Intervenção-Pista (2)'!AD:AD,'Intervenção-Pista (2)'!$A:$A,$D47,'Intervenção-Pista (2)'!$B:$B,$D$40) -> 0 | AI47: =SUMIFS('Intervenção-Pista (2)'!AE:AE,'Intervenção-Pista (2)'!$A:$A,$D47,'Intervenção-Pista (2)'!$B:$B,$D$40) -> 0 | AJ47: =SUMIFS('Intervenção-Pista (2)'!AF:AF,'Intervenção-Pista (2)'!$A:$A,$D47,'Intervenção-Pista (2)'!$B:$B,$D$40) -> 0 | AK47: =SUMIFS('Intervenção-Pista (2)'!AG:AG,'Intervenção-Pista (2)'!$A:$A,$D47,'Intervenção-Pista (2)'!$B:$B,$D$40) -> 76,337.31
B48: 8.1.2.8 | D48: 265BMG0311 | E48: M2 | F48: 182,533.36 | H48: =SUMIFS('Intervenção-Pista (2)'!D:D,'Intervenção-Pista (2)'!$A:$A,$D48,'Intervenção-Pista (2)'!$B:$B,$D$40) -> 0 | I48: =SUMIFS('Intervenção-Pista (2)'!E:E,'Intervenção-Pista (2)'!$A:$A,$D48,'Intervenção-Pista (2)'!$B:$B,$D$40) -> 0 | J48: =SUMIFS('Intervenção-Pista (2)'!F:F,'Intervenção-Pista (2)'!$A:$A,$D48,'Intervenção-Pista (2)'!$B:$B,$D$40) -> 0 | K48: =SUMIFS('Intervenção-Pista (2)'!G:G,'Intervenção-Pista (2)'!$A:$A,$D48,'Intervenção-Pista (2)'!$B:$B,$D$40) -> 0 | L48: =SUMIFS('Intervenção-Pista (2)'!H:H,'Intervenção-Pista (2)'!$A:$A,$D48,'Intervenção-Pista (2)'!$B:$B,$D$40) -> 0 | M48: =SUMIFS('Intervenção-Pista (2)'!I:I,'Intervenção-Pista (2)'!$A:$A,$D48,'Intervenção-Pista (2)'!$B:$B,$D$40) -> 0 | N48: =SUMIFS('Intervenção-Pista (2)'!J:J,'Intervenção-Pista (2)'!$A:$A,$D48,'Intervenção-Pista (2)'!$B:$B,$D$40) -> 0 | O48: =SUMIFS('Intervenção-Pista (2)'!K:K,'Intervenção-Pista (2)'!$A:$A,$D48,'Intervenção-Pista (2)'!$B:$B,$D$40) -> 0 | P48: =SUMIFS('Intervenção-Pista (2)'!L:L,'Intervenção-Pista (2)'!$A:$A,$D48,'Intervenção-Pista (2)'!$B:$B,$D$40) -> 0 | Q48: =SUMIFS('Intervenção-Pista (2)'!M:M,'Intervenção-Pista (2)'!$A:$A,$D48,'Intervenção-Pista (2)'!$B:$B,$D$40) -> 0 | R48: =SUMIFS('Intervenção-Pista (2)'!N:N,'Intervenção-Pista (2)'!$A:$A,$D48,'Intervenção-Pista (2)'!$B:$B,$D$40) -> 0 | S48: =SUMIFS('Intervenção-Pista (2)'!O:O,'Intervenção-Pista (2)'!$A:$A,$D48,'Intervenção-Pista (2)'!$B:$B,$D$40) -> 19,398.34 | T48: =SUMIFS('Intervenção-Pista (2)'!P:P,'Intervenção-Pista (2)'!$A:$A,$D48,'Intervenção-Pista (2)'!$B:$B,$D$40) -> 0 | U48: =SUMIFS('Intervenção-Pista (2)'!Q:Q,'Intervenção-Pista (2)'!$A:$A,$D48,'Intervenção-Pista (2)'!$B:$B,$D$40) -> 0 | V48: =SUMIFS('Intervenção-Pista (2)'!R:R,'Intervenção-Pista (2)'!$A:$A,$D48,'Intervenção-Pista (2)'!$B:$B,$D$40) -> 0 | W48: =SUMIFS('Intervenção-Pista (2)'!S:S,'Intervenção-Pista (2)'!$A:$A,$D48,'Intervenção-Pista (2)'!$B:$B,$D$40) -> 0 | X48: =SUMIFS('Intervenção-Pista (2)'!T:T,'Intervenção-Pista (2)'!$A:$A,$D48,'Intervenção-Pista (2)'!$B:$B,$D$40) -> 34,980.00 | Y48: =SUMIFS('Intervenção-Pista (2)'!U:U,'Intervenção-Pista (2)'!$A:$A,$D48,'Intervenção-Pista (2)'!$B:$B,$D$40) -> 19,398.34 | Z48: =SUMIFS('Intervenção-Pista (2)'!V:V,'Intervenção-Pista (2)'!$A:$A,$D48,'Intervenção-Pista (2)'!$B:$B,$D$40) -> 0 | AA48: =SUMIFS('Intervenção-Pista (2)'!W:W,'Intervenção-Pista (2)'!$A:$A,$D48,'Intervenção-Pista (2)'!$B:$B,$D$40) -> 0 | AB48: =SUMIFS('Intervenção-Pista (2)'!X:X,'Intervenção-Pista (2)'!$A:$A,$D48,'Intervenção-Pista (2)'!$B:$B,$D$40) -> 0 | AC48: =SUMIFS('Intervenção-Pista (2)'!Y:Y,'Intervenção-Pista (2)'!$A:$A,$D48,'Intervenção-Pista (2)'!$B:$B,$D$40) -> 34,980.00 | AD48: =SUMIFS('Intervenção-Pista (2)'!Z:Z,'Intervenção-Pista (2)'!$A:$A,$D48,'Intervenção-Pista (2)'!$B:$B,$D$40) -> 19,398.34 | AE48: =SUMIFS('Intervenção-Pista (2)'!AA:AA,'Intervenção-Pista (2)'!$A:$A,$D48,'Intervenção-Pista (2)'!$B:$B,$D$40) -> 0 | AF48: =SUMIFS('Intervenção-Pista (2)'!AB:AB,'Intervenção-Pista (2)'!$A:$A,$D48,'Intervenção-Pista (2)'!$B:$B,$D$40) -> 0 | AG48: =SUMIFS('Intervenção-Pista (2)'!AC:AC,'Intervenção-Pista (2)'!$A:$A,$D48,'Intervenção-Pista (2)'!$B:$B,$D$40) -> 0 | AH48: =SUMIFS('Intervenção-Pista (2)'!AD:AD,'Intervenção-Pista (2)'!$A:$A,$D48,'Intervenção-Pista (2)'!$B:$B,$D$40) -> 34,980.00 | AI48: =SUMIFS('Intervenção-Pista (2)'!AE:AE,'Intervenção-Pista (2)'!$A:$A,$D48,'Intervenção-Pista (2)'!$B:$B,$D$40) -> 19,398.34 | AJ48: =SUMIFS('Intervenção-Pista (2)'!AF:AF,'Intervenção-Pista (2)'!$A:$A,$D48,'Intervenção-Pista (2)'!$B:$B,$D$40) -> 0 | AK48: =SUMIFS('Intervenção-Pista (2)'!AG:AG,'Intervenção-Pista (2)'!$A:$A,$D48,'Intervenção-Pista (2)'!$B:$B,$D$40) -> 0
B49: 8.1.2.9 | D49: 863LMG0010 | E49: M2 | F49: 66,107.82 | H49: =SUMIFS('Intervenção-Pista (2)'!D:D,'Intervenção-Pista (2)'!$A:$A,$D49,'Intervenção-Pista (2)'!$B:$B,$D$40) -> 0 | I49: =SUMIFS('Intervenção-Pista (2)'!E:E,'Intervenção-Pista (2)'!$A:$A,$D49,'Intervenção-Pista (2)'!$B:$B,$D$40) -> 0 | J49: =SUMIFS('Intervenção-Pista (2)'!F:F,'Intervenção-Pista (2)'!$A:$A,$D49,'Intervenção-Pista (2)'!$B:$B,$D$40) -> 0 | K49: =SUMIFS('Intervenção-Pista (2)'!G:G,'Intervenção-Pista (2)'!$A:$A,$D49,'Intervenção-Pista (2)'!$B:$B,$D$40) -> 0 | L49: =SUMIFS('Intervenção-Pista (2)'!H:H,'Intervenção-Pista (2)'!$A:$A,$D49,'Intervenção-Pista (2)'!$B:$B,$D$40) -> 0 | M49: =SUMIFS('Intervenção-Pista (2)'!I:I,'Intervenção-Pista (2)'!$A:$A,$D49,'Intervenção-Pista (2)'!$B:$B,$D$40) -> 0 | N49: =SUMIFS('Intervenção-Pista (2)'!J:J,'Intervenção-Pista (2)'!$A:$A,$D49,'Intervenção-Pista (2)'!$B:$B,$D$40) -> 0 | O49: =SUMIFS('Intervenção-Pista (2)'!K:K,'Intervenção-Pista (2)'!$A:$A,$D49,'Intervenção-Pista (2)'!$B:$B,$D$40) -> 0 | P49: =SUMIFS('Intervenção-Pista (2)'!L:L,'Intervenção-Pista (2)'!$A:$A,$D49,'Intervenção-Pista (2)'!$B:$B,$D$40) -> 0 | Q49: =SUMIFS('Intervenção-Pista (2)'!M:M,'Intervenção-Pista (2)'!$A:$A,$D49,'Intervenção-Pista (2)'!$B:$B,$D$40) -> 0 | R49: =SUMIFS('Intervenção-Pista (2)'!N:N,'Intervenção-Pista (2)'!$A:$A,$D49,'Intervenção-Pista (2)'!$B:$B,$D$40) -> 0 | S49: =SUMIFS('Intervenção-Pista (2)'!O:O,'Intervenção-Pista (2)'!$A:$A,$D49,'Intervenção-Pista (2)'!$B:$B,$D$40) -> 0 | T49: =SUMIFS('Intervenção-Pista (2)'!P:P,'Intervenção-Pista (2)'!$A:$A,$D49,'Intervenção-Pista (2)'!$B:$B,$D$40) -> 0 | U49: =SUMIFS('Intervenção-Pista (2)'!Q:Q,'Intervenção-Pista (2)'!$A:$A,$D49,'Intervenção-Pista (2)'!$B:$B,$D$40) -> 0 | V49: =SUMIFS('Intervenção-Pista (2)'!R:R,'Intervenção-Pista (2)'!$A:$A,$D49,'Intervenção-Pista (2)'!$B:$B,$D$40) -> 0 | W49: =SUMIFS('Intervenção-Pista (2)'!S:S,'Intervenção-Pista (2)'!$A:$A,$D49,'Intervenção-Pista (2)'!$B:$B,$D$40) -> 0 | X49: =SUMIFS('Intervenção-Pista (2)'!T:T,'Intervenção-Pista (2)'!$A:$A,$D49,'Intervenção-Pista (2)'!$B:$B,$D$40) -> 0 | Y49: =SUMIFS('Intervenção-Pista (2)'!U:U,'Intervenção-Pista (2)'!$A:$A,$D49,'Intervenção-Pista (2)'!$B:$B,$D$40) -> 0 | Z49: =SUMIFS('Intervenção-Pista (2)'!V:V,'Intervenção-Pista (2)'!$A:$A,$D49,'Intervenção-Pista (2)'!$B:$B,$D$40) -> 0 | AA49: =SUMIFS('Intervenção-Pista (2)'!W:W,'Intervenção-Pista (2)'!$A:$A,$D49,'Intervenção-Pista (2)'!$B:$B,$D$40) -> 0 | AB49: =SUMIFS('Intervenção-Pista (2)'!X:X,'Intervenção-Pista (2)'!$A:$A,$D49,'Intervenção-Pista (2)'!$B:$B,$D$40) -> 0 | AC49: =SUMIFS('Intervenção-Pista (2)'!Y:Y,'Intervenção-Pista (2)'!$A:$A,$D49,'Intervenção-Pista (2)'!$B:$B,$D$40) -> 0 | AD49: =SUMIFS('Intervenção-Pista (2)'!Z:Z,'Intervenção-Pista (2)'!$A:$A,$D49,'Intervenção-Pista (2)'!$B:$B,$D$40) -> 33,053.91 | AE49: =SUMIFS('Intervenção-Pista (2)'!AA:AA,'Intervenção-Pista (2)'!$A:$A,$D49,'Intervenção-Pista (2)'!$B:$B,$D$40) -> 0 | AF49: =SUMIFS('Intervenção-Pista (2)'!AB:AB,'Intervenção-Pista (2)'!$A:$A,$D49,'Intervenção-Pista (2)'!$B:$B,$D$40) -> 0 | AG49: =SUMIFS('Intervenção-Pista (2)'!AC:AC,'Intervenção-Pista (2)'!$A:$A,$D49,'Intervenção-Pista (2)'!$B:$B,$D$40) -> 0 | AH49: =SUMIFS('Intervenção-Pista (2)'!AD:AD,'Intervenção-Pista (2)'!$A:$A,$D49,'Intervenção-Pista (2)'!$B:$B,$D$40) -> 0 | AI49: =SUMIFS('Intervenção-Pista (2)'!AE:AE,'Intervenção-Pista (2)'!$A:$A,$D49,'Intervenção-Pista (2)'!$B:$B,$D$40) -> 33,053.91 | AJ49: =SUMIFS('Intervenção-Pista (2)'!AF:AF,'Intervenção-Pista (2)'!$A:$A,$D49,'Intervenção-Pista (2)'!$B:$B,$D$40) -> 0 | AK49: =SUMIFS('Intervenção-Pista (2)'!AG:AG,'Intervenção-Pista (2)'!$A:$A,$D49,'Intervenção-Pista (2)'!$B:$B,$D$40) -> 0
B50: 8.1.2.10 | D50: 491CMG0010 | E50: M2 | F50: 607,176.05 | H50: =SUMIFS('Intervenção-Pista (2)'!D:D,'Intervenção-Pista (2)'!$A:$A,$D50,'Intervenção-Pista (2)'!$B:$B,$D$40) -> 0 | I50: =SUMIFS('Intervenção-Pista (2)'!E:E,'Intervenção-Pista (2)'!$A:$A,$D50,'Intervenção-Pista (2)'!$B:$B,$D$40) -> 17,400.00 | J50: =SUMIFS('Intervenção-Pista (2)'!F:F,'Intervenção-Pista (2)'!$A:$A,$D50,'Intervenção-Pista (2)'!$B:$B,$D$40) -> 0 | K50: =SUMIFS('Intervenção-Pista (2)'!G:G,'Intervenção-Pista (2)'!$A:$A,$D50,'Intervenção-Pista (2)'!$B:$B,$D$40) -> 31,128.42 | L50: =SUMIFS('Intervenção-Pista (2)'!H:H,'Intervenção-Pista (2)'!$A:$A,$D50,'Intervenção-Pista (2)'!$B:$B,$D$40) -> 0 | M50: =SUMIFS('Intervenção-Pista (2)'!I:I,'Intervenção-Pista (2)'!$A:$A,$D50,'Intervenção-Pista (2)'!$B:$B,$D$40) -> 0 | N50: =SUMIFS('Intervenção-Pista (2)'!J:J,'Intervenção-Pista (2)'!$A:$A,$D50,'Intervenção-Pista (2)'!$B:$B,$D$40) -> 12,600.00 | O50: =SUMIFS('Intervenção-Pista (2)'!K:K,'Intervenção-Pista (2)'!$A:$A,$D50,'Intervenção-Pista (2)'!$B:$B,$D$40) -> 0 | P50: =SUMIFS('Intervenção-Pista (2)'!L:L,'Intervenção-Pista (2)'!$A:$A,$D50,'Intervenção-Pista (2)'!$B:$B,$D$40) -> 47,400.00 | Q50: =SUMIFS('Intervenção-Pista (2)'!M:M,'Intervenção-Pista (2)'!$A:$A,$D50,'Intervenção-Pista (2)'!$B:$B,$D$40) -> 31,128.42 | R50: =SUMIFS('Intervenção-Pista (2)'!N:N,'Intervenção-Pista (2)'!$A:$A,$D50,'Intervenção-Pista (2)'!$B:$B,$D$40) -> 0 | S50: =SUMIFS('Intervenção-Pista (2)'!O:O,'Intervenção-Pista (2)'!$A:$A,$D50,'Intervenção-Pista (2)'!$B:$B,$D$40) -> 12,600.00 | T50: =SUMIFS('Intervenção-Pista (2)'!P:P,'Intervenção-Pista (2)'!$A:$A,$D50,'Intervenção-Pista (2)'!$B:$B,$D$40) -> 0 | U50: =SUMIFS('Intervenção-Pista (2)'!Q:Q,'Intervenção-Pista (2)'!$A:$A,$D50,'Intervenção-Pista (2)'!$B:$B,$D$40) -> 60,306.79 | V50: =SUMIFS('Intervenção-Pista (2)'!R:R,'Intervenção-Pista (2)'!$A:$A,$D50,'Intervenção-Pista (2)'!$B:$B,$D$40) -> 0 | W50: =SUMIFS('Intervenção-Pista (2)'!S:S,'Intervenção-Pista (2)'!$A:$A,$D50,'Intervenção-Pista (2)'!$B:$B,$D$40) -> 48,528.42 | X50: =SUMIFS('Intervenção-Pista (2)'!T:T,'Intervenção-Pista (2)'!$A:$A,$D50,'Intervenção-Pista (2)'!$B:$B,$D$40) -> 12,600.00 | Y50: =SUMIFS('Intervenção-Pista (2)'!U:U,'Intervenção-Pista (2)'!$A:$A,$D50,'Intervenção-Pista (2)'!$B:$B,$D$40) -> 30,306.79 | Z50: =SUMIFS('Intervenção-Pista (2)'!V:V,'Intervenção-Pista (2)'!$A:$A,$D50,'Intervenção-Pista (2)'!$B:$B,$D$40) -> 30,000.00 | AA50: =SUMIFS('Intervenção-Pista (2)'!W:W,'Intervenção-Pista (2)'!$A:$A,$D50,'Intervenção-Pista (2)'!$B:$B,$D$40) -> 0 | AB50: =SUMIFS('Intervenção-Pista (2)'!X:X,'Intervenção-Pista (2)'!$A:$A,$D50,'Intervenção-Pista (2)'!$B:$B,$D$40) -> 31,128.42 | AC50: =SUMIFS('Intervenção-Pista (2)'!Y:Y,'Intervenção-Pista (2)'!$A:$A,$D50,'Intervenção-Pista (2)'!$B:$B,$D$40) -> 42,906.79 | AD50: =SUMIFS('Intervenção-Pista (2)'!Z:Z,'Intervenção-Pista (2)'!$A:$A,$D50,'Intervenção-Pista (2)'!$B:$B,$D$40) -> 17,400.00 | AE50: =SUMIFS('Intervenção-Pista (2)'!AA:AA,'Intervenção-Pista (2)'!$A:$A,$D50,'Intervenção-Pista (2)'!$B:$B,$D$40) -> 30,000.00 | AF50: =SUMIFS('Intervenção-Pista (2)'!AB:AB,'Intervenção-Pista (2)'!$A:$A,$D50,'Intervenção-Pista (2)'!$B:$B,$D$40) -> 0 | AG50: =SUMIFS('Intervenção-Pista (2)'!AC:AC,'Intervenção-Pista (2)'!$A:$A,$D50,'Intervenção-Pista (2)'!$B:$B,$D$40) -> 61,435.21 | AH50: =SUMIFS('Intervenção-Pista (2)'!AD:AD,'Intervenção-Pista (2)'!$A:$A,$D50,'Intervenção-Pista (2)'!$B:$B,$D$40) -> 12,600.00 | AI50: =SUMIFS('Intervenção-Pista (2)'!AE:AE,'Intervenção-Pista (2)'!$A:$A,$D50,'Intervenção-Pista (2)'!$B:$B,$D$40) -> 0 | AJ50: =SUMIFS('Intervenção-Pista (2)'!AF:AF,'Intervenção-Pista (2)'!$A:$A,$D50,'Intervenção-Pista (2)'!$B:$B,$D$40) -> 30,000.00 | AK50: =SUMIFS('Intervenção-Pista (2)'!AG:AG,'Intervenção-Pista (2)'!$A:$A,$D50,'Intervenção-Pista (2)'!$B:$B,$D$40) -> 47,706.79
B51: 8.1.2.11 | D51: 491CMG0023 | E51: M2 | F51: 328,282.95 | H51: =SUMIFS('Intervenção-Pista (2)'!D:D,'Intervenção-Pista (2)'!$A:$A,$D51,'Intervenção-Pista (2)'!$B:$B,$D$40) -> 0 | I51: =SUMIFS('Intervenção-Pista (2)'!E:E,'Intervenção-Pista (2)'!$A:$A,$D51,'Intervenção-Pista (2)'!$B:$B,$D$40) -> 0 | J51: =SUMIFS('Intervenção-Pista (2)'!F:F,'Intervenção-Pista (2)'!$A:$A,$D51,'Intervenção-Pista (2)'!$B:$B,$D$40) -> 0 | K51: =SUMIFS('Intervenção-Pista (2)'!G:G,'Intervenção-Pista (2)'!$A:$A,$D51,'Intervenção-Pista (2)'!$B:$B,$D$40) -> 0 | L51: =SUMIFS('Intervenção-Pista (2)'!H:H,'Intervenção-Pista (2)'!$A:$A,$D51,'Intervenção-Pista (2)'!$B:$B,$D$40) -> 0 | M51: =SUMIFS('Intervenção-Pista (2)'!I:I,'Intervenção-Pista (2)'!$A:$A,$D51,'Intervenção-Pista (2)'!$B:$B,$D$40) -> 0 | N51: =SUMIFS('Intervenção-Pista (2)'!J:J,'Intervenção-Pista (2)'!$A:$A,$D51,'Intervenção-Pista (2)'!$B:$B,$D$40) -> 0 | O51: =SUMIFS('Intervenção-Pista (2)'!K:K,'Intervenção-Pista (2)'!$A:$A,$D51,'Intervenção-Pista (2)'!$B:$B,$D$40) -> 0 | P51: =SUMIFS('Intervenção-Pista (2)'!L:L,'Intervenção-Pista (2)'!$A:$A,$D51,'Intervenção-Pista (2)'!$B:$B,$D$40) -> 71,656.59 | Q51: =SUMIFS('Intervenção-Pista (2)'!M:M,'Intervenção-Pista (2)'!$A:$A,$D51,'Intervenção-Pista (2)'!$B:$B,$D$40) -> 0 | R51: =SUMIFS('Intervenção-Pista (2)'!N:N,'Intervenção-Pista (2)'!$A:$A,$D51,'Intervenção-Pista (2)'!$B:$B,$D$40) -> 0 | S51: =SUMIFS('Intervenção-Pista (2)'!O:O,'Intervenção-Pista (2)'!$A:$A,$D51,'Intervenção-Pista (2)'!$B:$B,$D$40) -> 0 | T51: =SUMIFS('Intervenção-Pista (2)'!P:P,'Intervenção-Pista (2)'!$A:$A,$D51,'Intervenção-Pista (2)'!$B:$B,$D$40) -> 0 | U51: =SUMIFS('Intervenção-Pista (2)'!Q:Q,'Intervenção-Pista (2)'!$A:$A,$D51,'Intervenção-Pista (2)'!$B:$B,$D$40) -> 41,656.59 | V51: =SUMIFS('Intervenção-Pista (2)'!R:R,'Intervenção-Pista (2)'!$A:$A,$D51,'Intervenção-Pista (2)'!$B:$B,$D$40) -> 30,000.00 | W51: =SUMIFS('Intervenção-Pista (2)'!S:S,'Intervenção-Pista (2)'!$A:$A,$D51,'Intervenção-Pista (2)'!$B:$B,$D$40) -> 0 | X51: =SUMIFS('Intervenção-Pista (2)'!T:T,'Intervenção-Pista (2)'!$A:$A,$D51,'Intervenção-Pista (2)'!$B:$B,$D$40) -> 0 | Y51: =SUMIFS('Intervenção-Pista (2)'!U:U,'Intervenção-Pista (2)'!$A:$A,$D51,'Intervenção-Pista (2)'!$B:$B,$D$40) -> 0 | Z51: =SUMIFS('Intervenção-Pista (2)'!V:V,'Intervenção-Pista (2)'!$A:$A,$D51,'Intervenção-Pista (2)'!$B:$B,$D$40) -> 41,656.59 | AA51: =SUMIFS('Intervenção-Pista (2)'!W:W,'Intervenção-Pista (2)'!$A:$A,$D51,'Intervenção-Pista (2)'!$B:$B,$D$40) -> 0 | AB51: =SUMIFS('Intervenção-Pista (2)'!X:X,'Intervenção-Pista (2)'!$A:$A,$D51,'Intervenção-Pista (2)'!$B:$B,$D$40) -> 30,000.00 | AC51: =SUMIFS('Intervenção-Pista (2)'!Y:Y,'Intervenção-Pista (2)'!$A:$A,$D51,'Intervenção-Pista (2)'!$B:$B,$D$40) -> 0 | AD51: =SUMIFS('Intervenção-Pista (2)'!Z:Z,'Intervenção-Pista (2)'!$A:$A,$D51,'Intervenção-Pista (2)'!$B:$B,$D$40) -> 0 | AE51: =SUMIFS('Intervenção-Pista (2)'!AA:AA,'Intervenção-Pista (2)'!$A:$A,$D51,'Intervenção-Pista (2)'!$B:$B,$D$40) -> 41,656.59 | AF51: =SUMIFS('Intervenção-Pista (2)'!AB:AB,'Intervenção-Pista (2)'!$A:$A,$D51,'Intervenção-Pista (2)'!$B:$B,$D$40) -> 0 | AG51: =SUMIFS('Intervenção-Pista (2)'!AC:AC,'Intervenção-Pista (2)'!$A:$A,$D51,'Intervenção-Pista (2)'!$B:$B,$D$40) -> 0 | AH51: =SUMIFS('Intervenção-Pista (2)'!AD:AD,'Intervenção-Pista (2)'!$A:$A,$D51,'Intervenção-Pista (2)'!$B:$B,$D$40) -> 30,000.00 | AI51: =SUMIFS('Intervenção-Pista (2)'!AE:AE,'Intervenção-Pista (2)'!$A:$A,$D51,'Intervenção-Pista (2)'!$B:$B,$D$40) -> 0 | AJ51: =SUMIFS('Intervenção-Pista (2)'!AF:AF,'Intervenção-Pista (2)'!$A:$A,$D51,'Intervenção-Pista (2)'!$B:$B,$D$40) -> 41,656.59 | AK51: =SUMIFS('Intervenção-Pista (2)'!AG:AG,'Intervenção-Pista (2)'!$A:$A,$D51,'Intervenção-Pista (2)'!$B:$B,$D$40) -> 0
B52: 8.1.2.12 | D52: 491CMG0050 | E52: M2 | F52: 1,009,634.97 | H52: =SUMIFS('Intervenção-Pista (2)'!D:D,'Intervenção-Pista (2)'!$A:$A,$D52,'Intervenção-Pista (2)'!$B:$B,$D$40) -> 0 | I52: =SUMIFS('Intervenção-Pista (2)'!E:E,'Intervenção-Pista (2)'!$A:$A,$D52,'Intervenção-Pista (2)'!$B:$B,$D$40) -> 100,147.35 | J52: =SUMIFS('Intervenção-Pista (2)'!F:F,'Intervenção-Pista (2)'!$A:$A,$D52,'Intervenção-Pista (2)'!$B:$B,$D$40) -> 0 | K52: =SUMIFS('Intervenção-Pista (2)'!G:G,'Intervenção-Pista (2)'!$A:$A,$D52,'Intervenção-Pista (2)'!$B:$B,$D$40) -> 63,184.51 | L52: =SUMIFS('Intervenção-Pista (2)'!H:H,'Intervenção-Pista (2)'!$A:$A,$D52,'Intervenção-Pista (2)'!$B:$B,$D$40) -> 0 | M52: =SUMIFS('Intervenção-Pista (2)'!I:I,'Intervenção-Pista (2)'!$A:$A,$D52,'Intervenção-Pista (2)'!$B:$B,$D$40) -> 0 | N52: =SUMIFS('Intervenção-Pista (2)'!J:J,'Intervenção-Pista (2)'!$A:$A,$D52,'Intervenção-Pista (2)'!$B:$B,$D$40) -> 60,000.00 | O52: =SUMIFS('Intervenção-Pista (2)'!K:K,'Intervenção-Pista (2)'!$A:$A,$D52,'Intervenção-Pista (2)'!$B:$B,$D$40) -> 71,147.35 | P52: =SUMIFS('Intervenção-Pista (2)'!L:L,'Intervenção-Pista (2)'!$A:$A,$D52,'Intervenção-Pista (2)'!$B:$B,$D$40) -> 0 | Q52: =SUMIFS('Intervenção-Pista (2)'!M:M,'Intervenção-Pista (2)'!$A:$A,$D52,'Intervenção-Pista (2)'!$B:$B,$D$40) -> 32,184.51 | R52: =SUMIFS('Intervenção-Pista (2)'!N:N,'Intervenção-Pista (2)'!$A:$A,$D52,'Intervenção-Pista (2)'!$B:$B,$D$40) -> 10,052.08 | S52: =SUMIFS('Intervenção-Pista (2)'!O:O,'Intervenção-Pista (2)'!$A:$A,$D52,'Intervenção-Pista (2)'!$B:$B,$D$40) -> 91,000.00 | T52: =SUMIFS('Intervenção-Pista (2)'!P:P,'Intervenção-Pista (2)'!$A:$A,$D52,'Intervenção-Pista (2)'!$B:$B,$D$40) -> 30,767.35 | U52: =SUMIFS('Intervenção-Pista (2)'!Q:Q,'Intervenção-Pista (2)'!$A:$A,$D52,'Intervenção-Pista (2)'!$B:$B,$D$40) -> 9,380.00 | V52: =SUMIFS('Intervenção-Pista (2)'!R:R,'Intervenção-Pista (2)'!$A:$A,$D52,'Intervenção-Pista (2)'!$B:$B,$D$40) -> 0 | W52: =SUMIFS('Intervenção-Pista (2)'!S:S,'Intervenção-Pista (2)'!$A:$A,$D52,'Intervenção-Pista (2)'!$B:$B,$D$40) -> 73,236.59 | X52: =SUMIFS('Intervenção-Pista (2)'!T:T,'Intervenção-Pista (2)'!$A:$A,$D52,'Intervenção-Pista (2)'!$B:$B,$D$40) -> 60,000.00 | Y52: =SUMIFS('Intervenção-Pista (2)'!U:U,'Intervenção-Pista (2)'!$A:$A,$D52,'Intervenção-Pista (2)'!$B:$B,$D$40) -> 30,767.35 | Z52: =SUMIFS('Intervenção-Pista (2)'!V:V,'Intervenção-Pista (2)'!$A:$A,$D52,'Intervenção-Pista (2)'!$B:$B,$D$40) -> 0 | AA52: =SUMIFS('Intervenção-Pista (2)'!W:W,'Intervenção-Pista (2)'!$A:$A,$D52,'Intervenção-Pista (2)'!$B:$B,$D$40) -> 40,380.00 | AB52: =SUMIFS('Intervenção-Pista (2)'!X:X,'Intervenção-Pista (2)'!$A:$A,$D52,'Intervenção-Pista (2)'!$B:$B,$D$40) -> 10,052.08 | AC52: =SUMIFS('Intervenção-Pista (2)'!Y:Y,'Intervenção-Pista (2)'!$A:$A,$D52,'Intervenção-Pista (2)'!$B:$B,$D$40) -> 92,184.51 | AD52: =SUMIFS('Intervenção-Pista (2)'!Z:Z,'Intervenção-Pista (2)'!$A:$A,$D52,'Intervenção-Pista (2)'!$B:$B,$D$40) -> 30,767.35 | AE52: =SUMIFS('Intervenção-Pista (2)'!AA:AA,'Intervenção-Pista (2)'!$A:$A,$D52,'Intervenção-Pista (2)'!$B:$B,$D$40) -> 31,000.00 | AF52: =SUMIFS('Intervenção-Pista (2)'!AB:AB,'Intervenção-Pista (2)'!$A:$A,$D52,'Intervenção-Pista (2)'!$B:$B,$D$40) -> 0 | AG52: =SUMIFS('Intervenção-Pista (2)'!AC:AC,'Intervenção-Pista (2)'!$A:$A,$D52,'Intervenção-Pista (2)'!$B:$B,$D$40) -> 19,432.08 | AH52: =SUMIFS('Intervenção-Pista (2)'!AD:AD,'Intervenção-Pista (2)'!$A:$A,$D52,'Intervenção-Pista (2)'!$B:$B,$D$40) -> 92,184.51 | AI52: =SUMIFS('Intervenção-Pista (2)'!AE:AE,'Intervenção-Pista (2)'!$A:$A,$D52,'Intervenção-Pista (2)'!$B:$B,$D$40) -> 61,767.35 | AJ52: =SUMIFS('Intervenção-Pista (2)'!AF:AF,'Intervenção-Pista (2)'!$A:$A,$D52,'Intervenção-Pista (2)'!$B:$B,$D$40) -> 0 | AK52: =SUMIFS('Intervenção-Pista (2)'!AG:AG,'Intervenção-Pista (2)'!$A:$A,$D52,'Intervenção-Pista (2)'!$B:$B,$D$40) -> 0
B53: 8.1.2.13 | D53: 491CMG0090 | E53: M2 | F53: 445,125.50 | H53: =SUMIFS('Intervenção-Pista (2)'!D:D,'Intervenção-Pista (2)'!$A:$A,$D53,'Intervenção-Pista (2)'!$B:$B,$D$40) -> 0 | I53: =SUMIFS('Intervenção-Pista (2)'!E:E,'Intervenção-Pista (2)'!$A:$A,$D53,'Intervenção-Pista (2)'!$B:$B,$D$40) -> 0 | J53: =SUMIFS('Intervenção-Pista (2)'!F:F,'Intervenção-Pista (2)'!$A:$A,$D53,'Intervenção-Pista (2)'!$B:$B,$D$40) -> 0 | K53: =SUMIFS('Intervenção-Pista (2)'!G:G,'Intervenção-Pista (2)'!$A:$A,$D53,'Intervenção-Pista (2)'!$B:$B,$D$40) -> 0 | L53: =SUMIFS('Intervenção-Pista (2)'!H:H,'Intervenção-Pista (2)'!$A:$A,$D53,'Intervenção-Pista (2)'!$B:$B,$D$40) -> 0 | M53: =SUMIFS('Intervenção-Pista (2)'!I:I,'Intervenção-Pista (2)'!$A:$A,$D53,'Intervenção-Pista (2)'!$B:$B,$D$40) -> 15,390.00 | N53: =SUMIFS('Intervenção-Pista (2)'!J:J,'Intervenção-Pista (2)'!$A:$A,$D53,'Intervenção-Pista (2)'!$B:$B,$D$40) -> 59,079.10 | O53: =SUMIFS('Intervenção-Pista (2)'!K:K,'Intervenção-Pista (2)'!$A:$A,$D53,'Intervenção-Pista (2)'!$B:$B,$D$40) -> 0 | P53: =SUMIFS('Intervenção-Pista (2)'!L:L,'Intervenção-Pista (2)'!$A:$A,$D53,'Intervenção-Pista (2)'!$B:$B,$D$40) -> 8,400.00 | Q53: =SUMIFS('Intervenção-Pista (2)'!M:M,'Intervenção-Pista (2)'!$A:$A,$D53,'Intervenção-Pista (2)'!$B:$B,$D$40) -> 15,390.00 | R53: =SUMIFS('Intervenção-Pista (2)'!N:N,'Intervenção-Pista (2)'!$A:$A,$D53,'Intervenção-Pista (2)'!$B:$B,$D$40) -> 0 | S53: =SUMIFS('Intervenção-Pista (2)'!O:O,'Intervenção-Pista (2)'!$A:$A,$D53,'Intervenção-Pista (2)'!$B:$B,$D$40) -> 59,079.10 | T53: =SUMIFS('Intervenção-Pista (2)'!P:P,'Intervenção-Pista (2)'!$A:$A,$D53,'Intervenção-Pista (2)'!$B:$B,$D$40) -> 0 | U53: =SUMIFS('Intervenção-Pista (2)'!Q:Q,'Intervenção-Pista (2)'!$A:$A,$D53,'Intervenção-Pista (2)'!$B:$B,$D$40) -> 23,790.00 | V53: =SUMIFS('Intervenção-Pista (2)'!R:R,'Intervenção-Pista (2)'!$A:$A,$D53,'Intervenção-Pista (2)'!$B:$B,$D$40) -> 0 | W53: =SUMIFS('Intervenção-Pista (2)'!S:S,'Intervenção-Pista (2)'!$A:$A,$D53,'Intervenção-Pista (2)'!$B:$B,$D$40) -> 0 | X53: =SUMIFS('Intervenção-Pista (2)'!T:T,'Intervenção-Pista (2)'!$A:$A,$D53,'Intervenção-Pista (2)'!$B:$B,$D$40) -> 59,079.10 | Y53: =SUMIFS('Intervenção-Pista (2)'!U:U,'Intervenção-Pista (2)'!$A:$A,$D53,'Intervenção-Pista (2)'!$B:$B,$D$40) -> 15,390.00 | Z53: =SUMIFS('Intervenção-Pista (2)'!V:V,'Intervenção-Pista (2)'!$A:$A,$D53,'Intervenção-Pista (2)'!$B:$B,$D$40) -> 8,400.00 | AA53: =SUMIFS('Intervenção-Pista (2)'!W:W,'Intervenção-Pista (2)'!$A:$A,$D53,'Intervenção-Pista (2)'!$B:$B,$D$40) -> 0 | AB53: =SUMIFS('Intervenção-Pista (2)'!X:X,'Intervenção-Pista (2)'!$A:$A,$D53,'Intervenção-Pista (2)'!$B:$B,$D$40) -> 0 | AC53: =SUMIFS('Intervenção-Pista (2)'!Y:Y,'Intervenção-Pista (2)'!$A:$A,$D53,'Intervenção-Pista (2)'!$B:$B,$D$40) -> 74,469.10 | AD53: =SUMIFS('Intervenção-Pista (2)'!Z:Z,'Intervenção-Pista (2)'!$A:$A,$D53,'Intervenção-Pista (2)'!$B:$B,$D$40) -> 0 | AE53: =SUMIFS('Intervenção-Pista (2)'!AA:AA,'Intervenção-Pista (2)'!$A:$A,$D53,'Intervenção-Pista (2)'!$B:$B,$D$40) -> 8,400.00 | AF53: =SUMIFS('Intervenção-Pista (2)'!AB:AB,'Intervenção-Pista (2)'!$A:$A,$D53,'Intervenção-Pista (2)'!$B:$B,$D$40) -> 0 | AG53: =SUMIFS('Intervenção-Pista (2)'!AC:AC,'Intervenção-Pista (2)'!$A:$A,$D53,'Intervenção-Pista (2)'!$B:$B,$D$40) -> 15,390.00 | AH53: =SUMIFS('Intervenção-Pista (2)'!AD:AD,'Intervenção-Pista (2)'!$A:$A,$D53,'Intervenção-Pista (2)'!$B:$B,$D$40) -> 59,079.10 | AI53: =SUMIFS('Intervenção-Pista (2)'!AE:AE,'Intervenção-Pista (2)'!$A:$A,$D53,'Intervenção-Pista (2)'!$B:$B,$D$40) -> 0 | AJ53: =SUMIFS('Intervenção-Pista (2)'!AF:AF,'Intervenção-Pista (2)'!$A:$A,$D53,'Intervenção-Pista (2)'!$B:$B,$D$40) -> 8,400.00 | AK53: =SUMIFS('Intervenção-Pista (2)'!AG:AG,'Intervenção-Pista (2)'!$A:$A,$D53,'Intervenção-Pista (2)'!$B:$B,$D$40) -> 15,390.00
B54: 8.1.2.14 | D54: 491CMG0100 | E54: M2 | F54: 982,118.98 | H54: =SUMIFS('Intervenção-Pista (2)'!D:D,'Intervenção-Pista (2)'!$A:$A,$D54,'Intervenção-Pista (2)'!$B:$B,$D$40) -> 0 | I54: =SUMIFS('Intervenção-Pista (2)'!E:E,'Intervenção-Pista (2)'!$A:$A,$D54,'Intervenção-Pista (2)'!$B:$B,$D$40) -> 0 | J54: =SUMIFS('Intervenção-Pista (2)'!F:F,'Intervenção-Pista (2)'!$A:$A,$D54,'Intervenção-Pista (2)'!$B:$B,$D$40) -> 0 | K54: =SUMIFS('Intervenção-Pista (2)'!G:G,'Intervenção-Pista (2)'!$A:$A,$D54,'Intervenção-Pista (2)'!$B:$B,$D$40) -> 0 | L54: =SUMIFS('Intervenção-Pista (2)'!H:H,'Intervenção-Pista (2)'!$A:$A,$D54,'Intervenção-Pista (2)'!$B:$B,$D$40) -> 111,700.91 | M54: =SUMIFS('Intervenção-Pista (2)'!I:I,'Intervenção-Pista (2)'!$A:$A,$D54,'Intervenção-Pista (2)'!$B:$B,$D$40) -> 13,135.09 | N54: =SUMIFS('Intervenção-Pista (2)'!J:J,'Intervenção-Pista (2)'!$A:$A,$D54,'Intervenção-Pista (2)'!$B:$B,$D$40) -> 0 | O54: =SUMIFS('Intervenção-Pista (2)'!K:K,'Intervenção-Pista (2)'!$A:$A,$D54,'Intervenção-Pista (2)'!$B:$B,$D$40) -> 0 | P54: =SUMIFS('Intervenção-Pista (2)'!L:L,'Intervenção-Pista (2)'!$A:$A,$D54,'Intervenção-Pista (2)'!$B:$B,$D$40) -> 111,700.91 | Q54: =SUMIFS('Intervenção-Pista (2)'!M:M,'Intervenção-Pista (2)'!$A:$A,$D54,'Intervenção-Pista (2)'!$B:$B,$D$40) -> 0 | R54: =SUMIFS('Intervenção-Pista (2)'!N:N,'Intervenção-Pista (2)'!$A:$A,$D54,'Intervenção-Pista (2)'!$B:$B,$D$40) -> 13,135.09 | S54: =SUMIFS('Intervenção-Pista (2)'!O:O,'Intervenção-Pista (2)'!$A:$A,$D54,'Intervenção-Pista (2)'!$B:$B,$D$40) -> 0 | T54: =SUMIFS('Intervenção-Pista (2)'!P:P,'Intervenção-Pista (2)'!$A:$A,$D54,'Intervenção-Pista (2)'!$B:$B,$D$40) -> 111,700.91 | U54: =SUMIFS('Intervenção-Pista (2)'!Q:Q,'Intervenção-Pista (2)'!$A:$A,$D54,'Intervenção-Pista (2)'!$B:$B,$D$40) -> 0 | V54: =SUMIFS('Intervenção-Pista (2)'!R:R,'Intervenção-Pista (2)'!$A:$A,$D54,'Intervenção-Pista (2)'!$B:$B,$D$40) -> 33,634.29 | W54: =SUMIFS('Intervenção-Pista (2)'!S:S,'Intervenção-Pista (2)'!$A:$A,$D54,'Intervenção-Pista (2)'!$B:$B,$D$40) -> 13,135.09 | X54: =SUMIFS('Intervenção-Pista (2)'!T:T,'Intervenção-Pista (2)'!$A:$A,$D54,'Intervenção-Pista (2)'!$B:$B,$D$40) -> 111,700.91 | Y54: =SUMIFS('Intervenção-Pista (2)'!U:U,'Intervenção-Pista (2)'!$A:$A,$D54,'Intervenção-Pista (2)'!$B:$B,$D$40) -> 0 | Z54: =SUMIFS('Intervenção-Pista (2)'!V:V,'Intervenção-Pista (2)'!$A:$A,$D54,'Intervenção-Pista (2)'!$B:$B,$D$40) -> 33,634.29 | AA54: =SUMIFS('Intervenção-Pista (2)'!W:W,'Intervenção-Pista (2)'!$A:$A,$D54,'Intervenção-Pista (2)'!$B:$B,$D$40) -> 0 | AB54: =SUMIFS('Intervenção-Pista (2)'!X:X,'Intervenção-Pista (2)'!$A:$A,$D54,'Intervenção-Pista (2)'!$B:$B,$D$40) -> 124,836.00 | AC54: =SUMIFS('Intervenção-Pista (2)'!Y:Y,'Intervenção-Pista (2)'!$A:$A,$D54,'Intervenção-Pista (2)'!$B:$B,$D$40) -> 0 | AD54: =SUMIFS('Intervenção-Pista (2)'!Z:Z,'Intervenção-Pista (2)'!$A:$A,$D54,'Intervenção-Pista (2)'!$B:$B,$D$40) -> 33,634.29 | AE54: =SUMIFS('Intervenção-Pista (2)'!AA:AA,'Intervenção-Pista (2)'!$A:$A,$D54,'Intervenção-Pista (2)'!$B:$B,$D$40) -> 0 | AF54: =SUMIFS('Intervenção-Pista (2)'!AB:AB,'Intervenção-Pista (2)'!$A:$A,$D54,'Intervenção-Pista (2)'!$B:$B,$D$40) -> 111,700.91 | AG54: =SUMIFS('Intervenção-Pista (2)'!AC:AC,'Intervenção-Pista (2)'!$A:$A,$D54,'Intervenção-Pista (2)'!$B:$B,$D$40) -> 13,135.09 | AH54: =SUMIFS('Intervenção-Pista (2)'!AD:AD,'Intervenção-Pista (2)'!$A:$A,$D54,'Intervenção-Pista (2)'!$B:$B,$D$40) -> 33,634.29 | AI54: =SUMIFS('Intervenção-Pista (2)'!AE:AE,'Intervenção-Pista (2)'!$A:$A,$D54,'Intervenção-Pista (2)'!$B:$B,$D$40) -> 0 | AJ54: =SUMIFS('Intervenção-Pista (2)'!AF:AF,'Intervenção-Pista (2)'!$A:$A,$D54,'Intervenção-Pista (2)'!$B:$B,$D$40) -> 111,700.91 | AK54: =SUMIFS('Intervenção-Pista (2)'!AG:AG,'Intervenção-Pista (2)'!$A:$A,$D54,'Intervenção-Pista (2)'!$B:$B,$D$40) -> 0
B55: 8.1.2.15 | D55: 491CMG0230 | E55: M2 | F55: 930,586.36 | H55: =SUMIFS('Intervenção-Pista (2)'!D:D,'Intervenção-Pista (2)'!$A:$A,$D55,'Intervenção-Pista (2)'!$B:$B,$D$40) -> 0 | I55: =SUMIFS('Intervenção-Pista (2)'!E:E,'Intervenção-Pista (2)'!$A:$A,$D55,'Intervenção-Pista (2)'!$B:$B,$D$40) -> 0 | J55: =SUMIFS('Intervenção-Pista (2)'!F:F,'Intervenção-Pista (2)'!$A:$A,$D55,'Intervenção-Pista (2)'!$B:$B,$D$40) -> 0 | K55: =SUMIFS('Intervenção-Pista (2)'!G:G,'Intervenção-Pista (2)'!$A:$A,$D55,'Intervenção-Pista (2)'!$B:$B,$D$40) -> 47,775.29 | L55: =SUMIFS('Intervenção-Pista (2)'!H:H,'Intervenção-Pista (2)'!$A:$A,$D55,'Intervenção-Pista (2)'!$B:$B,$D$40) -> 0 | M55: =SUMIFS('Intervenção-Pista (2)'!I:I,'Intervenção-Pista (2)'!$A:$A,$D55,'Intervenção-Pista (2)'!$B:$B,$D$40) -> 38,675.29 | N55: =SUMIFS('Intervenção-Pista (2)'!J:J,'Intervenção-Pista (2)'!$A:$A,$D55,'Intervenção-Pista (2)'!$B:$B,$D$40) -> 9,100.00 | O55: =SUMIFS('Intervenção-Pista (2)'!K:K,'Intervenção-Pista (2)'!$A:$A,$D55,'Intervenção-Pista (2)'!$B:$B,$D$40) -> 0 | P55: =SUMIFS('Intervenção-Pista (2)'!L:L,'Intervenção-Pista (2)'!$A:$A,$D55,'Intervenção-Pista (2)'!$B:$B,$D$40) -> 75,656.74 | Q55: =SUMIFS('Intervenção-Pista (2)'!M:M,'Intervenção-Pista (2)'!$A:$A,$D55,'Intervenção-Pista (2)'!$B:$B,$D$40) -> 9,100.00 | R55: =SUMIFS('Intervenção-Pista (2)'!N:N,'Intervenção-Pista (2)'!$A:$A,$D55,'Intervenção-Pista (2)'!$B:$B,$D$40) -> 0 | S55: =SUMIFS('Intervenção-Pista (2)'!O:O,'Intervenção-Pista (2)'!$A:$A,$D55,'Intervenção-Pista (2)'!$B:$B,$D$40) -> 38,675.29 | T55: =SUMIFS('Intervenção-Pista (2)'!P:P,'Intervenção-Pista (2)'!$A:$A,$D55,'Intervenção-Pista (2)'!$B:$B,$D$40) -> 86,088.91 | U55: =SUMIFS('Intervenção-Pista (2)'!Q:Q,'Intervenção-Pista (2)'!$A:$A,$D55,'Intervenção-Pista (2)'!$B:$B,$D$40) -> 0 | V55: =SUMIFS('Intervenção-Pista (2)'!R:R,'Intervenção-Pista (2)'!$A:$A,$D55,'Intervenção-Pista (2)'!$B:$B,$D$40) -> 38,675.29 | W55: =SUMIFS('Intervenção-Pista (2)'!S:S,'Intervenção-Pista (2)'!$A:$A,$D55,'Intervenção-Pista (2)'!$B:$B,$D$40) -> 49,107.46 | X55: =SUMIFS('Intervenção-Pista (2)'!T:T,'Intervenção-Pista (2)'!$A:$A,$D55,'Intervenção-Pista (2)'!$B:$B,$D$40) -> 36,981.45 | Y55: =SUMIFS('Intervenção-Pista (2)'!U:U,'Intervenção-Pista (2)'!$A:$A,$D55,'Intervenção-Pista (2)'!$B:$B,$D$40) -> 38,675.29 | Z55: =SUMIFS('Intervenção-Pista (2)'!V:V,'Intervenção-Pista (2)'!$A:$A,$D55,'Intervenção-Pista (2)'!$B:$B,$D$40) -> 49,107.46 | AA55: =SUMIFS('Intervenção-Pista (2)'!W:W,'Intervenção-Pista (2)'!$A:$A,$D55,'Intervenção-Pista (2)'!$B:$B,$D$40) -> 0 | AB55: =SUMIFS('Intervenção-Pista (2)'!X:X,'Intervenção-Pista (2)'!$A:$A,$D55,'Intervenção-Pista (2)'!$B:$B,$D$40) -> 75,656.74 | AC55: =SUMIFS('Intervenção-Pista (2)'!Y:Y,'Intervenção-Pista (2)'!$A:$A,$D55,'Intervenção-Pista (2)'!$B:$B,$D$40) -> 49,107.46 | AD55: =SUMIFS('Intervenção-Pista (2)'!Z:Z,'Intervenção-Pista (2)'!$A:$A,$D55,'Intervenção-Pista (2)'!$B:$B,$D$40) -> 0 | AE55: =SUMIFS('Intervenção-Pista (2)'!AA:AA,'Intervenção-Pista (2)'!$A:$A,$D55,'Intervenção-Pista (2)'!$B:$B,$D$40) -> 75,656.74 | AF55: =SUMIFS('Intervenção-Pista (2)'!AB:AB,'Intervenção-Pista (2)'!$A:$A,$D55,'Intervenção-Pista (2)'!$B:$B,$D$40) -> 49,107.46 | AG55: =SUMIFS('Intervenção-Pista (2)'!AC:AC,'Intervenção-Pista (2)'!$A:$A,$D55,'Intervenção-Pista (2)'!$B:$B,$D$40) -> 0 | AH55: =SUMIFS('Intervenção-Pista (2)'!AD:AD,'Intervenção-Pista (2)'!$A:$A,$D55,'Intervenção-Pista (2)'!$B:$B,$D$40) -> 75,656.74 | AI55: =SUMIFS('Intervenção-Pista (2)'!AE:AE,'Intervenção-Pista (2)'!$A:$A,$D55,'Intervenção-Pista (2)'!$B:$B,$D$40) -> 49,107.46 | AJ55: =SUMIFS('Intervenção-Pista (2)'!AF:AF,'Intervenção-Pista (2)'!$A:$A,$D55,'Intervenção-Pista (2)'!$B:$B,$D$40) -> 0 | AK55: =SUMIFS('Intervenção-Pista (2)'!AG:AG,'Intervenção-Pista (2)'!$A:$A,$D55,'Intervenção-Pista (2)'!$B:$B,$D$40) -> 38,675.29
B56: 8.1.2.16 | D56: 491CMG0030 | E56: M2 | F56: 400,307.44 | H56: =SUMIFS('Intervenção-Pista (2)'!D:D,'Intervenção-Pista (2)'!$A:$A,$D56,'Intervenção-Pista (2)'!$B:$B,$D$40) -> 0 | I56: =SUMIFS('Intervenção-Pista (2)'!E:E,'Intervenção-Pista (2)'!$A:$A,$D56,'Intervenção-Pista (2)'!$B:$B,$D$40) -> 0 | J56: =SUMIFS('Intervenção-Pista (2)'!F:F,'Intervenção-Pista (2)'!$A:$A,$D56,'Intervenção-Pista (2)'!$B:$B,$D$40) -> 0 | K56: =SUMIFS('Intervenção-Pista (2)'!G:G,'Intervenção-Pista (2)'!$A:$A,$D56,'Intervenção-Pista (2)'!$B:$B,$D$40) -> 0 | L56: =SUMIFS('Intervenção-Pista (2)'!H:H,'Intervenção-Pista (2)'!$A:$A,$D56,'Intervenção-Pista (2)'!$B:$B,$D$40) -> 0 | M56: =SUMIFS('Intervenção-Pista (2)'!I:I,'Intervenção-Pista (2)'!$A:$A,$D56,'Intervenção-Pista (2)'!$B:$B,$D$40) -> 0 | N56: =SUMIFS('Intervenção-Pista (2)'!J:J,'Intervenção-Pista (2)'!$A:$A,$D56,'Intervenção-Pista (2)'!$B:$B,$D$40) -> 0 | O56: =SUMIFS('Intervenção-Pista (2)'!K:K,'Intervenção-Pista (2)'!$A:$A,$D56,'Intervenção-Pista (2)'!$B:$B,$D$40) -> 0 | P56: =SUMIFS('Intervenção-Pista (2)'!L:L,'Intervenção-Pista (2)'!$A:$A,$D56,'Intervenção-Pista (2)'!$B:$B,$D$40) -> 30,000.00 | Q56: =SUMIFS('Intervenção-Pista (2)'!M:M,'Intervenção-Pista (2)'!$A:$A,$D56,'Intervenção-Pista (2)'!$B:$B,$D$40) -> 0 | R56: =SUMIFS('Intervenção-Pista (2)'!N:N,'Intervenção-Pista (2)'!$A:$A,$D56,'Intervenção-Pista (2)'!$B:$B,$D$40) -> 30,396.86 | S56: =SUMIFS('Intervenção-Pista (2)'!O:O,'Intervenção-Pista (2)'!$A:$A,$D56,'Intervenção-Pista (2)'!$B:$B,$D$40) -> 0 | T56: =SUMIFS('Intervenção-Pista (2)'!P:P,'Intervenção-Pista (2)'!$A:$A,$D56,'Intervenção-Pista (2)'!$B:$B,$D$40) -> 0 | U56: =SUMIFS('Intervenção-Pista (2)'!Q:Q,'Intervenção-Pista (2)'!$A:$A,$D56,'Intervenção-Pista (2)'!$B:$B,$D$40) -> 0 | V56: =SUMIFS('Intervenção-Pista (2)'!R:R,'Intervenção-Pista (2)'!$A:$A,$D56,'Intervenção-Pista (2)'!$B:$B,$D$40) -> 69,680.00 | W56: =SUMIFS('Intervenção-Pista (2)'!S:S,'Intervenção-Pista (2)'!$A:$A,$D56,'Intervenção-Pista (2)'!$B:$B,$D$40) -> 30,396.86 | X56: =SUMIFS('Intervenção-Pista (2)'!T:T,'Intervenção-Pista (2)'!$A:$A,$D56,'Intervenção-Pista (2)'!$B:$B,$D$40) -> 0 | Y56: =SUMIFS('Intervenção-Pista (2)'!U:U,'Intervenção-Pista (2)'!$A:$A,$D56,'Intervenção-Pista (2)'!$B:$B,$D$40) -> 0 | Z56: =SUMIFS('Intervenção-Pista (2)'!V:V,'Intervenção-Pista (2)'!$A:$A,$D56,'Intervenção-Pista (2)'!$B:$B,$D$40) -> 39,680.00 | AA56: =SUMIFS('Intervenção-Pista (2)'!W:W,'Intervenção-Pista (2)'!$A:$A,$D56,'Intervenção-Pista (2)'!$B:$B,$D$40) -> 0 | AB56: =SUMIFS('Intervenção-Pista (2)'!X:X,'Intervenção-Pista (2)'!$A:$A,$D56,'Intervenção-Pista (2)'!$B:$B,$D$40) -> 60,396.86 | AC56: =SUMIFS('Intervenção-Pista (2)'!Y:Y,'Intervenção-Pista (2)'!$A:$A,$D56,'Intervenção-Pista (2)'!$B:$B,$D$40) -> 0 | AD56: =SUMIFS('Intervenção-Pista (2)'!Z:Z,'Intervenção-Pista (2)'!$A:$A,$D56,'Intervenção-Pista (2)'!$B:$B,$D$40) -> 39,680.00 | AE56: =SUMIFS('Intervenção-Pista (2)'!AA:AA,'Intervenção-Pista (2)'!$A:$A,$D56,'Intervenção-Pista (2)'!$B:$B,$D$40) -> 0 | AF56: =SUMIFS('Intervenção-Pista (2)'!AB:AB,'Intervenção-Pista (2)'!$A:$A,$D56,'Intervenção-Pista (2)'!$B:$B,$D$40) -> 0 | AG56: =SUMIFS('Intervenção-Pista (2)'!AC:AC,'Intervenção-Pista (2)'!$A:$A,$D56,'Intervenção-Pista (2)'!$B:$B,$D$40) -> 30,396.86 | AH56: =SUMIFS('Intervenção-Pista (2)'!AD:AD,'Intervenção-Pista (2)'!$A:$A,$D56,'Intervenção-Pista (2)'!$B:$B,$D$40) -> 69,680.00 | AI56: =SUMIFS('Intervenção-Pista (2)'!AE:AE,'Intervenção-Pista (2)'!$A:$A,$D56,'Intervenção-Pista (2)'!$B:$B,$D$40) -> 0 | AJ56: =SUMIFS('Intervenção-Pista (2)'!AF:AF,'Intervenção-Pista (2)'!$A:$A,$D56,'Intervenção-Pista (2)'!$B:$B,$D$40) -> 0 | AK56: =SUMIFS('Intervenção-Pista (2)'!AG:AG,'Intervenção-Pista (2)'!$A:$A,$D56,'Intervenção-Pista (2)'!$B:$B,$D$40) -> 0
B57: 8.1.2.17 | D57: 491CMG0110 | E57: M2 | F57: 1,168,317.28 | H57: =SUMIFS('Intervenção-Pista (2)'!D:D,'Intervenção-Pista (2)'!$A:$A,$D57,'Intervenção-Pista (2)'!$B:$B,$D$40) -> 0 | I57: =SUMIFS('Intervenção-Pista (2)'!E:E,'Intervenção-Pista (2)'!$A:$A,$D57,'Intervenção-Pista (2)'!$B:$B,$D$40) -> 35,000.00 | J57: =SUMIFS('Intervenção-Pista (2)'!F:F,'Intervenção-Pista (2)'!$A:$A,$D57,'Intervenção-Pista (2)'!$B:$B,$D$40) -> 0 | K57: =SUMIFS('Intervenção-Pista (2)'!G:G,'Intervenção-Pista (2)'!$A:$A,$D57,'Intervenção-Pista (2)'!$B:$B,$D$40) -> 30,000.00 | L57: =SUMIFS('Intervenção-Pista (2)'!H:H,'Intervenção-Pista (2)'!$A:$A,$D57,'Intervenção-Pista (2)'!$B:$B,$D$40) -> 0 | M57: =SUMIFS('Intervenção-Pista (2)'!I:I,'Intervenção-Pista (2)'!$A:$A,$D57,'Intervenção-Pista (2)'!$B:$B,$D$40) -> 35,000.00 | N57: =SUMIFS('Intervenção-Pista (2)'!J:J,'Intervenção-Pista (2)'!$A:$A,$D57,'Intervenção-Pista (2)'!$B:$B,$D$40) -> 0 | O57: =SUMIFS('Intervenção-Pista (2)'!K:K,'Intervenção-Pista (2)'!$A:$A,$D57,'Intervenção-Pista (2)'!$B:$B,$D$40) -> 41,400.00 | P57: =SUMIFS('Intervenção-Pista (2)'!L:L,'Intervenção-Pista (2)'!$A:$A,$D57,'Intervenção-Pista (2)'!$B:$B,$D$40) -> 98,152.88 | Q57: =SUMIFS('Intervenção-Pista (2)'!M:M,'Intervenção-Pista (2)'!$A:$A,$D57,'Intervenção-Pista (2)'!$B:$B,$D$40) -> 35,000.00 | R57: =SUMIFS('Intervenção-Pista (2)'!N:N,'Intervenção-Pista (2)'!$A:$A,$D57,'Intervenção-Pista (2)'!$B:$B,$D$40) -> 0 | S57: =SUMIFS('Intervenção-Pista (2)'!O:O,'Intervenção-Pista (2)'!$A:$A,$D57,'Intervenção-Pista (2)'!$B:$B,$D$40) -> 41,400.00 | T57: =SUMIFS('Intervenção-Pista (2)'!P:P,'Intervenção-Pista (2)'!$A:$A,$D57,'Intervenção-Pista (2)'!$B:$B,$D$40) -> 98,152.88 | U57: =SUMIFS('Intervenção-Pista (2)'!Q:Q,'Intervenção-Pista (2)'!$A:$A,$D57,'Intervenção-Pista (2)'!$B:$B,$D$40) -> 35,000.00 | V57: =SUMIFS('Intervenção-Pista (2)'!R:R,'Intervenção-Pista (2)'!$A:$A,$D57,'Intervenção-Pista (2)'!$B:$B,$D$40) -> 0 | W57: =SUMIFS('Intervenção-Pista (2)'!S:S,'Intervenção-Pista (2)'!$A:$A,$D57,'Intervenção-Pista (2)'!$B:$B,$D$40) -> 41,400.00 | X57: =SUMIFS('Intervenção-Pista (2)'!T:T,'Intervenção-Pista (2)'!$A:$A,$D57,'Intervenção-Pista (2)'!$B:$B,$D$40) -> 98,152.88 | Y57: =SUMIFS('Intervenção-Pista (2)'!U:U,'Intervenção-Pista (2)'!$A:$A,$D57,'Intervenção-Pista (2)'!$B:$B,$D$40) -> 35,000.00 | Z57: =SUMIFS('Intervenção-Pista (2)'!V:V,'Intervenção-Pista (2)'!$A:$A,$D57,'Intervenção-Pista (2)'!$B:$B,$D$40) -> 0 | AA57: =SUMIFS('Intervenção-Pista (2)'!W:W,'Intervenção-Pista (2)'!$A:$A,$D57,'Intervenção-Pista (2)'!$B:$B,$D$40) -> 41,400.00 | AB57: =SUMIFS('Intervenção-Pista (2)'!X:X,'Intervenção-Pista (2)'!$A:$A,$D57,'Intervenção-Pista (2)'!$B:$B,$D$40) -> 98,152.88 | AC57: =SUMIFS('Intervenção-Pista (2)'!Y:Y,'Intervenção-Pista (2)'!$A:$A,$D57,'Intervenção-Pista (2)'!$B:$B,$D$40) -> 35,000.00 | AD57: =SUMIFS('Intervenção-Pista (2)'!Z:Z,'Intervenção-Pista (2)'!$A:$A,$D57,'Intervenção-Pista (2)'!$B:$B,$D$40) -> 0 | AE57: =SUMIFS('Intervenção-Pista (2)'!AA:AA,'Intervenção-Pista (2)'!$A:$A,$D57,'Intervenção-Pista (2)'!$B:$B,$D$40) -> 48,400.00 | AF57: =SUMIFS('Intervenção-Pista (2)'!AB:AB,'Intervenção-Pista (2)'!$A:$A,$D57,'Intervenção-Pista (2)'!$B:$B,$D$40) -> 98,152.88 | AG57: =SUMIFS('Intervenção-Pista (2)'!AC:AC,'Intervenção-Pista (2)'!$A:$A,$D57,'Intervenção-Pista (2)'!$B:$B,$D$40) -> 35,000.00 | AH57: =SUMIFS('Intervenção-Pista (2)'!AD:AD,'Intervenção-Pista (2)'!$A:$A,$D57,'Intervenção-Pista (2)'!$B:$B,$D$40) -> 37,000.00 | AI57: =SUMIFS('Intervenção-Pista (2)'!AE:AE,'Intervenção-Pista (2)'!$A:$A,$D57,'Intervenção-Pista (2)'!$B:$B,$D$40) -> 11,400.00 | AJ57: =SUMIFS('Intervenção-Pista (2)'!AF:AF,'Intervenção-Pista (2)'!$A:$A,$D57,'Intervenção-Pista (2)'!$B:$B,$D$40) -> 98,152.88 | AK57: =SUMIFS('Intervenção-Pista (2)'!AG:AG,'Intervenção-Pista (2)'!$A:$A,$D57,'Intervenção-Pista (2)'!$B:$B,$D$40) -> 42,000.00
B58: 8.1.2.18 | D58: 491CMG0130 | E58: M2 | F58: 964,775.48 | H58: =SUMIFS('Intervenção-Pista (2)'!D:D,'Intervenção-Pista (2)'!$A:$A,$D58,'Intervenção-Pista (2)'!$B:$B,$D$40) -> 0 | I58: =SUMIFS('Intervenção-Pista (2)'!E:E,'Intervenção-Pista (2)'!$A:$A,$D58,'Intervenção-Pista (2)'!$B:$B,$D$40) -> 148,400.00 | J58: =SUMIFS('Intervenção-Pista (2)'!F:F,'Intervenção-Pista (2)'!$A:$A,$D58,'Intervenção-Pista (2)'!$B:$B,$D$40) -> 0 | K58: =SUMIFS('Intervenção-Pista (2)'!G:G,'Intervenção-Pista (2)'!$A:$A,$D58,'Intervenção-Pista (2)'!$B:$B,$D$40) -> 0 | L58: =SUMIFS('Intervenção-Pista (2)'!H:H,'Intervenção-Pista (2)'!$A:$A,$D58,'Intervenção-Pista (2)'!$B:$B,$D$40) -> 0 | M58: =SUMIFS('Intervenção-Pista (2)'!I:I,'Intervenção-Pista (2)'!$A:$A,$D58,'Intervenção-Pista (2)'!$B:$B,$D$40) -> 0 | N58: =SUMIFS('Intervenção-Pista (2)'!J:J,'Intervenção-Pista (2)'!$A:$A,$D58,'Intervenção-Pista (2)'!$B:$B,$D$40) -> 43,400.00 | O58: =SUMIFS('Intervenção-Pista (2)'!K:K,'Intervenção-Pista (2)'!$A:$A,$D58,'Intervenção-Pista (2)'!$B:$B,$D$40) -> 105,000.00 | P58: =SUMIFS('Intervenção-Pista (2)'!L:L,'Intervenção-Pista (2)'!$A:$A,$D58,'Intervenção-Pista (2)'!$B:$B,$D$40) -> 0 | Q58: =SUMIFS('Intervenção-Pista (2)'!M:M,'Intervenção-Pista (2)'!$A:$A,$D58,'Intervenção-Pista (2)'!$B:$B,$D$40) -> 0 | R58: =SUMIFS('Intervenção-Pista (2)'!N:N,'Intervenção-Pista (2)'!$A:$A,$D58,'Intervenção-Pista (2)'!$B:$B,$D$40) -> 0 | S58: =SUMIFS('Intervenção-Pista (2)'!O:O,'Intervenção-Pista (2)'!$A:$A,$D58,'Intervenção-Pista (2)'!$B:$B,$D$40) -> 43,400.00 | T58: =SUMIFS('Intervenção-Pista (2)'!P:P,'Intervenção-Pista (2)'!$A:$A,$D58,'Intervenção-Pista (2)'!$B:$B,$D$40) -> 0 | U58: =SUMIFS('Intervenção-Pista (2)'!Q:Q,'Intervenção-Pista (2)'!$A:$A,$D58,'Intervenção-Pista (2)'!$B:$B,$D$40) -> 105,000.00 | V58: =SUMIFS('Intervenção-Pista (2)'!R:R,'Intervenção-Pista (2)'!$A:$A,$D58,'Intervenção-Pista (2)'!$B:$B,$D$40) -> 27,343.87 | W58: =SUMIFS('Intervenção-Pista (2)'!S:S,'Intervenção-Pista (2)'!$A:$A,$D58,'Intervenção-Pista (2)'!$B:$B,$D$40) -> 0 | X58: =SUMIFS('Intervenção-Pista (2)'!T:T,'Intervenção-Pista (2)'!$A:$A,$D58,'Intervenção-Pista (2)'!$B:$B,$D$40) -> 43,400.00 | Y58: =SUMIFS('Intervenção-Pista (2)'!U:U,'Intervenção-Pista (2)'!$A:$A,$D58,'Intervenção-Pista (2)'!$B:$B,$D$40) -> 0 | Z58: =SUMIFS('Intervenção-Pista (2)'!V:V,'Intervenção-Pista (2)'!$A:$A,$D58,'Intervenção-Pista (2)'!$B:$B,$D$40) -> 97,343.87 | AA58: =SUMIFS('Intervenção-Pista (2)'!W:W,'Intervenção-Pista (2)'!$A:$A,$D58,'Intervenção-Pista (2)'!$B:$B,$D$40) -> 35,000.00 | AB58: =SUMIFS('Intervenção-Pista (2)'!X:X,'Intervenção-Pista (2)'!$A:$A,$D58,'Intervenção-Pista (2)'!$B:$B,$D$40) -> 0 | AC58: =SUMIFS('Intervenção-Pista (2)'!Y:Y,'Intervenção-Pista (2)'!$A:$A,$D58,'Intervenção-Pista (2)'!$B:$B,$D$40) -> 43,400.00 | AD58: =SUMIFS('Intervenção-Pista (2)'!Z:Z,'Intervenção-Pista (2)'!$A:$A,$D58,'Intervenção-Pista (2)'!$B:$B,$D$40) -> 27,343.87 | AE58: =SUMIFS('Intervenção-Pista (2)'!AA:AA,'Intervenção-Pista (2)'!$A:$A,$D58,'Intervenção-Pista (2)'!$B:$B,$D$40) -> 70,000.00 | AF58: =SUMIFS('Intervenção-Pista (2)'!AB:AB,'Intervenção-Pista (2)'!$A:$A,$D58,'Intervenção-Pista (2)'!$B:$B,$D$40) -> 0 | AG58: =SUMIFS('Intervenção-Pista (2)'!AC:AC,'Intervenção-Pista (2)'!$A:$A,$D58,'Intervenção-Pista (2)'!$B:$B,$D$40) -> 35,000.00 | AH58: =SUMIFS('Intervenção-Pista (2)'!AD:AD,'Intervenção-Pista (2)'!$A:$A,$D58,'Intervenção-Pista (2)'!$B:$B,$D$40) -> 70,743.87 | AI58: =SUMIFS('Intervenção-Pista (2)'!AE:AE,'Intervenção-Pista (2)'!$A:$A,$D58,'Intervenção-Pista (2)'!$B:$B,$D$40) -> 0 | AJ58: =SUMIFS('Intervenção-Pista (2)'!AF:AF,'Intervenção-Pista (2)'!$A:$A,$D58,'Intervenção-Pista (2)'!$B:$B,$D$40) -> 70,000.00 | AK58: =SUMIFS('Intervenção-Pista (2)'!AG:AG,'Intervenção-Pista (2)'!$A:$A,$D58,'Intervenção-Pista (2)'!$B:$B,$D$40) -> 0
B59: 8.1.2.19 | D59: 491CMG0150 | E59: M2 | F59: 691,821.72 | H59: =SUMIFS('Intervenção-Pista (2)'!D:D,'Intervenção-Pista (2)'!$A:$A,$D59,'Intervenção-Pista (2)'!$B:$B,$D$40) -> 0 | I59: =SUMIFS('Intervenção-Pista (2)'!E:E,'Intervenção-Pista (2)'!$A:$A,$D59,'Intervenção-Pista (2)'!$B:$B,$D$40) -> 0 | J59: =SUMIFS('Intervenção-Pista (2)'!F:F,'Intervenção-Pista (2)'!$A:$A,$D59,'Intervenção-Pista (2)'!$B:$B,$D$40) -> 0 | K59: =SUMIFS('Intervenção-Pista (2)'!G:G,'Intervenção-Pista (2)'!$A:$A,$D59,'Intervenção-Pista (2)'!$B:$B,$D$40) -> 0 | L59: =SUMIFS('Intervenção-Pista (2)'!H:H,'Intervenção-Pista (2)'!$A:$A,$D59,'Intervenção-Pista (2)'!$B:$B,$D$40) -> 0 | M59: =SUMIFS('Intervenção-Pista (2)'!I:I,'Intervenção-Pista (2)'!$A:$A,$D59,'Intervenção-Pista (2)'!$B:$B,$D$40) -> 0 | N59: =SUMIFS('Intervenção-Pista (2)'!J:J,'Intervenção-Pista (2)'!$A:$A,$D59,'Intervenção-Pista (2)'!$B:$B,$D$40) -> 30,000.00 | O59: =SUMIFS('Intervenção-Pista (2)'!K:K,'Intervenção-Pista (2)'!$A:$A,$D59,'Intervenção-Pista (2)'!$B:$B,$D$40) -> 0 | P59: =SUMIFS('Intervenção-Pista (2)'!L:L,'Intervenção-Pista (2)'!$A:$A,$D59,'Intervenção-Pista (2)'!$B:$B,$D$40) -> 26,340.08 | Q59: =SUMIFS('Intervenção-Pista (2)'!M:M,'Intervenção-Pista (2)'!$A:$A,$D59,'Intervenção-Pista (2)'!$B:$B,$D$40) -> 0 | R59: =SUMIFS('Intervenção-Pista (2)'!N:N,'Intervenção-Pista (2)'!$A:$A,$D59,'Intervenção-Pista (2)'!$B:$B,$D$40) -> 0 | S59: =SUMIFS('Intervenção-Pista (2)'!O:O,'Intervenção-Pista (2)'!$A:$A,$D59,'Intervenção-Pista (2)'!$B:$B,$D$40) -> 30,000.00 | T59: =SUMIFS('Intervenção-Pista (2)'!P:P,'Intervenção-Pista (2)'!$A:$A,$D59,'Intervenção-Pista (2)'!$B:$B,$D$40) -> 30,000.00 | U59: =SUMIFS('Intervenção-Pista (2)'!Q:Q,'Intervenção-Pista (2)'!$A:$A,$D59,'Intervenção-Pista (2)'!$B:$B,$D$40) -> 52,940.08 | V59: =SUMIFS('Intervenção-Pista (2)'!R:R,'Intervenção-Pista (2)'!$A:$A,$D59,'Intervenção-Pista (2)'!$B:$B,$D$40) -> 31,780.33 | W59: =SUMIFS('Intervenção-Pista (2)'!S:S,'Intervenção-Pista (2)'!$A:$A,$D59,'Intervenção-Pista (2)'!$B:$B,$D$40) -> 0 | X59: =SUMIFS('Intervenção-Pista (2)'!T:T,'Intervenção-Pista (2)'!$A:$A,$D59,'Intervenção-Pista (2)'!$B:$B,$D$40) -> 60,000.00 | Y59: =SUMIFS('Intervenção-Pista (2)'!U:U,'Intervenção-Pista (2)'!$A:$A,$D59,'Intervenção-Pista (2)'!$B:$B,$D$40) -> 26,600.00 | Z59: =SUMIFS('Intervenção-Pista (2)'!V:V,'Intervenção-Pista (2)'!$A:$A,$D59,'Intervenção-Pista (2)'!$B:$B,$D$40) -> 58,120.41 | AA59: =SUMIFS('Intervenção-Pista (2)'!W:W,'Intervenção-Pista (2)'!$A:$A,$D59,'Intervenção-Pista (2)'!$B:$B,$D$40) -> 0 | AB59: =SUMIFS('Intervenção-Pista (2)'!X:X,'Intervenção-Pista (2)'!$A:$A,$D59,'Intervenção-Pista (2)'!$B:$B,$D$40) -> 30,000.00 | AC59: =SUMIFS('Intervenção-Pista (2)'!Y:Y,'Intervenção-Pista (2)'!$A:$A,$D59,'Intervenção-Pista (2)'!$B:$B,$D$40) -> 56,600.00 | AD59: =SUMIFS('Intervenção-Pista (2)'!Z:Z,'Intervenção-Pista (2)'!$A:$A,$D59,'Intervenção-Pista (2)'!$B:$B,$D$40) -> 31,780.33 | AE59: =SUMIFS('Intervenção-Pista (2)'!AA:AA,'Intervenção-Pista (2)'!$A:$A,$D59,'Intervenção-Pista (2)'!$B:$B,$D$40) -> 26,340.08 | AF59: =SUMIFS('Intervenção-Pista (2)'!AB:AB,'Intervenção-Pista (2)'!$A:$A,$D59,'Intervenção-Pista (2)'!$B:$B,$D$40) -> 30,000.00 | AG59: =SUMIFS('Intervenção-Pista (2)'!AC:AC,'Intervenção-Pista (2)'!$A:$A,$D59,'Intervenção-Pista (2)'!$B:$B,$D$40) -> 26,600.00 | AH59: =SUMIFS('Intervenção-Pista (2)'!AD:AD,'Intervenção-Pista (2)'!$A:$A,$D59,'Intervenção-Pista (2)'!$B:$B,$D$40) -> 61,780.33 | AI59: =SUMIFS('Intervenção-Pista (2)'!AE:AE,'Intervenção-Pista (2)'!$A:$A,$D59,'Intervenção-Pista (2)'!$B:$B,$D$40) -> 0 | AJ59: =SUMIFS('Intervenção-Pista (2)'!AF:AF,'Intervenção-Pista (2)'!$A:$A,$D59,'Intervenção-Pista (2)'!$B:$B,$D$40) -> 56,340.08 | AK59: =SUMIFS('Intervenção-Pista (2)'!AG:AG,'Intervenção-Pista (2)'!$A:$A,$D59,'Intervenção-Pista (2)'!$B:$B,$D$40) -> 26,600.00
B60: 8.1.2.20 | D60: 491CMG0170 | E60: M2 | F60: 527,236.00 | H60: =SUMIFS('Intervenção-Pista (2)'!D:D,'Intervenção-Pista (2)'!$A:$A,$D60,'Intervenção-Pista (2)'!$B:$B,$D$40) -> 0 | I60: =SUMIFS('Intervenção-Pista (2)'!E:E,'Intervenção-Pista (2)'!$A:$A,$D60,'Intervenção-Pista (2)'!$B:$B,$D$40) -> 0 | J60: =SUMIFS('Intervenção-Pista (2)'!F:F,'Intervenção-Pista (2)'!$A:$A,$D60,'Intervenção-Pista (2)'!$B:$B,$D$40) -> 0 | K60: =SUMIFS('Intervenção-Pista (2)'!G:G,'Intervenção-Pista (2)'!$A:$A,$D60,'Intervenção-Pista (2)'!$B:$B,$D$40) -> 0 | L60: =SUMIFS('Intervenção-Pista (2)'!H:H,'Intervenção-Pista (2)'!$A:$A,$D60,'Intervenção-Pista (2)'!$B:$B,$D$40) -> 0 | M60: =SUMIFS('Intervenção-Pista (2)'!I:I,'Intervenção-Pista (2)'!$A:$A,$D60,'Intervenção-Pista (2)'!$B:$B,$D$40) -> 0 | N60: =SUMIFS('Intervenção-Pista (2)'!J:J,'Intervenção-Pista (2)'!$A:$A,$D60,'Intervenção-Pista (2)'!$B:$B,$D$40) -> 0 | O60: =SUMIFS('Intervenção-Pista (2)'!K:K,'Intervenção-Pista (2)'!$A:$A,$D60,'Intervenção-Pista (2)'!$B:$B,$D$40) -> 0 | P60: =SUMIFS('Intervenção-Pista (2)'!L:L,'Intervenção-Pista (2)'!$A:$A,$D60,'Intervenção-Pista (2)'!$B:$B,$D$40) -> 0 | Q60: =SUMIFS('Intervenção-Pista (2)'!M:M,'Intervenção-Pista (2)'!$A:$A,$D60,'Intervenção-Pista (2)'!$B:$B,$D$40) -> 0 | R60: =SUMIFS('Intervenção-Pista (2)'!N:N,'Intervenção-Pista (2)'!$A:$A,$D60,'Intervenção-Pista (2)'!$B:$B,$D$40) -> 0 | S60: =SUMIFS('Intervenção-Pista (2)'!O:O,'Intervenção-Pista (2)'!$A:$A,$D60,'Intervenção-Pista (2)'!$B:$B,$D$40) -> 0 | T60: =SUMIFS('Intervenção-Pista (2)'!P:P,'Intervenção-Pista (2)'!$A:$A,$D60,'Intervenção-Pista (2)'!$B:$B,$D$40) -> 100,547.20 | U60: =SUMIFS('Intervenção-Pista (2)'!Q:Q,'Intervenção-Pista (2)'!$A:$A,$D60,'Intervenção-Pista (2)'!$B:$B,$D$40) -> 4,900.00 | V60: =SUMIFS('Intervenção-Pista (2)'!R:R,'Intervenção-Pista (2)'!$A:$A,$D60,'Intervenção-Pista (2)'!$B:$B,$D$40) -> 0 | W60: =SUMIFS('Intervenção-Pista (2)'!S:S,'Intervenção-Pista (2)'!$A:$A,$D60,'Intervenção-Pista (2)'!$B:$B,$D$40) -> 0 | X60: =SUMIFS('Intervenção-Pista (2)'!T:T,'Intervenção-Pista (2)'!$A:$A,$D60,'Intervenção-Pista (2)'!$B:$B,$D$40) -> 100,547.20 | Y60: =SUMIFS('Intervenção-Pista (2)'!U:U,'Intervenção-Pista (2)'!$A:$A,$D60,'Intervenção-Pista (2)'!$B:$B,$D$40) -> 4,900.00 | Z60: =SUMIFS('Intervenção-Pista (2)'!V:V,'Intervenção-Pista (2)'!$A:$A,$D60,'Intervenção-Pista (2)'!$B:$B,$D$40) -> 0 | AA60: =SUMIFS('Intervenção-Pista (2)'!W:W,'Intervenção-Pista (2)'!$A:$A,$D60,'Intervenção-Pista (2)'!$B:$B,$D$40) -> 0 | AB60: =SUMIFS('Intervenção-Pista (2)'!X:X,'Intervenção-Pista (2)'!$A:$A,$D60,'Intervenção-Pista (2)'!$B:$B,$D$40) -> 100,547.20 | AC60: =SUMIFS('Intervenção-Pista (2)'!Y:Y,'Intervenção-Pista (2)'!$A:$A,$D60,'Intervenção-Pista (2)'!$B:$B,$D$40) -> 4,900.00 | AD60: =SUMIFS('Intervenção-Pista (2)'!Z:Z,'Intervenção-Pista (2)'!$A:$A,$D60,'Intervenção-Pista (2)'!$B:$B,$D$40) -> 0 | AE60: =SUMIFS('Intervenção-Pista (2)'!AA:AA,'Intervenção-Pista (2)'!$A:$A,$D60,'Intervenção-Pista (2)'!$B:$B,$D$40) -> 0 | AF60: =SUMIFS('Intervenção-Pista (2)'!AB:AB,'Intervenção-Pista (2)'!$A:$A,$D60,'Intervenção-Pista (2)'!$B:$B,$D$40) -> 100,547.20 | AG60: =SUMIFS('Intervenção-Pista (2)'!AC:AC,'Intervenção-Pista (2)'!$A:$A,$D60,'Intervenção-Pista (2)'!$B:$B,$D$40) -> 4,900.00 | AH60: =SUMIFS('Intervenção-Pista (2)'!AD:AD,'Intervenção-Pista (2)'!$A:$A,$D60,'Intervenção-Pista (2)'!$B:$B,$D$40) -> 0 | AI60: =SUMIFS('Intervenção-Pista (2)'!AE:AE,'Intervenção-Pista (2)'!$A:$A,$D60,'Intervenção-Pista (2)'!$B:$B,$D$40) -> 0 | AJ60: =SUMIFS('Intervenção-Pista (2)'!AF:AF,'Intervenção-Pista (2)'!$A:$A,$D60,'Intervenção-Pista (2)'!$B:$B,$D$40) -> 100,547.20 | AK60: =SUMIFS('Intervenção-Pista (2)'!AG:AG,'Intervenção-Pista (2)'!$A:$A,$D60,'Intervenção-Pista (2)'!$B:$B,$D$40) -> 4,900.00
B61: 8.1.2.21 | D61: 491CMG0190 | E61: M2 | F61: 145,678.47 | H61: =SUMIFS('Intervenção-Pista (2)'!D:D,'Intervenção-Pista (2)'!$A:$A,$D61,'Intervenção-Pista (2)'!$B:$B,$D$40) -> 0 | I61: =SUMIFS('Intervenção-Pista (2)'!E:E,'Intervenção-Pista (2)'!$A:$A,$D61,'Intervenção-Pista (2)'!$B:$B,$D$40) -> 0 | J61: =SUMIFS('Intervenção-Pista (2)'!F:F,'Intervenção-Pista (2)'!$A:$A,$D61,'Intervenção-Pista (2)'!$B:$B,$D$40) -> 0 | K61: =SUMIFS('Intervenção-Pista (2)'!G:G,'Intervenção-Pista (2)'!$A:$A,$D61,'Intervenção-Pista (2)'!$B:$B,$D$40) -> 0 | L61: =SUMIFS('Intervenção-Pista (2)'!H:H,'Intervenção-Pista (2)'!$A:$A,$D61,'Intervenção-Pista (2)'!$B:$B,$D$40) -> 0 | M61: =SUMIFS('Intervenção-Pista (2)'!I:I,'Intervenção-Pista (2)'!$A:$A,$D61,'Intervenção-Pista (2)'!$B:$B,$D$40) -> 0 | N61: =SUMIFS('Intervenção-Pista (2)'!J:J,'Intervenção-Pista (2)'!$A:$A,$D61,'Intervenção-Pista (2)'!$B:$B,$D$40) -> 0 | O61: =SUMIFS('Intervenção-Pista (2)'!K:K,'Intervenção-Pista (2)'!$A:$A,$D61,'Intervenção-Pista (2)'!$B:$B,$D$40) -> 0 | P61: =SUMIFS('Intervenção-Pista (2)'!L:L,'Intervenção-Pista (2)'!$A:$A,$D61,'Intervenção-Pista (2)'!$B:$B,$D$40) -> 20,811.21 | Q61: =SUMIFS('Intervenção-Pista (2)'!M:M,'Intervenção-Pista (2)'!$A:$A,$D61,'Intervenção-Pista (2)'!$B:$B,$D$40) -> 0 | R61: =SUMIFS('Intervenção-Pista (2)'!N:N,'Intervenção-Pista (2)'!$A:$A,$D61,'Intervenção-Pista (2)'!$B:$B,$D$40) -> 0 | S61: =SUMIFS('Intervenção-Pista (2)'!O:O,'Intervenção-Pista (2)'!$A:$A,$D61,'Intervenção-Pista (2)'!$B:$B,$D$40) -> 0 | T61: =SUMIFS('Intervenção-Pista (2)'!P:P,'Intervenção-Pista (2)'!$A:$A,$D61,'Intervenção-Pista (2)'!$B:$B,$D$40) -> 20,811.21 | U61: =SUMIFS('Intervenção-Pista (2)'!Q:Q,'Intervenção-Pista (2)'!$A:$A,$D61,'Intervenção-Pista (2)'!$B:$B,$D$40) -> 0 | V61: =SUMIFS('Intervenção-Pista (2)'!R:R,'Intervenção-Pista (2)'!$A:$A,$D61,'Intervenção-Pista (2)'!$B:$B,$D$40) -> 0 | W61: =SUMIFS('Intervenção-Pista (2)'!S:S,'Intervenção-Pista (2)'!$A:$A,$D61,'Intervenção-Pista (2)'!$B:$B,$D$40) -> 0 | X61: =SUMIFS('Intervenção-Pista (2)'!T:T,'Intervenção-Pista (2)'!$A:$A,$D61,'Intervenção-Pista (2)'!$B:$B,$D$40) -> 20,811.21 | Y61: =SUMIFS('Intervenção-Pista (2)'!U:U,'Intervenção-Pista (2)'!$A:$A,$D61,'Intervenção-Pista (2)'!$B:$B,$D$40) -> 0 | Z61: =SUMIFS('Intervenção-Pista (2)'!V:V,'Intervenção-Pista (2)'!$A:$A,$D61,'Intervenção-Pista (2)'!$B:$B,$D$40) -> 0 | AA61: =SUMIFS('Intervenção-Pista (2)'!W:W,'Intervenção-Pista (2)'!$A:$A,$D61,'Intervenção-Pista (2)'!$B:$B,$D$40) -> 20,811.21 | AB61: =SUMIFS('Intervenção-Pista (2)'!X:X,'Intervenção-Pista (2)'!$A:$A,$D61,'Intervenção-Pista (2)'!$B:$B,$D$40) -> 0 | AC61: =SUMIFS('Intervenção-Pista (2)'!Y:Y,'Intervenção-Pista (2)'!$A:$A,$D61,'Intervenção-Pista (2)'!$B:$B,$D$40) -> 0 | AD61: =SUMIFS('Intervenção-Pista (2)'!Z:Z,'Intervenção-Pista (2)'!$A:$A,$D61,'Intervenção-Pista (2)'!$B:$B,$D$40) -> 0 | AE61: =SUMIFS('Intervenção-Pista (2)'!AA:AA,'Intervenção-Pista (2)'!$A:$A,$D61,'Intervenção-Pista (2)'!$B:$B,$D$40) -> 20,811.21 | AF61: =SUMIFS('Intervenção-Pista (2)'!AB:AB,'Intervenção-Pista (2)'!$A:$A,$D61,'Intervenção-Pista (2)'!$B:$B,$D$40) -> 0 | AG61: =SUMIFS('Intervenção-Pista (2)'!AC:AC,'Intervenção-Pista (2)'!$A:$A,$D61,'Intervenção-Pista (2)'!$B:$B,$D$40) -> 0 | AH61: =SUMIFS('Intervenção-Pista (2)'!AD:AD,'Intervenção-Pista (2)'!$A:$A,$D61,'Intervenção-Pista (2)'!$B:$B,$D$40) -> 20,811.21 | AI61: =SUMIFS('Intervenção-Pista (2)'!AE:AE,'Intervenção-Pista (2)'!$A:$A,$D61,'Intervenção-Pista (2)'!$B:$B,$D$40) -> 0 | AJ61: =SUMIFS('Intervenção-Pista (2)'!AF:AF,'Intervenção-Pista (2)'!$A:$A,$D61,'Intervenção-Pista (2)'!$B:$B,$D$40) -> 0 | AK61: =SUMIFS('Intervenção-Pista (2)'!AG:AG,'Intervenção-Pista (2)'!$A:$A,$D61,'Intervenção-Pista (2)'!$B:$B,$D$40) -> 20,811.21
B62: 8.1.2.22 | D62: 491CMG0210D | E62: M2 | F62: 95,200.00 | H62: =SUMIFS('Intervenção-Pista (2)'!D:D,'Intervenção-Pista (2)'!$A:$A,$D62,'Intervenção-Pista (2)'!$B:$B,$D$40) -> 0 | I62: =SUMIFS('Intervenção-Pista (2)'!E:E,'Intervenção-Pista (2)'!$A:$A,$D62,'Intervenção-Pista (2)'!$B:$B,$D$40) -> 0 | J62: =SUMIFS('Intervenção-Pista (2)'!F:F,'Intervenção-Pista (2)'!$A:$A,$D62,'Intervenção-Pista (2)'!$B:$B,$D$40) -> 0 | K62: =SUMIFS('Intervenção-Pista (2)'!G:G,'Intervenção-Pista (2)'!$A:$A,$D62,'Intervenção-Pista (2)'!$B:$B,$D$40) -> 0 | L62: =SUMIFS('Intervenção-Pista (2)'!H:H,'Intervenção-Pista (2)'!$A:$A,$D62,'Intervenção-Pista (2)'!$B:$B,$D$40) -> 0 | M62: =SUMIFS('Intervenção-Pista (2)'!I:I,'Intervenção-Pista (2)'!$A:$A,$D62,'Intervenção-Pista (2)'!$B:$B,$D$40) -> 0 | N62: =SUMIFS('Intervenção-Pista (2)'!J:J,'Intervenção-Pista (2)'!$A:$A,$D62,'Intervenção-Pista (2)'!$B:$B,$D$40) -> 0 | O62: =SUMIFS('Intervenção-Pista (2)'!K:K,'Intervenção-Pista (2)'!$A:$A,$D62,'Intervenção-Pista (2)'!$B:$B,$D$40) -> 11,900.00 | P62: =SUMIFS('Intervenção-Pista (2)'!L:L,'Intervenção-Pista (2)'!$A:$A,$D62,'Intervenção-Pista (2)'!$B:$B,$D$40) -> 0 | Q62: =SUMIFS('Intervenção-Pista (2)'!M:M,'Intervenção-Pista (2)'!$A:$A,$D62,'Intervenção-Pista (2)'!$B:$B,$D$40) -> 0 | R62: =SUMIFS('Intervenção-Pista (2)'!N:N,'Intervenção-Pista (2)'!$A:$A,$D62,'Intervenção-Pista (2)'!$B:$B,$D$40) -> 11,900.00 | S62: =SUMIFS('Intervenção-Pista (2)'!O:O,'Intervenção-Pista (2)'!$A:$A,$D62,'Intervenção-Pista (2)'!$B:$B,$D$40) -> 0 | T62: =SUMIFS('Intervenção-Pista (2)'!P:P,'Intervenção-Pista (2)'!$A:$A,$D62,'Intervenção-Pista (2)'!$B:$B,$D$40) -> 0 | U62: =SUMIFS('Intervenção-Pista (2)'!Q:Q,'Intervenção-Pista (2)'!$A:$A,$D62,'Intervenção-Pista (2)'!$B:$B,$D$40) -> 11,900.00 | V62: =SUMIFS('Intervenção-Pista (2)'!R:R,'Intervenção-Pista (2)'!$A:$A,$D62,'Intervenção-Pista (2)'!$B:$B,$D$40) -> 0 | W62: =SUMIFS('Intervenção-Pista (2)'!S:S,'Intervenção-Pista (2)'!$A:$A,$D62,'Intervenção-Pista (2)'!$B:$B,$D$40) -> 0 | X62: =SUMIFS('Intervenção-Pista (2)'!T:T,'Intervenção-Pista (2)'!$A:$A,$D62,'Intervenção-Pista (2)'!$B:$B,$D$40) -> 11,900.00 | Y62: =SUMIFS('Intervenção-Pista (2)'!U:U,'Intervenção-Pista (2)'!$A:$A,$D62,'Intervenção-Pista (2)'!$B:$B,$D$40) -> 0 | Z62: =SUMIFS('Intervenção-Pista (2)'!V:V,'Intervenção-Pista (2)'!$A:$A,$D62,'Intervenção-Pista (2)'!$B:$B,$D$40) -> 0 | AA62: =SUMIFS('Intervenção-Pista (2)'!W:W,'Intervenção-Pista (2)'!$A:$A,$D62,'Intervenção-Pista (2)'!$B:$B,$D$40) -> 11,900.00 | AB62: =SUMIFS('Intervenção-Pista (2)'!X:X,'Intervenção-Pista (2)'!$A:$A,$D62,'Intervenção-Pista (2)'!$B:$B,$D$40) -> 0 | AC62: =SUMIFS('Intervenção-Pista (2)'!Y:Y,'Intervenção-Pista (2)'!$A:$A,$D62,'Intervenção-Pista (2)'!$B:$B,$D$40) -> 0 | AD62: =SUMIFS('Intervenção-Pista (2)'!Z:Z,'Intervenção-Pista (2)'!$A:$A,$D62,'Intervenção-Pista (2)'!$B:$B,$D$40) -> 11,900.00 | AE62: =SUMIFS('Intervenção-Pista (2)'!AA:AA,'Intervenção-Pista (2)'!$A:$A,$D62,'Intervenção-Pista (2)'!$B:$B,$D$40) -> 0 | AF62: =SUMIFS('Intervenção-Pista (2)'!AB:AB,'Intervenção-Pista (2)'!$A:$A,$D62,'Intervenção-Pista (2)'!$B:$B,$D$40) -> 0 | AG62: =SUMIFS('Intervenção-Pista (2)'!AC:AC,'Intervenção-Pista (2)'!$A:$A,$D62,'Intervenção-Pista (2)'!$B:$B,$D$40) -> 11,900.00 | AH62: =SUMIFS('Intervenção-Pista (2)'!AD:AD,'Intervenção-Pista (2)'!$A:$A,$D62,'Intervenção-Pista (2)'!$B:$B,$D$40) -> 0 | AI62: =SUMIFS('Intervenção-Pista (2)'!AE:AE,'Intervenção-Pista (2)'!$A:$A,$D62,'Intervenção-Pista (2)'!$B:$B,$D$40) -> 0 | AJ62: =SUMIFS('Intervenção-Pista (2)'!AF:AF,'Intervenção-Pista (2)'!$A:$A,$D62,'Intervenção-Pista (2)'!$B:$B,$D$40) -> 11,900.00 | AK62: =SUMIFS('Intervenção-Pista (2)'!AG:AG,'Intervenção-Pista (2)'!$A:$A,$D62,'Intervenção-Pista (2)'!$B:$B,$D$40) -> 0
B63: 8.1.2.23 | D63: 146BMG0250 | E63: M2 | F63: 497,947.39 | H63: =SUMIFS('Intervenção-Pista (2)'!D:D,'Intervenção-Pista (2)'!$A:$A,$D63,'Intervenção-Pista (2)'!$B:$B,$D$40) -> 0 | I63: =SUMIFS('Intervenção-Pista (2)'!E:E,'Intervenção-Pista (2)'!$A:$A,$D63,'Intervenção-Pista (2)'!$B:$B,$D$40) -> 32,256.28 | J63: =SUMIFS('Intervenção-Pista (2)'!F:F,'Intervenção-Pista (2)'!$A:$A,$D63,'Intervenção-Pista (2)'!$B:$B,$D$40) -> 0 | K63: =SUMIFS('Intervenção-Pista (2)'!G:G,'Intervenção-Pista (2)'!$A:$A,$D63,'Intervenção-Pista (2)'!$B:$B,$D$40) -> 0 | L63: =SUMIFS('Intervenção-Pista (2)'!H:H,'Intervenção-Pista (2)'!$A:$A,$D63,'Intervenção-Pista (2)'!$B:$B,$D$40) -> 0 | M63: =SUMIFS('Intervenção-Pista (2)'!I:I,'Intervenção-Pista (2)'!$A:$A,$D63,'Intervenção-Pista (2)'!$B:$B,$D$40) -> 0 | N63: =SUMIFS('Intervenção-Pista (2)'!J:J,'Intervenção-Pista (2)'!$A:$A,$D63,'Intervenção-Pista (2)'!$B:$B,$D$40) -> 0 | O63: =SUMIFS('Intervenção-Pista (2)'!K:K,'Intervenção-Pista (2)'!$A:$A,$D63,'Intervenção-Pista (2)'!$B:$B,$D$40) -> 0 | P63: =SUMIFS('Intervenção-Pista (2)'!L:L,'Intervenção-Pista (2)'!$A:$A,$D63,'Intervenção-Pista (2)'!$B:$B,$D$40) -> 0 | Q63: =SUMIFS('Intervenção-Pista (2)'!M:M,'Intervenção-Pista (2)'!$A:$A,$D63,'Intervenção-Pista (2)'!$B:$B,$D$40) -> 48,834.60 | R63: =SUMIFS('Intervenção-Pista (2)'!N:N,'Intervenção-Pista (2)'!$A:$A,$D63,'Intervenção-Pista (2)'!$B:$B,$D$40) -> 106,395.77 | S63: =SUMIFS('Intervenção-Pista (2)'!O:O,'Intervenção-Pista (2)'!$A:$A,$D63,'Intervenção-Pista (2)'!$B:$B,$D$40) -> 0 | T63: =SUMIFS('Intervenção-Pista (2)'!P:P,'Intervenção-Pista (2)'!$A:$A,$D63,'Intervenção-Pista (2)'!$B:$B,$D$40) -> 0 | U63: =SUMIFS('Intervenção-Pista (2)'!Q:Q,'Intervenção-Pista (2)'!$A:$A,$D63,'Intervenção-Pista (2)'!$B:$B,$D$40) -> 0 | V63: =SUMIFS('Intervenção-Pista (2)'!R:R,'Intervenção-Pista (2)'!$A:$A,$D63,'Intervenção-Pista (2)'!$B:$B,$D$40) -> 0 | W63: =SUMIFS('Intervenção-Pista (2)'!S:S,'Intervenção-Pista (2)'!$A:$A,$D63,'Intervenção-Pista (2)'!$B:$B,$D$40) -> 0 | X63: =SUMIFS('Intervenção-Pista (2)'!T:T,'Intervenção-Pista (2)'!$A:$A,$D63,'Intervenção-Pista (2)'!$B:$B,$D$40) -> 0 | Y63: =SUMIFS('Intervenção-Pista (2)'!U:U,'Intervenção-Pista (2)'!$A:$A,$D63,'Intervenção-Pista (2)'!$B:$B,$D$40) -> 0 | Z63: =SUMIFS('Intervenção-Pista (2)'!V:V,'Intervenção-Pista (2)'!$A:$A,$D63,'Intervenção-Pista (2)'!$B:$B,$D$40) -> 48,834.60 | AA63: =SUMIFS('Intervenção-Pista (2)'!W:W,'Intervenção-Pista (2)'!$A:$A,$D63,'Intervenção-Pista (2)'!$B:$B,$D$40) -> 106,395.77 | AB63: =SUMIFS('Intervenção-Pista (2)'!X:X,'Intervenção-Pista (2)'!$A:$A,$D63,'Intervenção-Pista (2)'!$B:$B,$D$40) -> 0 | AC63: =SUMIFS('Intervenção-Pista (2)'!Y:Y,'Intervenção-Pista (2)'!$A:$A,$D63,'Intervenção-Pista (2)'!$B:$B,$D$40) -> 0 | AD63: =SUMIFS('Intervenção-Pista (2)'!Z:Z,'Intervenção-Pista (2)'!$A:$A,$D63,'Intervenção-Pista (2)'!$B:$B,$D$40) -> 0 | AE63: =SUMIFS('Intervenção-Pista (2)'!AA:AA,'Intervenção-Pista (2)'!$A:$A,$D63,'Intervenção-Pista (2)'!$B:$B,$D$40) -> 0 | AF63: =SUMIFS('Intervenção-Pista (2)'!AB:AB,'Intervenção-Pista (2)'!$A:$A,$D63,'Intervenção-Pista (2)'!$B:$B,$D$40) -> 0 | AG63: =SUMIFS('Intervenção-Pista (2)'!AC:AC,'Intervenção-Pista (2)'!$A:$A,$D63,'Intervenção-Pista (2)'!$B:$B,$D$40) -> 0 | AH63: =SUMIFS('Intervenção-Pista (2)'!AD:AD,'Intervenção-Pista (2)'!$A:$A,$D63,'Intervenção-Pista (2)'!$B:$B,$D$40) -> 0 | AI63: =SUMIFS('Intervenção-Pista (2)'!AE:AE,'Intervenção-Pista (2)'!$A:$A,$D63,'Intervenção-Pista (2)'!$B:$B,$D$40) -> 48,834.60 | AJ63: =SUMIFS('Intervenção-Pista (2)'!AF:AF,'Intervenção-Pista (2)'!$A:$A,$D63,'Intervenção-Pista (2)'!$B:$B,$D$40) -> 106,395.77 | AK63: =SUMIFS('Intervenção-Pista (2)'!AG:AG,'Intervenção-Pista (2)'!$A:$A,$D63,'Intervenção-Pista (2)'!$B:$B,$D$40) -> 0
B64: 8.1.2.24 | D64: 146BMG0252 | E64: M2 | F64: 97,200.00 | H64: =SUMIFS('Intervenção-Pista (2)'!D:D,'Intervenção-Pista (2)'!$A:$A,$D64,'Intervenção-Pista (2)'!$B:$B,$D$40) -> 0 | I64: =SUMIFS('Intervenção-Pista (2)'!E:E,'Intervenção-Pista (2)'!$A:$A,$D64,'Intervenção-Pista (2)'!$B:$B,$D$40) -> 0 | J64: =SUMIFS('Intervenção-Pista (2)'!F:F,'Intervenção-Pista (2)'!$A:$A,$D64,'Intervenção-Pista (2)'!$B:$B,$D$40) -> 0 | K64: =SUMIFS('Intervenção-Pista (2)'!G:G,'Intervenção-Pista (2)'!$A:$A,$D64,'Intervenção-Pista (2)'!$B:$B,$D$40) -> 15,000.00 | L64: =SUMIFS('Intervenção-Pista (2)'!H:H,'Intervenção-Pista (2)'!$A:$A,$D64,'Intervenção-Pista (2)'!$B:$B,$D$40) -> 0 | M64: =SUMIFS('Intervenção-Pista (2)'!I:I,'Intervenção-Pista (2)'!$A:$A,$D64,'Intervenção-Pista (2)'!$B:$B,$D$40) -> 0 | N64: =SUMIFS('Intervenção-Pista (2)'!J:J,'Intervenção-Pista (2)'!$A:$A,$D64,'Intervenção-Pista (2)'!$B:$B,$D$40) -> 0 | O64: =SUMIFS('Intervenção-Pista (2)'!K:K,'Intervenção-Pista (2)'!$A:$A,$D64,'Intervenção-Pista (2)'!$B:$B,$D$40) -> 0 | P64: =SUMIFS('Intervenção-Pista (2)'!L:L,'Intervenção-Pista (2)'!$A:$A,$D64,'Intervenção-Pista (2)'!$B:$B,$D$40) -> 0 | Q64: =SUMIFS('Intervenção-Pista (2)'!M:M,'Intervenção-Pista (2)'!$A:$A,$D64,'Intervenção-Pista (2)'!$B:$B,$D$40) -> 0 | R64: =SUMIFS('Intervenção-Pista (2)'!N:N,'Intervenção-Pista (2)'!$A:$A,$D64,'Intervenção-Pista (2)'!$B:$B,$D$40) -> 17,400.00 | S64: =SUMIFS('Intervenção-Pista (2)'!O:O,'Intervenção-Pista (2)'!$A:$A,$D64,'Intervenção-Pista (2)'!$B:$B,$D$40) -> 0 | T64: =SUMIFS('Intervenção-Pista (2)'!P:P,'Intervenção-Pista (2)'!$A:$A,$D64,'Intervenção-Pista (2)'!$B:$B,$D$40) -> 15,000.00 | U64: =SUMIFS('Intervenção-Pista (2)'!Q:Q,'Intervenção-Pista (2)'!$A:$A,$D64,'Intervenção-Pista (2)'!$B:$B,$D$40) -> 0 | V64: =SUMIFS('Intervenção-Pista (2)'!R:R,'Intervenção-Pista (2)'!$A:$A,$D64,'Intervenção-Pista (2)'!$B:$B,$D$40) -> 0 | W64: =SUMIFS('Intervenção-Pista (2)'!S:S,'Intervenção-Pista (2)'!$A:$A,$D64,'Intervenção-Pista (2)'!$B:$B,$D$40) -> 0 | X64: =SUMIFS('Intervenção-Pista (2)'!T:T,'Intervenção-Pista (2)'!$A:$A,$D64,'Intervenção-Pista (2)'!$B:$B,$D$40) -> 0 | Y64: =SUMIFS('Intervenção-Pista (2)'!U:U,'Intervenção-Pista (2)'!$A:$A,$D64,'Intervenção-Pista (2)'!$B:$B,$D$40) -> 0 | Z64: =SUMIFS('Intervenção-Pista (2)'!V:V,'Intervenção-Pista (2)'!$A:$A,$D64,'Intervenção-Pista (2)'!$B:$B,$D$40) -> 0 | AA64: =SUMIFS('Intervenção-Pista (2)'!W:W,'Intervenção-Pista (2)'!$A:$A,$D64,'Intervenção-Pista (2)'!$B:$B,$D$40) -> 17,400.00 | AB64: =SUMIFS('Intervenção-Pista (2)'!X:X,'Intervenção-Pista (2)'!$A:$A,$D64,'Intervenção-Pista (2)'!$B:$B,$D$40) -> 0 | AC64: =SUMIFS('Intervenção-Pista (2)'!Y:Y,'Intervenção-Pista (2)'!$A:$A,$D64,'Intervenção-Pista (2)'!$B:$B,$D$40) -> 15,000.00 | AD64: =SUMIFS('Intervenção-Pista (2)'!Z:Z,'Intervenção-Pista (2)'!$A:$A,$D64,'Intervenção-Pista (2)'!$B:$B,$D$40) -> 0 | AE64: =SUMIFS('Intervenção-Pista (2)'!AA:AA,'Intervenção-Pista (2)'!$A:$A,$D64,'Intervenção-Pista (2)'!$B:$B,$D$40) -> 0 | AF64: =SUMIFS('Intervenção-Pista (2)'!AB:AB,'Intervenção-Pista (2)'!$A:$A,$D64,'Intervenção-Pista (2)'!$B:$B,$D$40) -> 0 | AG64: =SUMIFS('Intervenção-Pista (2)'!AC:AC,'Intervenção-Pista (2)'!$A:$A,$D64,'Intervenção-Pista (2)'!$B:$B,$D$40) -> 0 | AH64: =SUMIFS('Intervenção-Pista (2)'!AD:AD,'Intervenção-Pista (2)'!$A:$A,$D64,'Intervenção-Pista (2)'!$B:$B,$D$40) -> 0 | AI64: =SUMIFS('Intervenção-Pista (2)'!AE:AE,'Intervenção-Pista (2)'!$A:$A,$D64,'Intervenção-Pista (2)'!$B:$B,$D$40) -> 0 | AJ64: =SUMIFS('Intervenção-Pista (2)'!AF:AF,'Intervenção-Pista (2)'!$A:$A,$D64,'Intervenção-Pista (2)'!$B:$B,$D$40) -> 17,400.00 | AK64: =SUMIFS('Intervenção-Pista (2)'!AG:AG,'Intervenção-Pista (2)'!$A:$A,$D64,'Intervenção-Pista (2)'!$B:$B,$D$40) -> 0
B65: 8.1.2.25 | D65: 369CMG0070 | E65: M2 | F65: 684,976.60 | H65: =SUMIFS('Intervenção-Pista (2)'!D:D,'Intervenção-Pista (2)'!$A:$A,$D65,'Intervenção-Pista (2)'!$B:$B,$D$40) -> 0 | I65: =SUMIFS('Intervenção-Pista (2)'!E:E,'Intervenção-Pista (2)'!$A:$A,$D65,'Intervenção-Pista (2)'!$B:$B,$D$40) -> 136,995.32 | J65: =SUMIFS('Intervenção-Pista (2)'!F:F,'Intervenção-Pista (2)'!$A:$A,$D65,'Intervenção-Pista (2)'!$B:$B,$D$40) -> 0 | K65: =SUMIFS('Intervenção-Pista (2)'!G:G,'Intervenção-Pista (2)'!$A:$A,$D65,'Intervenção-Pista (2)'!$B:$B,$D$40) -> 0 | L65: =SUMIFS('Intervenção-Pista (2)'!H:H,'Intervenção-Pista (2)'!$A:$A,$D65,'Intervenção-Pista (2)'!$B:$B,$D$40) -> 0 | M65: =SUMIFS('Intervenção-Pista (2)'!I:I,'Intervenção-Pista (2)'!$A:$A,$D65,'Intervenção-Pista (2)'!$B:$B,$D$40) -> 0 | N65: =SUMIFS('Intervenção-Pista (2)'!J:J,'Intervenção-Pista (2)'!$A:$A,$D65,'Intervenção-Pista (2)'!$B:$B,$D$40) -> 0 | O65: =SUMIFS('Intervenção-Pista (2)'!K:K,'Intervenção-Pista (2)'!$A:$A,$D65,'Intervenção-Pista (2)'!$B:$B,$D$40) -> 71,995.32 | P65: =SUMIFS('Intervenção-Pista (2)'!L:L,'Intervenção-Pista (2)'!$A:$A,$D65,'Intervenção-Pista (2)'!$B:$B,$D$40) -> 65,000.00 | Q65: =SUMIFS('Intervenção-Pista (2)'!M:M,'Intervenção-Pista (2)'!$A:$A,$D65,'Intervenção-Pista (2)'!$B:$B,$D$40) -> 0 | R65: =SUMIFS('Intervenção-Pista (2)'!N:N,'Intervenção-Pista (2)'!$A:$A,$D65,'Intervenção-Pista (2)'!$B:$B,$D$40) -> 0 | S65: =SUMIFS('Intervenção-Pista (2)'!O:O,'Intervenção-Pista (2)'!$A:$A,$D65,'Intervenção-Pista (2)'!$B:$B,$D$40) -> 0 | T65: =SUMIFS('Intervenção-Pista (2)'!P:P,'Intervenção-Pista (2)'!$A:$A,$D65,'Intervenção-Pista (2)'!$B:$B,$D$40) -> 0 | U65: =SUMIFS('Intervenção-Pista (2)'!Q:Q,'Intervenção-Pista (2)'!$A:$A,$D65,'Intervenção-Pista (2)'!$B:$B,$D$40) -> 71,995.32 | V65: =SUMIFS('Intervenção-Pista (2)'!R:R,'Intervenção-Pista (2)'!$A:$A,$D65,'Intervenção-Pista (2)'!$B:$B,$D$40) -> 65,000.00 | W65: =SUMIFS('Intervenção-Pista (2)'!S:S,'Intervenção-Pista (2)'!$A:$A,$D65,'Intervenção-Pista (2)'!$B:$B,$D$40) -> 0 | X65: =SUMIFS('Intervenção-Pista (2)'!T:T,'Intervenção-Pista (2)'!$A:$A,$D65,'Intervenção-Pista (2)'!$B:$B,$D$40) -> 0 | Y65: =SUMIFS('Intervenção-Pista (2)'!U:U,'Intervenção-Pista (2)'!$A:$A,$D65,'Intervenção-Pista (2)'!$B:$B,$D$40) -> 0 | Z65: =SUMIFS('Intervenção-Pista (2)'!V:V,'Intervenção-Pista (2)'!$A:$A,$D65,'Intervenção-Pista (2)'!$B:$B,$D$40) -> 0 | AA65: =SUMIFS('Intervenção-Pista (2)'!W:W,'Intervenção-Pista (2)'!$A:$A,$D65,'Intervenção-Pista (2)'!$B:$B,$D$40) -> 71,995.32 | AB65: =SUMIFS('Intervenção-Pista (2)'!X:X,'Intervenção-Pista (2)'!$A:$A,$D65,'Intervenção-Pista (2)'!$B:$B,$D$40) -> 65,000.00 | AC65: =SUMIFS('Intervenção-Pista (2)'!Y:Y,'Intervenção-Pista (2)'!$A:$A,$D65,'Intervenção-Pista (2)'!$B:$B,$D$40) -> 0 | AD65: =SUMIFS('Intervenção-Pista (2)'!Z:Z,'Intervenção-Pista (2)'!$A:$A,$D65,'Intervenção-Pista (2)'!$B:$B,$D$40) -> 0 | AE65: =SUMIFS('Intervenção-Pista (2)'!AA:AA,'Intervenção-Pista (2)'!$A:$A,$D65,'Intervenção-Pista (2)'!$B:$B,$D$40) -> 0 | AF65: =SUMIFS('Intervenção-Pista (2)'!AB:AB,'Intervenção-Pista (2)'!$A:$A,$D65,'Intervenção-Pista (2)'!$B:$B,$D$40) -> 0 | AG65: =SUMIFS('Intervenção-Pista (2)'!AC:AC,'Intervenção-Pista (2)'!$A:$A,$D65,'Intervenção-Pista (2)'!$B:$B,$D$40) -> 71,995.32 | AH65: =SUMIFS('Intervenção-Pista (2)'!AD:AD,'Intervenção-Pista (2)'!$A:$A,$D65,'Intervenção-Pista (2)'!$B:$B,$D$40) -> 65,000.00 | AI65: =SUMIFS('Intervenção-Pista (2)'!AE:AE,'Intervenção-Pista (2)'!$A:$A,$D65,'Intervenção-Pista (2)'!$B:$B,$D$40) -> 0 | AJ65: =SUMIFS('Intervenção-Pista (2)'!AF:AF,'Intervenção-Pista (2)'!$A:$A,$D65,'Intervenção-Pista (2)'!$B:$B,$D$40) -> 0 | AK65: =SUMIFS('Intervenção-Pista (2)'!AG:AG,'Intervenção-Pista (2)'!$A:$A,$D65,'Intervenção-Pista (2)'!$B:$B,$D$40) -> 0
B66: 8.1.2.26 | D66: 369CMG0090 | E66: M2 | F66: 1,477,424.26 | H66: =SUMIFS('Intervenção-Pista (2)'!D:D,'Intervenção-Pista (2)'!$A:$A,$D66,'Intervenção-Pista (2)'!$B:$B,$D$40) -> 0 | I66: =SUMIFS('Intervenção-Pista (2)'!E:E,'Intervenção-Pista (2)'!$A:$A,$D66,'Intervenção-Pista (2)'!$B:$B,$D$40) -> 0 | J66: =SUMIFS('Intervenção-Pista (2)'!F:F,'Intervenção-Pista (2)'!$A:$A,$D66,'Intervenção-Pista (2)'!$B:$B,$D$40) -> 0 | K66: =SUMIFS('Intervenção-Pista (2)'!G:G,'Intervenção-Pista (2)'!$A:$A,$D66,'Intervenção-Pista (2)'!$B:$B,$D$40) -> 29,635.58 | L66: =SUMIFS('Intervenção-Pista (2)'!H:H,'Intervenção-Pista (2)'!$A:$A,$D66,'Intervenção-Pista (2)'!$B:$B,$D$40) -> 0 | M66: =SUMIFS('Intervenção-Pista (2)'!I:I,'Intervenção-Pista (2)'!$A:$A,$D66,'Intervenção-Pista (2)'!$B:$B,$D$40) -> 31,399.42 | N66: =SUMIFS('Intervenção-Pista (2)'!J:J,'Intervenção-Pista (2)'!$A:$A,$D66,'Intervenção-Pista (2)'!$B:$B,$D$40) -> 0 | O66: =SUMIFS('Intervenção-Pista (2)'!K:K,'Intervenção-Pista (2)'!$A:$A,$D66,'Intervenção-Pista (2)'!$B:$B,$D$40) -> 124,331.00 | P66: =SUMIFS('Intervenção-Pista (2)'!L:L,'Intervenção-Pista (2)'!$A:$A,$D66,'Intervenção-Pista (2)'!$B:$B,$D$40) -> 85,273.72 | Q66: =SUMIFS('Intervenção-Pista (2)'!M:M,'Intervenção-Pista (2)'!$A:$A,$D66,'Intervenção-Pista (2)'!$B:$B,$D$40) -> 31,399.42 | R66: =SUMIFS('Intervenção-Pista (2)'!N:N,'Intervenção-Pista (2)'!$A:$A,$D66,'Intervenção-Pista (2)'!$B:$B,$D$40) -> 0 | S66: =SUMIFS('Intervenção-Pista (2)'!O:O,'Intervenção-Pista (2)'!$A:$A,$D66,'Intervenção-Pista (2)'!$B:$B,$D$40) -> 124,331.00 | T66: =SUMIFS('Intervenção-Pista (2)'!P:P,'Intervenção-Pista (2)'!$A:$A,$D66,'Intervenção-Pista (2)'!$B:$B,$D$40) -> 55,638.14 | U66: =SUMIFS('Intervenção-Pista (2)'!Q:Q,'Intervenção-Pista (2)'!$A:$A,$D66,'Intervenção-Pista (2)'!$B:$B,$D$40) -> 61,035.00 | V66: =SUMIFS('Intervenção-Pista (2)'!R:R,'Intervenção-Pista (2)'!$A:$A,$D66,'Intervenção-Pista (2)'!$B:$B,$D$40) -> 0 | W66: =SUMIFS('Intervenção-Pista (2)'!S:S,'Intervenção-Pista (2)'!$A:$A,$D66,'Intervenção-Pista (2)'!$B:$B,$D$40) -> 124,331.00 | X66: =SUMIFS('Intervenção-Pista (2)'!T:T,'Intervenção-Pista (2)'!$A:$A,$D66,'Intervenção-Pista (2)'!$B:$B,$D$40) -> 55,638.14 | Y66: =SUMIFS('Intervenção-Pista (2)'!U:U,'Intervenção-Pista (2)'!$A:$A,$D66,'Intervenção-Pista (2)'!$B:$B,$D$40) -> 31,399.42 | Z66: =SUMIFS('Intervenção-Pista (2)'!V:V,'Intervenção-Pista (2)'!$A:$A,$D66,'Intervenção-Pista (2)'!$B:$B,$D$40) -> 29,635.58 | AA66: =SUMIFS('Intervenção-Pista (2)'!W:W,'Intervenção-Pista (2)'!$A:$A,$D66,'Intervenção-Pista (2)'!$B:$B,$D$40) -> 124,331.00 | AB66: =SUMIFS('Intervenção-Pista (2)'!X:X,'Intervenção-Pista (2)'!$A:$A,$D66,'Intervenção-Pista (2)'!$B:$B,$D$40) -> 55,638.14 | AC66: =SUMIFS('Intervenção-Pista (2)'!Y:Y,'Intervenção-Pista (2)'!$A:$A,$D66,'Intervenção-Pista (2)'!$B:$B,$D$40) -> 31,399.42 | AD66: =SUMIFS('Intervenção-Pista (2)'!Z:Z,'Intervenção-Pista (2)'!$A:$A,$D66,'Intervenção-Pista (2)'!$B:$B,$D$40) -> 29,635.58 | AE66: =SUMIFS('Intervenção-Pista (2)'!AA:AA,'Intervenção-Pista (2)'!$A:$A,$D66,'Intervenção-Pista (2)'!$B:$B,$D$40) -> 124,331.00 | AF66: =SUMIFS('Intervenção-Pista (2)'!AB:AB,'Intervenção-Pista (2)'!$A:$A,$D66,'Intervenção-Pista (2)'!$B:$B,$D$40) -> 55,638.14 | AG66: =SUMIFS('Intervenção-Pista (2)'!AC:AC,'Intervenção-Pista (2)'!$A:$A,$D66,'Intervenção-Pista (2)'!$B:$B,$D$40) -> 31,399.42 | AH66: =SUMIFS('Intervenção-Pista (2)'!AD:AD,'Intervenção-Pista (2)'!$A:$A,$D66,'Intervenção-Pista (2)'!$B:$B,$D$40) -> 29,635.58 | AI66: =SUMIFS('Intervenção-Pista (2)'!AE:AE,'Intervenção-Pista (2)'!$A:$A,$D66,'Intervenção-Pista (2)'!$B:$B,$D$40) -> 124,331.00 | AJ66: =SUMIFS('Intervenção-Pista (2)'!AF:AF,'Intervenção-Pista (2)'!$A:$A,$D66,'Intervenção-Pista (2)'!$B:$B,$D$40) -> 55,638.14 | AK66: =SUMIFS('Intervenção-Pista (2)'!AG:AG,'Intervenção-Pista (2)'!$A:$A,$D66,'Intervenção-Pista (2)'!$B:$B,$D$40) -> 31,399.42
B67: 8.1.3 | D67: MRAF | F67: =SUM(F68:F93) -> 157,996.67 | H67: =SUM(H68:H93) -> 0 | I67: =SUM(I68:I93) -> 0 | J67: =SUM(J68:J93) -> 0 | K67: =SUM(K68:K93) -> 0 | L67: =SUM(L68:L93) -> 0 | M67: =SUM(M68:M93) -> 157,996.67 | N67: =SUM(N68:N93) -> 0 | O67: =SUM(O68:O93) -> 0 | P67: =SUM(P68:P93) -> 0 | Q67: =SUM(Q68:Q93) -> 0 | R67: =SUM(R68:R93) -> 0 | S67: =SUM(S68:S93) -> 0 | T67: =SUM(T68:T93) -> 0 | U67: =SUM(U68:U93) -> 0 | V67: =SUM(V68:V93) -> 0 | W67: =SUM(W68:W93) -> 0 | X67: =SUM(X68:X93) -> 0 | Y67: =SUM(Y68:Y93) -> 0 | Z67: =SUM(Z68:Z93) -> 0 | AA67: =SUM(AA68:AA93) -> 0 | AB67: =SUM(AB68:AB93) -> 0 | AC67: =SUM(AC68:AC93) -> 0 | AD67: =SUM(AD68:AD93) -> 0 | AE67: =SUM(AE68:AE93) -> 0 | AF67: =SUM(AF68:AF93) -> 0 | AG67: =SUM(AG68:AG93) -> 0 | AH67: =SUM(AH68:AH93) -> 0 | AI67: =SUM(AI68:AI93) -> 0 | AJ67: =SUM(AJ68:AJ93) -> 0 | AK67: =SUM(AK68:AK93) -> 0
B68: 8.1.3.1 | D68: 167EMG0200 | E68: M2 | F68: =SUM(H68:AK68) -> 0 | H68: =SUMIFS('Intervenção-Pista (2)'!D:D,'Intervenção-Pista (2)'!$A:$A,$D68,'Intervenção-Pista (2)'!$B:$B,$D$67) -> 0 | I68: =SUMIFS('Intervenção-Pista (2)'!E:E,'Intervenção-Pista (2)'!$A:$A,$D68,'Intervenção-Pista (2)'!$B:$B,$D$67) -> 0 | J68: =SUMIFS('Intervenção-Pista (2)'!F:F,'Intervenção-Pista (2)'!$A:$A,$D68,'Intervenção-Pista (2)'!$B:$B,$D$67) -> 0 | K68: =SUMIFS('Intervenção-Pista (2)'!G:G,'Intervenção-Pista (2)'!$A:$A,$D68,'Intervenção-Pista (2)'!$B:$B,$D$67) -> 0 | L68: =SUMIFS('Intervenção-Pista (2)'!H:H,'Intervenção-Pista (2)'!$A:$A,$D68,'Intervenção-Pista (2)'!$B:$B,$D$67) -> 0 | M68: =SUMIFS('Intervenção-Pista (2)'!I:I,'Intervenção-Pista (2)'!$A:$A,$D68,'Intervenção-Pista (2)'!$B:$B,$D$67) -> 0 | N68: =SUMIFS('Intervenção-Pista (2)'!J:J,'Intervenção-Pista (2)'!$A:$A,$D68,'Intervenção-Pista (2)'!$B:$B,$D$67) -> 0 | O68: =SUMIFS('Intervenção-Pista (2)'!K:K,'Intervenção-Pista (2)'!$A:$A,$D68,'Intervenção-Pista (2)'!$B:$B,$D$67) -> 0 | P68: =SUMIFS('Intervenção-Pista (2)'!L:L,'Intervenção-Pista (2)'!$A:$A,$D68,'Intervenção-Pista (2)'!$B:$B,$D$67) -> 0 | Q68: =SUMIFS('Intervenção-Pista (2)'!M:M,'Intervenção-Pista (2)'!$A:$A,$D68,'Intervenção-Pista (2)'!$B:$B,$D$67) -> 0 | R68: =SUMIFS('Intervenção-Pista (2)'!N:N,'Intervenção-Pista (2)'!$A:$A,$D68,'Intervenção-Pista (2)'!$B:$B,$D$67) -> 0 | S68: =SUMIFS('Intervenção-Pista (2)'!O:O,'Intervenção-Pista (2)'!$A:$A,$D68,'Intervenção-Pista (2)'!$B:$B,$D$67) -> 0 | T68: =SUMIFS('Intervenção-Pista (2)'!P:P,'Intervenção-Pista (2)'!$A:$A,$D68,'Intervenção-Pista (2)'!$B:$B,$D$67) -> 0 | U68: =SUMIFS('Intervenção-Pista (2)'!Q:Q,'Intervenção-Pista (2)'!$A:$A,$D68,'Intervenção-Pista (2)'!$B:$B,$D$67) -> 0 | V68: =SUMIFS('Intervenção-Pista (2)'!R:R,'Intervenção-Pista (2)'!$A:$A,$D68,'Intervenção-Pista (2)'!$B:$B,$D$67) -> 0 | W68: =SUMIFS('Intervenção-Pista (2)'!S:S,'Intervenção-Pista (2)'!$A:$A,$D68,'Intervenção-Pista (2)'!$B:$B,$D$67) -> 0 | X68: =SUMIFS('Intervenção-Pista (2)'!T:T,'Intervenção-Pista (2)'!$A:$A,$D68,'Intervenção-Pista (2)'!$B:$B,$D$67) -> 0 | Y68: =SUMIFS('Intervenção-Pista (2)'!U:U,'Intervenção-Pista (2)'!$A:$A,$D68,'Intervenção-Pista (2)'!$B:$B,$D$67) -> 0 | Z68: =SUMIFS('Intervenção-Pista (2)'!V:V,'Intervenção-Pista (2)'!$A:$A,$D68,'Intervenção-Pista (2)'!$B:$B,$D$67) -> 0 | AA68: =SUMIFS('Intervenção-Pista (2)'!W:W,'Intervenção-Pista (2)'!$A:$A,$D68,'Intervenção-Pista (2)'!$B:$B,$D$67) -> 0 | AB68: =SUMIFS('Intervenção-Pista (2)'!X:X,'Intervenção-Pista (2)'!$A:$A,$D68,'Intervenção-Pista (2)'!$B:$B,$D$67) -> 0 | AC68: =SUMIFS('Intervenção-Pista (2)'!Y:Y,'Intervenção-Pista (2)'!$A:$A,$D68,'Intervenção-Pista (2)'!$B:$B,$D$67) -> 0 | AD68: =SUMIFS('Intervenção-Pista (2)'!Z:Z,'Intervenção-Pista (2)'!$A:$A,$D68,'Intervenção-Pista (2)'!$B:$B,$D$67) -> 0 | AE68: =SUMIFS('Intervenção-Pista (2)'!AA:AA,'Intervenção-Pista (2)'!$A:$A,$D68,'Intervenção-Pista (2)'!$B:$B,$D$67) -> 0 | AF68: =SUMIFS('Intervenção-Pista (2)'!AB:AB,'Intervenção-Pista (2)'!$A:$A,$D68,'Intervenção-Pista (2)'!$B:$B,$D$67) -> 0 | AG68: =SUMIFS('Intervenção-Pista (2)'!AC:AC,'Intervenção-Pista (2)'!$A:$A,$D68,'Intervenção-Pista (2)'!$B:$B,$D$67) -> 0 | AH68: =SUMIFS('Intervenção-Pista (2)'!AD:AD,'Intervenção-Pista (2)'!$A:$A,$D68,'Intervenção-Pista (2)'!$B:$B,$D$67) -> 0 | AI68: =SUMIFS('Intervenção-Pista (2)'!AE:AE,'Intervenção-Pista (2)'!$A:$A,$D68,'Intervenção-Pista (2)'!$B:$B,$D$67) -> 0 | AJ68: =SUMIFS('Intervenção-Pista (2)'!AF:AF,'Intervenção-Pista (2)'!$A:$A,$D68,'Intervenção-Pista (2)'!$B:$B,$D$67) -> 0 | AK68: =SUMIFS('Intervenção-Pista (2)'!AG:AG,'Intervenção-Pista (2)'!$A:$A,$D68,'Intervenção-Pista (2)'!$B:$B,$D$67) -> 0
B69: 8.1.3.2 | D69: 167EMG0205 | E69: M2 | F69: 0 | H69: =SUMIFS('Intervenção-Pista (2)'!D:D,'Intervenção-Pista (2)'!$A:$A,$D69,'Intervenção-Pista (2)'!$B:$B,$D$67) -> 0 | I69: =SUMIFS('Intervenção-Pista (2)'!E:E,'Intervenção-Pista (2)'!$A:$A,$D69,'Intervenção-Pista (2)'!$B:$B,$D$67) -> 0 | J69: =SUMIFS('Intervenção-Pista (2)'!F:F,'Intervenção-Pista (2)'!$A:$A,$D69,'Intervenção-Pista (2)'!$B:$B,$D$67) -> 0 | K69: =SUMIFS('Intervenção-Pista (2)'!G:G,'Intervenção-Pista (2)'!$A:$A,$D69,'Intervenção-Pista (2)'!$B:$B,$D$67) -> 0 | L69: =SUMIFS('Intervenção-Pista (2)'!H:H,'Intervenção-Pista (2)'!$A:$A,$D69,'Intervenção-Pista (2)'!$B:$B,$D$67) -> 0 | M69: =SUMIFS('Intervenção-Pista (2)'!I:I,'Intervenção-Pista (2)'!$A:$A,$D69,'Intervenção-Pista (2)'!$B:$B,$D$67) -> 0 | N69: =SUMIFS('Intervenção-Pista (2)'!J:J,'Intervenção-Pista (2)'!$A:$A,$D69,'Intervenção-Pista (2)'!$B:$B,$D$67) -> 0 | O69: =SUMIFS('Intervenção-Pista (2)'!K:K,'Intervenção-Pista (2)'!$A:$A,$D69,'Intervenção-Pista (2)'!$B:$B,$D$67) -> 0 | P69: =SUMIFS('Intervenção-Pista (2)'!L:L,'Intervenção-Pista (2)'!$A:$A,$D69,'Intervenção-Pista (2)'!$B:$B,$D$67) -> 0 | Q69: =SUMIFS('Intervenção-Pista (2)'!M:M,'Intervenção-Pista (2)'!$A:$A,$D69,'Intervenção-Pista (2)'!$B:$B,$D$67) -> 0 | R69: =SUMIFS('Intervenção-Pista (2)'!N:N,'Intervenção-Pista (2)'!$A:$A,$D69,'Intervenção-Pista (2)'!$B:$B,$D$67) -> 0 | S69: =SUMIFS('Intervenção-Pista (2)'!O:O,'Intervenção-Pista (2)'!$A:$A,$D69,'Intervenção-Pista (2)'!$B:$B,$D$67) -> 0 | T69: =SUMIFS('Intervenção-Pista (2)'!P:P,'Intervenção-Pista (2)'!$A:$A,$D69,'Intervenção-Pista (2)'!$B:$B,$D$67) -> 0 | U69: =SUMIFS('Intervenção-Pista (2)'!Q:Q,'Intervenção-Pista (2)'!$A:$A,$D69,'Intervenção-Pista (2)'!$B:$B,$D$67) -> 0 | V69: =SUMIFS('Intervenção-Pista (2)'!R:R,'Intervenção-Pista (2)'!$A:$A,$D69,'Intervenção-Pista (2)'!$B:$B,$D$67) -> 0 | W69: =SUMIFS('Intervenção-Pista (2)'!S:S,'Intervenção-Pista (2)'!$A:$A,$D69,'Intervenção-Pista (2)'!$B:$B,$D$67) -> 0 | X69: =SUMIFS('Intervenção-Pista (2)'!T:T,'Intervenção-Pista (2)'!$A:$A,$D69,'Intervenção-Pista (2)'!$B:$B,$D$67) -> 0 | Y69: =SUMIFS('Intervenção-Pista (2)'!U:U,'Intervenção-Pista (2)'!$A:$A,$D69,'Intervenção-Pista (2)'!$B:$B,$D$67) -> 0 | Z69: =SUMIFS('Intervenção-Pista (2)'!V:V,'Intervenção-Pista (2)'!$A:$A,$D69,'Intervenção-Pista (2)'!$B:$B,$D$67) -> 0 | AA69: =SUMIFS('Intervenção-Pista (2)'!W:W,'Intervenção-Pista (2)'!$A:$A,$D69,'Intervenção-Pista (2)'!$B:$B,$D$67) -> 0 | AB69: =SUMIFS('Intervenção-Pista (2)'!X:X,'Intervenção-Pista (2)'!$A:$A,$D69,'Intervenção-Pista (2)'!$B:$B,$D$67) -> 0 | AC69: =SUMIFS('Intervenção-Pista (2)'!Y:Y,'Intervenção-Pista (2)'!$A:$A,$D69,'Intervenção-Pista (2)'!$B:$B,$D$67) -> 0 | AD69: =SUMIFS('Intervenção-Pista (2)'!Z:Z,'Intervenção-Pista (2)'!$A:$A,$D69,'Intervenção-Pista (2)'!$B:$B,$D$67) -> 0 | AE69: =SUMIFS('Intervenção-Pista (2)'!AA:AA,'Intervenção-Pista (2)'!$A:$A,$D69,'Intervenção-Pista (2)'!$B:$B,$D$67) -> 0 | AF69: =SUMIFS('Intervenção-Pista (2)'!AB:AB,'Intervenção-Pista (2)'!$A:$A,$D69,'Intervenção-Pista (2)'!$B:$B,$D$67) -> 0 | AG69: =SUMIFS('Intervenção-Pista (2)'!AC:AC,'Intervenção-Pista (2)'!$A:$A,$D69,'Intervenção-Pista (2)'!$B:$B,$D$67) -> 0 | AH69: =SUMIFS('Intervenção-Pista (2)'!AD:AD,'Intervenção-Pista (2)'!$A:$A,$D69,'Intervenção-Pista (2)'!$B:$B,$D$67) -> 0 | AI69: =SUMIFS('Intervenção-Pista (2)'!AE:AE,'Intervenção-Pista (2)'!$A:$A,$D69,'Intervenção-Pista (2)'!$B:$B,$D$67) -> 0 | AJ69: =SUMIFS('Intervenção-Pista (2)'!AF:AF,'Intervenção-Pista (2)'!$A:$A,$D69,'Intervenção-Pista (2)'!$B:$B,$D$67) -> 0 | AK69: =SUMIFS('Intervenção-Pista (2)'!AG:AG,'Intervenção-Pista (2)'!$A:$A,$D69,'Intervenção-Pista (2)'!$B:$B,$D$67) -> 0
B70: 8.1.3.3 | D70: 167EMG0220 | E70: M2 | F70: 21,600.00 | H70: =SUMIFS('Intervenção-Pista (2)'!D:D,'Intervenção-Pista (2)'!$A:$A,$D70,'Intervenção-Pista (2)'!$B:$B,$D$67) -> 0 | I70: =SUMIFS('Intervenção-Pista (2)'!E:E,'Intervenção-Pista (2)'!$A:$A,$D70,'Intervenção-Pista (2)'!$B:$B,$D$67) -> 0 | J70: =SUMIFS('Intervenção-Pista (2)'!F:F,'Intervenção-Pista (2)'!$A:$A,$D70,'Intervenção-Pista (2)'!$B:$B,$D$67) -> 0 | K70: =SUMIFS('Intervenção-Pista (2)'!G:G,'Intervenção-Pista (2)'!$A:$A,$D70,'Intervenção-Pista (2)'!$B:$B,$D$67) -> 0 | L70: =SUMIFS('Intervenção-Pista (2)'!H:H,'Intervenção-Pista (2)'!$A:$A,$D70,'Intervenção-Pista (2)'!$B:$B,$D$67) -> 0 | M70: =SUMIFS('Intervenção-Pista (2)'!I:I,'Intervenção-Pista (2)'!$A:$A,$D70,'Intervenção-Pista (2)'!$B:$B,$D$67) -> 21,600.00 | N70: =SUMIFS('Intervenção-Pista (2)'!J:J,'Intervenção-Pista (2)'!$A:$A,$D70,'Intervenção-Pista (2)'!$B:$B,$D$67) -> 0 | O70: =SUMIFS('Intervenção-Pista (2)'!K:K,'Intervenção-Pista (2)'!$A:$A,$D70,'Intervenção-Pista (2)'!$B:$B,$D$67) -> 0 | P70: =SUMIFS('Intervenção-Pista (2)'!L:L,'Intervenção-Pista (2)'!$A:$A,$D70,'Intervenção-Pista (2)'!$B:$B,$D$67) -> 0 | Q70: =SUMIFS('Intervenção-Pista (2)'!M:M,'Intervenção-Pista (2)'!$A:$A,$D70,'Intervenção-Pista (2)'!$B:$B,$D$67) -> 0 | R70: =SUMIFS('Intervenção-Pista (2)'!N:N,'Intervenção-Pista (2)'!$A:$A,$D70,'Intervenção-Pista (2)'!$B:$B,$D$67) -> 0 | S70: =SUMIFS('Intervenção-Pista (2)'!O:O,'Intervenção-Pista (2)'!$A:$A,$D70,'Intervenção-Pista (2)'!$B:$B,$D$67) -> 0 | T70: =SUMIFS('Intervenção-Pista (2)'!P:P,'Intervenção-Pista (2)'!$A:$A,$D70,'Intervenção-Pista (2)'!$B:$B,$D$67) -> 0 | U70: =SUMIFS('Intervenção-Pista (2)'!Q:Q,'Intervenção-Pista (2)'!$A:$A,$D70,'Intervenção-Pista (2)'!$B:$B,$D$67) -> 0 | V70: =SUMIFS('Intervenção-Pista (2)'!R:R,'Intervenção-Pista (2)'!$A:$A,$D70,'Intervenção-Pista (2)'!$B:$B,$D$67) -> 0 | W70: =SUMIFS('Intervenção-Pista (2)'!S:S,'Intervenção-Pista (2)'!$A:$A,$D70,'Intervenção-Pista (2)'!$B:$B,$D$67) -> 0 | X70: =SUMIFS('Intervenção-Pista (2)'!T:T,'Intervenção-Pista (2)'!$A:$A,$D70,'Intervenção-Pista (2)'!$B:$B,$D$67) -> 0 | Y70: =SUMIFS('Intervenção-Pista (2)'!U:U,'Intervenção-Pista (2)'!$A:$A,$D70,'Intervenção-Pista (2)'!$B:$B,$D$67) -> 0 | Z70: =SUMIFS('Intervenção-Pista (2)'!V:V,'Intervenção-Pista (2)'!$A:$A,$D70,'Intervenção-Pista (2)'!$B:$B,$D$67) -> 0 | AA70: =SUMIFS('Intervenção-Pista (2)'!W:W,'Intervenção-Pista (2)'!$A:$A,$D70,'Intervenção-Pista (2)'!$B:$B,$D$67) -> 0 | AB70: =SUMIFS('Intervenção-Pista (2)'!X:X,'Intervenção-Pista (2)'!$A:$A,$D70,'Intervenção-Pista (2)'!$B:$B,$D$67) -> 0 | AC70: =SUMIFS('Intervenção-Pista (2)'!Y:Y,'Intervenção-Pista (2)'!$A:$A,$D70,'Intervenção-Pista (2)'!$B:$B,$D$67) -> 0 | AD70: =SUMIFS('Intervenção-Pista (2)'!Z:Z,'Intervenção-Pista (2)'!$A:$A,$D70,'Intervenção-Pista (2)'!$B:$B,$D$67) -> 0 | AE70: =SUMIFS('Intervenção-Pista (2)'!AA:AA,'Intervenção-Pista (2)'!$A:$A,$D70,'Intervenção-Pista (2)'!$B:$B,$D$67) -> 0 | AF70: =SUMIFS('Intervenção-Pista (2)'!AB:AB,'Intervenção-Pista (2)'!$A:$A,$D70,'Intervenção-Pista (2)'!$B:$B,$D$67) -> 0 | AG70: =SUMIFS('Intervenção-Pista (2)'!AC:AC,'Intervenção-Pista (2)'!$A:$A,$D70,'Intervenção-Pista (2)'!$B:$B,$D$67) -> 0 | AH70: =SUMIFS('Intervenção-Pista (2)'!AD:AD,'Intervenção-Pista (2)'!$A:$A,$D70,'Intervenção-Pista (2)'!$B:$B,$D$67) -> 0 | AI70: =SUMIFS('Intervenção-Pista (2)'!AE:AE,'Intervenção-Pista (2)'!$A:$A,$D70,'Intervenção-Pista (2)'!$B:$B,$D$67) -> 0 | AJ70: =SUMIFS('Intervenção-Pista (2)'!AF:AF,'Intervenção-Pista (2)'!$A:$A,$D70,'Intervenção-Pista (2)'!$B:$B,$D$67) -> 0 | AK70: =SUMIFS('Intervenção-Pista (2)'!AG:AG,'Intervenção-Pista (2)'!$A:$A,$D70,'Intervenção-Pista (2)'!$B:$B,$D$67) -> 0
B71: 8.1.3.4 | D71: 265BMG0270 | E71: M2 | F71: 0 | H71: =SUMIFS('Intervenção-Pista (2)'!D:D,'Intervenção-Pista (2)'!$A:$A,$D71,'Intervenção-Pista (2)'!$B:$B,$D$67) -> 0 | I71: =SUMIFS('Intervenção-Pista (2)'!E:E,'Intervenção-Pista (2)'!$A:$A,$D71,'Intervenção-Pista (2)'!$B:$B,$D$67) -> 0 | J71: =SUMIFS('Intervenção-Pista (2)'!F:F,'Intervenção-Pista (2)'!$A:$A,$D71,'Intervenção-Pista (2)'!$B:$B,$D$67) -> 0 | K71: =SUMIFS('Intervenção-Pista (2)'!G:G,'Intervenção-Pista (2)'!$A:$A,$D71,'Intervenção-Pista (2)'!$B:$B,$D$67) -> 0 | L71: =SUMIFS('Intervenção-Pista (2)'!H:H,'Intervenção-Pista (2)'!$A:$A,$D71,'Intervenção-Pista (2)'!$B:$B,$D$67) -> 0 | M71: =SUMIFS('Intervenção-Pista (2)'!I:I,'Intervenção-Pista (2)'!$A:$A,$D71,'Intervenção-Pista (2)'!$B:$B,$D$67) -> 0 | N71: =SUMIFS('Intervenção-Pista (2)'!J:J,'Intervenção-Pista (2)'!$A:$A,$D71,'Intervenção-Pista (2)'!$B:$B,$D$67) -> 0 | O71: =SUMIFS('Intervenção-Pista (2)'!K:K,'Intervenção-Pista (2)'!$A:$A,$D71,'Intervenção-Pista (2)'!$B:$B,$D$67) -> 0 | P71: =SUMIFS('Intervenção-Pista (2)'!L:L,'Intervenção-Pista (2)'!$A:$A,$D71,'Intervenção-Pista (2)'!$B:$B,$D$67) -> 0 | Q71: =SUMIFS('Intervenção-Pista (2)'!M:M,'Intervenção-Pista (2)'!$A:$A,$D71,'Intervenção-Pista (2)'!$B:$B,$D$67) -> 0 | R71: =SUMIFS('Intervenção-Pista (2)'!N:N,'Intervenção-Pista (2)'!$A:$A,$D71,'Intervenção-Pista (2)'!$B:$B,$D$67) -> 0 | S71: =SUMIFS('Intervenção-Pista (2)'!O:O,'Intervenção-Pista (2)'!$A:$A,$D71,'Intervenção-Pista (2)'!$B:$B,$D$67) -> 0 | T71: =SUMIFS('Intervenção-Pista (2)'!P:P,'Intervenção-Pista (2)'!$A:$A,$D71,'Intervenção-Pista (2)'!$B:$B,$D$67) -> 0 | U71: =SUMIFS('Intervenção-Pista (2)'!Q:Q,'Intervenção-Pista (2)'!$A:$A,$D71,'Intervenção-Pista (2)'!$B:$B,$D$67) -> 0 | V71: =SUMIFS('Intervenção-Pista (2)'!R:R,'Intervenção-Pista (2)'!$A:$A,$D71,'Intervenção-Pista (2)'!$B:$B,$D$67) -> 0 | W71: =SUMIFS('Intervenção-Pista (2)'!S:S,'Intervenção-Pista (2)'!$A:$A,$D71,'Intervenção-Pista (2)'!$B:$B,$D$67) -> 0 | X71: =SUMIFS('Intervenção-Pista (2)'!T:T,'Intervenção-Pista (2)'!$A:$A,$D71,'Intervenção-Pista (2)'!$B:$B,$D$67) -> 0 | Y71: =SUMIFS('Intervenção-Pista (2)'!U:U,'Intervenção-Pista (2)'!$A:$A,$D71,'Intervenção-Pista (2)'!$B:$B,$D$67) -> 0 | Z71: =SUMIFS('Intervenção-Pista (2)'!V:V,'Intervenção-Pista (2)'!$A:$A,$D71,'Intervenção-Pista (2)'!$B:$B,$D$67) -> 0 | AA71: =SUMIFS('Intervenção-Pista (2)'!W:W,'Intervenção-Pista (2)'!$A:$A,$D71,'Intervenção-Pista (2)'!$B:$B,$D$67) -> 0 | AB71: =SUMIFS('Intervenção-Pista (2)'!X:X,'Intervenção-Pista (2)'!$A:$A,$D71,'Intervenção-Pista (2)'!$B:$B,$D$67) -> 0 | AC71: =SUMIFS('Intervenção-Pista (2)'!Y:Y,'Intervenção-Pista (2)'!$A:$A,$D71,'Intervenção-Pista (2)'!$B:$B,$D$67) -> 0 | AD71: =SUMIFS('Intervenção-Pista (2)'!Z:Z,'Intervenção-Pista (2)'!$A:$A,$D71,'Intervenção-Pista (2)'!$B:$B,$D$67) -> 0 | AE71: =SUMIFS('Intervenção-Pista (2)'!AA:AA,'Intervenção-Pista (2)'!$A:$A,$D71,'Intervenção-Pista (2)'!$B:$B,$D$67) -> 0 | AF71: =SUMIFS('Intervenção-Pista (2)'!AB:AB,'Intervenção-Pista (2)'!$A:$A,$D71,'Intervenção-Pista (2)'!$B:$B,$D$67) -> 0 | AG71: =SUMIFS('Intervenção-Pista (2)'!AC:AC,'Intervenção-Pista (2)'!$A:$A,$D71,'Intervenção-Pista (2)'!$B:$B,$D$67) -> 0 | AH71: =SUMIFS('Intervenção-Pista (2)'!AD:AD,'Intervenção-Pista (2)'!$A:$A,$D71,'Intervenção-Pista (2)'!$B:$B,$D$67) -> 0 | AI71: =SUMIFS('Intervenção-Pista (2)'!AE:AE,'Intervenção-Pista (2)'!$A:$A,$D71,'Intervenção-Pista (2)'!$B:$B,$D$67) -> 0 | AJ71: =SUMIFS('Intervenção-Pista (2)'!AF:AF,'Intervenção-Pista (2)'!$A:$A,$D71,'Intervenção-Pista (2)'!$B:$B,$D$67) -> 0 | AK71: =SUMIFS('Intervenção-Pista (2)'!AG:AG,'Intervenção-Pista (2)'!$A:$A,$D71,'Intervenção-Pista (2)'!$B:$B,$D$67) -> 0
B72: 8.1.3.5 | D72: 265BMG0290 | E72: M2 | F72: 0 | H72: =SUMIFS('Intervenção-Pista (2)'!D:D,'Intervenção-Pista (2)'!$A:$A,$D72,'Intervenção-Pista (2)'!$B:$B,$D$67) -> 0 | I72: =SUMIFS('Intervenção-Pista (2)'!E:E,'Intervenção-Pista (2)'!$A:$A,$D72,'Intervenção-Pista (2)'!$B:$B,$D$67) -> 0 | J72: =SUMIFS('Intervenção-Pista (2)'!F:F,'Intervenção-Pista (2)'!$A:$A,$D72,'Intervenção-Pista (2)'!$B:$B,$D$67) -> 0 | K72: =SUMIFS('Intervenção-Pista (2)'!G:G,'Intervenção-Pista (2)'!$A:$A,$D72,'Intervenção-Pista (2)'!$B:$B,$D$67) -> 0 | L72: =SUMIFS('Intervenção-Pista (2)'!H:H,'Intervenção-Pista (2)'!$A:$A,$D72,'Intervenção-Pista (2)'!$B:$B,$D$67) -> 0 | M72: =SUMIFS('Intervenção-Pista (2)'!I:I,'Intervenção-Pista (2)'!$A:$A,$D72,'Intervenção-Pista (2)'!$B:$B,$D$67) -> 0 | N72: =SUMIFS('Intervenção-Pista (2)'!J:J,'Intervenção-Pista (2)'!$A:$A,$D72,'Intervenção-Pista (2)'!$B:$B,$D$67) -> 0 | O72: =SUMIFS('Intervenção-Pista (2)'!K:K,'Intervenção-Pista (2)'!$A:$A,$D72,'Intervenção-Pista (2)'!$B:$B,$D$67) -> 0 | P72: =SUMIFS('Intervenção-Pista (2)'!L:L,'Intervenção-Pista (2)'!$A:$A,$D72,'Intervenção-Pista (2)'!$B:$B,$D$67) -> 0 | Q72: =SUMIFS('Intervenção-Pista (2)'!M:M,'Intervenção-Pista (2)'!$A:$A,$D72,'Intervenção-Pista (2)'!$B:$B,$D$67) -> 0 | R72: =SUMIFS('Intervenção-Pista (2)'!N:N,'Intervenção-Pista (2)'!$A:$A,$D72,'Intervenção-Pista (2)'!$B:$B,$D$67) -> 0 | S72: =SUMIFS('Intervenção-Pista (2)'!O:O,'Intervenção-Pista (2)'!$A:$A,$D72,'Intervenção-Pista (2)'!$B:$B,$D$67) -> 0 | T72: =SUMIFS('Intervenção-Pista (2)'!P:P,'Intervenção-Pista (2)'!$A:$A,$D72,'Intervenção-Pista (2)'!$B:$B,$D$67) -> 0 | U72: =SUMIFS('Intervenção-Pista (2)'!Q:Q,'Intervenção-Pista (2)'!$A:$A,$D72,'Intervenção-Pista (2)'!$B:$B,$D$67) -> 0 | V72: =SUMIFS('Intervenção-Pista (2)'!R:R,'Intervenção-Pista (2)'!$A:$A,$D72,'Intervenção-Pista (2)'!$B:$B,$D$67) -> 0 | W72: =SUMIFS('Intervenção-Pista (2)'!S:S,'Intervenção-Pista (2)'!$A:$A,$D72,'Intervenção-Pista (2)'!$B:$B,$D$67) -> 0 | X72: =SUMIFS('Intervenção-Pista (2)'!T:T,'Intervenção-Pista (2)'!$A:$A,$D72,'Intervenção-Pista (2)'!$B:$B,$D$67) -> 0 | Y72: =SUMIFS('Intervenção-Pista (2)'!U:U,'Intervenção-Pista (2)'!$A:$A,$D72,'Intervenção-Pista (2)'!$B:$B,$D$67) -> 0 | Z72: =SUMIFS('Intervenção-Pista (2)'!V:V,'Intervenção-Pista (2)'!$A:$A,$D72,'Intervenção-Pista (2)'!$B:$B,$D$67) -> 0 | AA72: =SUMIFS('Intervenção-Pista (2)'!W:W,'Intervenção-Pista (2)'!$A:$A,$D72,'Intervenção-Pista (2)'!$B:$B,$D$67) -> 0 | AB72: =SUMIFS('Intervenção-Pista (2)'!X:X,'Intervenção-Pista (2)'!$A:$A,$D72,'Intervenção-Pista (2)'!$B:$B,$D$67) -> 0 | AC72: =SUMIFS('Intervenção-Pista (2)'!Y:Y,'Intervenção-Pista (2)'!$A:$A,$D72,'Intervenção-Pista (2)'!$B:$B,$D$67) -> 0 | AD72: =SUMIFS('Intervenção-Pista (2)'!Z:Z,'Intervenção-Pista (2)'!$A:$A,$D72,'Intervenção-Pista (2)'!$B:$B,$D$67) -> 0 | AE72: =SUMIFS('Intervenção-Pista (2)'!AA:AA,'Intervenção-Pista (2)'!$A:$A,$D72,'Intervenção-Pista (2)'!$B:$B,$D$67) -> 0 | AF72: =SUMIFS('Intervenção-Pista (2)'!AB:AB,'Intervenção-Pista (2)'!$A:$A,$D72,'Intervenção-Pista (2)'!$B:$B,$D$67) -> 0 | AG72: =SUMIFS('Intervenção-Pista (2)'!AC:AC,'Intervenção-Pista (2)'!$A:$A,$D72,'Intervenção-Pista (2)'!$B:$B,$D$67) -> 0 | AH72: =SUMIFS('Intervenção-Pista (2)'!AD:AD,'Intervenção-Pista (2)'!$A:$A,$D72,'Intervenção-Pista (2)'!$B:$B,$D$67) -> 0 | AI72: =SUMIFS('Intervenção-Pista (2)'!AE:AE,'Intervenção-Pista (2)'!$A:$A,$D72,'Intervenção-Pista (2)'!$B:$B,$D$67) -> 0 | AJ72: =SUMIFS('Intervenção-Pista (2)'!AF:AF,'Intervenção-Pista (2)'!$A:$A,$D72,'Intervenção-Pista (2)'!$B:$B,$D$67) -> 0 | AK72: =SUMIFS('Intervenção-Pista (2)'!AG:AG,'Intervenção-Pista (2)'!$A:$A,$D72,'Intervenção-Pista (2)'!$B:$B,$D$67) -> 0
B73: 8.1.3.6 | D73: 265BMG0305 | E73: M2 | F73: 0 | H73: =SUMIFS('Intervenção-Pista (2)'!D:D,'Intervenção-Pista (2)'!$A:$A,$D73,'Intervenção-Pista (2)'!$B:$B,$D$67) -> 0 | I73: =SUMIFS('Intervenção-Pista (2)'!E:E,'Intervenção-Pista (2)'!$A:$A,$D73,'Intervenção-Pista (2)'!$B:$B,$D$67) -> 0 | J73: =SUMIFS('Intervenção-Pista (2)'!F:F,'Intervenção-Pista (2)'!$A:$A,$D73,'Intervenção-Pista (2)'!$B:$B,$D$67) -> 0 | K73: =SUMIFS('Intervenção-Pista (2)'!G:G,'Intervenção-Pista (2)'!$A:$A,$D73,'Intervenção-Pista (2)'!$B:$B,$D$67) -> 0 | L73: =SUMIFS('Intervenção-Pista (2)'!H:H,'Intervenção-Pista (2)'!$A:$A,$D73,'Intervenção-Pista (2)'!$B:$B,$D$67) -> 0 | M73: =SUMIFS('Intervenção-Pista (2)'!I:I,'Intervenção-Pista (2)'!$A:$A,$D73,'Intervenção-Pista (2)'!$B:$B,$D$67) -> 0 | N73: =SUMIFS('Intervenção-Pista (2)'!J:J,'Intervenção-Pista (2)'!$A:$A,$D73,'Intervenção-Pista (2)'!$B:$B,$D$67) -> 0 | O73: =SUMIFS('Intervenção-Pista (2)'!K:K,'Intervenção-Pista (2)'!$A:$A,$D73,'Intervenção-Pista (2)'!$B:$B,$D$67) -> 0 | P73: =SUMIFS('Intervenção-Pista (2)'!L:L,'Intervenção-Pista (2)'!$A:$A,$D73,'Intervenção-Pista (2)'!$B:$B,$D$67) -> 0 | Q73: =SUMIFS('Intervenção-Pista (2)'!M:M,'Intervenção-Pista (2)'!$A:$A,$D73,'Intervenção-Pista (2)'!$B:$B,$D$67) -> 0 | R73: =SUMIFS('Intervenção-Pista (2)'!N:N,'Intervenção-Pista (2)'!$A:$A,$D73,'Intervenção-Pista (2)'!$B:$B,$D$67) -> 0 | S73: =SUMIFS('Intervenção-Pista (2)'!O:O,'Intervenção-Pista (2)'!$A:$A,$D73,'Intervenção-Pista (2)'!$B:$B,$D$67) -> 0 | T73: =SUMIFS('Intervenção-Pista (2)'!P:P,'Intervenção-Pista (2)'!$A:$A,$D73,'Intervenção-Pista (2)'!$B:$B,$D$67) -> 0 | U73: =SUMIFS('Intervenção-Pista (2)'!Q:Q,'Intervenção-Pista (2)'!$A:$A,$D73,'Intervenção-Pista (2)'!$B:$B,$D$67) -> 0 | V73: =SUMIFS('Intervenção-Pista (2)'!R:R,'Intervenção-Pista (2)'!$A:$A,$D73,'Intervenção-Pista (2)'!$B:$B,$D$67) -> 0 | W73: =SUMIFS('Intervenção-Pista (2)'!S:S,'Intervenção-Pista (2)'!$A:$A,$D73,'Intervenção-Pista (2)'!$B:$B,$D$67) -> 0 | X73: =SUMIFS('Intervenção-Pista (2)'!T:T,'Intervenção-Pista (2)'!$A:$A,$D73,'Intervenção-Pista (2)'!$B:$B,$D$67) -> 0 | Y73: =SUMIFS('Intervenção-Pista (2)'!U:U,'Intervenção-Pista (2)'!$A:$A,$D73,'Intervenção-Pista (2)'!$B:$B,$D$67) -> 0 | Z73: =SUMIFS('Intervenção-Pista (2)'!V:V,'Intervenção-Pista (2)'!$A:$A,$D73,'Intervenção-Pista (2)'!$B:$B,$D$67) -> 0 | AA73: =SUMIFS('Intervenção-Pista (2)'!W:W,'Intervenção-Pista (2)'!$A:$A,$D73,'Intervenção-Pista (2)'!$B:$B,$D$67) -> 0 | AB73: =SUMIFS('Intervenção-Pista (2)'!X:X,'Intervenção-Pista (2)'!$A:$A,$D73,'Intervenção-Pista (2)'!$B:$B,$D$67) -> 0 | AC73: =SUMIFS('Intervenção-Pista (2)'!Y:Y,'Intervenção-Pista (2)'!$A:$A,$D73,'Intervenção-Pista (2)'!$B:$B,$D$67) -> 0 | AD73: =SUMIFS('Intervenção-Pista (2)'!Z:Z,'Intervenção-Pista (2)'!$A:$A,$D73,'Intervenção-Pista (2)'!$B:$B,$D$67) -> 0 | AE73: =SUMIFS('Intervenção-Pista (2)'!AA:AA,'Intervenção-Pista (2)'!$A:$A,$D73,'Intervenção-Pista (2)'!$B:$B,$D$67) -> 0 | AF73: =SUMIFS('Intervenção-Pista (2)'!AB:AB,'Intervenção-Pista (2)'!$A:$A,$D73,'Intervenção-Pista (2)'!$B:$B,$D$67) -> 0 | AG73: =SUMIFS('Intervenção-Pista (2)'!AC:AC,'Intervenção-Pista (2)'!$A:$A,$D73,'Intervenção-Pista (2)'!$B:$B,$D$67) -> 0 | AH73: =SUMIFS('Intervenção-Pista (2)'!AD:AD,'Intervenção-Pista (2)'!$A:$A,$D73,'Intervenção-Pista (2)'!$B:$B,$D$67) -> 0 | AI73: =SUMIFS('Intervenção-Pista (2)'!AE:AE,'Intervenção-Pista (2)'!$A:$A,$D73,'Intervenção-Pista (2)'!$B:$B,$D$67) -> 0 | AJ73: =SUMIFS('Intervenção-Pista (2)'!AF:AF,'Intervenção-Pista (2)'!$A:$A,$D73,'Intervenção-Pista (2)'!$B:$B,$D$67) -> 0 | AK73: =SUMIFS('Intervenção-Pista (2)'!AG:AG,'Intervenção-Pista (2)'!$A:$A,$D73,'Intervenção-Pista (2)'!$B:$B,$D$67) -> 0
B74: 8.1.3.7 | D74: 265BMG0310 | E74: M2 | F74: 0 | H74: =SUMIFS('Intervenção-Pista (2)'!D:D,'Intervenção-Pista (2)'!$A:$A,$D74,'Intervenção-Pista (2)'!$B:$B,$D$67) -> 0 | I74: =SUMIFS('Intervenção-Pista (2)'!E:E,'Intervenção-Pista (2)'!$A:$A,$D74,'Intervenção-Pista (2)'!$B:$B,$D$67) -> 0 | J74: =SUMIFS('Intervenção-Pista (2)'!F:F,'Intervenção-Pista (2)'!$A:$A,$D74,'Intervenção-Pista (2)'!$B:$B,$D$67) -> 0 | K74: =SUMIFS('Intervenção-Pista (2)'!G:G,'Intervenção-Pista (2)'!$A:$A,$D74,'Intervenção-Pista (2)'!$B:$B,$D$67) -> 0 | L74: =SUMIFS('Intervenção-Pista (2)'!H:H,'Intervenção-Pista (2)'!$A:$A,$D74,'Intervenção-Pista (2)'!$B:$B,$D$67) -> 0 | M74: =SUMIFS('Intervenção-Pista (2)'!I:I,'Intervenção-Pista (2)'!$A:$A,$D74,'Intervenção-Pista (2)'!$B:$B,$D$67) -> 0 | N74: =SUMIFS('Intervenção-Pista (2)'!J:J,'Intervenção-Pista (2)'!$A:$A,$D74,'Intervenção-Pista (2)'!$B:$B,$D$67) -> 0 | O74: =SUMIFS('Intervenção-Pista (2)'!K:K,'Intervenção-Pista (2)'!$A:$A,$D74,'Intervenção-Pista (2)'!$B:$B,$D$67) -> 0 | P74: =SUMIFS('Intervenção-Pista (2)'!L:L,'Intervenção-Pista (2)'!$A:$A,$D74,'Intervenção-Pista (2)'!$B:$B,$D$67) -> 0 | Q74: =SUMIFS('Intervenção-Pista (2)'!M:M,'Intervenção-Pista (2)'!$A:$A,$D74,'Intervenção-Pista (2)'!$B:$B,$D$67) -> 0 | R74: =SUMIFS('Intervenção-Pista (2)'!N:N,'Intervenção-Pista (2)'!$A:$A,$D74,'Intervenção-Pista (2)'!$B:$B,$D$67) -> 0 | S74: =SUMIFS('Intervenção-Pista (2)'!O:O,'Intervenção-Pista (2)'!$A:$A,$D74,'Intervenção-Pista (2)'!$B:$B,$D$67) -> 0 | T74: =SUMIFS('Intervenção-Pista (2)'!P:P,'Intervenção-Pista (2)'!$A:$A,$D74,'Intervenção-Pista (2)'!$B:$B,$D$67) -> 0 | U74: =SUMIFS('Intervenção-Pista (2)'!Q:Q,'Intervenção-Pista (2)'!$A:$A,$D74,'Intervenção-Pista (2)'!$B:$B,$D$67) -> 0 | V74: =SUMIFS('Intervenção-Pista (2)'!R:R,'Intervenção-Pista (2)'!$A:$A,$D74,'Intervenção-Pista (2)'!$B:$B,$D$67) -> 0 | W74: =SUMIFS('Intervenção-Pista (2)'!S:S,'Intervenção-Pista (2)'!$A:$A,$D74,'Intervenção-Pista (2)'!$B:$B,$D$67) -> 0 | X74: =SUMIFS('Intervenção-Pista (2)'!T:T,'Intervenção-Pista (2)'!$A:$A,$D74,'Intervenção-Pista (2)'!$B:$B,$D$67) -> 0 | Y74: =SUMIFS('Intervenção-Pista (2)'!U:U,'Intervenção-Pista (2)'!$A:$A,$D74,'Intervenção-Pista (2)'!$B:$B,$D$67) -> 0 | Z74: =SUMIFS('Intervenção-Pista (2)'!V:V,'Intervenção-Pista (2)'!$A:$A,$D74,'Intervenção-Pista (2)'!$B:$B,$D$67) -> 0 | AA74: =SUMIFS('Intervenção-Pista (2)'!W:W,'Intervenção-Pista (2)'!$A:$A,$D74,'Intervenção-Pista (2)'!$B:$B,$D$67) -> 0 | AB74: =SUMIFS('Intervenção-Pista (2)'!X:X,'Intervenção-Pista (2)'!$A:$A,$D74,'Intervenção-Pista (2)'!$B:$B,$D$67) -> 0 | AC74: =SUMIFS('Intervenção-Pista (2)'!Y:Y,'Intervenção-Pista (2)'!$A:$A,$D74,'Intervenção-Pista (2)'!$B:$B,$D$67) -> 0 | AD74: =SUMIFS('Intervenção-Pista (2)'!Z:Z,'Intervenção-Pista (2)'!$A:$A,$D74,'Intervenção-Pista (2)'!$B:$B,$D$67) -> 0 | AE74: =SUMIFS('Intervenção-Pista (2)'!AA:AA,'Intervenção-Pista (2)'!$A:$A,$D74,'Intervenção-Pista (2)'!$B:$B,$D$67) -> 0 | AF74: =SUMIFS('Intervenção-Pista (2)'!AB:AB,'Intervenção-Pista (2)'!$A:$A,$D74,'Intervenção-Pista (2)'!$B:$B,$D$67) -> 0 | AG74: =SUMIFS('Intervenção-Pista (2)'!AC:AC,'Intervenção-Pista (2)'!$A:$A,$D74,'Intervenção-Pista (2)'!$B:$B,$D$67) -> 0 | AH74: =SUMIFS('Intervenção-Pista (2)'!AD:AD,'Intervenção-Pista (2)'!$A:$A,$D74,'Intervenção-Pista (2)'!$B:$B,$D$67) -> 0 | AI74: =SUMIFS('Intervenção-Pista (2)'!AE:AE,'Intervenção-Pista (2)'!$A:$A,$D74,'Intervenção-Pista (2)'!$B:$B,$D$67) -> 0 | AJ74: =SUMIFS('Intervenção-Pista (2)'!AF:AF,'Intervenção-Pista (2)'!$A:$A,$D74,'Intervenção-Pista (2)'!$B:$B,$D$67) -> 0 | AK74: =SUMIFS('Intervenção-Pista (2)'!AG:AG,'Intervenção-Pista (2)'!$A:$A,$D74,'Intervenção-Pista (2)'!$B:$B,$D$67) -> 0
B75: 8.1.3.8 | D75: 265BMG0311 | E75: M2 | F75: 0 | H75: =SUMIFS('Intervenção-Pista (2)'!D:D,'Intervenção-Pista (2)'!$A:$A,$D75,'Intervenção-Pista (2)'!$B:$B,$D$67) -> 0 | I75: =SUMIFS('Intervenção-Pista (2)'!E:E,'Intervenção-Pista (2)'!$A:$A,$D75,'Intervenção-Pista (2)'!$B:$B,$D$67) -> 0 | J75: =SUMIFS('Intervenção-Pista (2)'!F:F,'Intervenção-Pista (2)'!$A:$A,$D75,'Intervenção-Pista (2)'!$B:$B,$D$67) -> 0 | K75: =SUMIFS('Intervenção-Pista (2)'!G:G,'Intervenção-Pista (2)'!$A:$A,$D75,'Intervenção-Pista (2)'!$B:$B,$D$67) -> 0 | L75: =SUMIFS('Intervenção-Pista (2)'!H:H,'Intervenção-Pista (2)'!$A:$A,$D75,'Intervenção-Pista (2)'!$B:$B,$D$67) -> 0 | M75: =SUMIFS('Intervenção-Pista (2)'!I:I,'Intervenção-Pista (2)'!$A:$A,$D75,'Intervenção-Pista (2)'!$B:$B,$D$67) -> 0 | N75: =SUMIFS('Intervenção-Pista (2)'!J:J,'Intervenção-Pista (2)'!$A:$A,$D75,'Intervenção-Pista (2)'!$B:$B,$D$67) -> 0 | O75: =SUMIFS('Intervenção-Pista (2)'!K:K,'Intervenção-Pista (2)'!$A:$A,$D75,'Intervenção-Pista (2)'!$B:$B,$D$67) -> 0 | P75: =SUMIFS('Intervenção-Pista (2)'!L:L,'Intervenção-Pista (2)'!$A:$A,$D75,'Intervenção-Pista (2)'!$B:$B,$D$67) -> 0 | Q75: =SUMIFS('Intervenção-Pista (2)'!M:M,'Intervenção-Pista (2)'!$A:$A,$D75,'Intervenção-Pista (2)'!$B:$B,$D$67) -> 0 | R75: =SUMIFS('Intervenção-Pista (2)'!N:N,'Intervenção-Pista (2)'!$A:$A,$D75,'Intervenção-Pista (2)'!$B:$B,$D$67) -> 0 | S75: =SUMIFS('Intervenção-Pista (2)'!O:O,'Intervenção-Pista (2)'!$A:$A,$D75,'Intervenção-Pista (2)'!$B:$B,$D$67) -> 0 | T75: =SUMIFS('Intervenção-Pista (2)'!P:P,'Intervenção-Pista (2)'!$A:$A,$D75,'Intervenção-Pista (2)'!$B:$B,$D$67) -> 0 | U75: =SUMIFS('Intervenção-Pista (2)'!Q:Q,'Intervenção-Pista (2)'!$A:$A,$D75,'Intervenção-Pista (2)'!$B:$B,$D$67) -> 0 | V75: =SUMIFS('Intervenção-Pista (2)'!R:R,'Intervenção-Pista (2)'!$A:$A,$D75,'Intervenção-Pista (2)'!$B:$B,$D$67) -> 0 | W75: =SUMIFS('Intervenção-Pista (2)'!S:S,'Intervenção-Pista (2)'!$A:$A,$D75,'Intervenção-Pista (2)'!$B:$B,$D$67) -> 0 | X75: =SUMIFS('Intervenção-Pista (2)'!T:T,'Intervenção-Pista (2)'!$A:$A,$D75,'Intervenção-Pista (2)'!$B:$B,$D$67) -> 0 | Y75: =SUMIFS('Intervenção-Pista (2)'!U:U,'Intervenção-Pista (2)'!$A:$A,$D75,'Intervenção-Pista (2)'!$B:$B,$D$67) -> 0 | Z75: =SUMIFS('Intervenção-Pista (2)'!V:V,'Intervenção-Pista (2)'!$A:$A,$D75,'Intervenção-Pista (2)'!$B:$B,$D$67) -> 0 | AA75: =SUMIFS('Intervenção-Pista (2)'!W:W,'Intervenção-Pista (2)'!$A:$A,$D75,'Intervenção-Pista (2)'!$B:$B,$D$67) -> 0 | AB75: =SUMIFS('Intervenção-Pista (2)'!X:X,'Intervenção-Pista (2)'!$A:$A,$D75,'Intervenção-Pista (2)'!$B:$B,$D$67) -> 0 | AC75: =SUMIFS('Intervenção-Pista (2)'!Y:Y,'Intervenção-Pista (2)'!$A:$A,$D75,'Intervenção-Pista (2)'!$B:$B,$D$67) -> 0 | AD75: =SUMIFS('Intervenção-Pista (2)'!Z:Z,'Intervenção-Pista (2)'!$A:$A,$D75,'Intervenção-Pista (2)'!$B:$B,$D$67) -> 0 | AE75: =SUMIFS('Intervenção-Pista (2)'!AA:AA,'Intervenção-Pista (2)'!$A:$A,$D75,'Intervenção-Pista (2)'!$B:$B,$D$67) -> 0 | AF75: =SUMIFS('Intervenção-Pista (2)'!AB:AB,'Intervenção-Pista (2)'!$A:$A,$D75,'Intervenção-Pista (2)'!$B:$B,$D$67) -> 0 | AG75: =SUMIFS('Intervenção-Pista (2)'!AC:AC,'Intervenção-Pista (2)'!$A:$A,$D75,'Intervenção-Pista (2)'!$B:$B,$D$67) -> 0 | AH75: =SUMIFS('Intervenção-Pista (2)'!AD:AD,'Intervenção-Pista (2)'!$A:$A,$D75,'Intervenção-Pista (2)'!$B:$B,$D$67) -> 0 | AI75: =SUMIFS('Intervenção-Pista (2)'!AE:AE,'Intervenção-Pista (2)'!$A:$A,$D75,'Intervenção-Pista (2)'!$B:$B,$D$67) -> 0 | AJ75: =SUMIFS('Intervenção-Pista (2)'!AF:AF,'Intervenção-Pista (2)'!$A:$A,$D75,'Intervenção-Pista (2)'!$B:$B,$D$67) -> 0 | AK75: =SUMIFS('Intervenção-Pista (2)'!AG:AG,'Intervenção-Pista (2)'!$A:$A,$D75,'Intervenção-Pista (2)'!$B:$B,$D$67) -> 0
B76: 8.1.3.9 | D76: 863LMG0010 | E76: M2 | F76: 0 | H76: =SUMIFS('Intervenção-Pista (2)'!D:D,'Intervenção-Pista (2)'!$A:$A,$D76,'Intervenção-Pista (2)'!$B:$B,$D$67) -> 0 | I76: =SUMIFS('Intervenção-Pista (2)'!E:E,'Intervenção-Pista (2)'!$A:$A,$D76,'Intervenção-Pista (2)'!$B:$B,$D$67) -> 0 | J76: =SUMIFS('Intervenção-Pista (2)'!F:F,'Intervenção-Pista (2)'!$A:$A,$D76,'Intervenção-Pista (2)'!$B:$B,$D$67) -> 0 | K76: =SUMIFS('Intervenção-Pista (2)'!G:G,'Intervenção-Pista (2)'!$A:$A,$D76,'Intervenção-Pista (2)'!$B:$B,$D$67) -> 0 | L76: =SUMIFS('Intervenção-Pista (2)'!H:H,'Intervenção-Pista (2)'!$A:$A,$D76,'Intervenção-Pista (2)'!$B:$B,$D$67) -> 0 | M76: =SUMIFS('Intervenção-Pista (2)'!I:I,'Intervenção-Pista (2)'!$A:$A,$D76,'Intervenção-Pista (2)'!$B:$B,$D$67) -> 0 | N76: =SUMIFS('Intervenção-Pista (2)'!J:J,'Intervenção-Pista (2)'!$A:$A,$D76,'Intervenção-Pista (2)'!$B:$B,$D$67) -> 0 | O76: =SUMIFS('Intervenção-Pista (2)'!K:K,'Intervenção-Pista (2)'!$A:$A,$D76,'Intervenção-Pista (2)'!$B:$B,$D$67) -> 0 | P76: =SUMIFS('Intervenção-Pista (2)'!L:L,'Intervenção-Pista (2)'!$A:$A,$D76,'Intervenção-Pista (2)'!$B:$B,$D$67) -> 0 | Q76: =SUMIFS('Intervenção-Pista (2)'!M:M,'Intervenção-Pista (2)'!$A:$A,$D76,'Intervenção-Pista (2)'!$B:$B,$D$67) -> 0 | R76: =SUMIFS('Intervenção-Pista (2)'!N:N,'Intervenção-Pista (2)'!$A:$A,$D76,'Intervenção-Pista (2)'!$B:$B,$D$67) -> 0 | S76: =SUMIFS('Intervenção-Pista (2)'!O:O,'Intervenção-Pista (2)'!$A:$A,$D76,'Intervenção-Pista (2)'!$B:$B,$D$67) -> 0 | T76: =SUMIFS('Intervenção-Pista (2)'!P:P,'Intervenção-Pista (2)'!$A:$A,$D76,'Intervenção-Pista (2)'!$B:$B,$D$67) -> 0 | U76: =SUMIFS('Intervenção-Pista (2)'!Q:Q,'Intervenção-Pista (2)'!$A:$A,$D76,'Intervenção-Pista (2)'!$B:$B,$D$67) -> 0 | V76: =SUMIFS('Intervenção-Pista (2)'!R:R,'Intervenção-Pista (2)'!$A:$A,$D76,'Intervenção-Pista (2)'!$B:$B,$D$67) -> 0 | W76: =SUMIFS('Intervenção-Pista (2)'!S:S,'Intervenção-Pista (2)'!$A:$A,$D76,'Intervenção-Pista (2)'!$B:$B,$D$67) -> 0 | X76: =SUMIFS('Intervenção-Pista (2)'!T:T,'Intervenção-Pista (2)'!$A:$A,$D76,'Intervenção-Pista (2)'!$B:$B,$D$67) -> 0 | Y76: =SUMIFS('Intervenção-Pista (2)'!U:U,'Intervenção-Pista (2)'!$A:$A,$D76,'Intervenção-Pista (2)'!$B:$B,$D$67) -> 0 | Z76: =SUMIFS('Intervenção-Pista (2)'!V:V,'Intervenção-Pista (2)'!$A:$A,$D76,'Intervenção-Pista (2)'!$B:$B,$D$67) -> 0 | AA76: =SUMIFS('Intervenção-Pista (2)'!W:W,'Intervenção-Pista (2)'!$A:$A,$D76,'Intervenção-Pista (2)'!$B:$B,$D$67) -> 0 | AB76: =SUMIFS('Intervenção-Pista (2)'!X:X,'Intervenção-Pista (2)'!$A:$A,$D76,'Intervenção-Pista (2)'!$B:$B,$D$67) -> 0 | AC76: =SUMIFS('Intervenção-Pista (2)'!Y:Y,'Intervenção-Pista (2)'!$A:$A,$D76,'Intervenção-Pista (2)'!$B:$B,$D$67) -> 0 | AD76: =SUMIFS('Intervenção-Pista (2)'!Z:Z,'Intervenção-Pista (2)'!$A:$A,$D76,'Intervenção-Pista (2)'!$B:$B,$D$67) -> 0 | AE76: =SUMIFS('Intervenção-Pista (2)'!AA:AA,'Intervenção-Pista (2)'!$A:$A,$D76,'Intervenção-Pista (2)'!$B:$B,$D$67) -> 0 | AF76: =SUMIFS('Intervenção-Pista (2)'!AB:AB,'Intervenção-Pista (2)'!$A:$A,$D76,'Intervenção-Pista (2)'!$B:$B,$D$67) -> 0 | AG76: =SUMIFS('Intervenção-Pista (2)'!AC:AC,'Intervenção-Pista (2)'!$A:$A,$D76,'Intervenção-Pista (2)'!$B:$B,$D$67) -> 0 | AH76: =SUMIFS('Intervenção-Pista (2)'!AD:AD,'Intervenção-Pista (2)'!$A:$A,$D76,'Intervenção-Pista (2)'!$B:$B,$D$67) -> 0 | AI76: =SUMIFS('Intervenção-Pista (2)'!AE:AE,'Intervenção-Pista (2)'!$A:$A,$D76,'Intervenção-Pista (2)'!$B:$B,$D$67) -> 0 | AJ76: =SUMIFS('Intervenção-Pista (2)'!AF:AF,'Intervenção-Pista (2)'!$A:$A,$D76,'Intervenção-Pista (2)'!$B:$B,$D$67) -> 0 | AK76: =SUMIFS('Intervenção-Pista (2)'!AG:AG,'Intervenção-Pista (2)'!$A:$A,$D76,'Intervenção-Pista (2)'!$B:$B,$D$67) -> 0
B77: 8.1.3.10 | D77: 491CMG0010 | E77: M2 | F77: 0 | H77: =SUMIFS('Intervenção-Pista (2)'!D:D,'Intervenção-Pista (2)'!$A:$A,$D77,'Intervenção-Pista (2)'!$B:$B,$D$67) -> 0 | I77: =SUMIFS('Intervenção-Pista (2)'!E:E,'Intervenção-Pista (2)'!$A:$A,$D77,'Intervenção-Pista (2)'!$B:$B,$D$67) -> 0 | J77: =SUMIFS('Intervenção-Pista (2)'!F:F,'Intervenção-Pista (2)'!$A:$A,$D77,'Intervenção-Pista (2)'!$B:$B,$D$67) -> 0 | K77: =SUMIFS('Intervenção-Pista (2)'!G:G,'Intervenção-Pista (2)'!$A:$A,$D77,'Intervenção-Pista (2)'!$B:$B,$D$67) -> 0 | L77: =SUMIFS('Intervenção-Pista (2)'!H:H,'Intervenção-Pista (2)'!$A:$A,$D77,'Intervenção-Pista (2)'!$B:$B,$D$67) -> 0 | M77: =SUMIFS('Intervenção-Pista (2)'!I:I,'Intervenção-Pista (2)'!$A:$A,$D77,'Intervenção-Pista (2)'!$B:$B,$D$67) -> 0 | N77: =SUMIFS('Intervenção-Pista (2)'!J:J,'Intervenção-Pista (2)'!$A:$A,$D77,'Intervenção-Pista (2)'!$B:$B,$D$67) -> 0 | O77: =SUMIFS('Intervenção-Pista (2)'!K:K,'Intervenção-Pista (2)'!$A:$A,$D77,'Intervenção-Pista (2)'!$B:$B,$D$67) -> 0 | P77: =SUMIFS('Intervenção-Pista (2)'!L:L,'Intervenção-Pista (2)'!$A:$A,$D77,'Intervenção-Pista (2)'!$B:$B,$D$67) -> 0 | Q77: =SUMIFS('Intervenção-Pista (2)'!M:M,'Intervenção-Pista (2)'!$A:$A,$D77,'Intervenção-Pista (2)'!$B:$B,$D$67) -> 0 | R77: =SUMIFS('Intervenção-Pista (2)'!N:N,'Intervenção-Pista (2)'!$A:$A,$D77,'Intervenção-Pista (2)'!$B:$B,$D$67) -> 0 | S77: =SUMIFS('Intervenção-Pista (2)'!O:O,'Intervenção-Pista (2)'!$A:$A,$D77,'Intervenção-Pista (2)'!$B:$B,$D$67) -> 0 | T77: =SUMIFS('Intervenção-Pista (2)'!P:P,'Intervenção-Pista (2)'!$A:$A,$D77,'Intervenção-Pista (2)'!$B:$B,$D$67) -> 0 | U77: =SUMIFS('Intervenção-Pista (2)'!Q:Q,'Intervenção-Pista (2)'!$A:$A,$D77,'Intervenção-Pista (2)'!$B:$B,$D$67) -> 0 | V77: =SUMIFS('Intervenção-Pista (2)'!R:R,'Intervenção-Pista (2)'!$A:$A,$D77,'Intervenção-Pista (2)'!$B:$B,$D$67) -> 0 | W77: =SUMIFS('Intervenção-Pista (2)'!S:S,'Intervenção-Pista (2)'!$A:$A,$D77,'Intervenção-Pista (2)'!$B:$B,$D$67) -> 0 | X77: =SUMIFS('Intervenção-Pista (2)'!T:T,'Intervenção-Pista (2)'!$A:$A,$D77,'Intervenção-Pista (2)'!$B:$B,$D$67) -> 0 | Y77: =SUMIFS('Intervenção-Pista (2)'!U:U,'Intervenção-Pista (2)'!$A:$A,$D77,'Intervenção-Pista (2)'!$B:$B,$D$67) -> 0 | Z77: =SUMIFS('Intervenção-Pista (2)'!V:V,'Intervenção-Pista (2)'!$A:$A,$D77,'Intervenção-Pista (2)'!$B:$B,$D$67) -> 0 | AA77: =SUMIFS('Intervenção-Pista (2)'!W:W,'Intervenção-Pista (2)'!$A:$A,$D77,'Intervenção-Pista (2)'!$B:$B,$D$67) -> 0 | AB77: =SUMIFS('Intervenção-Pista (2)'!X:X,'Intervenção-Pista (2)'!$A:$A,$D77,'Intervenção-Pista (2)'!$B:$B,$D$67) -> 0 | AC77: =SUMIFS('Intervenção-Pista (2)'!Y:Y,'Intervenção-Pista (2)'!$A:$A,$D77,'Intervenção-Pista (2)'!$B:$B,$D$67) -> 0 | AD77: =SUMIFS('Intervenção-Pista (2)'!Z:Z,'Intervenção-Pista (2)'!$A:$A,$D77,'Intervenção-Pista (2)'!$B:$B,$D$67) -> 0 | AE77: =SUMIFS('Intervenção-Pista (2)'!AA:AA,'Intervenção-Pista (2)'!$A:$A,$D77,'Intervenção-Pista (2)'!$B:$B,$D$67) -> 0 | AF77: =SUMIFS('Intervenção-Pista (2)'!AB:AB,'Intervenção-Pista (2)'!$A:$A,$D77,'Intervenção-Pista (2)'!$B:$B,$D$67) -> 0 | AG77: =SUMIFS('Intervenção-Pista (2)'!AC:AC,'Intervenção-Pista (2)'!$A:$A,$D77,'Intervenção-Pista (2)'!$B:$B,$D$67) -> 0 | AH77: =SUMIFS('Intervenção-Pista (2)'!AD:AD,'Intervenção-Pista (2)'!$A:$A,$D77,'Intervenção-Pista (2)'!$B:$B,$D$67) -> 0 | AI77: =SUMIFS('Intervenção-Pista (2)'!AE:AE,'Intervenção-Pista (2)'!$A:$A,$D77,'Intervenção-Pista (2)'!$B:$B,$D$67) -> 0 | AJ77: =SUMIFS('Intervenção-Pista (2)'!AF:AF,'Intervenção-Pista (2)'!$A:$A,$D77,'Intervenção-Pista (2)'!$B:$B,$D$67) -> 0 | AK77: =SUMIFS('Intervenção-Pista (2)'!AG:AG,'Intervenção-Pista (2)'!$A:$A,$D77,'Intervenção-Pista (2)'!$B:$B,$D$67) -> 0
B78: 8.1.3.11 | D78: 491CMG0023 | E78: M2 | F78: 71,656.59 | H78: =SUMIFS('Intervenção-Pista (2)'!D:D,'Intervenção-Pista (2)'!$A:$A,$D78,'Intervenção-Pista (2)'!$B:$B,$D$67) -> 0 | I78: =SUMIFS('Intervenção-Pista (2)'!E:E,'Intervenção-Pista (2)'!$A:$A,$D78,'Intervenção-Pista (2)'!$B:$B,$D$67) -> 0 | J78: =SUMIFS('Intervenção-Pista (2)'!F:F,'Intervenção-Pista (2)'!$A:$A,$D78,'Intervenção-Pista (2)'!$B:$B,$D$67) -> 0 | K78: =SUMIFS('Intervenção-Pista (2)'!G:G,'Intervenção-Pista (2)'!$A:$A,$D78,'Intervenção-Pista (2)'!$B:$B,$D$67) -> 0 | L78: =SUMIFS('Intervenção-Pista (2)'!H:H,'Intervenção-Pista (2)'!$A:$A,$D78,'Intervenção-Pista (2)'!$B:$B,$D$67) -> 0 | M78: =SUMIFS('Intervenção-Pista (2)'!I:I,'Intervenção-Pista (2)'!$A:$A,$D78,'Intervenção-Pista (2)'!$B:$B,$D$67) -> 71,656.59 | N78: =SUMIFS('Intervenção-Pista (2)'!J:J,'Intervenção-Pista (2)'!$A:$A,$D78,'Intervenção-Pista (2)'!$B:$B,$D$67) -> 0 | O78: =SUMIFS('Intervenção-Pista (2)'!K:K,'Intervenção-Pista (2)'!$A:$A,$D78,'Intervenção-Pista (2)'!$B:$B,$D$67) -> 0 | P78: =SUMIFS('Intervenção-Pista (2)'!L:L,'Intervenção-Pista (2)'!$A:$A,$D78,'Intervenção-Pista (2)'!$B:$B,$D$67) -> 0 | Q78: =SUMIFS('Intervenção-Pista (2)'!M:M,'Intervenção-Pista (2)'!$A:$A,$D78,'Intervenção-Pista (2)'!$B:$B,$D$67) -> 0 | R78: =SUMIFS('Intervenção-Pista (2)'!N:N,'Intervenção-Pista (2)'!$A:$A,$D78,'Intervenção-Pista (2)'!$B:$B,$D$67) -> 0 | S78: =SUMIFS('Intervenção-Pista (2)'!O:O,'Intervenção-Pista (2)'!$A:$A,$D78,'Intervenção-Pista (2)'!$B:$B,$D$67) -> 0 | T78: =SUMIFS('Intervenção-Pista (2)'!P:P,'Intervenção-Pista (2)'!$A:$A,$D78,'Intervenção-Pista (2)'!$B:$B,$D$67) -> 0 | U78: =SUMIFS('Intervenção-Pista (2)'!Q:Q,'Intervenção-Pista (2)'!$A:$A,$D78,'Intervenção-Pista (2)'!$B:$B,$D$67) -> 0 | V78: =SUMIFS('Intervenção-Pista (2)'!R:R,'Intervenção-Pista (2)'!$A:$A,$D78,'Intervenção-Pista (2)'!$B:$B,$D$67) -> 0 | W78: =SUMIFS('Intervenção-Pista (2)'!S:S,'Intervenção-Pista (2)'!$A:$A,$D78,'Intervenção-Pista (2)'!$B:$B,$D$67) -> 0 | X78: =SUMIFS('Intervenção-Pista (2)'!T:T,'Intervenção-Pista (2)'!$A:$A,$D78,'Intervenção-Pista (2)'!$B:$B,$D$67) -> 0 | Y78: =SUMIFS('Intervenção-Pista (2)'!U:U,'Intervenção-Pista (2)'!$A:$A,$D78,'Intervenção-Pista (2)'!$B:$B,$D$67) -> 0 | Z78: =SUMIFS('Intervenção-Pista (2)'!V:V,'Intervenção-Pista (2)'!$A:$A,$D78,'Intervenção-Pista (2)'!$B:$B,$D$67) -> 0 | AA78: =SUMIFS('Intervenção-Pista (2)'!W:W,'Intervenção-Pista (2)'!$A:$A,$D78,'Intervenção-Pista (2)'!$B:$B,$D$67) -> 0 | AB78: =SUMIFS('Intervenção-Pista (2)'!X:X,'Intervenção-Pista (2)'!$A:$A,$D78,'Intervenção-Pista (2)'!$B:$B,$D$67) -> 0 | AC78: =SUMIFS('Intervenção-Pista (2)'!Y:Y,'Intervenção-Pista (2)'!$A:$A,$D78,'Intervenção-Pista (2)'!$B:$B,$D$67) -> 0 | AD78: =SUMIFS('Intervenção-Pista (2)'!Z:Z,'Intervenção-Pista (2)'!$A:$A,$D78,'Intervenção-Pista (2)'!$B:$B,$D$67) -> 0 | AE78: =SUMIFS('Intervenção-Pista (2)'!AA:AA,'Intervenção-Pista (2)'!$A:$A,$D78,'Intervenção-Pista (2)'!$B:$B,$D$67) -> 0 | AF78: =SUMIFS('Intervenção-Pista (2)'!AB:AB,'Intervenção-Pista (2)'!$A:$A,$D78,'Intervenção-Pista (2)'!$B:$B,$D$67) -> 0 | AG78: =SUMIFS('Intervenção-Pista (2)'!AC:AC,'Intervenção-Pista (2)'!$A:$A,$D78,'Intervenção-Pista (2)'!$B:$B,$D$67) -> 0 | AH78: =SUMIFS('Intervenção-Pista (2)'!AD:AD,'Intervenção-Pista (2)'!$A:$A,$D78,'Intervenção-Pista (2)'!$B:$B,$D$67) -> 0 | AI78: =SUMIFS('Intervenção-Pista (2)'!AE:AE,'Intervenção-Pista (2)'!$A:$A,$D78,'Intervenção-Pista (2)'!$B:$B,$D$67) -> 0 | AJ78: =SUMIFS('Intervenção-Pista (2)'!AF:AF,'Intervenção-Pista (2)'!$A:$A,$D78,'Intervenção-Pista (2)'!$B:$B,$D$67) -> 0 | AK78: =SUMIFS('Intervenção-Pista (2)'!AG:AG,'Intervenção-Pista (2)'!$A:$A,$D78,'Intervenção-Pista (2)'!$B:$B,$D$67) -> 0
B79: 8.1.3.12 | D79: 491CMG0050 | E79: M2 | F79: 0 | H79: =SUMIFS('Intervenção-Pista (2)'!D:D,'Intervenção-Pista (2)'!$A:$A,$D79,'Intervenção-Pista (2)'!$B:$B,$D$67) -> 0 | I79: =SUMIFS('Intervenção-Pista (2)'!E:E,'Intervenção-Pista (2)'!$A:$A,$D79,'Intervenção-Pista (2)'!$B:$B,$D$67) -> 0 | J79: =SUMIFS('Intervenção-Pista (2)'!F:F,'Intervenção-Pista (2)'!$A:$A,$D79,'Intervenção-Pista (2)'!$B:$B,$D$67) -> 0 | K79: =SUMIFS('Intervenção-Pista (2)'!G:G,'Intervenção-Pista (2)'!$A:$A,$D79,'Intervenção-Pista (2)'!$B:$B,$D$67) -> 0 | L79: =SUMIFS('Intervenção-Pista (2)'!H:H,'Intervenção-Pista (2)'!$A:$A,$D79,'Intervenção-Pista (2)'!$B:$B,$D$67) -> 0 | M79: =SUMIFS('Intervenção-Pista (2)'!I:I,'Intervenção-Pista (2)'!$A:$A,$D79,'Intervenção-Pista (2)'!$B:$B,$D$67) -> 0 | N79: =SUMIFS('Intervenção-Pista (2)'!J:J,'Intervenção-Pista (2)'!$A:$A,$D79,'Intervenção-Pista (2)'!$B:$B,$D$67) -> 0 | O79: =SUMIFS('Intervenção-Pista (2)'!K:K,'Intervenção-Pista (2)'!$A:$A,$D79,'Intervenção-Pista (2)'!$B:$B,$D$67) -> 0 | P79: =SUMIFS('Intervenção-Pista (2)'!L:L,'Intervenção-Pista (2)'!$A:$A,$D79,'Intervenção-Pista (2)'!$B:$B,$D$67) -> 0 | Q79: =SUMIFS('Intervenção-Pista (2)'!M:M,'Intervenção-Pista (2)'!$A:$A,$D79,'Intervenção-Pista (2)'!$B:$B,$D$67) -> 0 | R79: =SUMIFS('Intervenção-Pista (2)'!N:N,'Intervenção-Pista (2)'!$A:$A,$D79,'Intervenção-Pista (2)'!$B:$B,$D$67) -> 0 | S79: =SUMIFS('Intervenção-Pista (2)'!O:O,'Intervenção-Pista (2)'!$A:$A,$D79,'Intervenção-Pista (2)'!$B:$B,$D$67) -> 0 | T79: =SUMIFS('Intervenção-Pista (2)'!P:P,'Intervenção-Pista (2)'!$A:$A,$D79,'Intervenção-Pista (2)'!$B:$B,$D$67) -> 0 | U79: =SUMIFS('Intervenção-Pista (2)'!Q:Q,'Intervenção-Pista (2)'!$A:$A,$D79,'Intervenção-Pista (2)'!$B:$B,$D$67) -> 0 | V79: =SUMIFS('Intervenção-Pista (2)'!R:R,'Intervenção-Pista (2)'!$A:$A,$D79,'Intervenção-Pista (2)'!$B:$B,$D$67) -> 0 | W79: =SUMIFS('Intervenção-Pista (2)'!S:S,'Intervenção-Pista (2)'!$A:$A,$D79,'Intervenção-Pista (2)'!$B:$B,$D$67) -> 0 | X79: =SUMIFS('Intervenção-Pista (2)'!T:T,'Intervenção-Pista (2)'!$A:$A,$D79,'Intervenção-Pista (2)'!$B:$B,$D$67) -> 0 | Y79: =SUMIFS('Intervenção-Pista (2)'!U:U,'Intervenção-Pista (2)'!$A:$A,$D79,'Intervenção-Pista (2)'!$B:$B,$D$67) -> 0 | Z79: =SUMIFS('Intervenção-Pista (2)'!V:V,'Intervenção-Pista (2)'!$A:$A,$D79,'Intervenção-Pista (2)'!$B:$B,$D$67) -> 0 | AA79: =SUMIFS('Intervenção-Pista (2)'!W:W,'Intervenção-Pista (2)'!$A:$A,$D79,'Intervenção-Pista (2)'!$B:$B,$D$67) -> 0 | AB79: =SUMIFS('Intervenção-Pista (2)'!X:X,'Intervenção-Pista (2)'!$A:$A,$D79,'Intervenção-Pista (2)'!$B:$B,$D$67) -> 0 | AC79: =SUMIFS('Intervenção-Pista (2)'!Y:Y,'Intervenção-Pista (2)'!$A:$A,$D79,'Intervenção-Pista (2)'!$B:$B,$D$67) -> 0 | AD79: =SUMIFS('Intervenção-Pista (2)'!Z:Z,'Intervenção-Pista (2)'!$A:$A,$D79,'Intervenção-Pista (2)'!$B:$B,$D$67) -> 0 | AE79: =SUMIFS('Intervenção-Pista (2)'!AA:AA,'Intervenção-Pista (2)'!$A:$A,$D79,'Intervenção-Pista (2)'!$B:$B,$D$67) -> 0 | AF79: =SUMIFS('Intervenção-Pista (2)'!AB:AB,'Intervenção-Pista (2)'!$A:$A,$D79,'Intervenção-Pista (2)'!$B:$B,$D$67) -> 0 | AG79: =SUMIFS('Intervenção-Pista (2)'!AC:AC,'Intervenção-Pista (2)'!$A:$A,$D79,'Intervenção-Pista (2)'!$B:$B,$D$67) -> 0 | AH79: =SUMIFS('Intervenção-Pista (2)'!AD:AD,'Intervenção-Pista (2)'!$A:$A,$D79,'Intervenção-Pista (2)'!$B:$B,$D$67) -> 0 | AI79: =SUMIFS('Intervenção-Pista (2)'!AE:AE,'Intervenção-Pista (2)'!$A:$A,$D79,'Intervenção-Pista (2)'!$B:$B,$D$67) -> 0 | AJ79: =SUMIFS('Intervenção-Pista (2)'!AF:AF,'Intervenção-Pista (2)'!$A:$A,$D79,'Intervenção-Pista (2)'!$B:$B,$D$67) -> 0 | AK79: =SUMIFS('Intervenção-Pista (2)'!AG:AG,'Intervenção-Pista (2)'!$A:$A,$D79,'Intervenção-Pista (2)'!$B:$B,$D$67) -> 0
B80: 8.1.3.13 | D80: 491CMG0090 | E80: M2 | F80: 8,400.00 | H80: =SUMIFS('Intervenção-Pista (2)'!D:D,'Intervenção-Pista (2)'!$A:$A,$D80,'Intervenção-Pista (2)'!$B:$B,$D$67) -> 0 | I80: =SUMIFS('Intervenção-Pista (2)'!E:E,'Intervenção-Pista (2)'!$A:$A,$D80,'Intervenção-Pista (2)'!$B:$B,$D$67) -> 0 | J80: =SUMIFS('Intervenção-Pista (2)'!F:F,'Intervenção-Pista (2)'!$A:$A,$D80,'Intervenção-Pista (2)'!$B:$B,$D$67) -> 0 | K80: =SUMIFS('Intervenção-Pista (2)'!G:G,'Intervenção-Pista (2)'!$A:$A,$D80,'Intervenção-Pista (2)'!$B:$B,$D$67) -> 0 | L80: =SUMIFS('Intervenção-Pista (2)'!H:H,'Intervenção-Pista (2)'!$A:$A,$D80,'Intervenção-Pista (2)'!$B:$B,$D$67) -> 0 | M80: =SUMIFS('Intervenção-Pista (2)'!I:I,'Intervenção-Pista (2)'!$A:$A,$D80,'Intervenção-Pista (2)'!$B:$B,$D$67) -> 8,400.00 | N80: =SUMIFS('Intervenção-Pista (2)'!J:J,'Intervenção-Pista (2)'!$A:$A,$D80,'Intervenção-Pista (2)'!$B:$B,$D$67) -> 0 | O80: =SUMIFS('Intervenção-Pista (2)'!K:K,'Intervenção-Pista (2)'!$A:$A,$D80,'Intervenção-Pista (2)'!$B:$B,$D$67) -> 0 | P80: =SUMIFS('Intervenção-Pista (2)'!L:L,'Intervenção-Pista (2)'!$A:$A,$D80,'Intervenção-Pista (2)'!$B:$B,$D$67) -> 0 | Q80: =SUMIFS('Intervenção-Pista (2)'!M:M,'Intervenção-Pista (2)'!$A:$A,$D80,'Intervenção-Pista (2)'!$B:$B,$D$67) -> 0 | R80: =SUMIFS('Intervenção-Pista (2)'!N:N,'Intervenção-Pista (2)'!$A:$A,$D80,'Intervenção-Pista (2)'!$B:$B,$D$67) -> 0 | S80: =SUMIFS('Intervenção-Pista (2)'!O:O,'Intervenção-Pista (2)'!$A:$A,$D80,'Intervenção-Pista (2)'!$B:$B,$D$67) -> 0 | T80: =SUMIFS('Intervenção-Pista (2)'!P:P,'Intervenção-Pista (2)'!$A:$A,$D80,'Intervenção-Pista (2)'!$B:$B,$D$67) -> 0 | U80: =SUMIFS('Intervenção-Pista (2)'!Q:Q,'Intervenção-Pista (2)'!$A:$A,$D80,'Intervenção-Pista (2)'!$B:$B,$D$67) -> 0 | V80: =SUMIFS('Intervenção-Pista (2)'!R:R,'Intervenção-Pista (2)'!$A:$A,$D80,'Intervenção-Pista (2)'!$B:$B,$D$67) -> 0 | W80: =SUMIFS('Intervenção-Pista (2)'!S:S,'Intervenção-Pista (2)'!$A:$A,$D80,'Intervenção-Pista (2)'!$B:$B,$D$67) -> 0 | X80: =SUMIFS('Intervenção-Pista (2)'!T:T,'Intervenção-Pista (2)'!$A:$A,$D80,'Intervenção-Pista (2)'!$B:$B,$D$67) -> 0 | Y80: =SUMIFS('Intervenção-Pista (2)'!U:U,'Intervenção-Pista (2)'!$A:$A,$D80,'Intervenção-Pista (2)'!$B:$B,$D$67) -> 0 | Z80: =SUMIFS('Intervenção-Pista (2)'!V:V,'Intervenção-Pista (2)'!$A:$A,$D80,'Intervenção-Pista (2)'!$B:$B,$D$67) -> 0 | AA80: =SUMIFS('Intervenção-Pista (2)'!W:W,'Intervenção-Pista (2)'!$A:$A,$D80,'Intervenção-Pista (2)'!$B:$B,$D$67) -> 0 | AB80: =SUMIFS('Intervenção-Pista (2)'!X:X,'Intervenção-Pista (2)'!$A:$A,$D80,'Intervenção-Pista (2)'!$B:$B,$D$67) -> 0 | AC80: =SUMIFS('Intervenção-Pista (2)'!Y:Y,'Intervenção-Pista (2)'!$A:$A,$D80,'Intervenção-Pista (2)'!$B:$B,$D$67) -> 0 | AD80: =SUMIFS('Intervenção-Pista (2)'!Z:Z,'Intervenção-Pista (2)'!$A:$A,$D80,'Intervenção-Pista (2)'!$B:$B,$D$67) -> 0 | AE80: =SUMIFS('Intervenção-Pista (2)'!AA:AA,'Intervenção-Pista (2)'!$A:$A,$D80,'Intervenção-Pista (2)'!$B:$B,$D$67) -> 0 | AF80: =SUMIFS('Intervenção-Pista (2)'!AB:AB,'Intervenção-Pista (2)'!$A:$A,$D80,'Intervenção-Pista (2)'!$B:$B,$D$67) -> 0 | AG80: =SUMIFS('Intervenção-Pista (2)'!AC:AC,'Intervenção-Pista (2)'!$A:$A,$D80,'Intervenção-Pista (2)'!$B:$B,$D$67) -> 0 | AH80: =SUMIFS('Intervenção-Pista (2)'!AD:AD,'Intervenção-Pista (2)'!$A:$A,$D80,'Intervenção-Pista (2)'!$B:$B,$D$67) -> 0 | AI80: =SUMIFS('Intervenção-Pista (2)'!AE:AE,'Intervenção-Pista (2)'!$A:$A,$D80,'Intervenção-Pista (2)'!$B:$B,$D$67) -> 0 | AJ80: =SUMIFS('Intervenção-Pista (2)'!AF:AF,'Intervenção-Pista (2)'!$A:$A,$D80,'Intervenção-Pista (2)'!$B:$B,$D$67) -> 0 | AK80: =SUMIFS('Intervenção-Pista (2)'!AG:AG,'Intervenção-Pista (2)'!$A:$A,$D80,'Intervenção-Pista (2)'!$B:$B,$D$67) -> 0
B81: 8.1.3.14 | D81: 491CMG0100 | E81: M2 | F81: 0 | H81: =SUMIFS('Intervenção-Pista (2)'!D:D,'Intervenção-Pista (2)'!$A:$A,$D81,'Intervenção-Pista (2)'!$B:$B,$D$67) -> 0 | I81: =SUMIFS('Intervenção-Pista (2)'!E:E,'Intervenção-Pista (2)'!$A:$A,$D81,'Intervenção-Pista (2)'!$B:$B,$D$67) -> 0 | J81: =SUMIFS('Intervenção-Pista (2)'!F:F,'Intervenção-Pista (2)'!$A:$A,$D81,'Intervenção-Pista (2)'!$B:$B,$D$67) -> 0 | K81: =SUMIFS('Intervenção-Pista (2)'!G:G,'Intervenção-Pista (2)'!$A:$A,$D81,'Intervenção-Pista (2)'!$B:$B,$D$67) -> 0 | L81: =SUMIFS('Intervenção-Pista (2)'!H:H,'Intervenção-Pista (2)'!$A:$A,$D81,'Intervenção-Pista (2)'!$B:$B,$D$67) -> 0 | M81: =SUMIFS('Intervenção-Pista (2)'!I:I,'Intervenção-Pista (2)'!$A:$A,$D81,'Intervenção-Pista (2)'!$B:$B,$D$67) -> 0 | N81: =SUMIFS('Intervenção-Pista (2)'!J:J,'Intervenção-Pista (2)'!$A:$A,$D81,'Intervenção-Pista (2)'!$B:$B,$D$67) -> 0 | O81: =SUMIFS('Intervenção-Pista (2)'!K:K,'Intervenção-Pista (2)'!$A:$A,$D81,'Intervenção-Pista (2)'!$B:$B,$D$67) -> 0 | P81: =SUMIFS('Intervenção-Pista (2)'!L:L,'Intervenção-Pista (2)'!$A:$A,$D81,'Intervenção-Pista (2)'!$B:$B,$D$67) -> 0 | Q81: =SUMIFS('Intervenção-Pista (2)'!M:M,'Intervenção-Pista (2)'!$A:$A,$D81,'Intervenção-Pista (2)'!$B:$B,$D$67) -> 0 | R81: =SUMIFS('Intervenção-Pista (2)'!N:N,'Intervenção-Pista (2)'!$A:$A,$D81,'Intervenção-Pista (2)'!$B:$B,$D$67) -> 0 | S81: =SUMIFS('Intervenção-Pista (2)'!O:O,'Intervenção-Pista (2)'!$A:$A,$D81,'Intervenção-Pista (2)'!$B:$B,$D$67) -> 0 | T81: =SUMIFS('Intervenção-Pista (2)'!P:P,'Intervenção-Pista (2)'!$A:$A,$D81,'Intervenção-Pista (2)'!$B:$B,$D$67) -> 0 | U81: =SUMIFS('Intervenção-Pista (2)'!Q:Q,'Intervenção-Pista (2)'!$A:$A,$D81,'Intervenção-Pista (2)'!$B:$B,$D$67) -> 0 | V81: =SUMIFS('Intervenção-Pista (2)'!R:R,'Intervenção-Pista (2)'!$A:$A,$D81,'Intervenção-Pista (2)'!$B:$B,$D$67) -> 0 | W81: =SUMIFS('Intervenção-Pista (2)'!S:S,'Intervenção-Pista (2)'!$A:$A,$D81,'Intervenção-Pista (2)'!$B:$B,$D$67) -> 0 | X81: =SUMIFS('Intervenção-Pista (2)'!T:T,'Intervenção-Pista (2)'!$A:$A,$D81,'Intervenção-Pista (2)'!$B:$B,$D$67) -> 0 | Y81: =SUMIFS('Intervenção-Pista (2)'!U:U,'Intervenção-Pista (2)'!$A:$A,$D81,'Intervenção-Pista (2)'!$B:$B,$D$67) -> 0 | Z81: =SUMIFS('Intervenção-Pista (2)'!V:V,'Intervenção-Pista (2)'!$A:$A,$D81,'Intervenção-Pista (2)'!$B:$B,$D$67) -> 0 | AA81: =SUMIFS('Intervenção-Pista (2)'!W:W,'Intervenção-Pista (2)'!$A:$A,$D81,'Intervenção-Pista (2)'!$B:$B,$D$67) -> 0 | AB81: =SUMIFS('Intervenção-Pista (2)'!X:X,'Intervenção-Pista (2)'!$A:$A,$D81,'Intervenção-Pista (2)'!$B:$B,$D$67) -> 0 | AC81: =SUMIFS('Intervenção-Pista (2)'!Y:Y,'Intervenção-Pista (2)'!$A:$A,$D81,'Intervenção-Pista (2)'!$B:$B,$D$67) -> 0 | AD81: =SUMIFS('Intervenção-Pista (2)'!Z:Z,'Intervenção-Pista (2)'!$A:$A,$D81,'Intervenção-Pista (2)'!$B:$B,$D$67) -> 0 | AE81: =SUMIFS('Intervenção-Pista (2)'!AA:AA,'Intervenção-Pista (2)'!$A:$A,$D81,'Intervenção-Pista (2)'!$B:$B,$D$67) -> 0 | AF81: =SUMIFS('Intervenção-Pista (2)'!AB:AB,'Intervenção-Pista (2)'!$A:$A,$D81,'Intervenção-Pista (2)'!$B:$B,$D$67) -> 0 | AG81: =SUMIFS('Intervenção-Pista (2)'!AC:AC,'Intervenção-Pista (2)'!$A:$A,$D81,'Intervenção-Pista (2)'!$B:$B,$D$67) -> 0 | AH81: =SUMIFS('Intervenção-Pista (2)'!AD:AD,'Intervenção-Pista (2)'!$A:$A,$D81,'Intervenção-Pista (2)'!$B:$B,$D$67) -> 0 | AI81: =SUMIFS('Intervenção-Pista (2)'!AE:AE,'Intervenção-Pista (2)'!$A:$A,$D81,'Intervenção-Pista (2)'!$B:$B,$D$67) -> 0 | AJ81: =SUMIFS('Intervenção-Pista (2)'!AF:AF,'Intervenção-Pista (2)'!$A:$A,$D81,'Intervenção-Pista (2)'!$B:$B,$D$67) -> 0 | AK81: =SUMIFS('Intervenção-Pista (2)'!AG:AG,'Intervenção-Pista (2)'!$A:$A,$D81,'Intervenção-Pista (2)'!$B:$B,$D$67) -> 0
B82: 8.1.3.15 | D82: 491CMG0230 | E82: M2 | F82: 0 | H82: =SUMIFS('Intervenção-Pista (2)'!D:D,'Intervenção-Pista (2)'!$A:$A,$D82,'Intervenção-Pista (2)'!$B:$B,$D$67) -> 0 | I82: =SUMIFS('Intervenção-Pista (2)'!E:E,'Intervenção-Pista (2)'!$A:$A,$D82,'Intervenção-Pista (2)'!$B:$B,$D$67) -> 0 | J82: =SUMIFS('Intervenção-Pista (2)'!F:F,'Intervenção-Pista (2)'!$A:$A,$D82,'Intervenção-Pista (2)'!$B:$B,$D$67) -> 0 | K82: =SUMIFS('Intervenção-Pista (2)'!G:G,'Intervenção-Pista (2)'!$A:$A,$D82,'Intervenção-Pista (2)'!$B:$B,$D$67) -> 0 | L82: =SUMIFS('Intervenção-Pista (2)'!H:H,'Intervenção-Pista (2)'!$A:$A,$D82,'Intervenção-Pista (2)'!$B:$B,$D$67) -> 0 | M82: =SUMIFS('Intervenção-Pista (2)'!I:I,'Intervenção-Pista (2)'!$A:$A,$D82,'Intervenção-Pista (2)'!$B:$B,$D$67) -> 0 | N82: =SUMIFS('Intervenção-Pista (2)'!J:J,'Intervenção-Pista (2)'!$A:$A,$D82,'Intervenção-Pista (2)'!$B:$B,$D$67) -> 0 | O82: =SUMIFS('Intervenção-Pista (2)'!K:K,'Intervenção-Pista (2)'!$A:$A,$D82,'Intervenção-Pista (2)'!$B:$B,$D$67) -> 0 | P82: =SUMIFS('Intervenção-Pista (2)'!L:L,'Intervenção-Pista (2)'!$A:$A,$D82,'Intervenção-Pista (2)'!$B:$B,$D$67) -> 0 | Q82: =SUMIFS('Intervenção-Pista (2)'!M:M,'Intervenção-Pista (2)'!$A:$A,$D82,'Intervenção-Pista (2)'!$B:$B,$D$67) -> 0 | R82: =SUMIFS('Intervenção-Pista (2)'!N:N,'Intervenção-Pista (2)'!$A:$A,$D82,'Intervenção-Pista (2)'!$B:$B,$D$67) -> 0 | S82: =SUMIFS('Intervenção-Pista (2)'!O:O,'Intervenção-Pista (2)'!$A:$A,$D82,'Intervenção-Pista (2)'!$B:$B,$D$67) -> 0 | T82: =SUMIFS('Intervenção-Pista (2)'!P:P,'Intervenção-Pista (2)'!$A:$A,$D82,'Intervenção-Pista (2)'!$B:$B,$D$67) -> 0 | U82: =SUMIFS('Intervenção-Pista (2)'!Q:Q,'Intervenção-Pista (2)'!$A:$A,$D82,'Intervenção-Pista (2)'!$B:$B,$D$67) -> 0 | V82: =SUMIFS('Intervenção-Pista (2)'!R:R,'Intervenção-Pista (2)'!$A:$A,$D82,'Intervenção-Pista (2)'!$B:$B,$D$67) -> 0 | W82: =SUMIFS('Intervenção-Pista (2)'!S:S,'Intervenção-Pista (2)'!$A:$A,$D82,'Intervenção-Pista (2)'!$B:$B,$D$67) -> 0 | X82: =SUMIFS('Intervenção-Pista (2)'!T:T,'Intervenção-Pista (2)'!$A:$A,$D82,'Intervenção-Pista (2)'!$B:$B,$D$67) -> 0 | Y82: =SUMIFS('Intervenção-Pista (2)'!U:U,'Intervenção-Pista (2)'!$A:$A,$D82,'Intervenção-Pista (2)'!$B:$B,$D$67) -> 0 | Z82: =SUMIFS('Intervenção-Pista (2)'!V:V,'Intervenção-Pista (2)'!$A:$A,$D82,'Intervenção-Pista (2)'!$B:$B,$D$67) -> 0 | AA82: =SUMIFS('Intervenção-Pista (2)'!W:W,'Intervenção-Pista (2)'!$A:$A,$D82,'Intervenção-Pista (2)'!$B:$B,$D$67) -> 0 | AB82: =SUMIFS('Intervenção-Pista (2)'!X:X,'Intervenção-Pista (2)'!$A:$A,$D82,'Intervenção-Pista (2)'!$B:$B,$D$67) -> 0 | AC82: =SUMIFS('Intervenção-Pista (2)'!Y:Y,'Intervenção-Pista (2)'!$A:$A,$D82,'Intervenção-Pista (2)'!$B:$B,$D$67) -> 0 | AD82: =SUMIFS('Intervenção-Pista (2)'!Z:Z,'Intervenção-Pista (2)'!$A:$A,$D82,'Intervenção-Pista (2)'!$B:$B,$D$67) -> 0 | AE82: =SUMIFS('Intervenção-Pista (2)'!AA:AA,'Intervenção-Pista (2)'!$A:$A,$D82,'Intervenção-Pista (2)'!$B:$B,$D$67) -> 0 | AF82: =SUMIFS('Intervenção-Pista (2)'!AB:AB,'Intervenção-Pista (2)'!$A:$A,$D82,'Intervenção-Pista (2)'!$B:$B,$D$67) -> 0 | AG82: =SUMIFS('Intervenção-Pista (2)'!AC:AC,'Intervenção-Pista (2)'!$A:$A,$D82,'Intervenção-Pista (2)'!$B:$B,$D$67) -> 0 | AH82: =SUMIFS('Intervenção-Pista (2)'!AD:AD,'Intervenção-Pista (2)'!$A:$A,$D82,'Intervenção-Pista (2)'!$B:$B,$D$67) -> 0 | AI82: =SUMIFS('Intervenção-Pista (2)'!AE:AE,'Intervenção-Pista (2)'!$A:$A,$D82,'Intervenção-Pista (2)'!$B:$B,$D$67) -> 0 | AJ82: =SUMIFS('Intervenção-Pista (2)'!AF:AF,'Intervenção-Pista (2)'!$A:$A,$D82,'Intervenção-Pista (2)'!$B:$B,$D$67) -> 0 | AK82: =SUMIFS('Intervenção-Pista (2)'!AG:AG,'Intervenção-Pista (2)'!$A:$A,$D82,'Intervenção-Pista (2)'!$B:$B,$D$67) -> 0
B83: 8.1.3.16 | D83: 491CMG0030 | E83: M2 | F83: 30,000.00 | H83: =SUMIFS('Intervenção-Pista (2)'!D:D,'Intervenção-Pista (2)'!$A:$A,$D83,'Intervenção-Pista (2)'!$B:$B,$D$67) -> 0 | I83: =SUMIFS('Intervenção-Pista (2)'!E:E,'Intervenção-Pista (2)'!$A:$A,$D83,'Intervenção-Pista (2)'!$B:$B,$D$67) -> 0 | J83: =SUMIFS('Intervenção-Pista (2)'!F:F,'Intervenção-Pista (2)'!$A:$A,$D83,'Intervenção-Pista (2)'!$B:$B,$D$67) -> 0 | K83: =SUMIFS('Intervenção-Pista (2)'!G:G,'Intervenção-Pista (2)'!$A:$A,$D83,'Intervenção-Pista (2)'!$B:$B,$D$67) -> 0 | L83: =SUMIFS('Intervenção-Pista (2)'!H:H,'Intervenção-Pista (2)'!$A:$A,$D83,'Intervenção-Pista (2)'!$B:$B,$D$67) -> 0 | M83: =SUMIFS('Intervenção-Pista (2)'!I:I,'Intervenção-Pista (2)'!$A:$A,$D83,'Intervenção-Pista (2)'!$B:$B,$D$67) -> 30,000.00 | N83: =SUMIFS('Intervenção-Pista (2)'!J:J,'Intervenção-Pista (2)'!$A:$A,$D83,'Intervenção-Pista (2)'!$B:$B,$D$67) -> 0 | O83: =SUMIFS('Intervenção-Pista (2)'!K:K,'Intervenção-Pista (2)'!$A:$A,$D83,'Intervenção-Pista (2)'!$B:$B,$D$67) -> 0 | P83: =SUMIFS('Intervenção-Pista (2)'!L:L,'Intervenção-Pista (2)'!$A:$A,$D83,'Intervenção-Pista (2)'!$B:$B,$D$67) -> 0 | Q83: =SUMIFS('Intervenção-Pista (2)'!M:M,'Intervenção-Pista (2)'!$A:$A,$D83,'Intervenção-Pista (2)'!$B:$B,$D$67) -> 0 | R83: =SUMIFS('Intervenção-Pista (2)'!N:N,'Intervenção-Pista (2)'!$A:$A,$D83,'Intervenção-Pista (2)'!$B:$B,$D$67) -> 0 | S83: =SUMIFS('Intervenção-Pista (2)'!O:O,'Intervenção-Pista (2)'!$A:$A,$D83,'Intervenção-Pista (2)'!$B:$B,$D$67) -> 0 | T83: =SUMIFS('Intervenção-Pista (2)'!P:P,'Intervenção-Pista (2)'!$A:$A,$D83,'Intervenção-Pista (2)'!$B:$B,$D$67) -> 0 | U83: =SUMIFS('Intervenção-Pista (2)'!Q:Q,'Intervenção-Pista (2)'!$A:$A,$D83,'Intervenção-Pista (2)'!$B:$B,$D$67) -> 0 | V83: =SUMIFS('Intervenção-Pista (2)'!R:R,'Intervenção-Pista (2)'!$A:$A,$D83,'Intervenção-Pista (2)'!$B:$B,$D$67) -> 0 | W83: =SUMIFS('Intervenção-Pista (2)'!S:S,'Intervenção-Pista (2)'!$A:$A,$D83,'Intervenção-Pista (2)'!$B:$B,$D$67) -> 0 | X83: =SUMIFS('Intervenção-Pista (2)'!T:T,'Intervenção-Pista (2)'!$A:$A,$D83,'Intervenção-Pista (2)'!$B:$B,$D$67) -> 0 | Y83: =SUMIFS('Intervenção-Pista (2)'!U:U,'Intervenção-Pista (2)'!$A:$A,$D83,'Intervenção-Pista (2)'!$B:$B,$D$67) -> 0 | Z83: =SUMIFS('Intervenção-Pista (2)'!V:V,'Intervenção-Pista (2)'!$A:$A,$D83,'Intervenção-Pista (2)'!$B:$B,$D$67) -> 0 | AA83: =SUMIFS('Intervenção-Pista (2)'!W:W,'Intervenção-Pista (2)'!$A:$A,$D83,'Intervenção-Pista (2)'!$B:$B,$D$67) -> 0 | AB83: =SUMIFS('Intervenção-Pista (2)'!X:X,'Intervenção-Pista (2)'!$A:$A,$D83,'Intervenção-Pista (2)'!$B:$B,$D$67) -> 0 | AC83: =SUMIFS('Intervenção-Pista (2)'!Y:Y,'Intervenção-Pista (2)'!$A:$A,$D83,'Intervenção-Pista (2)'!$B:$B,$D$67) -> 0 | AD83: =SUMIFS('Intervenção-Pista (2)'!Z:Z,'Intervenção-Pista (2)'!$A:$A,$D83,'Intervenção-Pista (2)'!$B:$B,$D$67) -> 0 | AE83: =SUMIFS('Intervenção-Pista (2)'!AA:AA,'Intervenção-Pista (2)'!$A:$A,$D83,'Intervenção-Pista (2)'!$B:$B,$D$67) -> 0 | AF83: =SUMIFS('Intervenção-Pista (2)'!AB:AB,'Intervenção-Pista (2)'!$A:$A,$D83,'Intervenção-Pista (2)'!$B:$B,$D$67) -> 0 | AG83: =SUMIFS('Intervenção-Pista (2)'!AC:AC,'Intervenção-Pista (2)'!$A:$A,$D83,'Intervenção-Pista (2)'!$B:$B,$D$67) -> 0 | AH83: =SUMIFS('Intervenção-Pista (2)'!AD:AD,'Intervenção-Pista (2)'!$A:$A,$D83,'Intervenção-Pista (2)'!$B:$B,$D$67) -> 0 | AI83: =SUMIFS('Intervenção-Pista (2)'!AE:AE,'Intervenção-Pista (2)'!$A:$A,$D83,'Intervenção-Pista (2)'!$B:$B,$D$67) -> 0 | AJ83: =SUMIFS('Intervenção-Pista (2)'!AF:AF,'Intervenção-Pista (2)'!$A:$A,$D83,'Intervenção-Pista (2)'!$B:$B,$D$67) -> 0 | AK83: =SUMIFS('Intervenção-Pista (2)'!AG:AG,'Intervenção-Pista (2)'!$A:$A,$D83,'Intervenção-Pista (2)'!$B:$B,$D$67) -> 0
B84: 8.1.3.17 | D84: 491CMG0110 | E84: M2 | F84: 0 | H84: =SUMIFS('Intervenção-Pista (2)'!D:D,'Intervenção-Pista (2)'!$A:$A,$D84,'Intervenção-Pista (2)'!$B:$B,$D$67) -> 0 | I84: =SUMIFS('Intervenção-Pista (2)'!E:E,'Intervenção-Pista (2)'!$A:$A,$D84,'Intervenção-Pista (2)'!$B:$B,$D$67) -> 0 | J84: =SUMIFS('Intervenção-Pista (2)'!F:F,'Intervenção-Pista (2)'!$A:$A,$D84,'Intervenção-Pista (2)'!$B:$B,$D$67) -> 0 | K84: =SUMIFS('Intervenção-Pista (2)'!G:G,'Intervenção-Pista (2)'!$A:$A,$D84,'Intervenção-Pista (2)'!$B:$B,$D$67) -> 0 | L84: =SUMIFS('Intervenção-Pista (2)'!H:H,'Intervenção-Pista (2)'!$A:$A,$D84,'Intervenção-Pista (2)'!$B:$B,$D$67) -> 0 | M84: =SUMIFS('Intervenção-Pista (2)'!I:I,'Intervenção-Pista (2)'!$A:$A,$D84,'Intervenção-Pista (2)'!$B:$B,$D$67) -> 0 | N84: =SUMIFS('Intervenção-Pista (2)'!J:J,'Intervenção-Pista (2)'!$A:$A,$D84,'Intervenção-Pista (2)'!$B:$B,$D$67) -> 0 | O84: =SUMIFS('Intervenção-Pista (2)'!K:K,'Intervenção-Pista (2)'!$A:$A,$D84,'Intervenção-Pista (2)'!$B:$B,$D$67) -> 0 | P84: =SUMIFS('Intervenção-Pista (2)'!L:L,'Intervenção-Pista (2)'!$A:$A,$D84,'Intervenção-Pista (2)'!$B:$B,$D$67) -> 0 | Q84: =SUMIFS('Intervenção-Pista (2)'!M:M,'Intervenção-Pista (2)'!$A:$A,$D84,'Intervenção-Pista (2)'!$B:$B,$D$67) -> 0 | R84: =SUMIFS('Intervenção-Pista (2)'!N:N,'Intervenção-Pista (2)'!$A:$A,$D84,'Intervenção-Pista (2)'!$B:$B,$D$67) -> 0 | S84: =SUMIFS('Intervenção-Pista (2)'!O:O,'Intervenção-Pista (2)'!$A:$A,$D84,'Intervenção-Pista (2)'!$B:$B,$D$67) -> 0 | T84: =SUMIFS('Intervenção-Pista (2)'!P:P,'Intervenção-Pista (2)'!$A:$A,$D84,'Intervenção-Pista (2)'!$B:$B,$D$67) -> 0 | U84: =SUMIFS('Intervenção-Pista (2)'!Q:Q,'Intervenção-Pista (2)'!$A:$A,$D84,'Intervenção-Pista (2)'!$B:$B,$D$67) -> 0 | V84: =SUMIFS('Intervenção-Pista (2)'!R:R,'Intervenção-Pista (2)'!$A:$A,$D84,'Intervenção-Pista (2)'!$B:$B,$D$67) -> 0 | W84: =SUMIFS('Intervenção-Pista (2)'!S:S,'Intervenção-Pista (2)'!$A:$A,$D84,'Intervenção-Pista (2)'!$B:$B,$D$67) -> 0 | X84: =SUMIFS('Intervenção-Pista (2)'!T:T,'Intervenção-Pista (2)'!$A:$A,$D84,'Intervenção-Pista (2)'!$B:$B,$D$67) -> 0 | Y84: =SUMIFS('Intervenção-Pista (2)'!U:U,'Intervenção-Pista (2)'!$A:$A,$D84,'Intervenção-Pista (2)'!$B:$B,$D$67) -> 0 | Z84: =SUMIFS('Intervenção-Pista (2)'!V:V,'Intervenção-Pista (2)'!$A:$A,$D84,'Intervenção-Pista (2)'!$B:$B,$D$67) -> 0 | AA84: =SUMIFS('Intervenção-Pista (2)'!W:W,'Intervenção-Pista (2)'!$A:$A,$D84,'Intervenção-Pista (2)'!$B:$B,$D$67) -> 0 | AB84: =SUMIFS('Intervenção-Pista (2)'!X:X,'Intervenção-Pista (2)'!$A:$A,$D84,'Intervenção-Pista (2)'!$B:$B,$D$67) -> 0 | AC84: =SUMIFS('Intervenção-Pista (2)'!Y:Y,'Intervenção-Pista (2)'!$A:$A,$D84,'Intervenção-Pista (2)'!$B:$B,$D$67) -> 0 | AD84: =SUMIFS('Intervenção-Pista (2)'!Z:Z,'Intervenção-Pista (2)'!$A:$A,$D84,'Intervenção-Pista (2)'!$B:$B,$D$67) -> 0 | AE84: =SUMIFS('Intervenção-Pista (2)'!AA:AA,'Intervenção-Pista (2)'!$A:$A,$D84,'Intervenção-Pista (2)'!$B:$B,$D$67) -> 0 | AF84: =SUMIFS('Intervenção-Pista (2)'!AB:AB,'Intervenção-Pista (2)'!$A:$A,$D84,'Intervenção-Pista (2)'!$B:$B,$D$67) -> 0 | AG84: =SUMIFS('Intervenção-Pista (2)'!AC:AC,'Intervenção-Pista (2)'!$A:$A,$D84,'Intervenção-Pista (2)'!$B:$B,$D$67) -> 0 | AH84: =SUMIFS('Intervenção-Pista (2)'!AD:AD,'Intervenção-Pista (2)'!$A:$A,$D84,'Intervenção-Pista (2)'!$B:$B,$D$67) -> 0 | AI84: =SUMIFS('Intervenção-Pista (2)'!AE:AE,'Intervenção-Pista (2)'!$A:$A,$D84,'Intervenção-Pista (2)'!$B:$B,$D$67) -> 0 | AJ84: =SUMIFS('Intervenção-Pista (2)'!AF:AF,'Intervenção-Pista (2)'!$A:$A,$D84,'Intervenção-Pista (2)'!$B:$B,$D$67) -> 0 | AK84: =SUMIFS('Intervenção-Pista (2)'!AG:AG,'Intervenção-Pista (2)'!$A:$A,$D84,'Intervenção-Pista (2)'!$B:$B,$D$67) -> 0
B85: 8.1.3.18 | D85: 491CMG0130 | E85: M2 | F85: 0 | H85: =SUMIFS('Intervenção-Pista (2)'!D:D,'Intervenção-Pista (2)'!$A:$A,$D85,'Intervenção-Pista (2)'!$B:$B,$D$67) -> 0 | I85: =SUMIFS('Intervenção-Pista (2)'!E:E,'Intervenção-Pista (2)'!$A:$A,$D85,'Intervenção-Pista (2)'!$B:$B,$D$67) -> 0 | J85: =SUMIFS('Intervenção-Pista (2)'!F:F,'Intervenção-Pista (2)'!$A:$A,$D85,'Intervenção-Pista (2)'!$B:$B,$D$67) -> 0 | K85: =SUMIFS('Intervenção-Pista (2)'!G:G,'Intervenção-Pista (2)'!$A:$A,$D85,'Intervenção-Pista (2)'!$B:$B,$D$67) -> 0 | L85: =SUMIFS('Intervenção-Pista (2)'!H:H,'Intervenção-Pista (2)'!$A:$A,$D85,'Intervenção-Pista (2)'!$B:$B,$D$67) -> 0 | M85: =SUMIFS('Intervenção-Pista (2)'!I:I,'Intervenção-Pista (2)'!$A:$A,$D85,'Intervenção-Pista (2)'!$B:$B,$D$67) -> 0 | N85: =SUMIFS('Intervenção-Pista (2)'!J:J,'Intervenção-Pista (2)'!$A:$A,$D85,'Intervenção-Pista (2)'!$B:$B,$D$67) -> 0 | O85: =SUMIFS('Intervenção-Pista (2)'!K:K,'Intervenção-Pista (2)'!$A:$A,$D85,'Intervenção-Pista (2)'!$B:$B,$D$67) -> 0 | P85: =SUMIFS('Intervenção-Pista (2)'!L:L,'Intervenção-Pista (2)'!$A:$A,$D85,'Intervenção-Pista (2)'!$B:$B,$D$67) -> 0 | Q85: =SUMIFS('Intervenção-Pista (2)'!M:M,'Intervenção-Pista (2)'!$A:$A,$D85,'Intervenção-Pista (2)'!$B:$B,$D$67) -> 0 | R85: =SUMIFS('Intervenção-Pista (2)'!N:N,'Intervenção-Pista (2)'!$A:$A,$D85,'Intervenção-Pista (2)'!$B:$B,$D$67) -> 0 | S85: =SUMIFS('Intervenção-Pista (2)'!O:O,'Intervenção-Pista (2)'!$A:$A,$D85,'Intervenção-Pista (2)'!$B:$B,$D$67) -> 0 | T85: =SUMIFS('Intervenção-Pista (2)'!P:P,'Intervenção-Pista (2)'!$A:$A,$D85,'Intervenção-Pista (2)'!$B:$B,$D$67) -> 0 | U85: =SUMIFS('Intervenção-Pista (2)'!Q:Q,'Intervenção-Pista (2)'!$A:$A,$D85,'Intervenção-Pista (2)'!$B:$B,$D$67) -> 0 | V85: =SUMIFS('Intervenção-Pista (2)'!R:R,'Intervenção-Pista (2)'!$A:$A,$D85,'Intervenção-Pista (2)'!$B:$B,$D$67) -> 0 | W85: =SUMIFS('Intervenção-Pista (2)'!S:S,'Intervenção-Pista (2)'!$A:$A,$D85,'Intervenção-Pista (2)'!$B:$B,$D$67) -> 0 | X85: =SUMIFS('Intervenção-Pista (2)'!T:T,'Intervenção-Pista (2)'!$A:$A,$D85,'Intervenção-Pista (2)'!$B:$B,$D$67) -> 0 | Y85: =SUMIFS('Intervenção-Pista (2)'!U:U,'Intervenção-Pista (2)'!$A:$A,$D85,'Intervenção-Pista (2)'!$B:$B,$D$67) -> 0 | Z85: =SUMIFS('Intervenção-Pista (2)'!V:V,'Intervenção-Pista (2)'!$A:$A,$D85,'Intervenção-Pista (2)'!$B:$B,$D$67) -> 0 | AA85: =SUMIFS('Intervenção-Pista (2)'!W:W,'Intervenção-Pista (2)'!$A:$A,$D85,'Intervenção-Pista (2)'!$B:$B,$D$67) -> 0 | AB85: =SUMIFS('Intervenção-Pista (2)'!X:X,'Intervenção-Pista (2)'!$A:$A,$D85,'Intervenção-Pista (2)'!$B:$B,$D$67) -> 0 | AC85: =SUMIFS('Intervenção-Pista (2)'!Y:Y,'Intervenção-Pista (2)'!$A:$A,$D85,'Intervenção-Pista (2)'!$B:$B,$D$67) -> 0 | AD85: =SUMIFS('Intervenção-Pista (2)'!Z:Z,'Intervenção-Pista (2)'!$A:$A,$D85,'Intervenção-Pista (2)'!$B:$B,$D$67) -> 0 | AE85: =SUMIFS('Intervenção-Pista (2)'!AA:AA,'Intervenção-Pista (2)'!$A:$A,$D85,'Intervenção-Pista (2)'!$B:$B,$D$67) -> 0 | AF85: =SUMIFS('Intervenção-Pista (2)'!AB:AB,'Intervenção-Pista (2)'!$A:$A,$D85,'Intervenção-Pista (2)'!$B:$B,$D$67) -> 0 | AG85: =SUMIFS('Intervenção-Pista (2)'!AC:AC,'Intervenção-Pista (2)'!$A:$A,$D85,'Intervenção-Pista (2)'!$B:$B,$D$67) -> 0 | AH85: =SUMIFS('Intervenção-Pista (2)'!AD:AD,'Intervenção-Pista (2)'!$A:$A,$D85,'Intervenção-Pista (2)'!$B:$B,$D$67) -> 0 | AI85: =SUMIFS('Intervenção-Pista (2)'!AE:AE,'Intervenção-Pista (2)'!$A:$A,$D85,'Intervenção-Pista (2)'!$B:$B,$D$67) -> 0 | AJ85: =SUMIFS('Intervenção-Pista (2)'!AF:AF,'Intervenção-Pista (2)'!$A:$A,$D85,'Intervenção-Pista (2)'!$B:$B,$D$67) -> 0 | AK85: =SUMIFS('Intervenção-Pista (2)'!AG:AG,'Intervenção-Pista (2)'!$A:$A,$D85,'Intervenção-Pista (2)'!$B:$B,$D$67) -> 0
B86: 8.1.3.19 | D86: 491CMG0150 | E86: M2 | F86: 26,340.08 | H86: =SUMIFS('Intervenção-Pista (2)'!D:D,'Intervenção-Pista (2)'!$A:$A,$D86,'Intervenção-Pista (2)'!$B:$B,$D$67) -> 0 | I86: =SUMIFS('Intervenção-Pista (2)'!E:E,'Intervenção-Pista (2)'!$A:$A,$D86,'Intervenção-Pista (2)'!$B:$B,$D$67) -> 0 | J86: =SUMIFS('Intervenção-Pista (2)'!F:F,'Intervenção-Pista (2)'!$A:$A,$D86,'Intervenção-Pista (2)'!$B:$B,$D$67) -> 0 | K86: =SUMIFS('Intervenção-Pista (2)'!G:G,'Intervenção-Pista (2)'!$A:$A,$D86,'Intervenção-Pista (2)'!$B:$B,$D$67) -> 0 | L86: =SUMIFS('Intervenção-Pista (2)'!H:H,'Intervenção-Pista (2)'!$A:$A,$D86,'Intervenção-Pista (2)'!$B:$B,$D$67) -> 0 | M86: =SUMIFS('Intervenção-Pista (2)'!I:I,'Intervenção-Pista (2)'!$A:$A,$D86,'Intervenção-Pista (2)'!$B:$B,$D$67) -> 26,340.08 | N86: =SUMIFS('Intervenção-Pista (2)'!J:J,'Intervenção-Pista (2)'!$A:$A,$D86,'Intervenção-Pista (2)'!$B:$B,$D$67) -> 0 | O86: =SUMIFS('Intervenção-Pista (2)'!K:K,'Intervenção-Pista (2)'!$A:$A,$D86,'Intervenção-Pista (2)'!$B:$B,$D$67) -> 0 | P86: =SUMIFS('Intervenção-Pista (2)'!L:L,'Intervenção-Pista (2)'!$A:$A,$D86,'Intervenção-Pista (2)'!$B:$B,$D$67) -> 0 | Q86: =SUMIFS('Intervenção-Pista (2)'!M:M,'Intervenção-Pista (2)'!$A:$A,$D86,'Intervenção-Pista (2)'!$B:$B,$D$67) -> 0 | R86: =SUMIFS('Intervenção-Pista (2)'!N:N,'Intervenção-Pista (2)'!$A:$A,$D86,'Intervenção-Pista (2)'!$B:$B,$D$67) -> 0 | S86: =SUMIFS('Intervenção-Pista (2)'!O:O,'Intervenção-Pista (2)'!$A:$A,$D86,'Intervenção-Pista (2)'!$B:$B,$D$67) -> 0 | T86: =SUMIFS('Intervenção-Pista (2)'!P:P,'Intervenção-Pista (2)'!$A:$A,$D86,'Intervenção-Pista (2)'!$B:$B,$D$67) -> 0 | U86: =SUMIFS('Intervenção-Pista (2)'!Q:Q,'Intervenção-Pista (2)'!$A:$A,$D86,'Intervenção-Pista (2)'!$B:$B,$D$67) -> 0 | V86: =SUMIFS('Intervenção-Pista (2)'!R:R,'Intervenção-Pista (2)'!$A:$A,$D86,'Intervenção-Pista (2)'!$B:$B,$D$67) -> 0 | W86: =SUMIFS('Intervenção-Pista (2)'!S:S,'Intervenção-Pista (2)'!$A:$A,$D86,'Intervenção-Pista (2)'!$B:$B,$D$67) -> 0 | X86: =SUMIFS('Intervenção-Pista (2)'!T:T,'Intervenção-Pista (2)'!$A:$A,$D86,'Intervenção-Pista (2)'!$B:$B,$D$67) -> 0 | Y86: =SUMIFS('Intervenção-Pista (2)'!U:U,'Intervenção-Pista (2)'!$A:$A,$D86,'Intervenção-Pista (2)'!$B:$B,$D$67) -> 0 | Z86: =SUMIFS('Intervenção-Pista (2)'!V:V,'Intervenção-Pista (2)'!$A:$A,$D86,'Intervenção-Pista (2)'!$B:$B,$D$67) -> 0 | AA86: =SUMIFS('Intervenção-Pista (2)'!W:W,'Intervenção-Pista (2)'!$A:$A,$D86,'Intervenção-Pista (2)'!$B:$B,$D$67) -> 0 | AB86: =SUMIFS('Intervenção-Pista (2)'!X:X,'Intervenção-Pista (2)'!$A:$A,$D86,'Intervenção-Pista (2)'!$B:$B,$D$67) -> 0 | AC86: =SUMIFS('Intervenção-Pista (2)'!Y:Y,'Intervenção-Pista (2)'!$A:$A,$D86,'Intervenção-Pista (2)'!$B:$B,$D$67) -> 0 | AD86: =SUMIFS('Intervenção-Pista (2)'!Z:Z,'Intervenção-Pista (2)'!$A:$A,$D86,'Intervenção-Pista (2)'!$B:$B,$D$67) -> 0 | AE86: =SUMIFS('Intervenção-Pista (2)'!AA:AA,'Intervenção-Pista (2)'!$A:$A,$D86,'Intervenção-Pista (2)'!$B:$B,$D$67) -> 0 | AF86: =SUMIFS('Intervenção-Pista (2)'!AB:AB,'Intervenção-Pista (2)'!$A:$A,$D86,'Intervenção-Pista (2)'!$B:$B,$D$67) -> 0 | AG86: =SUMIFS('Intervenção-Pista (2)'!AC:AC,'Intervenção-Pista (2)'!$A:$A,$D86,'Intervenção-Pista (2)'!$B:$B,$D$67) -> 0 | AH86: =SUMIFS('Intervenção-Pista (2)'!AD:AD,'Intervenção-Pista (2)'!$A:$A,$D86,'Intervenção-Pista (2)'!$B:$B,$D$67) -> 0 | AI86: =SUMIFS('Intervenção-Pista (2)'!AE:AE,'Intervenção-Pista (2)'!$A:$A,$D86,'Intervenção-Pista (2)'!$B:$B,$D$67) -> 0 | AJ86: =SUMIFS('Intervenção-Pista (2)'!AF:AF,'Intervenção-Pista (2)'!$A:$A,$D86,'Intervenção-Pista (2)'!$B:$B,$D$67) -> 0 | AK86: =SUMIFS('Intervenção-Pista (2)'!AG:AG,'Intervenção-Pista (2)'!$A:$A,$D86,'Intervenção-Pista (2)'!$B:$B,$D$67) -> 0
B87: 8.1.3.20 | D87: 491CMG0170 | E87: M2 | F87: 0 | H87: =SUMIFS('Intervenção-Pista (2)'!D:D,'Intervenção-Pista (2)'!$A:$A,$D87,'Intervenção-Pista (2)'!$B:$B,$D$67) -> 0 | I87: =SUMIFS('Intervenção-Pista (2)'!E:E,'Intervenção-Pista (2)'!$A:$A,$D87,'Intervenção-Pista (2)'!$B:$B,$D$67) -> 0 | J87: =SUMIFS('Intervenção-Pista (2)'!F:F,'Intervenção-Pista (2)'!$A:$A,$D87,'Intervenção-Pista (2)'!$B:$B,$D$67) -> 0 | K87: =SUMIFS('Intervenção-Pista (2)'!G:G,'Intervenção-Pista (2)'!$A:$A,$D87,'Intervenção-Pista (2)'!$B:$B,$D$67) -> 0 | L87: =SUMIFS('Intervenção-Pista (2)'!H:H,'Intervenção-Pista (2)'!$A:$A,$D87,'Intervenção-Pista (2)'!$B:$B,$D$67) -> 0 | M87: =SUMIFS('Intervenção-Pista (2)'!I:I,'Intervenção-Pista (2)'!$A:$A,$D87,'Intervenção-Pista (2)'!$B:$B,$D$67) -> 0 | N87: =SUMIFS('Intervenção-Pista (2)'!J:J,'Intervenção-Pista (2)'!$A:$A,$D87,'Intervenção-Pista (2)'!$B:$B,$D$67) -> 0 | O87: =SUMIFS('Intervenção-Pista (2)'!K:K,'Intervenção-Pista (2)'!$A:$A,$D87,'Intervenção-Pista (2)'!$B:$B,$D$67) -> 0 | P87: =SUMIFS('Intervenção-Pista (2)'!L:L,'Intervenção-Pista (2)'!$A:$A,$D87,'Intervenção-Pista (2)'!$B:$B,$D$67) -> 0 | Q87: =SUMIFS('Intervenção-Pista (2)'!M:M,'Intervenção-Pista (2)'!$A:$A,$D87,'Intervenção-Pista (2)'!$B:$B,$D$67) -> 0 | R87: =SUMIFS('Intervenção-Pista (2)'!N:N,'Intervenção-Pista (2)'!$A:$A,$D87,'Intervenção-Pista (2)'!$B:$B,$D$67) -> 0 | S87: =SUMIFS('Intervenção-Pista (2)'!O:O,'Intervenção-Pista (2)'!$A:$A,$D87,'Intervenção-Pista (2)'!$B:$B,$D$67) -> 0 | T87: =SUMIFS('Intervenção-Pista (2)'!P:P,'Intervenção-Pista (2)'!$A:$A,$D87,'Intervenção-Pista (2)'!$B:$B,$D$67) -> 0 | U87: =SUMIFS('Intervenção-Pista (2)'!Q:Q,'Intervenção-Pista (2)'!$A:$A,$D87,'Intervenção-Pista (2)'!$B:$B,$D$67) -> 0 | V87: =SUMIFS('Intervenção-Pista (2)'!R:R,'Intervenção-Pista (2)'!$A:$A,$D87,'Intervenção-Pista (2)'!$B:$B,$D$67) -> 0 | W87: =SUMIFS('Intervenção-Pista (2)'!S:S,'Intervenção-Pista (2)'!$A:$A,$D87,'Intervenção-Pista (2)'!$B:$B,$D$67) -> 0 | X87: =SUMIFS('Intervenção-Pista (2)'!T:T,'Intervenção-Pista (2)'!$A:$A,$D87,'Intervenção-Pista (2)'!$B:$B,$D$67) -> 0 | Y87: =SUMIFS('Intervenção-Pista (2)'!U:U,'Intervenção-Pista (2)'!$A:$A,$D87,'Intervenção-Pista (2)'!$B:$B,$D$67) -> 0 | Z87: =SUMIFS('Intervenção-Pista (2)'!V:V,'Intervenção-Pista (2)'!$A:$A,$D87,'Intervenção-Pista (2)'!$B:$B,$D$67) -> 0 | AA87: =SUMIFS('Intervenção-Pista (2)'!W:W,'Intervenção-Pista (2)'!$A:$A,$D87,'Intervenção-Pista (2)'!$B:$B,$D$67) -> 0 | AB87: =SUMIFS('Intervenção-Pista (2)'!X:X,'Intervenção-Pista (2)'!$A:$A,$D87,'Intervenção-Pista (2)'!$B:$B,$D$67) -> 0 | AC87: =SUMIFS('Intervenção-Pista (2)'!Y:Y,'Intervenção-Pista (2)'!$A:$A,$D87,'Intervenção-Pista (2)'!$B:$B,$D$67) -> 0 | AD87: =SUMIFS('Intervenção-Pista (2)'!Z:Z,'Intervenção-Pista (2)'!$A:$A,$D87,'Intervenção-Pista (2)'!$B:$B,$D$67) -> 0 | AE87: =SUMIFS('Intervenção-Pista (2)'!AA:AA,'Intervenção-Pista (2)'!$A:$A,$D87,'Intervenção-Pista (2)'!$B:$B,$D$67) -> 0 | AF87: =SUMIFS('Intervenção-Pista (2)'!AB:AB,'Intervenção-Pista (2)'!$A:$A,$D87,'Intervenção-Pista (2)'!$B:$B,$D$67) -> 0 | AG87: =SUMIFS('Intervenção-Pista (2)'!AC:AC,'Intervenção-Pista (2)'!$A:$A,$D87,'Intervenção-Pista (2)'!$B:$B,$D$67) -> 0 | AH87: =SUMIFS('Intervenção-Pista (2)'!AD:AD,'Intervenção-Pista (2)'!$A:$A,$D87,'Intervenção-Pista (2)'!$B:$B,$D$67) -> 0 | AI87: =SUMIFS('Intervenção-Pista (2)'!AE:AE,'Intervenção-Pista (2)'!$A:$A,$D87,'Intervenção-Pista (2)'!$B:$B,$D$67) -> 0 | AJ87: =SUMIFS('Intervenção-Pista (2)'!AF:AF,'Intervenção-Pista (2)'!$A:$A,$D87,'Intervenção-Pista (2)'!$B:$B,$D$67) -> 0 | AK87: =SUMIFS('Intervenção-Pista (2)'!AG:AG,'Intervenção-Pista (2)'!$A:$A,$D87,'Intervenção-Pista (2)'!$B:$B,$D$67) -> 0
B88: 8.1.3.21 | D88: 491CMG0190 | E88: M2 | F88: 0 | H88: =SUMIFS('Intervenção-Pista (2)'!D:D,'Intervenção-Pista (2)'!$A:$A,$D88,'Intervenção-Pista (2)'!$B:$B,$D$67) -> 0 | I88: =SUMIFS('Intervenção-Pista (2)'!E:E,'Intervenção-Pista (2)'!$A:$A,$D88,'Intervenção-Pista (2)'!$B:$B,$D$67) -> 0 | J88: =SUMIFS('Intervenção-Pista (2)'!F:F,'Intervenção-Pista (2)'!$A:$A,$D88,'Intervenção-Pista (2)'!$B:$B,$D$67) -> 0 | K88: =SUMIFS('Intervenção-Pista (2)'!G:G,'Intervenção-Pista (2)'!$A:$A,$D88,'Intervenção-Pista (2)'!$B:$B,$D$67) -> 0 | L88: =SUMIFS('Intervenção-Pista (2)'!H:H,'Intervenção-Pista (2)'!$A:$A,$D88,'Intervenção-Pista (2)'!$B:$B,$D$67) -> 0 | M88: =SUMIFS('Intervenção-Pista (2)'!I:I,'Intervenção-Pista (2)'!$A:$A,$D88,'Intervenção-Pista (2)'!$B:$B,$D$67) -> 0 | N88: =SUMIFS('Intervenção-Pista (2)'!J:J,'Intervenção-Pista (2)'!$A:$A,$D88,'Intervenção-Pista (2)'!$B:$B,$D$67) -> 0 | O88: =SUMIFS('Intervenção-Pista (2)'!K:K,'Intervenção-Pista (2)'!$A:$A,$D88,'Intervenção-Pista (2)'!$B:$B,$D$67) -> 0 | P88: =SUMIFS('Intervenção-Pista (2)'!L:L,'Intervenção-Pista (2)'!$A:$A,$D88,'Intervenção-Pista (2)'!$B:$B,$D$67) -> 0 | Q88: =SUMIFS('Intervenção-Pista (2)'!M:M,'Intervenção-Pista (2)'!$A:$A,$D88,'Intervenção-Pista (2)'!$B:$B,$D$67) -> 0 | R88: =SUMIFS('Intervenção-Pista (2)'!N:N,'Intervenção-Pista (2)'!$A:$A,$D88,'Intervenção-Pista (2)'!$B:$B,$D$67) -> 0 | S88: =SUMIFS('Intervenção-Pista (2)'!O:O,'Intervenção-Pista (2)'!$A:$A,$D88,'Intervenção-Pista (2)'!$B:$B,$D$67) -> 0 | T88: =SUMIFS('Intervenção-Pista (2)'!P:P,'Intervenção-Pista (2)'!$A:$A,$D88,'Intervenção-Pista (2)'!$B:$B,$D$67) -> 0 | U88: =SUMIFS('Intervenção-Pista (2)'!Q:Q,'Intervenção-Pista (2)'!$A:$A,$D88,'Intervenção-Pista (2)'!$B:$B,$D$67) -> 0 | V88: =SUMIFS('Intervenção-Pista (2)'!R:R,'Intervenção-Pista (2)'!$A:$A,$D88,'Intervenção-Pista (2)'!$B:$B,$D$67) -> 0 | W88: =SUMIFS('Intervenção-Pista (2)'!S:S,'Intervenção-Pista (2)'!$A:$A,$D88,'Intervenção-Pista (2)'!$B:$B,$D$67) -> 0 | X88: =SUMIFS('Intervenção-Pista (2)'!T:T,'Intervenção-Pista (2)'!$A:$A,$D88,'Intervenção-Pista (2)'!$B:$B,$D$67) -> 0 | Y88: =SUMIFS('Intervenção-Pista (2)'!U:U,'Intervenção-Pista (2)'!$A:$A,$D88,'Intervenção-Pista (2)'!$B:$B,$D$67) -> 0 | Z88: =SUMIFS('Intervenção-Pista (2)'!V:V,'Intervenção-Pista (2)'!$A:$A,$D88,'Intervenção-Pista (2)'!$B:$B,$D$67) -> 0 | AA88: =SUMIFS('Intervenção-Pista (2)'!W:W,'Intervenção-Pista (2)'!$A:$A,$D88,'Intervenção-Pista (2)'!$B:$B,$D$67) -> 0 | AB88: =SUMIFS('Intervenção-Pista (2)'!X:X,'Intervenção-Pista (2)'!$A:$A,$D88,'Intervenção-Pista (2)'!$B:$B,$D$67) -> 0 | AC88: =SUMIFS('Intervenção-Pista (2)'!Y:Y,'Intervenção-Pista (2)'!$A:$A,$D88,'Intervenção-Pista (2)'!$B:$B,$D$67) -> 0 | AD88: =SUMIFS('Intervenção-Pista (2)'!Z:Z,'Intervenção-Pista (2)'!$A:$A,$D88,'Intervenção-Pista (2)'!$B:$B,$D$67) -> 0 | AE88: =SUMIFS('Intervenção-Pista (2)'!AA:AA,'Intervenção-Pista (2)'!$A:$A,$D88,'Intervenção-Pista (2)'!$B:$B,$D$67) -> 0 | AF88: =SUMIFS('Intervenção-Pista (2)'!AB:AB,'Intervenção-Pista (2)'!$A:$A,$D88,'Intervenção-Pista (2)'!$B:$B,$D$67) -> 0 | AG88: =SUMIFS('Intervenção-Pista (2)'!AC:AC,'Intervenção-Pista (2)'!$A:$A,$D88,'Intervenção-Pista (2)'!$B:$B,$D$67) -> 0 | AH88: =SUMIFS('Intervenção-Pista (2)'!AD:AD,'Intervenção-Pista (2)'!$A:$A,$D88,'Intervenção-Pista (2)'!$B:$B,$D$67) -> 0 | AI88: =SUMIFS('Intervenção-Pista (2)'!AE:AE,'Intervenção-Pista (2)'!$A:$A,$D88,'Intervenção-Pista (2)'!$B:$B,$D$67) -> 0 | AJ88: =SUMIFS('Intervenção-Pista (2)'!AF:AF,'Intervenção-Pista (2)'!$A:$A,$D88,'Intervenção-Pista (2)'!$B:$B,$D$67) -> 0 | AK88: =SUMIFS('Intervenção-Pista (2)'!AG:AG,'Intervenção-Pista (2)'!$A:$A,$D88,'Intervenção-Pista (2)'!$B:$B,$D$67) -> 0
B89: 8.1.3.22 | D89: 491CMG0210D | E89: M2 | F89: 0 | H89: =SUMIFS('Intervenção-Pista (2)'!D:D,'Intervenção-Pista (2)'!$A:$A,$D89,'Intervenção-Pista (2)'!$B:$B,$D$67) -> 0 | I89: =SUMIFS('Intervenção-Pista (2)'!E:E,'Intervenção-Pista (2)'!$A:$A,$D89,'Intervenção-Pista (2)'!$B:$B,$D$67) -> 0 | J89: =SUMIFS('Intervenção-Pista (2)'!F:F,'Intervenção-Pista (2)'!$A:$A,$D89,'Intervenção-Pista (2)'!$B:$B,$D$67) -> 0 | K89: =SUMIFS('Intervenção-Pista (2)'!G:G,'Intervenção-Pista (2)'!$A:$A,$D89,'Intervenção-Pista (2)'!$B:$B,$D$67) -> 0 | L89: =SUMIFS('Intervenção-Pista (2)'!H:H,'Intervenção-Pista (2)'!$A:$A,$D89,'Intervenção-Pista (2)'!$B:$B,$D$67) -> 0 | M89: =SUMIFS('Intervenção-Pista (2)'!I:I,'Intervenção-Pista (2)'!$A:$A,$D89,'Intervenção-Pista (2)'!$B:$B,$D$67) -> 0 | N89: =SUMIFS('Intervenção-Pista (2)'!J:J,'Intervenção-Pista (2)'!$A:$A,$D89,'Intervenção-Pista (2)'!$B:$B,$D$67) -> 0 | O89: =SUMIFS('Intervenção-Pista (2)'!K:K,'Intervenção-Pista (2)'!$A:$A,$D89,'Intervenção-Pista (2)'!$B:$B,$D$67) -> 0 | P89: =SUMIFS('Intervenção-Pista (2)'!L:L,'Intervenção-Pista (2)'!$A:$A,$D89,'Intervenção-Pista (2)'!$B:$B,$D$67) -> 0 | Q89: =SUMIFS('Intervenção-Pista (2)'!M:M,'Intervenção-Pista (2)'!$A:$A,$D89,'Intervenção-Pista (2)'!$B:$B,$D$67) -> 0 | R89: =SUMIFS('Intervenção-Pista (2)'!N:N,'Intervenção-Pista (2)'!$A:$A,$D89,'Intervenção-Pista (2)'!$B:$B,$D$67) -> 0 | S89: =SUMIFS('Intervenção-Pista (2)'!O:O,'Intervenção-Pista (2)'!$A:$A,$D89,'Intervenção-Pista (2)'!$B:$B,$D$67) -> 0 | T89: =SUMIFS('Intervenção-Pista (2)'!P:P,'Intervenção-Pista (2)'!$A:$A,$D89,'Intervenção-Pista (2)'!$B:$B,$D$67) -> 0 | U89: =SUMIFS('Intervenção-Pista (2)'!Q:Q,'Intervenção-Pista (2)'!$A:$A,$D89,'Intervenção-Pista (2)'!$B:$B,$D$67) -> 0 | V89: =SUMIFS('Intervenção-Pista (2)'!R:R,'Intervenção-Pista (2)'!$A:$A,$D89,'Intervenção-Pista (2)'!$B:$B,$D$67) -> 0 | W89: =SUMIFS('Intervenção-Pista (2)'!S:S,'Intervenção-Pista (2)'!$A:$A,$D89,'Intervenção-Pista (2)'!$B:$B,$D$67) -> 0 | X89: =SUMIFS('Intervenção-Pista (2)'!T:T,'Intervenção-Pista (2)'!$A:$A,$D89,'Intervenção-Pista (2)'!$B:$B,$D$67) -> 0 | Y89: =SUMIFS('Intervenção-Pista (2)'!U:U,'Intervenção-Pista (2)'!$A:$A,$D89,'Intervenção-Pista (2)'!$B:$B,$D$67) -> 0 | Z89: =SUMIFS('Intervenção-Pista (2)'!V:V,'Intervenção-Pista (2)'!$A:$A,$D89,'Intervenção-Pista (2)'!$B:$B,$D$67) -> 0 | AA89: =SUMIFS('Intervenção-Pista (2)'!W:W,'Intervenção-Pista (2)'!$A:$A,$D89,'Intervenção-Pista (2)'!$B:$B,$D$67) -> 0 | AB89: =SUMIFS('Intervenção-Pista (2)'!X:X,'Intervenção-Pista (2)'!$A:$A,$D89,'Intervenção-Pista (2)'!$B:$B,$D$67) -> 0 | AC89: =SUMIFS('Intervenção-Pista (2)'!Y:Y,'Intervenção-Pista (2)'!$A:$A,$D89,'Intervenção-Pista (2)'!$B:$B,$D$67) -> 0 | AD89: =SUMIFS('Intervenção-Pista (2)'!Z:Z,'Intervenção-Pista (2)'!$A:$A,$D89,'Intervenção-Pista (2)'!$B:$B,$D$67) -> 0 | AE89: =SUMIFS('Intervenção-Pista (2)'!AA:AA,'Intervenção-Pista (2)'!$A:$A,$D89,'Intervenção-Pista (2)'!$B:$B,$D$67) -> 0 | AF89: =SUMIFS('Intervenção-Pista (2)'!AB:AB,'Intervenção-Pista (2)'!$A:$A,$D89,'Intervenção-Pista (2)'!$B:$B,$D$67) -> 0 | AG89: =SUMIFS('Intervenção-Pista (2)'!AC:AC,'Intervenção-Pista (2)'!$A:$A,$D89,'Intervenção-Pista (2)'!$B:$B,$D$67) -> 0 | AH89: =SUMIFS('Intervenção-Pista (2)'!AD:AD,'Intervenção-Pista (2)'!$A:$A,$D89,'Intervenção-Pista (2)'!$B:$B,$D$67) -> 0 | AI89: =SUMIFS('Intervenção-Pista (2)'!AE:AE,'Intervenção-Pista (2)'!$A:$A,$D89,'Intervenção-Pista (2)'!$B:$B,$D$67) -> 0 | AJ89: =SUMIFS('Intervenção-Pista (2)'!AF:AF,'Intervenção-Pista (2)'!$A:$A,$D89,'Intervenção-Pista (2)'!$B:$B,$D$67) -> 0 | AK89: =SUMIFS('Intervenção-Pista (2)'!AG:AG,'Intervenção-Pista (2)'!$A:$A,$D89,'Intervenção-Pista (2)'!$B:$B,$D$67) -> 0
B90: 8.1.3.23 | D90: 146BMG0250 | E90: M2 | F90: 0 | H90: =SUMIFS('Intervenção-Pista (2)'!D:D,'Intervenção-Pista (2)'!$A:$A,$D90,'Intervenção-Pista (2)'!$B:$B,$D$67) -> 0 | I90: =SUMIFS('Intervenção-Pista (2)'!E:E,'Intervenção-Pista (2)'!$A:$A,$D90,'Intervenção-Pista (2)'!$B:$B,$D$67) -> 0 | J90: =SUMIFS('Intervenção-Pista (2)'!F:F,'Intervenção-Pista (2)'!$A:$A,$D90,'Intervenção-Pista (2)'!$B:$B,$D$67) -> 0 | K90: =SUMIFS('Intervenção-Pista (2)'!G:G,'Intervenção-Pista (2)'!$A:$A,$D90,'Intervenção-Pista (2)'!$B:$B,$D$67) -> 0 | L90: =SUMIFS('Intervenção-Pista (2)'!H:H,'Intervenção-Pista (2)'!$A:$A,$D90,'Intervenção-Pista (2)'!$B:$B,$D$67) -> 0 | M90: =SUMIFS('Intervenção-Pista (2)'!I:I,'Intervenção-Pista (2)'!$A:$A,$D90,'Intervenção-Pista (2)'!$B:$B,$D$67) -> 0 | N90: =SUMIFS('Intervenção-Pista (2)'!J:J,'Intervenção-Pista (2)'!$A:$A,$D90,'Intervenção-Pista (2)'!$B:$B,$D$67) -> 0 | O90: =SUMIFS('Intervenção-Pista (2)'!K:K,'Intervenção-Pista (2)'!$A:$A,$D90,'Intervenção-Pista (2)'!$B:$B,$D$67) -> 0 | P90: =SUMIFS('Intervenção-Pista (2)'!L:L,'Intervenção-Pista (2)'!$A:$A,$D90,'Intervenção-Pista (2)'!$B:$B,$D$67) -> 0 | Q90: =SUMIFS('Intervenção-Pista (2)'!M:M,'Intervenção-Pista (2)'!$A:$A,$D90,'Intervenção-Pista (2)'!$B:$B,$D$67) -> 0 | R90: =SUMIFS('Intervenção-Pista (2)'!N:N,'Intervenção-Pista (2)'!$A:$A,$D90,'Intervenção-Pista (2)'!$B:$B,$D$67) -> 0 | S90: =SUMIFS('Intervenção-Pista (2)'!O:O,'Intervenção-Pista (2)'!$A:$A,$D90,'Intervenção-Pista (2)'!$B:$B,$D$67) -> 0 | T90: =SUMIFS('Intervenção-Pista (2)'!P:P,'Intervenção-Pista (2)'!$A:$A,$D90,'Intervenção-Pista (2)'!$B:$B,$D$67) -> 0 | U90: =SUMIFS('Intervenção-Pista (2)'!Q:Q,'Intervenção-Pista (2)'!$A:$A,$D90,'Intervenção-Pista (2)'!$B:$B,$D$67) -> 0 | V90: =SUMIFS('Intervenção-Pista (2)'!R:R,'Intervenção-Pista (2)'!$A:$A,$D90,'Intervenção-Pista (2)'!$B:$B,$D$67) -> 0 | W90: =SUMIFS('Intervenção-Pista (2)'!S:S,'Intervenção-Pista (2)'!$A:$A,$D90,'Intervenção-Pista (2)'!$B:$B,$D$67) -> 0 | X90: =SUMIFS('Intervenção-Pista (2)'!T:T,'Intervenção-Pista (2)'!$A:$A,$D90,'Intervenção-Pista (2)'!$B:$B,$D$67) -> 0 | Y90: =SUMIFS('Intervenção-Pista (2)'!U:U,'Intervenção-Pista (2)'!$A:$A,$D90,'Intervenção-Pista (2)'!$B:$B,$D$67) -> 0 | Z90: =SUMIFS('Intervenção-Pista (2)'!V:V,'Intervenção-Pista (2)'!$A:$A,$D90,'Intervenção-Pista (2)'!$B:$B,$D$67) -> 0 | AA90: =SUMIFS('Intervenção-Pista (2)'!W:W,'Intervenção-Pista (2)'!$A:$A,$D90,'Intervenção-Pista (2)'!$B:$B,$D$67) -> 0 | AB90: =SUMIFS('Intervenção-Pista (2)'!X:X,'Intervenção-Pista (2)'!$A:$A,$D90,'Intervenção-Pista (2)'!$B:$B,$D$67) -> 0 | AC90: =SUMIFS('Intervenção-Pista (2)'!Y:Y,'Intervenção-Pista (2)'!$A:$A,$D90,'Intervenção-Pista (2)'!$B:$B,$D$67) -> 0 | AD90: =SUMIFS('Intervenção-Pista (2)'!Z:Z,'Intervenção-Pista (2)'!$A:$A,$D90,'Intervenção-Pista (2)'!$B:$B,$D$67) -> 0 | AE90: =SUMIFS('Intervenção-Pista (2)'!AA:AA,'Intervenção-Pista (2)'!$A:$A,$D90,'Intervenção-Pista (2)'!$B:$B,$D$67) -> 0 | AF90: =SUMIFS('Intervenção-Pista (2)'!AB:AB,'Intervenção-Pista (2)'!$A:$A,$D90,'Intervenção-Pista (2)'!$B:$B,$D$67) -> 0 | AG90: =SUMIFS('Intervenção-Pista (2)'!AC:AC,'Intervenção-Pista (2)'!$A:$A,$D90,'Intervenção-Pista (2)'!$B:$B,$D$67) -> 0 | AH90: =SUMIFS('Intervenção-Pista (2)'!AD:AD,'Intervenção-Pista (2)'!$A:$A,$D90,'Intervenção-Pista (2)'!$B:$B,$D$67) -> 0 | AI90: =SUMIFS('Intervenção-Pista (2)'!AE:AE,'Intervenção-Pista (2)'!$A:$A,$D90,'Intervenção-Pista (2)'!$B:$B,$D$67) -> 0 | AJ90: =SUMIFS('Intervenção-Pista (2)'!AF:AF,'Intervenção-Pista (2)'!$A:$A,$D90,'Intervenção-Pista (2)'!$B:$B,$D$67) -> 0 | AK90: =SUMIFS('Intervenção-Pista (2)'!AG:AG,'Intervenção-Pista (2)'!$A:$A,$D90,'Intervenção-Pista (2)'!$B:$B,$D$67) -> 0
B91: 8.1.3.24 | D91: 146BMG0252 | E91: M2 | F91: 0 | H91: =SUMIFS('Intervenção-Pista (2)'!D:D,'Intervenção-Pista (2)'!$A:$A,$D91,'Intervenção-Pista (2)'!$B:$B,$D$67) -> 0 | I91: =SUMIFS('Intervenção-Pista (2)'!E:E,'Intervenção-Pista (2)'!$A:$A,$D91,'Intervenção-Pista (2)'!$B:$B,$D$67) -> 0 | J91: =SUMIFS('Intervenção-Pista (2)'!F:F,'Intervenção-Pista (2)'!$A:$A,$D91,'Intervenção-Pista (2)'!$B:$B,$D$67) -> 0 | K91: =SUMIFS('Intervenção-Pista (2)'!G:G,'Intervenção-Pista (2)'!$A:$A,$D91,'Intervenção-Pista (2)'!$B:$B,$D$67) -> 0 | L91: =SUMIFS('Intervenção-Pista (2)'!H:H,'Intervenção-Pista (2)'!$A:$A,$D91,'Intervenção-Pista (2)'!$B:$B,$D$67) -> 0 | M91: =SUMIFS('Intervenção-Pista (2)'!I:I,'Intervenção-Pista (2)'!$A:$A,$D91,'Intervenção-Pista (2)'!$B:$B,$D$67) -> 0 | N91: =SUMIFS('Intervenção-Pista (2)'!J:J,'Intervenção-Pista (2)'!$A:$A,$D91,'Intervenção-Pista (2)'!$B:$B,$D$67) -> 0 | O91: =SUMIFS('Intervenção-Pista (2)'!K:K,'Intervenção-Pista (2)'!$A:$A,$D91,'Intervenção-Pista (2)'!$B:$B,$D$67) -> 0 | P91: =SUMIFS('Intervenção-Pista (2)'!L:L,'Intervenção-Pista (2)'!$A:$A,$D91,'Intervenção-Pista (2)'!$B:$B,$D$67) -> 0 | Q91: =SUMIFS('Intervenção-Pista (2)'!M:M,'Intervenção-Pista (2)'!$A:$A,$D91,'Intervenção-Pista (2)'!$B:$B,$D$67) -> 0 | R91: =SUMIFS('Intervenção-Pista (2)'!N:N,'Intervenção-Pista (2)'!$A:$A,$D91,'Intervenção-Pista (2)'!$B:$B,$D$67) -> 0 | S91: =SUMIFS('Intervenção-Pista (2)'!O:O,'Intervenção-Pista (2)'!$A:$A,$D91,'Intervenção-Pista (2)'!$B:$B,$D$67) -> 0 | T91: =SUMIFS('Intervenção-Pista (2)'!P:P,'Intervenção-Pista (2)'!$A:$A,$D91,'Intervenção-Pista (2)'!$B:$B,$D$67) -> 0 | U91: =SUMIFS('Intervenção-Pista (2)'!Q:Q,'Intervenção-Pista (2)'!$A:$A,$D91,'Intervenção-Pista (2)'!$B:$B,$D$67) -> 0 | V91: =SUMIFS('Intervenção-Pista (2)'!R:R,'Intervenção-Pista (2)'!$A:$A,$D91,'Intervenção-Pista (2)'!$B:$B,$D$67) -> 0 | W91: =SUMIFS('Intervenção-Pista (2)'!S:S,'Intervenção-Pista (2)'!$A:$A,$D91,'Intervenção-Pista (2)'!$B:$B,$D$67) -> 0 | X91: =SUMIFS('Intervenção-Pista (2)'!T:T,'Intervenção-Pista (2)'!$A:$A,$D91,'Intervenção-Pista (2)'!$B:$B,$D$67) -> 0 | Y91: =SUMIFS('Intervenção-Pista (2)'!U:U,'Intervenção-Pista (2)'!$A:$A,$D91,'Intervenção-Pista (2)'!$B:$B,$D$67) -> 0 | Z91: =SUMIFS('Intervenção-Pista (2)'!V:V,'Intervenção-Pista (2)'!$A:$A,$D91,'Intervenção-Pista (2)'!$B:$B,$D$67) -> 0 | AA91: =SUMIFS('Intervenção-Pista (2)'!W:W,'Intervenção-Pista (2)'!$A:$A,$D91,'Intervenção-Pista (2)'!$B:$B,$D$67) -> 0 | AB91: =SUMIFS('Intervenção-Pista (2)'!X:X,'Intervenção-Pista (2)'!$A:$A,$D91,'Intervenção-Pista (2)'!$B:$B,$D$67) -> 0 | AC91: =SUMIFS('Intervenção-Pista (2)'!Y:Y,'Intervenção-Pista (2)'!$A:$A,$D91,'Intervenção-Pista (2)'!$B:$B,$D$67) -> 0 | AD91: =SUMIFS('Intervenção-Pista (2)'!Z:Z,'Intervenção-Pista (2)'!$A:$A,$D91,'Intervenção-Pista (2)'!$B:$B,$D$67) -> 0 | AE91: =SUMIFS('Intervenção-Pista (2)'!AA:AA,'Intervenção-Pista (2)'!$A:$A,$D91,'Intervenção-Pista (2)'!$B:$B,$D$67) -> 0 | AF91: =SUMIFS('Intervenção-Pista (2)'!AB:AB,'Intervenção-Pista (2)'!$A:$A,$D91,'Intervenção-Pista (2)'!$B:$B,$D$67) -> 0 | AG91: =SUMIFS('Intervenção-Pista (2)'!AC:AC,'Intervenção-Pista (2)'!$A:$A,$D91,'Intervenção-Pista (2)'!$B:$B,$D$67) -> 0 | AH91: =SUMIFS('Intervenção-Pista (2)'!AD:AD,'Intervenção-Pista (2)'!$A:$A,$D91,'Intervenção-Pista (2)'!$B:$B,$D$67) -> 0 | AI91: =SUMIFS('Intervenção-Pista (2)'!AE:AE,'Intervenção-Pista (2)'!$A:$A,$D91,'Intervenção-Pista (2)'!$B:$B,$D$67) -> 0 | AJ91: =SUMIFS('Intervenção-Pista (2)'!AF:AF,'Intervenção-Pista (2)'!$A:$A,$D91,'Intervenção-Pista (2)'!$B:$B,$D$67) -> 0 | AK91: =SUMIFS('Intervenção-Pista (2)'!AG:AG,'Intervenção-Pista (2)'!$A:$A,$D91,'Intervenção-Pista (2)'!$B:$B,$D$67) -> 0
B92: 8.1.3.25 | D92: 369CMG0070 | E92: M2 | F92: 0 | H92: =SUMIFS('Intervenção-Pista (2)'!D:D,'Intervenção-Pista (2)'!$A:$A,$D92,'Intervenção-Pista (2)'!$B:$B,$D$67) -> 0 | I92: =SUMIFS('Intervenção-Pista (2)'!E:E,'Intervenção-Pista (2)'!$A:$A,$D92,'Intervenção-Pista (2)'!$B:$B,$D$67) -> 0 | J92: =SUMIFS('Intervenção-Pista (2)'!F:F,'Intervenção-Pista (2)'!$A:$A,$D92,'Intervenção-Pista (2)'!$B:$B,$D$67) -> 0 | K92: =SUMIFS('Intervenção-Pista (2)'!G:G,'Intervenção-Pista (2)'!$A:$A,$D92,'Intervenção-Pista (2)'!$B:$B,$D$67) -> 0 | L92: =SUMIFS('Intervenção-Pista (2)'!H:H,'Intervenção-Pista (2)'!$A:$A,$D92,'Intervenção-Pista (2)'!$B:$B,$D$67) -> 0 | M92: =SUMIFS('Intervenção-Pista (2)'!I:I,'Intervenção-Pista (2)'!$A:$A,$D92,'Intervenção-Pista (2)'!$B:$B,$D$67) -> 0 | N92: =SUMIFS('Intervenção-Pista (2)'!J:J,'Intervenção-Pista (2)'!$A:$A,$D92,'Intervenção-Pista (2)'!$B:$B,$D$67) -> 0 | O92: =SUMIFS('Intervenção-Pista (2)'!K:K,'Intervenção-Pista (2)'!$A:$A,$D92,'Intervenção-Pista (2)'!$B:$B,$D$67) -> 0 | P92: =SUMIFS('Intervenção-Pista (2)'!L:L,'Intervenção-Pista (2)'!$A:$A,$D92,'Intervenção-Pista (2)'!$B:$B,$D$67) -> 0 | Q92: =SUMIFS('Intervenção-Pista (2)'!M:M,'Intervenção-Pista (2)'!$A:$A,$D92,'Intervenção-Pista (2)'!$B:$B,$D$67) -> 0 | R92: =SUMIFS('Intervenção-Pista (2)'!N:N,'Intervenção-Pista (2)'!$A:$A,$D92,'Intervenção-Pista (2)'!$B:$B,$D$67) -> 0 | S92: =SUMIFS('Intervenção-Pista (2)'!O:O,'Intervenção-Pista (2)'!$A:$A,$D92,'Intervenção-Pista (2)'!$B:$B,$D$67) -> 0 | T92: =SUMIFS('Intervenção-Pista (2)'!P:P,'Intervenção-Pista (2)'!$A:$A,$D92,'Intervenção-Pista (2)'!$B:$B,$D$67) -> 0 | U92: =SUMIFS('Intervenção-Pista (2)'!Q:Q,'Intervenção-Pista (2)'!$A:$A,$D92,'Intervenção-Pista (2)'!$B:$B,$D$67) -> 0 | V92: =SUMIFS('Intervenção-Pista (2)'!R:R,'Intervenção-Pista (2)'!$A:$A,$D92,'Intervenção-Pista (2)'!$B:$B,$D$67) -> 0 | W92: =SUMIFS('Intervenção-Pista (2)'!S:S,'Intervenção-Pista (2)'!$A:$A,$D92,'Intervenção-Pista (2)'!$B:$B,$D$67) -> 0 | X92: =SUMIFS('Intervenção-Pista (2)'!T:T,'Intervenção-Pista (2)'!$A:$A,$D92,'Intervenção-Pista (2)'!$B:$B,$D$67) -> 0 | Y92: =SUMIFS('Intervenção-Pista (2)'!U:U,'Intervenção-Pista (2)'!$A:$A,$D92,'Intervenção-Pista (2)'!$B:$B,$D$67) -> 0 | Z92: =SUMIFS('Intervenção-Pista (2)'!V:V,'Intervenção-Pista (2)'!$A:$A,$D92,'Intervenção-Pista (2)'!$B:$B,$D$67) -> 0 | AA92: =SUMIFS('Intervenção-Pista (2)'!W:W,'Intervenção-Pista (2)'!$A:$A,$D92,'Intervenção-Pista (2)'!$B:$B,$D$67) -> 0 | AB92: =SUMIFS('Intervenção-Pista (2)'!X:X,'Intervenção-Pista (2)'!$A:$A,$D92,'Intervenção-Pista (2)'!$B:$B,$D$67) -> 0 | AC92: =SUMIFS('Intervenção-Pista (2)'!Y:Y,'Intervenção-Pista (2)'!$A:$A,$D92,'Intervenção-Pista (2)'!$B:$B,$D$67) -> 0 | AD92: =SUMIFS('Intervenção-Pista (2)'!Z:Z,'Intervenção-Pista (2)'!$A:$A,$D92,'Intervenção-Pista (2)'!$B:$B,$D$67) -> 0 | AE92: =SUMIFS('Intervenção-Pista (2)'!AA:AA,'Intervenção-Pista (2)'!$A:$A,$D92,'Intervenção-Pista (2)'!$B:$B,$D$67) -> 0 | AF92: =SUMIFS('Intervenção-Pista (2)'!AB:AB,'Intervenção-Pista (2)'!$A:$A,$D92,'Intervenção-Pista (2)'!$B:$B,$D$67) -> 0 | AG92: =SUMIFS('Intervenção-Pista (2)'!AC:AC,'Intervenção-Pista (2)'!$A:$A,$D92,'Intervenção-Pista (2)'!$B:$B,$D$67) -> 0 | AH92: =SUMIFS('Intervenção-Pista (2)'!AD:AD,'Intervenção-Pista (2)'!$A:$A,$D92,'Intervenção-Pista (2)'!$B:$B,$D$67) -> 0 | AI92: =SUMIFS('Intervenção-Pista (2)'!AE:AE,'Intervenção-Pista (2)'!$A:$A,$D92,'Intervenção-Pista (2)'!$B:$B,$D$67) -> 0 | AJ92: =SUMIFS('Intervenção-Pista (2)'!AF:AF,'Intervenção-Pista (2)'!$A:$A,$D92,'Intervenção-Pista (2)'!$B:$B,$D$67) -> 0 | AK92: =SUMIFS('Intervenção-Pista (2)'!AG:AG,'Intervenção-Pista (2)'!$A:$A,$D92,'Intervenção-Pista (2)'!$B:$B,$D$67) -> 0
B93: 8.1.3.26 | D93: 369CMG0090 | E93: M2 | F93: 0 | H93: =SUMIFS('Intervenção-Pista (2)'!D:D,'Intervenção-Pista (2)'!$A:$A,$D93,'Intervenção-Pista (2)'!$B:$B,$D$67) -> 0 | I93: =SUMIFS('Intervenção-Pista (2)'!E:E,'Intervenção-Pista (2)'!$A:$A,$D93,'Intervenção-Pista (2)'!$B:$B,$D$67) -> 0 | J93: =SUMIFS('Intervenção-Pista (2)'!F:F,'Intervenção-Pista (2)'!$A:$A,$D93,'Intervenção-Pista (2)'!$B:$B,$D$67) -> 0 | K93: =SUMIFS('Intervenção-Pista (2)'!G:G,'Intervenção-Pista (2)'!$A:$A,$D93,'Intervenção-Pista (2)'!$B:$B,$D$67) -> 0 | L93: =SUMIFS('Intervenção-Pista (2)'!H:H,'Intervenção-Pista (2)'!$A:$A,$D93,'Intervenção-Pista (2)'!$B:$B,$D$67) -> 0 | M93: =SUMIFS('Intervenção-Pista (2)'!I:I,'Intervenção-Pista (2)'!$A:$A,$D93,'Intervenção-Pista (2)'!$B:$B,$D$67) -> 0 | N93: =SUMIFS('Intervenção-Pista (2)'!J:J,'Intervenção-Pista (2)'!$A:$A,$D93,'Intervenção-Pista (2)'!$B:$B,$D$67) -> 0 | O93: =SUMIFS('Intervenção-Pista (2)'!K:K,'Intervenção-Pista (2)'!$A:$A,$D93,'Intervenção-Pista (2)'!$B:$B,$D$67) -> 0 | P93: =SUMIFS('Intervenção-Pista (2)'!L:L,'Intervenção-Pista (2)'!$A:$A,$D93,'Intervenção-Pista (2)'!$B:$B,$D$67) -> 0 | Q93: =SUMIFS('Intervenção-Pista (2)'!M:M,'Intervenção-Pista (2)'!$A:$A,$D93,'Intervenção-Pista (2)'!$B:$B,$D$67) -> 0 | R93: =SUMIFS('Intervenção-Pista (2)'!N:N,'Intervenção-Pista (2)'!$A:$A,$D93,'Intervenção-Pista (2)'!$B:$B,$D$67) -> 0 | S93: =SUMIFS('Intervenção-Pista (2)'!O:O,'Intervenção-Pista (2)'!$A:$A,$D93,'Intervenção-Pista (2)'!$B:$B,$D$67) -> 0 | T93: =SUMIFS('Intervenção-Pista (2)'!P:P,'Intervenção-Pista (2)'!$A:$A,$D93,'Intervenção-Pista (2)'!$B:$B,$D$67) -> 0 | U93: =SUMIFS('Intervenção-Pista (2)'!Q:Q,'Intervenção-Pista (2)'!$A:$A,$D93,'Intervenção-Pista (2)'!$B:$B,$D$67) -> 0 | V93: =SUMIFS('Intervenção-Pista (2)'!R:R,'Intervenção-Pista (2)'!$A:$A,$D93,'Intervenção-Pista (2)'!$B:$B,$D$67) -> 0 | W93: =SUMIFS('Intervenção-Pista (2)'!S:S,'Intervenção-Pista (2)'!$A:$A,$D93,'Intervenção-Pista (2)'!$B:$B,$D$67) -> 0 | X93: =SUMIFS('Intervenção-Pista (2)'!T:T,'Intervenção-Pista (2)'!$A:$A,$D93,'Intervenção-Pista (2)'!$B:$B,$D$67) -> 0 | Y93: =SUMIFS('Intervenção-Pista (2)'!U:U,'Intervenção-Pista (2)'!$A:$A,$D93,'Intervenção-Pista (2)'!$B:$B,$D$67) -> 0 | Z93: =SUMIFS('Intervenção-Pista (2)'!V:V,'Intervenção-Pista (2)'!$A:$A,$D93,'Intervenção-Pista (2)'!$B:$B,$D$67) -> 0 | AA93: =SUMIFS('Intervenção-Pista (2)'!W:W,'Intervenção-Pista (2)'!$A:$A,$D93,'Intervenção-Pista (2)'!$B:$B,$D$67) -> 0 | AB93: =SUMIFS('Intervenção-Pista (2)'!X:X,'Intervenção-Pista (2)'!$A:$A,$D93,'Intervenção-Pista (2)'!$B:$B,$D$67) -> 0 | AC93: =SUMIFS('Intervenção-Pista (2)'!Y:Y,'Intervenção-Pista (2)'!$A:$A,$D93,'Intervenção-Pista (2)'!$B:$B,$D$67) -> 0 | AD93: =SUMIFS('Intervenção-Pista (2)'!Z:Z,'Intervenção-Pista (2)'!$A:$A,$D93,'Intervenção-Pista (2)'!$B:$B,$D$67) -> 0 | AE93: =SUMIFS('Intervenção-Pista (2)'!AA:AA,'Intervenção-Pista (2)'!$A:$A,$D93,'Intervenção-Pista (2)'!$B:$B,$D$67) -> 0 | AF93: =SUMIFS('Intervenção-Pista (2)'!AB:AB,'Intervenção-Pista (2)'!$A:$A,$D93,'Intervenção-Pista (2)'!$B:$B,$D$67) -> 0 | AG93: =SUMIFS('Intervenção-Pista (2)'!AC:AC,'Intervenção-Pista (2)'!$A:$A,$D93,'Intervenção-Pista (2)'!$B:$B,$D$67) -> 0 | AH93: =SUMIFS('Intervenção-Pista (2)'!AD:AD,'Intervenção-Pista (2)'!$A:$A,$D93,'Intervenção-Pista (2)'!$B:$B,$D$67) -> 0 | AI93: =SUMIFS('Intervenção-Pista (2)'!AE:AE,'Intervenção-Pista (2)'!$A:$A,$D93,'Intervenção-Pista (2)'!$B:$B,$D$67) -> 0 | AJ93: =SUMIFS('Intervenção-Pista (2)'!AF:AF,'Intervenção-Pista (2)'!$A:$A,$D93,'Intervenção-Pista (2)'!$B:$B,$D$67) -> 0 | AK93: =SUMIFS('Intervenção-Pista (2)'!AG:AG,'Intervenção-Pista (2)'!$A:$A,$D93,'Intervenção-Pista (2)'!$B:$B,$D$67) -> 0
B94: 8.1.4 | D94: Reconstrução | F94: =SUM(F95:F120) -> 944,159.73 | H94: =SUM(H95:H120) -> 0 | I94: =SUM(I95:I120) -> 0 | J94: =SUM(J95:J120) -> 83,615.96 | K94: =SUM(K95:K120) -> 283,652.81 | L94: =SUM(L95:L120) -> 245,753.99 | M94: =SUM(M95:M120) -> 331,136.97 | N94: =SUM(N95:N120) -> 0 | O94: =SUM(O95:O120) -> 0 | P94: =SUM(P95:P120) -> 0 | Q94: =SUM(Q95:Q120) -> 0 | R94: =SUM(R95:R120) -> 0 | S94: =SUM(S95:S120) -> 0 | T94: =SUM(T95:T120) -> 0 | U94: =SUM(U95:U120) -> 0 | V94: =SUM(V95:V120) -> 0 | W94: =SUM(W95:W120) -> 0 | X94: =SUM(X95:X120) -> 0 | Y94: =SUM(Y95:Y120) -> 0 | Z94: =SUM(Z95:Z120) -> 0 | AA94: =SUM(AA95:AA120) -> 0 | AB94: =SUM(AB95:AB120) -> 0 | AC94: =SUM(AC95:AC120) -> 0 | AD94: =SUM(AD95:AD120) -> 0 | AE94: =SUM(AE95:AE120) -> 0 | AF94: =SUM(AF95:AF120) -> 0 | AG94: =SUM(AG95:AG120) -> 0 | AH94: =SUM(AH95:AH120) -> 0 | AI94: =SUM(AI95:AI120) -> 0 | AJ94: =SUM(AJ95:AJ120) -> 0 | AK94: =SUM(AK95:AK120) -> 0
B95: 8.1.4.1 | D95: 167EMG0200 | E95: M2 | F95: =SUM(H95:AK95) -> 30,000.00 | H95: =SUMIFS('Intervenção-Pista (2)'!D:D,'Intervenção-Pista (2)'!$A:$A,$D95,'Intervenção-Pista (2)'!$B:$B,$D$94) -> 0 | I95: =SUMIFS('Intervenção-Pista (2)'!E:E,'Intervenção-Pista (2)'!$A:$A,$D95,'Intervenção-Pista (2)'!$B:$B,$D$94) -> 0 | J95: =SUMIFS('Intervenção-Pista (2)'!F:F,'Intervenção-Pista (2)'!$A:$A,$D95,'Intervenção-Pista (2)'!$B:$B,$D$94) -> 0 | K95: =SUMIFS('Intervenção-Pista (2)'!G:G,'Intervenção-Pista (2)'!$A:$A,$D95,'Intervenção-Pista (2)'!$B:$B,$D$94) -> 30,000.00 | L95: =SUMIFS('Intervenção-Pista (2)'!H:H,'Intervenção-Pista (2)'!$A:$A,$D95,'Intervenção-Pista (2)'!$B:$B,$D$94) -> 0 | M95: =SUMIFS('Intervenção-Pista (2)'!I:I,'Intervenção-Pista (2)'!$A:$A,$D95,'Intervenção-Pista (2)'!$B:$B,$D$94) -> 0 | N95: =SUMIFS('Intervenção-Pista (2)'!J:J,'Intervenção-Pista (2)'!$A:$A,$D95,'Intervenção-Pista (2)'!$B:$B,$D$94) -> 0 | O95: =SUMIFS('Intervenção-Pista (2)'!K:K,'Intervenção-Pista (2)'!$A:$A,$D95,'Intervenção-Pista (2)'!$B:$B,$D$94) -> 0 | P95: =SUMIFS('Intervenção-Pista (2)'!L:L,'Intervenção-Pista (2)'!$A:$A,$D95,'Intervenção-Pista (2)'!$B:$B,$D$94) -> 0 | Q95: =SUMIFS('Intervenção-Pista (2)'!M:M,'Intervenção-Pista (2)'!$A:$A,$D95,'Intervenção-Pista (2)'!$B:$B,$D$94) -> 0 | R95: =SUMIFS('Intervenção-Pista (2)'!N:N,'Intervenção-Pista (2)'!$A:$A,$D95,'Intervenção-Pista (2)'!$B:$B,$D$94) -> 0 | S95: =SUMIFS('Intervenção-Pista (2)'!O:O,'Intervenção-Pista (2)'!$A:$A,$D95,'Intervenção-Pista (2)'!$B:$B,$D$94) -> 0 | T95: =SUMIFS('Intervenção-Pista (2)'!P:P,'Intervenção-Pista (2)'!$A:$A,$D95,'Intervenção-Pista (2)'!$B:$B,$D$94) -> 0 | U95: =SUMIFS('Intervenção-Pista (2)'!Q:Q,'Intervenção-Pista (2)'!$A:$A,$D95,'Intervenção-Pista (2)'!$B:$B,$D$94) -> 0 | V95: =SUMIFS('Intervenção-Pista (2)'!R:R,'Intervenção-Pista (2)'!$A:$A,$D95,'Intervenção-Pista (2)'!$B:$B,$D$94) -> 0 | W95: =SUMIFS('Intervenção-Pista (2)'!S:S,'Intervenção-Pista (2)'!$A:$A,$D95,'Intervenção-Pista (2)'!$B:$B,$D$94) -> 0 | X95: =SUMIFS('Intervenção-Pista (2)'!T:T,'Intervenção-Pista (2)'!$A:$A,$D95,'Intervenção-Pista (2)'!$B:$B,$D$94) -> 0 | Y95: =SUMIFS('Intervenção-Pista (2)'!U:U,'Intervenção-Pista (2)'!$A:$A,$D95,'Intervenção-Pista (2)'!$B:$B,$D$94) -> 0 | Z95: =SUMIFS('Intervenção-Pista (2)'!V:V,'Intervenção-Pista (2)'!$A:$A,$D95,'Intervenção-Pista (2)'!$B:$B,$D$94) -> 0 | AA95: =SUMIFS('Intervenção-Pista (2)'!W:W,'Intervenção-Pista (2)'!$A:$A,$D95,'Intervenção-Pista (2)'!$B:$B,$D$94) -> 0 | AB95: =SUMIFS('Intervenção-Pista (2)'!X:X,'Intervenção-Pista (2)'!$A:$A,$D95,'Intervenção-Pista (2)'!$B:$B,$D$94) -> 0 | AC95: =SUMIFS('Intervenção-Pista (2)'!Y:Y,'Intervenção-Pista (2)'!$A:$A,$D95,'Intervenção-Pista (2)'!$B:$B,$D$94) -> 0 | AD95: =SUMIFS('Intervenção-Pista (2)'!Z:Z,'Intervenção-Pista (2)'!$A:$A,$D95,'Intervenção-Pista (2)'!$B:$B,$D$94) -> 0 | AE95: =SUMIFS('Intervenção-Pista (2)'!AA:AA,'Intervenção-Pista (2)'!$A:$A,$D95,'Intervenção-Pista (2)'!$B:$B,$D$94) -> 0 | AF95: =SUMIFS('Intervenção-Pista (2)'!AB:AB,'Intervenção-Pista (2)'!$A:$A,$D95,'Intervenção-Pista (2)'!$B:$B,$D$94) -> 0 | AG95: =SUMIFS('Intervenção-Pista (2)'!AC:AC,'Intervenção-Pista (2)'!$A:$A,$D95,'Intervenção-Pista (2)'!$B:$B,$D$94) -> 0 | AH95: =SUMIFS('Intervenção-Pista (2)'!AD:AD,'Intervenção-Pista (2)'!$A:$A,$D95,'Intervenção-Pista (2)'!$B:$B,$D$94) -> 0 | AI95: =SUMIFS('Intervenção-Pista (2)'!AE:AE,'Intervenção-Pista (2)'!$A:$A,$D95,'Intervenção-Pista (2)'!$B:$B,$D$94) -> 0 | AJ95: =SUMIFS('Intervenção-Pista (2)'!AF:AF,'Intervenção-Pista (2)'!$A:$A,$D95,'Intervenção-Pista (2)'!$B:$B,$D$94) -> 0 | AK95: =SUMIFS('Intervenção-Pista (2)'!AG:AG,'Intervenção-Pista (2)'!$A:$A,$D95,'Intervenção-Pista (2)'!$B:$B,$D$94) -> 0
